Workbook

Sheet Resumen
A1: MINISTERIO DE SALUD
A2: SERVICIO DE SALUD COQUIMBO
A3: DEPARTAMENTO DE GESTIÓN, PLANIFICACIÓN Y CONTROL
A4: SUBDEPTO. DE ESTADÍSTICAS Y GESTIÓN DE LA INFORMACIÓN
A5: AÑO 2022
B8: COMUNA | C8: RESUMEN DE CUMPLIMIENTO DE METAS SANITARIAS 2022
C9: META 1 | D9: META 2 | E9: META 3A | F9: META 3B | G9: META 4A | H9: META 4B | I9: META 5 | J9: META 6
C10: Recuperación del desarrollo psicomotor | D10: Detección precoz del cáncer de cuello uterino | E10: Control odontológico en población infantil | F10: Niños y niñas de 6 años libres de caries | G10: Cobertura efectiva de diabetes tipo 2 en personas de 15 y más años | H10: Evaluación anual de los pies en personas con diabetes bajo control de 15 años y más | I10: Cobertura efectiva de hipertensión arterial en personas de 15 años y más | J10: Lactancia materna exclusiva en menores de 6 meses de vida
B12: LA SERENA | C12: ='Meta 01'!$C$26 -> 91.58% | D12: ='Meta 02'!$C$26 -> 171.23% | E12: ='Meta 3A'!$C$26 -> 65.52% | F12: ='Meta 3B'!$C$26 -> 143.81% | G12: ='Meta 4A'!$C$26 -> 111.70% | H12: ='Meta 4B'!$C$26 -> 43.26% | I12: ='Meta 05'!$C$26 -> 94.08% | J12: ='Meta 06'!$C$26 -> 101.62%
B13: COQUIMBO | C13: ='Meta 01'!$C$39 -> 99.00% | D13: ='Meta 02'!$C$39 -> 182.12% | E13: ='Meta 3A'!$C$39 -> 74.61% | F13: ='Meta 3B'!$C$39 -> 97.28% | G13: ='Meta 4A'!$C$39 -> 146.38% | H13: ='Meta 4B'!$C$39 -> 84.91% | I13: ='Meta 05'!$C$39 -> 99.67% | J13: ='Meta 06'!$C$39 -> 88.83%
B14: LA HIGUERA | C14: ='Meta 01'!$C$44 -> 111.11% | D14: ='Meta 02'!$C$44 -> 205.13% | E14: ='Meta 3A'!$C$44 -> 47.77% | F14: ='Meta 3B'!$C$44 -> 73.58% | G14: ='Meta 4A'!$C$44 -> 113.27% | H14: ='Meta 4B'!$C$44 -> 95.24% | I14: ='Meta 05'!$C$44 -> 114.94% | J14: ='Meta 06'!$C$44 -> 71.43%
B15: PAIHUANO | C15: ='Meta 01'!$C$49 -> 111.11% | D15: ='Meta 02'!$C$49 -> 155.16% | E15: ='Meta 3A'!$C$49 -> 146.81% | F15: ='Meta 3B'!$C$49 -> 476.19% | G15: ='Meta 4A'!$C$49 -> 137.77% | H15: ='Meta 4B'!$C$49 -> 126.67% | I15: ='Meta 05'!$C$49 -> 122.24% | J15: ='Meta 06'!$C$49 -> 96.49%
B16: VICUÑA | C16: ='Meta 01'!$C$60 -> 222.22% | D16: ='Meta 02'!$C$60 -> 158.28% | E16: ='Meta 3A'!$C$60 -> 62.49% | F16: ='Meta 3B'!$C$60 -> 79.12% | G16: ='Meta 4A'!$C$60 -> 124.04% | H16: ='Meta 4B'!$C$60 -> 89.06% | I16: ='Meta 05'!$C$60 -> 89.19% | J16: ='Meta 06'!$C$60 -> 141.89%
B17: ILLAPEL | C17: ='Meta 01'!$C$75 -> 181.82% | D17: ='Meta 02'!$C$75 -> 185.29% | E17: ='Meta 3A'!$C$75 -> 60.82% | F17: ='Meta 3B'!$C$75 -> 118.79% | G17: ='Meta 4A'!$C$75 -> 125.10% | H17: ='Meta 4B'!$C$75 -> 101.22% | I17: ='Meta 05'!$C$75 -> 124.29% | J17: ='Meta 06'!$C$75 -> 106.48%
B18: CANELA | C18: ='Meta 01'!$C$86 -> 70.31% | D18: ='Meta 02'!$C$86 -> 196.24% | E18: ='Meta 3A'!$C$86 -> 80.35% | F18: ='Meta 3B'!$C$86 -> 54.35% | G18: ='Meta 4A'!$C$86 -> 114.28% | H18: ='Meta 4B'!$C$86 -> 130.95% | I18: ='Meta 05'!$C$86 -> 95.83% | J18: ='Meta 06'!$C$86 -> 53.92%
B19: LOS VILOS | C19: ='Meta 01'!$C$92 -> 55.56% | D19: ='Meta 02'!$C$92 -> 185.66% | E19: ='Meta 3A'!$C$92 -> 99.36% | F19: ='Meta 3B'!$C$92 -> 59.74% | G19: ='Meta 4A'!$C$92 -> 148.38% | H19: ='Meta 4B'!$C$92 -> 111.51% | I19: ='Meta 05'!$C$92 -> 162.86% | J19: ='Meta 06'!$C$92 -> 68.63%
B20: SALAMANCA | C20: ='Meta 01'!$C$103 -> 681.82% | D20: ='Meta 02'!$C$103 -> 139.30% | E20: ='Meta 3A'!$C$103 -> 79.77% | F20: ='Meta 3B'!$C$103 -> 47.85% | G20: ='Meta 4A'!$C$103 -> 106.37% | H20: ='Meta 4B'!$C$103 -> 119.41% | I20: ='Meta 05'!$C$103 -> 96.18% | J20: ='Meta 06'!$C$103 -> 100.00%
B21: OVALLE | C21: ='Meta 01'!$C$122 -> 84.96% | D21: ='Meta 02'!$C$122 -> 166.83% | E21: ='Meta 3A'!$C$122 -> 72.34% | F21: ='Meta 3B'!$C$122 -> 104.59% | G21: ='Meta 4A'!$C$122 -> 112.51% | H21: ='Meta 4B'!$C$122 -> 93.59% | I21: ='Meta 05'!$C$122 -> 96.97% | J21: ='Meta 06'!$C$122 -> 104.51%
B22: COMBARBALÁ | C22: ='Meta 01'!$C$135 -> 144.58% | D22: ='Meta 02'!$C$135 -> 154.40% | E22: ='Meta 3A'!$C$135 -> 26.64% | F22: ='Meta 3B'!$C$135 -> 27.45% | G22: ='Meta 4A'!$C$135 -> 101.47% | H22: ='Meta 4B'!$C$135 -> 108.77% | I22: ='Meta 05'!$C$135 -> 100.68% | J22: ='Meta 06'!$C$135 -> 102.56%
B23: MONTE PATRIA | C23: ='Meta 01'!$C$149 -> 185.81% | D23: ='Meta 02'!$C$149 -> 167.32% | E23: ='Meta 3A'!$C$149 -> 56.92% | F23: ='Meta 3B'!$C$149 -> 75.85% | G23: ='Meta 4A'!$C$149 -> 103.08% | H23: ='Meta 4B'!$C$149 -> 102.63% | I23: ='Meta 05'!$C$149 -> 112.46% | J23: ='Meta 06'!$C$149 -> 103.27%
B24: PUNITAQUI | C24: ='Meta 01'!$C$154 -> 37.04% | D24: ='Meta 02'!$C$154 -> 135.39% | E24: ='Meta 3A'!$C$154 -> 47.80% | F24: ='Meta 3B'!$C$154 -> 70.11% | G24: ='Meta 4A'!$C$154 -> 122.69% | H24: ='Meta 4B'!$C$154 -> 142.54% | I24: ='Meta 05'!$C$154 -> 90.69% | J24: ='Meta 06'!$C$154 -> 111.11%
B25: RIO HURTADO | C25: ='Meta 01'!$C$162 -> 0.00% | D25: ='Meta 02'!$C$162 -> 142.53% | E25: ='Meta 3A'!$C$162 -> 33.16% | F25: ='Meta 3B'!$C$162 -> 18.18% | G25: ='Meta 4A'!$C$162 -> 143.70% | H25: ='Meta 4B'!$C$162 -> 139.45% | I25: ='Meta 05'!$C$162 -> 112.70% | J25: ='Meta 06'!$C$162 -> 100.00%

Sheet Meta 01
A1: COMUNA | B1: ESTABLECIMIENTO | C1: CUMPLIMIENTO | D1: Indicador | E1: META 1: RECUPERACIÓN DEL DESARROLLO PSICOMOTOR
E2: NUMERADOR | R2: DENOMINADOR
E10: Nº de Niños y Niñas de 12-23 meses diagnosticados en control de salud de los 18 meses con riesgo del desarrollo psicomotor recuperados | R10: Nº de Niños y Niñas de 12-23 meses diagnosticados en control de salud de los 18 meses con riesgo del desarrollo psicomotor en su primera evaluación
D11: Resultado | E11: OCTUBRE | F11: NOVBRE | G11: DICBRE | H11: ENERO | I11: FEBRERO | J11: MARZO | K11: ABRIL | L11: MAYO | M11: JUNIO | N11: JULIO | O11: AGOSTO | P11: SEPBRE | Q11: TOTAL | R11: OCTUBRE | S11: NOVBRE | T11: DICBRE | U11: ENERO | V11: FEBRERO | W11: MARZO | X11: ABRIL | Y11: MAYO | Z11: JUNIO | AA11: JULIO | AB11: AGOSTO | AC11: SEPBRE | AD11: TOTAL
A12: 04101-LA SERENA | B12: 105300-CES. CARDENAL CARO | E12: =IFERROR(VLOOKUP($B12,'[1]Num 1 2021'!$G$3:$T$95,11,FALSE),0) -> 2 | F12: =IFERROR(VLOOKUP($B12,'[1]Num 1 2021'!$G$3:$T$95,12,FALSE),0) -> 0 | G12: =IFERROR(VLOOKUP($B12,'[1]Num 1 2021'!$G$3:$T$95,13,FALSE),0) -> 0 | H12: =IFERROR(VLOOKUP($B12,'[1]Num 1'!$G$3:$O$88,2,FALSE),0) -> 0 | I12: =IFERROR(VLOOKUP($B12,'[1]Num 1'!$G$3:$O$88,3,FALSE),0) -> 0 | J12: =IFERROR(VLOOKUP($B12,'[1]Num 1'!$G$3:$O$88,4,FALSE),0) -> 1 | K12: =IFERROR(VLOOKUP($B12,'[1]Num 1'!$G$3:$O$88,5,FALSE),0) -> 0 | L12: =IFERROR(VLOOKUP($B12,'[1]Num 1'!$G$3:$O$88,6,FALSE),0) -> 1 | M12: =IFERROR(VLOOKUP($B12,'[1]Num 1'!$G$3:$O$88,7,FALSE),0) -> 0 | N12: =IFERROR(VLOOKUP($B12,'[1]Num 1'!$G$3:$O$88,8,FALSE),0) -> 0 | Q12: =SUM(E12:P12) -> 4 | R12: =IFERROR(VLOOKUP($B12,'[1]Den 1 2021'!$G$3:$T$104,11,FALSE),0) -> 1 | S12: =IFERROR(VLOOKUP($B12,'[1]Den 1 2021'!$G$3:$T$104,12,FALSE),0) -> 0 | T12: =IFERROR(VLOOKUP($B12,'[1]Den 1 2021'!$G$3:$T$104,13,FALSE),0) -> 0 | U12: =IFERROR(VLOOKUP($B12,'[1]Den 1'!$G$3:$O$93,2,FALSE),0) -> 1 | V12: =IFERROR(VLOOKUP($B12,'[1]Den 1'!$G$3:$O$93,3,FALSE),0) -> 0 | W12: =IFERROR(VLOOKUP($B12,'[1]Den 1'!$G$3:$O$93,4,FALSE),0) -> 3 | X12: =IFERROR(VLOOKUP($B12,'[1]Den 1'!$G$3:$O$93,5,FALSE),0) -> 1 | Y12: =IFERROR(VLOOKUP($B12,'[1]Den 1'!$G$3:$O$93,6,FALSE),0) -> 1 | Z12: =IFERROR(VLOOKUP($B12,'[1]Den 1'!$G$3:$O$93,7,FALSE),0) -> 2 | AA12: =IFERROR(VLOOKUP($B12,'[1]Den 1'!$G$3:$O$93,8,FALSE),0) -> 1 | AD12: =SUM(R12:AC12) -> 10
A13: 04101-LA SERENA | B13: 105301-CES. LAS COMPAÑIAS | E13: =IFERROR(VLOOKUP($B13,'[1]Num 1 2021'!$G$3:$T$95,11,FALSE),0) -> 1 | F13: =IFERROR(VLOOKUP($B13,'[1]Num 1 2021'!$G$3:$T$95,12,FALSE),0) -> 2 | G13: =IFERROR(VLOOKUP($B13,'[1]Num 1 2021'!$G$3:$T$95,13,FALSE),0) -> 1 | H13: =IFERROR(VLOOKUP($B13,'[1]Num 1'!$G$3:$O$88,2,FALSE),0) -> 2 | I13: =IFERROR(VLOOKUP($B13,'[1]Num 1'!$G$3:$O$88,3,FALSE),0) -> 0 | J13: =IFERROR(VLOOKUP($B13,'[1]Num 1'!$G$3:$O$88,4,FALSE),0) -> 0 | K13: =IFERROR(VLOOKUP($B13,'[1]Num 1'!$G$3:$O$88,5,FALSE),0) -> 1 | L13: =IFERROR(VLOOKUP($B13,'[1]Num 1'!$G$3:$O$88,6,FALSE),0) -> 0 | M13: =IFERROR(VLOOKUP($B13,'[1]Num 1'!$G$3:$O$88,7,FALSE),0) -> 1 | N13: =IFERROR(VLOOKUP($B13,'[1]Num 1'!$G$3:$O$88,8,FALSE),0) -> 3 | Q13: =SUM(E13:P13) -> 11 | R13: =IFERROR(VLOOKUP($B13,'[1]Den 1 2021'!$G$3:$T$104,11,FALSE),0) -> 2 | S13: =IFERROR(VLOOKUP($B13,'[1]Den 1 2021'!$G$3:$T$104,12,FALSE),0) -> 1 | T13: =IFERROR(VLOOKUP($B13,'[1]Den 1 2021'!$G$3:$T$104,13,FALSE),0) -> 0 | U13: =IFERROR(VLOOKUP($B13,'[1]Den 1'!$G$3:$O$93,2,FALSE),0) -> 1 | V13: =IFERROR(VLOOKUP($B13,'[1]Den 1'!$G$3:$O$93,3,FALSE),0) -> 0 | W13: =IFERROR(VLOOKUP($B13,'[1]Den 1'!$G$3:$O$93,4,FALSE),0) -> 2 | X13: =IFERROR(VLOOKUP($B13,'[1]Den 1'!$G$3:$O$93,5,FALSE),0) -> 2 | Y13: =IFERROR(VLOOKUP($B13,'[1]Den 1'!$G$3:$O$93,6,FALSE),0) -> 6 | Z13: =IFERROR(VLOOKUP($B13,'[1]Den 1'!$G$3:$O$93,7,FALSE),0) -> 0 | AA13: =IFERROR(VLOOKUP($B13,'[1]Den 1'!$G$3:$O$93,8,FALSE),0) -> 4 | AD13: =SUM(R13:AC13) -> 18
A14: 04101-LA SERENA | B14: 105302-CES. PEDRO AGUIRRE C. | E14: =IFERROR(VLOOKUP($B14,'[1]Num 1 2021'!$G$3:$T$95,11,FALSE),0) -> 0 | F14: =IFERROR(VLOOKUP($B14,'[1]Num 1 2021'!$G$3:$T$95,12,FALSE),0) -> 2 | G14: =IFERROR(VLOOKUP($B14,'[1]Num 1 2021'!$G$3:$T$95,13,FALSE),0) -> 0 | H14: =IFERROR(VLOOKUP($B14,'[1]Num 1'!$G$3:$O$88,2,FALSE),0) -> 0 | I14: =IFERROR(VLOOKUP($B14,'[1]Num 1'!$G$3:$O$88,3,FALSE),0) -> 0 | J14: =IFERROR(VLOOKUP($B14,'[1]Num 1'!$G$3:$O$88,4,FALSE),0) -> 0 | K14: =IFERROR(VLOOKUP($B14,'[1]Num 1'!$G$3:$O$88,5,FALSE),0) -> 0 | L14: =IFERROR(VLOOKUP($B14,'[1]Num 1'!$G$3:$O$88,6,FALSE),0) -> 0 | M14: =IFERROR(VLOOKUP($B14,'[1]Num 1'!$G$3:$O$88,7,FALSE),0) -> 1 | N14: =IFERROR(VLOOKUP($B14,'[1]Num 1'!$G$3:$O$88,8,FALSE),0) -> 0 | Q14: =SUM(E14:P14) -> 3 | R14: =IFERROR(VLOOKUP($B14,'[1]Den 1 2021'!$G$3:$T$104,11,FALSE),0) -> 0 | S14: =IFERROR(VLOOKUP($B14,'[1]Den 1 2021'!$G$3:$T$104,12,FALSE),0) -> 1 | T14: =IFERROR(VLOOKUP($B14,'[1]Den 1 2021'!$G$3:$T$104,13,FALSE),0) -> 0 | U14: =IFERROR(VLOOKUP($B14,'[1]Den 1'!$G$3:$O$93,2,FALSE),0) -> 0 | V14: =IFERROR(VLOOKUP($B14,'[1]Den 1'!$G$3:$O$93,3,FALSE),0) -> 0 | W14: =IFERROR(VLOOKUP($B14,'[1]Den 1'!$G$3:$O$93,4,FALSE),0) -> 3 | X14: =IFERROR(VLOOKUP($B14,'[1]Den 1'!$G$3:$O$93,5,FALSE),0) -> 1 | Y14: =IFERROR(VLOOKUP($B14,'[1]Den 1'!$G$3:$O$93,6,FALSE),0) -> 1 | Z14: =IFERROR(VLOOKUP($B14,'[1]Den 1'!$G$3:$O$93,7,FALSE),0) -> 1 | AA14: =IFERROR(VLOOKUP($B14,'[1]Den 1'!$G$3:$O$93,8,FALSE),0) -> 7 | AD14: 14
A15: 04101-LA SERENA | B15: 105313-CES. SCHAFFHAUSER | E15: =IFERROR(VLOOKUP($B15,'[1]Num 1 2021'!$G$3:$T$95,11,FALSE),0) -> 0 | F15: =IFERROR(VLOOKUP($B15,'[1]Num 1 2021'!$G$3:$T$95,12,FALSE),0) -> 0 | G15: =IFERROR(VLOOKUP($B15,'[1]Num 1 2021'!$G$3:$T$95,13,FALSE),0) -> 0 | H15: =IFERROR(VLOOKUP($B15,'[1]Num 1'!$G$3:$O$88,2,FALSE),0) -> 0 | I15: =IFERROR(VLOOKUP($B15,'[1]Num 1'!$G$3:$O$88,3,FALSE),0) -> 0 | J15: =IFERROR(VLOOKUP($B15,'[1]Num 1'!$G$3:$O$88,4,FALSE),0) -> 0 | K15: =IFERROR(VLOOKUP($B15,'[1]Num 1'!$G$3:$O$88,5,FALSE),0) -> 0 | L15: =IFERROR(VLOOKUP($B15,'[1]Num 1'!$G$3:$O$88,6,FALSE),0) -> 0 | M15: =IFERROR(VLOOKUP($B15,'[1]Num 1'!$G$3:$O$88,7,FALSE),0) -> 0 | N15: =IFERROR(VLOOKUP($B15,'[1]Num 1'!$G$3:$O$88,8,FALSE),0) -> 0 | Q15: =SUM(E15:P15) -> 0 | R15: =IFERROR(VLOOKUP($B15,'[1]Den 1 2021'!$G$3:$T$104,11,FALSE),0) -> 0 | S15: =IFERROR(VLOOKUP($B15,'[1]Den 1 2021'!$G$3:$T$104,12,FALSE),0) -> 0 | T15: =IFERROR(VLOOKUP($B15,'[1]Den 1 2021'!$G$3:$T$104,13,FALSE),0) -> 1 | U15: =IFERROR(VLOOKUP($B15,'[1]Den 1'!$G$3:$O$93,2,FALSE),0) -> 0 | V15: =IFERROR(VLOOKUP($B15,'[1]Den 1'!$G$3:$O$93,3,FALSE),0) -> 1 | W15: =IFERROR(VLOOKUP($B15,'[1]Den 1'!$G$3:$O$93,4,FALSE),0) -> 0 | X15: =IFERROR(VLOOKUP($B15,'[1]Den 1'!$G$3:$O$93,5,FALSE),0) -> 0 | Y15: =IFERROR(VLOOKUP($B15,'[1]Den 1'!$G$3:$O$93,6,FALSE),0) -> 1 | Z15: =IFERROR(VLOOKUP($B15,'[1]Den 1'!$G$3:$O$93,7,FALSE),0) -> 1 | AA15: =IFERROR(VLOOKUP($B15,'[1]Den 1'!$G$3:$O$93,8,FALSE),0) -> 0 | AD15: 4
A16: 04101-LA SERENA | B16: 105319-CES. CARDENAL R.S.H. | E16: =IFERROR(VLOOKUP($B16,'[1]Num 1 2021'!$G$3:$T$95,11,FALSE),0) -> 0 | F16: =IFERROR(VLOOKUP($B16,'[1]Num 1 2021'!$G$3:$T$95,12,FALSE),0) -> 11 | G16: =IFERROR(VLOOKUP($B16,'[1]Num 1 2021'!$G$3:$T$95,13,FALSE),0) -> 0 | H16: =IFERROR(VLOOKUP($B16,'[1]Num 1'!$G$3:$O$88,2,FALSE),0) -> 0 | I16: =IFERROR(VLOOKUP($B16,'[1]Num 1'!$G$3:$O$88,3,FALSE),0) -> 0 | J16: =IFERROR(VLOOKUP($B16,'[1]Num 1'!$G$3:$O$88,4,FALSE),0) -> 0 | K16: =IFERROR(VLOOKUP($B16,'[1]Num 1'!$G$3:$O$88,5,FALSE),0) -> 0 | L16: =IFERROR(VLOOKUP($B16,'[1]Num 1'!$G$3:$O$88,6,FALSE),0) -> 1 | M16: =IFERROR(VLOOKUP($B16,'[1]Num 1'!$G$3:$O$88,7,FALSE),0) -> 2 | N16: =IFERROR(VLOOKUP($B16,'[1]Num 1'!$G$3:$O$88,8,FALSE),0) -> 2 | Q16: 16 | R16: =IFERROR(VLOOKUP($B16,'[1]Den 1 2021'!$G$3:$T$104,11,FALSE),0) -> 0 | S16: =IFERROR(VLOOKUP($B16,'[1]Den 1 2021'!$G$3:$T$104,12,FALSE),0) -> 0 | T16: =IFERROR(VLOOKUP($B16,'[1]Den 1 2021'!$G$3:$T$104,13,FALSE),0) -> 3 | U16: =IFERROR(VLOOKUP($B16,'[1]Den 1'!$G$3:$O$93,2,FALSE),0) -> 1 | V16: =IFERROR(VLOOKUP($B16,'[1]Den 1'!$G$3:$O$93,3,FALSE),0) -> 3 | W16: =IFERROR(VLOOKUP($B16,'[1]Den 1'!$G$3:$O$93,4,FALSE),0) -> 3 | X16: =IFERROR(VLOOKUP($B16,'[1]Den 1'!$G$3:$O$93,5,FALSE),0) -> 1 | Y16: =IFERROR(VLOOKUP($B16,'[1]Den 1'!$G$3:$O$93,6,FALSE),0) -> 1 | Z16: =IFERROR(VLOOKUP($B16,'[1]Den 1'!$G$3:$O$93,7,FALSE),0) -> 3 | AA16: =IFERROR(VLOOKUP($B16,'[1]Den 1'!$G$3:$O$93,8,FALSE),0) -> 2 | AD16: 17
A17: 04101-LA SERENA | B17: 105325-CESFAM JUAN PABLO II | E17: =IFERROR(VLOOKUP($B17,'[1]Num 1 2021'!$G$3:$T$95,11,FALSE),0) -> 0 | F17: =IFERROR(VLOOKUP($B17,'[1]Num 1 2021'!$G$3:$T$95,12,FALSE),0) -> 2 | G17: =IFERROR(VLOOKUP($B17,'[1]Num 1 2021'!$G$3:$T$95,13,FALSE),0) -> 4 | H17: =IFERROR(VLOOKUP($B17,'[1]Num 1'!$G$3:$O$88,2,FALSE),0) -> 0 | I17: =IFERROR(VLOOKUP($B17,'[1]Num 1'!$G$3:$O$88,3,FALSE),0) -> 1 | J17: =IFERROR(VLOOKUP($B17,'[1]Num 1'!$G$3:$O$88,4,FALSE),0) -> 0 | K17: =IFERROR(VLOOKUP($B17,'[1]Num 1'!$G$3:$O$88,5,FALSE),0) -> 0 | L17: =IFERROR(VLOOKUP($B17,'[1]Num 1'!$G$3:$O$88,6,FALSE),0) -> 6 | M17: =IFERROR(VLOOKUP($B17,'[1]Num 1'!$G$3:$O$88,7,FALSE),0) -> 0 | N17: =IFERROR(VLOOKUP($B17,'[1]Num 1'!$G$3:$O$88,8,FALSE),0) -> 0 | Q17: 13 | R17: =IFERROR(VLOOKUP($B17,'[1]Den 1 2021'!$G$3:$T$104,11,FALSE),0) -> 2 | S17: =IFERROR(VLOOKUP($B17,'[1]Den 1 2021'!$G$3:$T$104,12,FALSE),0) -> 0 | T17: =IFERROR(VLOOKUP($B17,'[1]Den 1 2021'!$G$3:$T$104,13,FALSE),0) -> 3 | U17: =IFERROR(VLOOKUP($B17,'[1]Den 1'!$G$3:$O$93,2,FALSE),0) -> 2 | V17: =IFERROR(VLOOKUP($B17,'[1]Den 1'!$G$3:$O$93,3,FALSE),0) -> 6 | W17: =IFERROR(VLOOKUP($B17,'[1]Den 1'!$G$3:$O$93,4,FALSE),0) -> 3 | X17: =IFERROR(VLOOKUP($B17,'[1]Den 1'!$G$3:$O$93,5,FALSE),0) -> 2 | Y17: =IFERROR(VLOOKUP($B17,'[1]Den 1'!$G$3:$O$93,6,FALSE),0) -> 2 | Z17: =IFERROR(VLOOKUP($B17,'[1]Den 1'!$G$3:$O$93,7,FALSE),0) -> 4 | AA17: =IFERROR(VLOOKUP($B17,'[1]Den 1'!$G$3:$O$93,8,FALSE),0) -> 0 | AD17: 24
A18: 04101-LA SERENA | B18: 105400-P.S.R. ALGARROBITO | E18: =IFERROR(VLOOKUP($B18,'[1]Num 1 2021'!$G$3:$T$95,11,FALSE),0) -> 0 | F18: =IFERROR(VLOOKUP($B18,'[1]Num 1 2021'!$G$3:$T$95,12,FALSE),0) -> 0 | G18: =IFERROR(VLOOKUP($B18,'[1]Num 1 2021'!$G$3:$T$95,13,FALSE),0) -> 0 | H18: =IFERROR(VLOOKUP($B18,'[1]Num 1'!$G$3:$O$88,2,FALSE),0) -> 0 | I18: =IFERROR(VLOOKUP($B18,'[1]Num 1'!$G$3:$O$88,3,FALSE),0) -> 0 | J18: =IFERROR(VLOOKUP($B18,'[1]Num 1'!$G$3:$O$88,4,FALSE),0) -> 0 | K18: =IFERROR(VLOOKUP($B18,'[1]Num 1'!$G$3:$O$88,5,FALSE),0) -> 0 | L18: =IFERROR(VLOOKUP($B18,'[1]Num 1'!$G$3:$O$88,6,FALSE),0) -> 0 | M18: =IFERROR(VLOOKUP($B18,'[1]Num 1'!$G$3:$O$88,7,FALSE),0) -> 0 | N18: =IFERROR(VLOOKUP($B18,'[1]Num 1'!$G$3:$O$88,8,FALSE),0) -> 0 | Q18: 0 | R18: =IFERROR(VLOOKUP($B18,'[1]Den 1 2021'!$G$3:$T$104,11,FALSE),0) -> 0 | S18: =IFERROR(VLOOKUP($B18,'[1]Den 1 2021'!$G$3:$T$104,12,FALSE),0) -> 0 | T18: =IFERROR(VLOOKUP($B18,'[1]Den 1 2021'!$G$3:$T$104,13,FALSE),0) -> 0 | U18: =IFERROR(VLOOKUP($B18,'[1]Den 1'!$G$3:$O$93,2,FALSE),0) -> 0 | V18: =IFERROR(VLOOKUP($B18,'[1]Den 1'!$G$3:$O$93,3,FALSE),0) -> 0 | W18: =IFERROR(VLOOKUP($B18,'[1]Den 1'!$G$3:$O$93,4,FALSE),0) -> 0 | X18: =IFERROR(VLOOKUP($B18,'[1]Den 1'!$G$3:$O$93,5,FALSE),0) -> 0 | Y18: =IFERROR(VLOOKUP($B18,'[1]Den 1'!$G$3:$O$93,6,FALSE),0) -> 0 | Z18: =IFERROR(VLOOKUP($B18,'[1]Den 1'!$G$3:$O$93,7,FALSE),0) -> 0 | AA18: =IFERROR(VLOOKUP($B18,'[1]Den 1'!$G$3:$O$93,8,FALSE),0) -> 0 | AD18: 0
A19: 04101-LA SERENA | B19: 105401-P.S.R. LAS ROJAS | E19: =IFERROR(VLOOKUP($B19,'[1]Num 1 2021'!$G$3:$T$95,11,FALSE),0) -> 0 | F19: =IFERROR(VLOOKUP($B19,'[1]Num 1 2021'!$G$3:$T$95,12,FALSE),0) -> 0 | G19: =IFERROR(VLOOKUP($B19,'[1]Num 1 2021'!$G$3:$T$95,13,FALSE),0) -> 0 | H19: =IFERROR(VLOOKUP($B19,'[1]Num 1'!$G$3:$O$88,2,FALSE),0) -> 0 | I19: =IFERROR(VLOOKUP($B19,'[1]Num 1'!$G$3:$O$88,3,FALSE),0) -> 0 | J19: =IFERROR(VLOOKUP($B19,'[1]Num 1'!$G$3:$O$88,4,FALSE),0) -> 0 | K19: =IFERROR(VLOOKUP($B19,'[1]Num 1'!$G$3:$O$88,5,FALSE),0) -> 0 | L19: =IFERROR(VLOOKUP($B19,'[1]Num 1'!$G$3:$O$88,6,FALSE),0) -> 0 | M19: =IFERROR(VLOOKUP($B19,'[1]Num 1'!$G$3:$O$88,7,FALSE),0) -> 1 | N19: =IFERROR(VLOOKUP($B19,'[1]Num 1'!$G$3:$O$88,8,FALSE),0) -> 0 | Q19: 1 | R19: =IFERROR(VLOOKUP($B19,'[1]Den 1 2021'!$G$3:$T$104,11,FALSE),0) -> 0 | S19: =IFERROR(VLOOKUP($B19,'[1]Den 1 2021'!$G$3:$T$104,12,FALSE),0) -> 0 | T19: =IFERROR(VLOOKUP($B19,'[1]Den 1 2021'!$G$3:$T$104,13,FALSE),0) -> 0 | U19: =IFERROR(VLOOKUP($B19,'[1]Den 1'!$G$3:$O$93,2,FALSE),0) -> 1 | V19: =IFERROR(VLOOKUP($B19,'[1]Den 1'!$G$3:$O$93,3,FALSE),0) -> 0 | W19: =IFERROR(VLOOKUP($B19,'[1]Den 1'!$G$3:$O$93,4,FALSE),0) -> 0 | X19: =IFERROR(VLOOKUP($B19,'[1]Den 1'!$G$3:$O$93,5,FALSE),0) -> 0 | Y19: =IFERROR(VLOOKUP($B19,'[1]Den 1'!$G$3:$O$93,6,FALSE),0) -> 0 | Z19: =IFERROR(VLOOKUP($B19,'[1]Den 1'!$G$3:$O$93,7,FALSE),0) -> 0 | AA19: =IFERROR(VLOOKUP($B19,'[1]Den 1'!$G$3:$O$93,8,FALSE),0) -> 0 | AD19: 1
A20: 04101-LA SERENA | B20: 105402-P.S.R. EL ROMERO | E20: =IFERROR(VLOOKUP($B20,'[1]Num 1 2021'!$G$3:$T$95,11,FALSE),0) -> 0 | F20: =IFERROR(VLOOKUP($B20,'[1]Num 1 2021'!$G$3:$T$95,12,FALSE),0) -> 0 | G20: =IFERROR(VLOOKUP($B20,'[1]Num 1 2021'!$G$3:$T$95,13,FALSE),0) -> 0 | H20: =IFERROR(VLOOKUP($B20,'[1]Num 1'!$G$3:$O$88,2,FALSE),0) -> 0 | I20: =IFERROR(VLOOKUP($B20,'[1]Num 1'!$G$3:$O$88,3,FALSE),0) -> 0 | J20: =IFERROR(VLOOKUP($B20,'[1]Num 1'!$G$3:$O$88,4,FALSE),0) -> 0 | K20: =IFERROR(VLOOKUP($B20,'[1]Num 1'!$G$3:$O$88,5,FALSE),0) -> 0 | L20: =IFERROR(VLOOKUP($B20,'[1]Num 1'!$G$3:$O$88,6,FALSE),0) -> 0 | M20: =IFERROR(VLOOKUP($B20,'[1]Num 1'!$G$3:$O$88,7,FALSE),0) -> 0 | N20: =IFERROR(VLOOKUP($B20,'[1]Num 1'!$G$3:$O$88,8,FALSE),0) -> 0 | Q20: 0 | R20: =IFERROR(VLOOKUP($B20,'[1]Den 1 2021'!$G$3:$T$104,11,FALSE),0) -> 0 | S20: =IFERROR(VLOOKUP($B20,'[1]Den 1 2021'!$G$3:$T$104,12,FALSE),0) -> 0 | T20: =IFERROR(VLOOKUP($B20,'[1]Den 1 2021'!$G$3:$T$104,13,FALSE),0) -> 0 | U20: =IFERROR(VLOOKUP($B20,'[1]Den 1'!$G$3:$O$93,2,FALSE),0) -> 0 | V20: =IFERROR(VLOOKUP($B20,'[1]Den 1'!$G$3:$O$93,3,FALSE),0) -> 0 | W20: =IFERROR(VLOOKUP($B20,'[1]Den 1'!$G$3:$O$93,4,FALSE),0) -> 0 | X20: =IFERROR(VLOOKUP($B20,'[1]Den 1'!$G$3:$O$93,5,FALSE),0) -> 0 | Y20: =IFERROR(VLOOKUP($B20,'[1]Den 1'!$G$3:$O$93,6,FALSE),0) -> 0 | Z20: =IFERROR(VLOOKUP($B20,'[1]Den 1'!$G$3:$O$93,7,FALSE),0) -> 0 | AA20: =IFERROR(VLOOKUP($B20,'[1]Den 1'!$G$3:$O$93,8,FALSE),0) -> 0 | AD20: 0
A21: 04101-LA SERENA | B21: 105499-P.S.R. LAMBERT | E21: =IFERROR(VLOOKUP($B21,'[1]Num 1 2021'!$G$3:$T$95,11,FALSE),0) -> 0 | F21: =IFERROR(VLOOKUP($B21,'[1]Num 1 2021'!$G$3:$T$95,12,FALSE),0) -> 0 | G21: =IFERROR(VLOOKUP($B21,'[1]Num 1 2021'!$G$3:$T$95,13,FALSE),0) -> 0 | H21: =IFERROR(VLOOKUP($B21,'[1]Num 1'!$G$3:$O$88,2,FALSE),0) -> 0 | I21: =IFERROR(VLOOKUP($B21,'[1]Num 1'!$G$3:$O$88,3,FALSE),0) -> 0 | J21: =IFERROR(VLOOKUP($B21,'[1]Num 1'!$G$3:$O$88,4,FALSE),0) -> 0 | K21: =IFERROR(VLOOKUP($B21,'[1]Num 1'!$G$3:$O$88,5,FALSE),0) -> 0 | L21: =IFERROR(VLOOKUP($B21,'[1]Num 1'!$G$3:$O$88,6,FALSE),0) -> 0 | M21: =IFERROR(VLOOKUP($B21,'[1]Num 1'!$G$3:$O$88,7,FALSE),0) -> 0 | N21: =IFERROR(VLOOKUP($B21,'[1]Num 1'!$G$3:$O$88,8,FALSE),0) -> 0 | Q21: 0 | R21: =IFERROR(VLOOKUP($B21,'[1]Den 1 2021'!$G$3:$T$104,11,FALSE),0) -> 0 | S21: =IFERROR(VLOOKUP($B21,'[1]Den 1 2021'!$G$3:$T$104,12,FALSE),0) -> 0 | T21: =IFERROR(VLOOKUP($B21,'[1]Den 1 2021'!$G$3:$T$104,13,FALSE),0) -> 0 | U21: =IFERROR(VLOOKUP($B21,'[1]Den 1'!$G$3:$O$93,2,FALSE),0) -> 0 | V21: =IFERROR(VLOOKUP($B21,'[1]Den 1'!$G$3:$O$93,3,FALSE),0) -> 0 | W21: =IFERROR(VLOOKUP($B21,'[1]Den 1'!$G$3:$O$93,4,FALSE),0) -> 0 | X21: =IFERROR(VLOOKUP($B21,'[1]Den 1'!$G$3:$O$93,5,FALSE),0) -> 0 | Y21: =IFERROR(VLOOKUP($B21,'[1]Den 1'!$G$3:$O$93,6,FALSE),0) -> 0 | Z21: =IFERROR(VLOOKUP($B21,'[1]Den 1'!$G$3:$O$93,7,FALSE),0) -> 0 | AA21: =IFERROR(VLOOKUP($B21,'[1]Den 1'!$G$3:$O$93,8,FALSE),0) -> 0 | AD21: 0
A22: 04101-LA SERENA | B22: 105700-CECOF VILLA EL INDIO | E22: =IFERROR(VLOOKUP($B22,'[1]Num 1 2021'!$G$3:$T$95,11,FALSE),0) -> 0 | F22: =IFERROR(VLOOKUP($B22,'[1]Num 1 2021'!$G$3:$T$95,12,FALSE),0) -> 0 | G22: =IFERROR(VLOOKUP($B22,'[1]Num 1 2021'!$G$3:$T$95,13,FALSE),0) -> 0 | H22: =IFERROR(VLOOKUP($B22,'[1]Num 1'!$G$3:$O$88,2,FALSE),0) -> 0 | I22: =IFERROR(VLOOKUP($B22,'[1]Num 1'!$G$3:$O$88,3,FALSE),0) -> 1 | J22: =IFERROR(VLOOKUP($B22,'[1]Num 1'!$G$3:$O$88,4,FALSE),0) -> 0 | K22: =IFERROR(VLOOKUP($B22,'[1]Num 1'!$G$3:$O$88,5,FALSE),0) -> 0 | L22: =IFERROR(VLOOKUP($B22,'[1]Num 1'!$G$3:$O$88,6,FALSE),0) -> 1 | M22: =IFERROR(VLOOKUP($B22,'[1]Num 1'!$G$3:$O$88,7,FALSE),0) -> 0 | N22: =IFERROR(VLOOKUP($B22,'[1]Num 1'!$G$3:$O$88,8,FALSE),0) -> 0 | Q22: 2 | R22: =IFERROR(VLOOKUP($B22,'[1]Den 1 2021'!$G$3:$T$104,11,FALSE),0) -> 0 | S22: =IFERROR(VLOOKUP($B22,'[1]Den 1 2021'!$G$3:$T$104,12,FALSE),0) -> 0 | T22: =IFERROR(VLOOKUP($B22,'[1]Den 1 2021'!$G$3:$T$104,13,FALSE),0) -> 0 | U22: =IFERROR(VLOOKUP($B22,'[1]Den 1'!$G$3:$O$93,2,FALSE),0) -> 0 | V22: =IFERROR(VLOOKUP($B22,'[1]Den 1'!$G$3:$O$93,3,FALSE),0) -> 0 | W22: =IFERROR(VLOOKUP($B22,'[1]Den 1'!$G$3:$O$93,4,FALSE),0) -> 1 | X22: =IFERROR(VLOOKUP($B22,'[1]Den 1'!$G$3:$O$93,5,FALSE),0) -> 0 | Y22: =IFERROR(VLOOKUP($B22,'[1]Den 1'!$G$3:$O$93,6,FALSE),0) -> 0 | Z22: =IFERROR(VLOOKUP($B22,'[1]Den 1'!$G$3:$O$93,7,FALSE),0) -> 0 | AA22: =IFERROR(VLOOKUP($B22,'[1]Den 1'!$G$3:$O$93,8,FALSE),0) -> 0 | AD22: 1
A23: 04101-LA SERENA | B23: 105701-CECOF VILLA ALEMANIA | E23: =IFERROR(VLOOKUP($B23,'[1]Num 1 2021'!$G$3:$T$95,11,FALSE),0) -> 0 | F23: =IFERROR(VLOOKUP($B23,'[1]Num 1 2021'!$G$3:$T$95,12,FALSE),0) -> 0 | G23: =IFERROR(VLOOKUP($B23,'[1]Num 1 2021'!$G$3:$T$95,13,FALSE),0) -> 0 | H23: =IFERROR(VLOOKUP($B23,'[1]Num 1'!$G$3:$O$88,2,FALSE),0) -> 0 | I23: =IFERROR(VLOOKUP($B23,'[1]Num 1'!$G$3:$O$88,3,FALSE),0) -> 0 | J23: =IFERROR(VLOOKUP($B23,'[1]Num 1'!$G$3:$O$88,4,FALSE),0) -> 0 | K23: =IFERROR(VLOOKUP($B23,'[1]Num 1'!$G$3:$O$88,5,FALSE),0) -> 0 | L23: =IFERROR(VLOOKUP($B23,'[1]Num 1'!$G$3:$O$88,6,FALSE),0) -> 0 | M23: =IFERROR(VLOOKUP($B23,'[1]Num 1'!$G$3:$O$88,7,FALSE),0) -> 0 | N23: =IFERROR(VLOOKUP($B23,'[1]Num 1'!$G$3:$O$88,8,FALSE),0) -> 0 | Q23: 0 | R23: =IFERROR(VLOOKUP($B23,'[1]Den 1 2021'!$G$3:$T$104,11,FALSE),0) -> 0 | S23: =IFERROR(VLOOKUP($B23,'[1]Den 1 2021'!$G$3:$T$104,12,FALSE),0) -> 0 | T23: =IFERROR(VLOOKUP($B23,'[1]Den 1 2021'!$G$3:$T$104,13,FALSE),0) -> 0 | U23: =IFERROR(VLOOKUP($B23,'[1]Den 1'!$G$3:$O$93,2,FALSE),0) -> 0 | V23: =IFERROR(VLOOKUP($B23,'[1]Den 1'!$G$3:$O$93,3,FALSE),0) -> 0 | W23: =IFERROR(VLOOKUP($B23,'[1]Den 1'!$G$3:$O$93,4,FALSE),0) -> 0 | X23: =IFERROR(VLOOKUP($B23,'[1]Den 1'!$G$3:$O$93,5,FALSE),0) -> 0 | Y23: =IFERROR(VLOOKUP($B23,'[1]Den 1'!$G$3:$O$93,6,FALSE),0) -> 0 | Z23: =IFERROR(VLOOKUP($B23,'[1]Den 1'!$G$3:$O$93,7,FALSE),0) -> 0 | AA23: =IFERROR(VLOOKUP($B23,'[1]Den 1'!$G$3:$O$93,8,FALSE),0) -> 0 | AD23: 0
A24: 04101-LA SERENA | B24: 105702-CECOF VILLA LAMBERT | E24: =IFERROR(VLOOKUP($B24,'[1]Num 1 2021'!$G$3:$T$95,11,FALSE),0) -> 0 | F24: =IFERROR(VLOOKUP($B24,'[1]Num 1 2021'!$G$3:$T$95,12,FALSE),0) -> 0 | G24: =IFERROR(VLOOKUP($B24,'[1]Num 1 2021'!$G$3:$T$95,13,FALSE),0) -> 0 | H24: =IFERROR(VLOOKUP($B24,'[1]Num 1'!$G$3:$O$88,2,FALSE),0) -> 0 | I24: =IFERROR(VLOOKUP($B24,'[1]Num 1'!$G$3:$O$88,3,FALSE),0) -> 0 | J24: =IFERROR(VLOOKUP($B24,'[1]Num 1'!$G$3:$O$88,4,FALSE),0) -> 0 | K24: =IFERROR(VLOOKUP($B24,'[1]Num 1'!$G$3:$O$88,5,FALSE),0) -> 0 | L24: =IFERROR(VLOOKUP($B24,'[1]Num 1'!$G$3:$O$88,6,FALSE),0) -> 0 | M24: =IFERROR(VLOOKUP($B24,'[1]Num 1'!$G$3:$O$88,7,FALSE),0) -> 0 | N24: =IFERROR(VLOOKUP($B24,'[1]Num 1'!$G$3:$O$88,8,FALSE),0) -> 0 | Q24: 0 | R24: =IFERROR(VLOOKUP($B24,'[1]Den 1 2021'!$G$3:$T$104,11,FALSE),0) -> 0 | S24: =IFERROR(VLOOKUP($B24,'[1]Den 1 2021'!$G$3:$T$104,12,FALSE),0) -> 0 | T24: =IFERROR(VLOOKUP($B24,'[1]Den 1 2021'!$G$3:$T$104,13,FALSE),0) -> 0 | U24: =IFERROR(VLOOKUP($B24,'[1]Den 1'!$G$3:$O$93,2,FALSE),0) -> 0 | V24: =IFERROR(VLOOKUP($B24,'[1]Den 1'!$G$3:$O$93,3,FALSE),0) -> 0 | W24: =IFERROR(VLOOKUP($B24,'[1]Den 1'!$G$3:$O$93,4,FALSE),0) -> 0 | X24: =IFERROR(VLOOKUP($B24,'[1]Den 1'!$G$3:$O$93,5,FALSE),0) -> 0 | Y24: =IFERROR(VLOOKUP($B24,'[1]Den 1'!$G$3:$O$93,6,FALSE),0) -> 0 | Z24: =IFERROR(VLOOKUP($B24,'[1]Den 1'!$G$3:$O$93,7,FALSE),0) -> 0 | AA24: =IFERROR(VLOOKUP($B24,'[1]Den 1'!$G$3:$O$93,8,FALSE),0) -> 0 | AD24: 0
A25: 04101-LA SERENA | B25: 200402-CECOF ARCOS DE PINAMAR | E25: =IFERROR(VLOOKUP($B25,'[1]Num 1 2021'!$G$3:$T$95,11,FALSE),0) -> 0 | F25: =IFERROR(VLOOKUP($B25,'[1]Num 1 2021'!$G$3:$T$95,12,FALSE),0) -> 0 | G25: =IFERROR(VLOOKUP($B25,'[1]Num 1 2021'!$G$3:$T$95,13,FALSE),0) -> 0 | H25: =IFERROR(VLOOKUP($B25,'[1]Num 1'!$G$3:$O$88,2,FALSE),0) -> 0 | I25: =IFERROR(VLOOKUP($B25,'[1]Num 1'!$G$3:$O$88,3,FALSE),0) -> 0 | J25: =IFERROR(VLOOKUP($B25,'[1]Num 1'!$G$3:$O$88,4,FALSE),0) -> 0 | K25: =IFERROR(VLOOKUP($B25,'[1]Num 1'!$G$3:$O$88,5,FALSE),0) -> 0 | L25: =IFERROR(VLOOKUP($B25,'[1]Num 1'!$G$3:$O$88,6,FALSE),0) -> 0 | M25: =IFERROR(VLOOKUP($B25,'[1]Num 1'!$G$3:$O$88,7,FALSE),0) -> 0 | N25: =IFERROR(VLOOKUP($B25,'[1]Num 1'!$G$3:$O$88,8,FALSE),0) -> 0 | Q25: 0 | R25: =IFERROR(VLOOKUP($B25,'[1]Den 1 2021'!$G$3:$T$104,11,FALSE),0) -> 0 | S25: =IFERROR(VLOOKUP($B25,'[1]Den 1 2021'!$G$3:$T$104,12,FALSE),0) -> 0 | T25: =IFERROR(VLOOKUP($B25,'[1]Den 1 2021'!$G$3:$T$104,13,FALSE),0) -> 0 | U25: =IFERROR(VLOOKUP($B25,'[1]Den 1'!$G$3:$O$93,2,FALSE),0) -> 0 | V25: =IFERROR(VLOOKUP($B25,'[1]Den 1'!$G$3:$O$93,3,FALSE),0) -> 0 | W25: =IFERROR(VLOOKUP($B25,'[1]Den 1'!$G$3:$O$93,4,FALSE),0) -> 2 | X25: =IFERROR(VLOOKUP($B25,'[1]Den 1'!$G$3:$O$93,5,FALSE),0) -> 0 | Y25: =IFERROR(VLOOKUP($B25,'[1]Den 1'!$G$3:$O$93,6,FALSE),0) -> 0 | Z25: =IFERROR(VLOOKUP($B25,'[1]Den 1'!$G$3:$O$93,7,FALSE),0) -> 0 | AA25: =IFERROR(VLOOKUP($B25,'[1]Den 1'!$G$3:$O$93,8,FALSE),0) -> 0 | AD25: 2
A26: TOTAL LA SERENA | C26: =D26/Metas!G5 -> 0.9157509158 | D26: =Q26/AD26 -> 54.95% | E26: =SUM(E12:E25) -> 3 | F26: =SUM(F12:F25) -> 17 | G26: 5 | H26: 2 | I26: 2 | J26: 1 | K26: 1 | L26: 9 | M26: 5 | N26: 5 | O26: 0 | P26: =SUM(P12:P25) -> 0 | Q26: =SUM(Q12:Q25) -> 50 | R26: =SUM(R12:R25) -> 5 | S26: =SUM(S12:S25) -> 2 | T26: 7 | U26: 6 | V26: 10 | W26: 17 | X26: 7 | Y26: 12 | Z26: 11 | AA26: 14 | AB26: 0 | AC26: =SUM(AC12:AC25) -> 0 | AD26: =SUM(AD12:AD25) -> 91
A27: 04102-COQUIMBO | B27: 105303-CES. SAN JUAN | E27: =IFERROR(VLOOKUP($B27,'[1]Num 1 2021'!$G$3:$T$95,11,FALSE),0) -> 5 | F27: =IFERROR(VLOOKUP($B27,'[1]Num 1 2021'!$G$3:$T$95,12,FALSE),0) -> 1 | G27: =IFERROR(VLOOKUP($B27,'[1]Num 1 2021'!$G$3:$T$95,13,FALSE),0) -> 0 | H27: =IFERROR(VLOOKUP($B27,'[1]Num 1'!$G$3:$O$88,2,FALSE),0) -> 1 | I27: =IFERROR(VLOOKUP($B27,'[1]Num 1'!$G$3:$O$88,3,FALSE),0) -> 0 | J27: =IFERROR(VLOOKUP($B27,'[1]Num 1'!$G$3:$O$88,4,FALSE),0) -> 2 | K27: =IFERROR(VLOOKUP($B27,'[1]Num 1'!$G$3:$O$88,5,FALSE),0) -> 2 | L27: =IFERROR(VLOOKUP($B27,'[1]Num 1'!$G$3:$O$88,6,FALSE),0) -> 2 | M27: =IFERROR(VLOOKUP($B27,'[1]Num 1'!$G$3:$O$88,7,FALSE),0) -> 2 | N27: =IFERROR(VLOOKUP($B27,'[1]Num 1'!$G$3:$O$88,8,FALSE),0) -> 4 | Q27: =SUM(E27:P27) -> 19 | R27: =IFERROR(VLOOKUP($B27,'[1]Den 1 2021'!$G$3:$T$104,11,FALSE),0) -> 5 | S27: =IFERROR(VLOOKUP($B27,'[1]Den 1 2021'!$G$3:$T$104,12,FALSE),0) -> 1 | T27: =IFERROR(VLOOKUP($B27,'[1]Den 1 2021'!$G$3:$T$104,13,FALSE),0) -> 1 | U27: =IFERROR(VLOOKUP($B27,'[1]Den 1'!$G$3:$O$93,2,FALSE),0) -> 1 | V27: =IFERROR(VLOOKUP($B27,'[1]Den 1'!$G$3:$O$93,3,FALSE),0) -> 4 | W27: =IFERROR(VLOOKUP($B27,'[1]Den 1'!$G$3:$O$93,4,FALSE),0) -> 3 | X27: =IFERROR(VLOOKUP($B27,'[1]Den 1'!$G$3:$O$93,5,FALSE),0) -> 5 | Y27: =IFERROR(VLOOKUP($B27,'[1]Den 1'!$G$3:$O$93,6,FALSE),0) -> 1 | Z27: =IFERROR(VLOOKUP($B27,'[1]Den 1'!$G$3:$O$93,7,FALSE),0) -> 4 | AA27: =IFERROR(VLOOKUP($B27,'[1]Den 1'!$G$3:$O$93,8,FALSE),0) -> 3 | AD27: 28
A28: 04102-COQUIMBO | B28: 105304-CES. SANTA CECILIA | E28: =IFERROR(VLOOKUP($B28,'[1]Num 1 2021'!$G$3:$T$95,11,FALSE),0) -> 5 | F28: =IFERROR(VLOOKUP($B28,'[1]Num 1 2021'!$G$3:$T$95,12,FALSE),0) -> 0 | G28: =IFERROR(VLOOKUP($B28,'[1]Num 1 2021'!$G$3:$T$95,13,FALSE),0) -> 3 | H28: =IFERROR(VLOOKUP($B28,'[1]Num 1'!$G$3:$O$88,2,FALSE),0) -> 0 | I28: =IFERROR(VLOOKUP($B28,'[1]Num 1'!$G$3:$O$88,3,FALSE),0) -> 1 | J28: =IFERROR(VLOOKUP($B28,'[1]Num 1'!$G$3:$O$88,4,FALSE),0) -> 1 | K28: =IFERROR(VLOOKUP($B28,'[1]Num 1'!$G$3:$O$88,5,FALSE),0) -> 2 | L28: =IFERROR(VLOOKUP($B28,'[1]Num 1'!$G$3:$O$88,6,FALSE),0) -> 1 | M28: =IFERROR(VLOOKUP($B28,'[1]Num 1'!$G$3:$O$88,7,FALSE),0) -> 0 | N28: =IFERROR(VLOOKUP($B28,'[1]Num 1'!$G$3:$O$88,8,FALSE),0) -> 4 | Q28: 17 | R28: =IFERROR(VLOOKUP($B28,'[1]Den 1 2021'!$G$3:$T$104,11,FALSE),0) -> 1 | S28: =IFERROR(VLOOKUP($B28,'[1]Den 1 2021'!$G$3:$T$104,12,FALSE),0) -> 2 | T28: =IFERROR(VLOOKUP($B28,'[1]Den 1 2021'!$G$3:$T$104,13,FALSE),0) -> 0 | U28: =IFERROR(VLOOKUP($B28,'[1]Den 1'!$G$3:$O$93,2,FALSE),0) -> 2 | V28: =IFERROR(VLOOKUP($B28,'[1]Den 1'!$G$3:$O$93,3,FALSE),0) -> 2 | W28: =IFERROR(VLOOKUP($B28,'[1]Den 1'!$G$3:$O$93,4,FALSE),0) -> 4 | X28: =IFERROR(VLOOKUP($B28,'[1]Den 1'!$G$3:$O$93,5,FALSE),0) -> 1 | Y28: =IFERROR(VLOOKUP($B28,'[1]Den 1'!$G$3:$O$93,6,FALSE),0) -> 2 | Z28: =IFERROR(VLOOKUP($B28,'[1]Den 1'!$G$3:$O$93,7,FALSE),0) -> 1 | AA28: =IFERROR(VLOOKUP($B28,'[1]Den 1'!$G$3:$O$93,8,FALSE),0) -> 4 | AD28: 19
A29: 04102-COQUIMBO | B29: 105305-CES. TIERRAS BLANCAS | E29: =IFERROR(VLOOKUP($B29,'[1]Num 1 2021'!$G$3:$T$95,11,FALSE),0) -> 2 | F29: =IFERROR(VLOOKUP($B29,'[1]Num 1 2021'!$G$3:$T$95,12,FALSE),0) -> 2 | G29: =IFERROR(VLOOKUP($B29,'[1]Num 1 2021'!$G$3:$T$95,13,FALSE),0) -> 5 | H29: =IFERROR(VLOOKUP($B29,'[1]Num 1'!$G$3:$O$88,2,FALSE),0) -> 2 | I29: =IFERROR(VLOOKUP($B29,'[1]Num 1'!$G$3:$O$88,3,FALSE),0) -> 4 | J29: =IFERROR(VLOOKUP($B29,'[1]Num 1'!$G$3:$O$88,4,FALSE),0) -> 6 | K29: =IFERROR(VLOOKUP($B29,'[1]Num 1'!$G$3:$O$88,5,FALSE),0) -> 3 | L29: =IFERROR(VLOOKUP($B29,'[1]Num 1'!$G$3:$O$88,6,FALSE),0) -> 5 | M29: =IFERROR(VLOOKUP($B29,'[1]Num 1'!$G$3:$O$88,7,FALSE),0) -> 3 | N29: =IFERROR(VLOOKUP($B29,'[1]Num 1'!$G$3:$O$88,8,FALSE),0) -> 5 | Q29: 37 | R29: =IFERROR(VLOOKUP($B29,'[1]Den 1 2021'!$G$3:$T$104,11,FALSE),0) -> 4 | S29: =IFERROR(VLOOKUP($B29,'[1]Den 1 2021'!$G$3:$T$104,12,FALSE),0) -> 7 | T29: =IFERROR(VLOOKUP($B29,'[1]Den 1 2021'!$G$3:$T$104,13,FALSE),0) -> 2 | U29: =IFERROR(VLOOKUP($B29,'[1]Den 1'!$G$3:$O$93,2,FALSE),0) -> 3 | V29: =IFERROR(VLOOKUP($B29,'[1]Den 1'!$G$3:$O$93,3,FALSE),0) -> 4 | W29: =IFERROR(VLOOKUP($B29,'[1]Den 1'!$G$3:$O$93,4,FALSE),0) -> 7 | X29: =IFERROR(VLOOKUP($B29,'[1]Den 1'!$G$3:$O$93,5,FALSE),0) -> 3 | Y29: =IFERROR(VLOOKUP($B29,'[1]Den 1'!$G$3:$O$93,6,FALSE),0) -> 3 | Z29: =IFERROR(VLOOKUP($B29,'[1]Den 1'!$G$3:$O$93,7,FALSE),0) -> 3 | AA29: =IFERROR(VLOOKUP($B29,'[1]Den 1'!$G$3:$O$93,8,FALSE),0) -> 5 | AD29: 41
A30: 04102-COQUIMBO | B30: 105321-CES. RURAL TONGOY | E30: =IFERROR(VLOOKUP($B30,'[1]Num 1 2021'!$G$3:$T$95,11,FALSE),0) -> 0 | F30: =IFERROR(VLOOKUP($B30,'[1]Num 1 2021'!$G$3:$T$95,12,FALSE),0) -> 2 | G30: =IFERROR(VLOOKUP($B30,'[1]Num 1 2021'!$G$3:$T$95,13,FALSE),0) -> 1 | H30: =IFERROR(VLOOKUP($B30,'[1]Num 1'!$G$3:$O$88,2,FALSE),0) -> 0 | I30: =IFERROR(VLOOKUP($B30,'[1]Num 1'!$G$3:$O$88,3,FALSE),0) -> 1 | J30: =IFERROR(VLOOKUP($B30,'[1]Num 1'!$G$3:$O$88,4,FALSE),0) -> 1 | K30: =IFERROR(VLOOKUP($B30,'[1]Num 1'!$G$3:$O$88,5,FALSE),0) -> 0 | L30: =IFERROR(VLOOKUP($B30,'[1]Num 1'!$G$3:$O$88,6,FALSE),0) -> 0 | M30: =IFERROR(VLOOKUP($B30,'[1]Num 1'!$G$3:$O$88,7,FALSE),0) -> 0 | N30: =IFERROR(VLOOKUP($B30,'[1]Num 1'!$G$3:$O$88,8,FALSE),0) -> 0 | Q30: 5 | R30: =IFERROR(VLOOKUP($B30,'[1]Den 1 2021'!$G$3:$T$104,11,FALSE),0) -> 0 | S30: =IFERROR(VLOOKUP($B30,'[1]Den 1 2021'!$G$3:$T$104,12,FALSE),0) -> 2 | T30: =IFERROR(VLOOKUP($B30,'[1]Den 1 2021'!$G$3:$T$104,13,FALSE),0) -> 0 | U30: =IFERROR(VLOOKUP($B30,'[1]Den 1'!$G$3:$O$93,2,FALSE),0) -> 0 | V30: =IFERROR(VLOOKUP($B30,'[1]Den 1'!$G$3:$O$93,3,FALSE),0) -> 0 | W30: =IFERROR(VLOOKUP($B30,'[1]Den 1'!$G$3:$O$93,4,FALSE),0) -> 0 | X30: =IFERROR(VLOOKUP($B30,'[1]Den 1'!$G$3:$O$93,5,FALSE),0) -> 0 | Y30: =IFERROR(VLOOKUP($B30,'[1]Den 1'!$G$3:$O$93,6,FALSE),0) -> 2 | Z30: =IFERROR(VLOOKUP($B30,'[1]Den 1'!$G$3:$O$93,7,FALSE),0) -> 1 | AA30: =IFERROR(VLOOKUP($B30,'[1]Den 1'!$G$3:$O$93,8,FALSE),0) -> 1 | AD30: 6
A31: 04102-COQUIMBO | B31: 105323-CES. DR. SERGIO AGUILAR | E31: =IFERROR(VLOOKUP($B31,'[1]Num 1 2021'!$G$3:$T$95,11,FALSE),0) -> 0 | F31: =IFERROR(VLOOKUP($B31,'[1]Num 1 2021'!$G$3:$T$95,12,FALSE),0) -> 3 | G31: =IFERROR(VLOOKUP($B31,'[1]Num 1 2021'!$G$3:$T$95,13,FALSE),0) -> 0 | H31: =IFERROR(VLOOKUP($B31,'[1]Num 1'!$G$3:$O$88,2,FALSE),0) -> 1 | I31: =IFERROR(VLOOKUP($B31,'[1]Num 1'!$G$3:$O$88,3,FALSE),0) -> 2 | J31: =IFERROR(VLOOKUP($B31,'[1]Num 1'!$G$3:$O$88,4,FALSE),0) -> 2 | K31: =IFERROR(VLOOKUP($B31,'[1]Num 1'!$G$3:$O$88,5,FALSE),0) -> 3 | L31: =IFERROR(VLOOKUP($B31,'[1]Num 1'!$G$3:$O$88,6,FALSE),0) -> 2 | M31: =IFERROR(VLOOKUP($B31,'[1]Num 1'!$G$3:$O$88,7,FALSE),0) -> 3 | N31: =IFERROR(VLOOKUP($B31,'[1]Num 1'!$G$3:$O$88,8,FALSE),0) -> 1 | Q31: 17 | R31: =IFERROR(VLOOKUP($B31,'[1]Den 1 2021'!$G$3:$T$104,11,FALSE),0) -> 5 | S31: =IFERROR(VLOOKUP($B31,'[1]Den 1 2021'!$G$3:$T$104,12,FALSE),0) -> 4 | T31: =IFERROR(VLOOKUP($B31,'[1]Den 1 2021'!$G$3:$T$104,13,FALSE),0) -> 1 | U31: =IFERROR(VLOOKUP($B31,'[1]Den 1'!$G$3:$O$93,2,FALSE),0) -> 3 | V31: =IFERROR(VLOOKUP($B31,'[1]Den 1'!$G$3:$O$93,3,FALSE),0) -> 6 | W31: =IFERROR(VLOOKUP($B31,'[1]Den 1'!$G$3:$O$93,4,FALSE),0) -> 4 | X31: =IFERROR(VLOOKUP($B31,'[1]Den 1'!$G$3:$O$93,5,FALSE),0) -> 1 | Y31: =IFERROR(VLOOKUP($B31,'[1]Den 1'!$G$3:$O$93,6,FALSE),0) -> 3 | Z31: =IFERROR(VLOOKUP($B31,'[1]Den 1'!$G$3:$O$93,7,FALSE),0) -> 0 | AA31: =IFERROR(VLOOKUP($B31,'[1]Den 1'!$G$3:$O$93,8,FALSE),0) -> 2 | AD31: 29
A32: 04102-COQUIMBO | B32: 105404-P.S.R. EL TANGUE | E32: =IFERROR(VLOOKUP($B32,'[1]Num 1 2021'!$G$3:$T$95,11,FALSE),0) -> 0 | F32: =IFERROR(VLOOKUP($B32,'[1]Num 1 2021'!$G$3:$T$95,12,FALSE),0) -> 0 | G32: =IFERROR(VLOOKUP($B32,'[1]Num 1 2021'!$G$3:$T$95,13,FALSE),0) -> 0 | H32: =IFERROR(VLOOKUP($B32,'[1]Num 1'!$G$3:$O$88,2,FALSE),0) -> 0 | I32: =IFERROR(VLOOKUP($B32,'[1]Num 1'!$G$3:$O$88,3,FALSE),0) -> 0 | J32: =IFERROR(VLOOKUP($B32,'[1]Num 1'!$G$3:$O$88,4,FALSE),0) -> 0 | K32: =IFERROR(VLOOKUP($B32,'[1]Num 1'!$G$3:$O$88,5,FALSE),0) -> 0 | L32: =IFERROR(VLOOKUP($B32,'[1]Num 1'!$G$3:$O$88,6,FALSE),0) -> 0 | M32: =IFERROR(VLOOKUP($B32,'[1]Num 1'!$G$3:$O$88,7,FALSE),0) -> 0 | N32: =IFERROR(VLOOKUP($B32,'[1]Num 1'!$G$3:$O$88,8,FALSE),0) -> 0 | Q32: 0 | R32: =IFERROR(VLOOKUP($B32,'[1]Den 1 2021'!$G$3:$T$104,11,FALSE),0) -> 0 | S32: =IFERROR(VLOOKUP($B32,'[1]Den 1 2021'!$G$3:$T$104,12,FALSE),0) -> 0 | T32: =IFERROR(VLOOKUP($B32,'[1]Den 1 2021'!$G$3:$T$104,13,FALSE),0) -> 0 | U32: =IFERROR(VLOOKUP($B32,'[1]Den 1'!$G$3:$O$93,2,FALSE),0) -> 0 | V32: =IFERROR(VLOOKUP($B32,'[1]Den 1'!$G$3:$O$93,3,FALSE),0) -> 0 | W32: =IFERROR(VLOOKUP($B32,'[1]Den 1'!$G$3:$O$93,4,FALSE),0) -> 0 | X32: =IFERROR(VLOOKUP($B32,'[1]Den 1'!$G$3:$O$93,5,FALSE),0) -> 0 | Y32: =IFERROR(VLOOKUP($B32,'[1]Den 1'!$G$3:$O$93,6,FALSE),0) -> 0 | Z32: =IFERROR(VLOOKUP($B32,'[1]Den 1'!$G$3:$O$93,7,FALSE),0) -> 0 | AA32: =IFERROR(VLOOKUP($B32,'[1]Den 1'!$G$3:$O$93,8,FALSE),0) -> 0 | AD32: 0
A33: 04102-COQUIMBO | B33: 105405-P.S.R. GUANAQUEROS | E33: =IFERROR(VLOOKUP($B33,'[1]Num 1 2021'!$G$3:$T$95,11,FALSE),0) -> 0 | F33: =IFERROR(VLOOKUP($B33,'[1]Num 1 2021'!$G$3:$T$95,12,FALSE),0) -> 2 | G33: =IFERROR(VLOOKUP($B33,'[1]Num 1 2021'!$G$3:$T$95,13,FALSE),0) -> 0 | H33: =IFERROR(VLOOKUP($B33,'[1]Num 1'!$G$3:$O$88,2,FALSE),0) -> 0 | I33: =IFERROR(VLOOKUP($B33,'[1]Num 1'!$G$3:$O$88,3,FALSE),0) -> 0 | J33: =IFERROR(VLOOKUP($B33,'[1]Num 1'!$G$3:$O$88,4,FALSE),0) -> 0 | K33: =IFERROR(VLOOKUP($B33,'[1]Num 1'!$G$3:$O$88,5,FALSE),0) -> 0 | L33: =IFERROR(VLOOKUP($B33,'[1]Num 1'!$G$3:$O$88,6,FALSE),0) -> 0 | M33: =IFERROR(VLOOKUP($B33,'[1]Num 1'!$G$3:$O$88,7,FALSE),0) -> 1 | N33: =IFERROR(VLOOKUP($B33,'[1]Num 1'!$G$3:$O$88,8,FALSE),0) -> 0 | Q33: 3 | R33: =IFERROR(VLOOKUP($B33,'[1]Den 1 2021'!$G$3:$T$104,11,FALSE),0) -> 0 | S33: =IFERROR(VLOOKUP($B33,'[1]Den 1 2021'!$G$3:$T$104,12,FALSE),0) -> 0 | T33: =IFERROR(VLOOKUP($B33,'[1]Den 1 2021'!$G$3:$T$104,13,FALSE),0) -> 0 | U33: =IFERROR(VLOOKUP($B33,'[1]Den 1'!$G$3:$O$93,2,FALSE),0) -> 0 | V33: =IFERROR(VLOOKUP($B33,'[1]Den 1'!$G$3:$O$93,3,FALSE),0) -> 0 | W33: =IFERROR(VLOOKUP($B33,'[1]Den 1'!$G$3:$O$93,4,FALSE),0) -> 0 | X33: =IFERROR(VLOOKUP($B33,'[1]Den 1'!$G$3:$O$93,5,FALSE),0) -> 1 | Y33: =IFERROR(VLOOKUP($B33,'[1]Den 1'!$G$3:$O$93,6,FALSE),0) -> 0 | Z33: =IFERROR(VLOOKUP($B33,'[1]Den 1'!$G$3:$O$93,7,FALSE),0) -> 0 | AA33: =IFERROR(VLOOKUP($B33,'[1]Den 1'!$G$3:$O$93,8,FALSE),0) -> 0 | AD33: 1
A34: 04102-COQUIMBO | B34: 105407-P.S.R. TAMBILLOS | E34: =IFERROR(VLOOKUP($B34,'[1]Num 1 2021'!$G$3:$T$95,11,FALSE),0) -> 0 | F34: =IFERROR(VLOOKUP($B34,'[1]Num 1 2021'!$G$3:$T$95,12,FALSE),0) -> 0 | G34: =IFERROR(VLOOKUP($B34,'[1]Num 1 2021'!$G$3:$T$95,13,FALSE),0) -> 0 | H34: =IFERROR(VLOOKUP($B34,'[1]Num 1'!$G$3:$O$88,2,FALSE),0) -> 0 | I34: =IFERROR(VLOOKUP($B34,'[1]Num 1'!$G$3:$O$88,3,FALSE),0) -> 0 | J34: =IFERROR(VLOOKUP($B34,'[1]Num 1'!$G$3:$O$88,4,FALSE),0) -> 0 | K34: =IFERROR(VLOOKUP($B34,'[1]Num 1'!$G$3:$O$88,5,FALSE),0) -> 0 | L34: =IFERROR(VLOOKUP($B34,'[1]Num 1'!$G$3:$O$88,6,FALSE),0) -> 0 | M34: =IFERROR(VLOOKUP($B34,'[1]Num 1'!$G$3:$O$88,7,FALSE),0) -> 0 | N34: =IFERROR(VLOOKUP($B34,'[1]Num 1'!$G$3:$O$88,8,FALSE),0) -> 0 | Q34: 0 | R34: =IFERROR(VLOOKUP($B34,'[1]Den 1 2021'!$G$3:$T$104,11,FALSE),0) -> 0 | S34: =IFERROR(VLOOKUP($B34,'[1]Den 1 2021'!$G$3:$T$104,12,FALSE),0) -> 0 | T34: =IFERROR(VLOOKUP($B34,'[1]Den 1 2021'!$G$3:$T$104,13,FALSE),0) -> 0 | U34: =IFERROR(VLOOKUP($B34,'[1]Den 1'!$G$3:$O$93,2,FALSE),0) -> 0 | V34: =IFERROR(VLOOKUP($B34,'[1]Den 1'!$G$3:$O$93,3,FALSE),0) -> 0 | W34: =IFERROR(VLOOKUP($B34,'[1]Den 1'!$G$3:$O$93,4,FALSE),0) -> 0 | X34: =IFERROR(VLOOKUP($B34,'[1]Den 1'!$G$3:$O$93,5,FALSE),0) -> 0 | Y34: =IFERROR(VLOOKUP($B34,'[1]Den 1'!$G$3:$O$93,6,FALSE),0) -> 0 | Z34: =IFERROR(VLOOKUP($B34,'[1]Den 1'!$G$3:$O$93,7,FALSE),0) -> 0 | AA34: =IFERROR(VLOOKUP($B34,'[1]Den 1'!$G$3:$O$93,8,FALSE),0) -> 0 | AD34: 0
A35: 04102-COQUIMBO | B35: 200273-CECOF PUNTA MIRA | E35: =IFERROR(VLOOKUP($B35,'[1]Num 1 2021'!$G$3:$T$95,11,FALSE),0) -> 0 | F35: =IFERROR(VLOOKUP($B35,'[1]Num 1 2021'!$G$3:$T$95,12,FALSE),0) -> 0 | G35: =IFERROR(VLOOKUP($B35,'[1]Num 1 2021'!$G$3:$T$95,13,FALSE),0) -> 0 | H35: =IFERROR(VLOOKUP($B35,'[1]Num 1'!$G$3:$O$88,2,FALSE),0) -> 0 | I35: =IFERROR(VLOOKUP($B35,'[1]Num 1'!$G$3:$O$88,3,FALSE),0) -> 0 | J35: =IFERROR(VLOOKUP($B35,'[1]Num 1'!$G$3:$O$88,4,FALSE),0) -> 0 | K35: =IFERROR(VLOOKUP($B35,'[1]Num 1'!$G$3:$O$88,5,FALSE),0) -> 0 | L35: =IFERROR(VLOOKUP($B35,'[1]Num 1'!$G$3:$O$88,6,FALSE),0) -> 0 | M35: =IFERROR(VLOOKUP($B35,'[1]Num 1'!$G$3:$O$88,7,FALSE),0) -> 0 | N35: =IFERROR(VLOOKUP($B35,'[1]Num 1'!$G$3:$O$88,8,FALSE),0) -> 0 | Q35: =SUM(E35:P35) -> 0 | R35: =IFERROR(VLOOKUP($B35,'[1]Den 1 2021'!$G$3:$T$104,11,FALSE),0) -> 0 | S35: =IFERROR(VLOOKUP($B35,'[1]Den 1 2021'!$G$3:$T$104,12,FALSE),0) -> 0 | T35: =IFERROR(VLOOKUP($B35,'[1]Den 1 2021'!$G$3:$T$104,13,FALSE),0) -> 1 | U35: =IFERROR(VLOOKUP($B35,'[1]Den 1'!$G$3:$O$93,2,FALSE),0) -> 0 | V35: =IFERROR(VLOOKUP($B35,'[1]Den 1'!$G$3:$O$93,3,FALSE),0) -> 0 | W35: =IFERROR(VLOOKUP($B35,'[1]Den 1'!$G$3:$O$93,4,FALSE),0) -> 0 | X35: =IFERROR(VLOOKUP($B35,'[1]Den 1'!$G$3:$O$93,5,FALSE),0) -> 0 | Y35: =IFERROR(VLOOKUP($B35,'[1]Den 1'!$G$3:$O$93,6,FALSE),0) -> 0 | Z35: =IFERROR(VLOOKUP($B35,'[1]Den 1'!$G$3:$O$93,7,FALSE),0) -> 5 | AA35: =IFERROR(VLOOKUP($B35,'[1]Den 1'!$G$3:$O$93,8,FALSE),0) -> 0 | AD35: 6
A36: 04102-COQUIMBO | B36: 200494-CESFAM EL SAUCE | E36: =IFERROR(VLOOKUP($B36,'[1]Num 1 2021'!$G$3:$T$95,11,FALSE),0) -> 0 | F36: =IFERROR(VLOOKUP($B36,'[1]Num 1 2021'!$G$3:$T$95,12,FALSE),0) -> 2 | G36: =IFERROR(VLOOKUP($B36,'[1]Num 1 2021'!$G$3:$T$95,13,FALSE),0) -> 0 | H36: =IFERROR(VLOOKUP($B36,'[1]Num 1'!$G$3:$O$88,2,FALSE),0) -> 2 | I36: =IFERROR(VLOOKUP($B36,'[1]Num 1'!$G$3:$O$88,3,FALSE),0) -> 1 | J36: =IFERROR(VLOOKUP($B36,'[1]Num 1'!$G$3:$O$88,4,FALSE),0) -> 1 | K36: =IFERROR(VLOOKUP($B36,'[1]Num 1'!$G$3:$O$88,5,FALSE),0) -> 0 | L36: =IFERROR(VLOOKUP($B36,'[1]Num 1'!$G$3:$O$88,6,FALSE),0) -> 2 | M36: =IFERROR(VLOOKUP($B36,'[1]Num 1'!$G$3:$O$88,7,FALSE),0) -> 0 | N36: =IFERROR(VLOOKUP($B36,'[1]Num 1'!$G$3:$O$88,8,FALSE),0) -> 0 | Q36: 8 | R36: =IFERROR(VLOOKUP($B36,'[1]Den 1 2021'!$G$3:$T$104,11,FALSE),0) -> 1 | S36: =IFERROR(VLOOKUP($B36,'[1]Den 1 2021'!$G$3:$T$104,12,FALSE),0) -> 1 | T36: =IFERROR(VLOOKUP($B36,'[1]Den 1 2021'!$G$3:$T$104,13,FALSE),0) -> 1 | U36: =IFERROR(VLOOKUP($B36,'[1]Den 1'!$G$3:$O$93,2,FALSE),0) -> 0 | V36: =IFERROR(VLOOKUP($B36,'[1]Den 1'!$G$3:$O$93,3,FALSE),0) -> 0 | W36: =IFERROR(VLOOKUP($B36,'[1]Den 1'!$G$3:$O$93,4,FALSE),0) -> 2 | X36: =IFERROR(VLOOKUP($B36,'[1]Den 1'!$G$3:$O$93,5,FALSE),0) -> 3 | Y36: =IFERROR(VLOOKUP($B36,'[1]Den 1'!$G$3:$O$93,6,FALSE),0) -> 4 | Z36: =IFERROR(VLOOKUP($B36,'[1]Den 1'!$G$3:$O$93,7,FALSE),0) -> 1 | AA36: =IFERROR(VLOOKUP($B36,'[1]Den 1'!$G$3:$O$93,8,FALSE),0) -> 4 | AD36: =SUM(R36:AC36) -> 17
A37: 04102-COQUIMBO | B37: 200499-CESFAM PAN DE AZÚCAR | E37: =IFERROR(VLOOKUP($B37,'[1]Num 1 2021'!$G$3:$T$95,11,FALSE),0) -> 3 | F37: =IFERROR(VLOOKUP($B37,'[1]Num 1 2021'!$G$3:$T$95,12,FALSE),0) -> 3 | G37: =IFERROR(VLOOKUP($B37,'[1]Num 1 2021'!$G$3:$T$95,13,FALSE),0) -> 4 | H37: =IFERROR(VLOOKUP($B37,'[1]Num 1'!$G$3:$O$88,2,FALSE),0) -> 1 | I37: =IFERROR(VLOOKUP($B37,'[1]Num 1'!$G$3:$O$88,3,FALSE),0) -> 1 | J37: =IFERROR(VLOOKUP($B37,'[1]Num 1'!$G$3:$O$88,4,FALSE),0) -> 0 | K37: =IFERROR(VLOOKUP($B37,'[1]Num 1'!$G$3:$O$88,5,FALSE),0) -> 2 | L37: =IFERROR(VLOOKUP($B37,'[1]Num 1'!$G$3:$O$88,6,FALSE),0) -> 0 | M37: =IFERROR(VLOOKUP($B37,'[1]Num 1'!$G$3:$O$88,7,FALSE),0) -> 0 | N37: =IFERROR(VLOOKUP($B37,'[1]Num 1'!$G$3:$O$88,8,FALSE),0) -> 0 | Q37: 14 | R37: =IFERROR(VLOOKUP($B37,'[1]Den 1 2021'!$G$3:$T$104,11,FALSE),0) -> 2 | S37: =IFERROR(VLOOKUP($B37,'[1]Den 1 2021'!$G$3:$T$104,12,FALSE),0) -> 1 | T37: =IFERROR(VLOOKUP($B37,'[1]Den 1 2021'!$G$3:$T$104,13,FALSE),0) -> 0 | U37: =IFERROR(VLOOKUP($B37,'[1]Den 1'!$G$3:$O$93,2,FALSE),0) -> 1 | V37: =IFERROR(VLOOKUP($B37,'[1]Den 1'!$G$3:$O$93,3,FALSE),0) -> 0 | W37: =IFERROR(VLOOKUP($B37,'[1]Den 1'!$G$3:$O$93,4,FALSE),0) -> 1 | X37: =IFERROR(VLOOKUP($B37,'[1]Den 1'!$G$3:$O$93,5,FALSE),0) -> 1 | Y37: =IFERROR(VLOOKUP($B37,'[1]Den 1'!$G$3:$O$93,6,FALSE),0) -> 2 | Z37: =IFERROR(VLOOKUP($B37,'[1]Den 1'!$G$3:$O$93,7,FALSE),0) -> 3 | AA37: =IFERROR(VLOOKUP($B37,'[1]Den 1'!$G$3:$O$93,8,FALSE),0) -> 2 | AD37: =SUM(R37:AC37) -> 13
A38: 04102-COQUIMBO | B38: 200607-CESFAM LILA CORTES | E38: =IFERROR(VLOOKUP($B38,'[1]Num 1 2021'!$G$3:$T$95,11,FALSE),0) -> 3 | F38: =IFERROR(VLOOKUP($B38,'[1]Num 1 2021'!$G$3:$T$95,12,FALSE),0) -> 4 | G38: =IFERROR(VLOOKUP($B38,'[1]Num 1 2021'!$G$3:$T$95,13,FALSE),0) -> 0 | H38: =IFERROR(VLOOKUP($B38,'[1]Num 1'!$G$3:$O$88,2,FALSE),0) -> 0 | I38: =IFERROR(VLOOKUP($B38,'[1]Num 1'!$G$3:$O$88,3,FALSE),0) -> 2 | J38: =IFERROR(VLOOKUP($B38,'[1]Num 1'!$G$3:$O$88,4,FALSE),0) -> 2 | K38: =IFERROR(VLOOKUP($B38,'[1]Num 1'!$G$3:$O$88,5,FALSE),0) -> 1 | L38: =IFERROR(VLOOKUP($B38,'[1]Num 1'!$G$3:$O$88,6,FALSE),0) -> 5 | M38: =IFERROR(VLOOKUP($B38,'[1]Num 1'!$G$3:$O$88,7,FALSE),0) -> 0 | N38: =IFERROR(VLOOKUP($B38,'[1]Num 1'!$G$3:$O$88,8,FALSE),0) -> 1 | Q38: 18 | R38: =IFERROR(VLOOKUP($B38,'[1]Den 1 2021'!$G$3:$T$104,11,FALSE),0) -> 0 | S38: =IFERROR(VLOOKUP($B38,'[1]Den 1 2021'!$G$3:$T$104,12,FALSE),0) -> 1 | T38: =IFERROR(VLOOKUP($B38,'[1]Den 1 2021'!$G$3:$T$104,13,FALSE),0) -> 4 | U38: =IFERROR(VLOOKUP($B38,'[1]Den 1'!$G$3:$O$93,2,FALSE),0) -> 1 | V38: =IFERROR(VLOOKUP($B38,'[1]Den 1'!$G$3:$O$93,3,FALSE),0) -> 1 | W38: =IFERROR(VLOOKUP($B38,'[1]Den 1'!$G$3:$O$93,4,FALSE),0) -> 1 | X38: =IFERROR(VLOOKUP($B38,'[1]Den 1'!$G$3:$O$93,5,FALSE),0) -> 1 | Y38: =IFERROR(VLOOKUP($B38,'[1]Den 1'!$G$3:$O$93,6,FALSE),0) -> 0 | Z38: =IFERROR(VLOOKUP($B38,'[1]Den 1'!$G$3:$O$93,7,FALSE),0) -> 0 | AA38: =IFERROR(VLOOKUP($B38,'[1]Den 1'!$G$3:$O$93,8,FALSE),0) -> 1 | AD38: =SUM(R38:AC38) -> 10
A39: TOTAL COQUIMBO | C39: =D39/Metas!G6 -> 0.9899569584 | D39: =Q39/AD39 -> 81.18% | E39: =SUM(E27:E38) -> 18 | F39: =SUM(F27:F38) -> 19 | G39: =SUM(G27:G38) -> 13 | H39: 7 | I39: 12 | J39: 15 | K39: 13 | L39: 17 | M39: 9 | N39: 15 | O39: 0 | P39: 0 | Q39: 138 | R39: 18 | S39: 19 | T39: 10 | U39: 11 | V39: 17 | W39: 22 | X39: 16 | Y39: 17 | Z39: 18 | AA39: 22 | AB39: 0 | AC39: 0 | AD39: 170
A40: 04104-LA HIGUERA | B40: 105314-CES. LA HIGUERA | E40: =IFERROR(VLOOKUP($B40,'[1]Num 1 2021'!$G$3:$T$95,11,FALSE),0) -> 0 | F40: =IFERROR(VLOOKUP($B40,'[1]Num 1 2021'!$G$3:$T$95,12,FALSE),0) -> 0 | G40: =IFERROR(VLOOKUP($B40,'[1]Num 1 2021'!$G$3:$T$95,13,FALSE),0) -> 1 | H40: =IFERROR(VLOOKUP($B40,'[1]Num 1'!$G$3:$O$88,2,FALSE),0) -> 0 | I40: =IFERROR(VLOOKUP($B40,'[1]Num 1'!$G$3:$O$88,3,FALSE),0) -> 0 | J40: =IFERROR(VLOOKUP($B40,'[1]Num 1'!$G$3:$O$88,4,FALSE),0) -> 0 | K40: =IFERROR(VLOOKUP($B40,'[1]Num 1'!$G$3:$O$88,5,FALSE),0) -> 0 | L40: =IFERROR(VLOOKUP($B40,'[1]Num 1'!$G$3:$O$88,6,FALSE),0) -> 0 | M40: =IFERROR(VLOOKUP($B40,'[1]Num 1'!$G$3:$O$88,7,FALSE),0) -> 0 | N40: =IFERROR(VLOOKUP($B40,'[1]Num 1'!$G$3:$O$88,8,FALSE),0) -> 0 | Q40: =SUM(E40:P40) -> 1 | R40: =IFERROR(VLOOKUP($B40,'[1]Den 1 2021'!$G$3:$T$104,11,FALSE),0) -> 0 | S40: =IFERROR(VLOOKUP($B40,'[1]Den 1 2021'!$G$3:$T$104,12,FALSE),0) -> 0 | T40: =IFERROR(VLOOKUP($B40,'[1]Den 1 2021'!$G$3:$T$104,13,FALSE),0) -> 0 | U40: =IFERROR(VLOOKUP($B40,'[1]Den 1'!$G$3:$O$93,2,FALSE),0) -> 0 | V40: =IFERROR(VLOOKUP($B40,'[1]Den 1'!$G$3:$O$93,3,FALSE),0) -> 0 | W40: =IFERROR(VLOOKUP($B40,'[1]Den 1'!$G$3:$O$93,4,FALSE),0) -> 0 | X40: =IFERROR(VLOOKUP($B40,'[1]Den 1'!$G$3:$O$93,5,FALSE),0) -> 0 | Y40: =IFERROR(VLOOKUP($B40,'[1]Den 1'!$G$3:$O$93,6,FALSE),0) -> 0 | Z40: =IFERROR(VLOOKUP($B40,'[1]Den 1'!$G$3:$O$93,7,FALSE),0) -> 0 | AA40: =IFERROR(VLOOKUP($B40,'[1]Den 1'!$G$3:$O$93,8,FALSE),0) -> 0 | AD40: 0
A41: 04104-LA HIGUERA | B41: 105500-P.S.R. CALETA HORNOS | E41: =IFERROR(VLOOKUP($B41,'[1]Num 1 2021'!$G$3:$T$95,11,FALSE),0) -> 0 | F41: =IFERROR(VLOOKUP($B41,'[1]Num 1 2021'!$G$3:$T$95,12,FALSE),0) -> 0 | G41: =IFERROR(VLOOKUP($B41,'[1]Num 1 2021'!$G$3:$T$95,13,FALSE),0) -> 1 | H41: =IFERROR(VLOOKUP($B41,'[1]Num 1'!$G$3:$O$88,2,FALSE),0) -> 0 | I41: =IFERROR(VLOOKUP($B41,'[1]Num 1'!$G$3:$O$88,3,FALSE),0) -> 0 | J41: =IFERROR(VLOOKUP($B41,'[1]Num 1'!$G$3:$O$88,4,FALSE),0) -> 0 | K41: =IFERROR(VLOOKUP($B41,'[1]Num 1'!$G$3:$O$88,5,FALSE),0) -> 0 | L41: =IFERROR(VLOOKUP($B41,'[1]Num 1'!$G$3:$O$88,6,FALSE),0) -> 0 | M41: =IFERROR(VLOOKUP($B41,'[1]Num 1'!$G$3:$O$88,7,FALSE),0) -> 1 | N41: =IFERROR(VLOOKUP($B41,'[1]Num 1'!$G$3:$O$88,8,FALSE),0) -> 0 | Q41: =SUM(E41:P41) -> 2 | R41: =IFERROR(VLOOKUP($B41,'[1]Den 1 2021'!$G$3:$T$104,11,FALSE),0) -> 1 | S41: =IFERROR(VLOOKUP($B41,'[1]Den 1 2021'!$G$3:$T$104,12,FALSE),0) -> 0 | T41: =IFERROR(VLOOKUP($B41,'[1]Den 1 2021'!$G$3:$T$104,13,FALSE),0) -> 0 | U41: =IFERROR(VLOOKUP($B41,'[1]Den 1'!$G$3:$O$93,2,FALSE),0) -> 0 | V41: =IFERROR(VLOOKUP($B41,'[1]Den 1'!$G$3:$O$93,3,FALSE),0) -> 1 | W41: =IFERROR(VLOOKUP($B41,'[1]Den 1'!$G$3:$O$93,4,FALSE),0) -> 0 | X41: =IFERROR(VLOOKUP($B41,'[1]Den 1'!$G$3:$O$93,5,FALSE),0) -> 1 | Y41: =IFERROR(VLOOKUP($B41,'[1]Den 1'!$G$3:$O$93,6,FALSE),0) -> 0 | Z41: =IFERROR(VLOOKUP($B41,'[1]Den 1'!$G$3:$O$93,7,FALSE),0) -> 0 | AA41: =IFERROR(VLOOKUP($B41,'[1]Den 1'!$G$3:$O$93,8,FALSE),0) -> 0 | AD41: 3
A42: 04104-LA HIGUERA | B42: 105505-P.S.R. LOS CHOROS | E42: =IFERROR(VLOOKUP($B42,'[1]Num 1 2021'!$G$3:$T$95,11,FALSE),0) -> 0 | F42: =IFERROR(VLOOKUP($B42,'[1]Num 1 2021'!$G$3:$T$95,12,FALSE),0) -> 0 | G42: =IFERROR(VLOOKUP($B42,'[1]Num 1 2021'!$G$3:$T$95,13,FALSE),0) -> 0 | H42: =IFERROR(VLOOKUP($B42,'[1]Num 1'!$G$3:$O$88,2,FALSE),0) -> 0 | I42: =IFERROR(VLOOKUP($B42,'[1]Num 1'!$G$3:$O$88,3,FALSE),0) -> 0 | J42: =IFERROR(VLOOKUP($B42,'[1]Num 1'!$G$3:$O$88,4,FALSE),0) -> 0 | K42: =IFERROR(VLOOKUP($B42,'[1]Num 1'!$G$3:$O$88,5,FALSE),0) -> 0 | L42: =IFERROR(VLOOKUP($B42,'[1]Num 1'!$G$3:$O$88,6,FALSE),0) -> 0 | M42: =IFERROR(VLOOKUP($B42,'[1]Num 1'!$G$3:$O$88,7,FALSE),0) -> 0 | N42: =IFERROR(VLOOKUP($B42,'[1]Num 1'!$G$3:$O$88,8,FALSE),0) -> 0 | Q42: =SUM(E42:P42) -> 0 | R42: =IFERROR(VLOOKUP($B42,'[1]Den 1 2021'!$G$3:$T$104,11,FALSE),0) -> 0 | S42: =IFERROR(VLOOKUP($B42,'[1]Den 1 2021'!$G$3:$T$104,12,FALSE),0) -> 0 | T42: =IFERROR(VLOOKUP($B42,'[1]Den 1 2021'!$G$3:$T$104,13,FALSE),0) -> 0 | U42: =IFERROR(VLOOKUP($B42,'[1]Den 1'!$G$3:$O$93,2,FALSE),0) -> 0 | V42: =IFERROR(VLOOKUP($B42,'[1]Den 1'!$G$3:$O$93,3,FALSE),0) -> 0 | W42: =IFERROR(VLOOKUP($B42,'[1]Den 1'!$G$3:$O$93,4,FALSE),0) -> 0 | X42: =IFERROR(VLOOKUP($B42,'[1]Den 1'!$G$3:$O$93,5,FALSE),0) -> 0 | Y42: =IFERROR(VLOOKUP($B42,'[1]Den 1'!$G$3:$O$93,6,FALSE),0) -> 0 | Z42: =IFERROR(VLOOKUP($B42,'[1]Den 1'!$G$3:$O$93,7,FALSE),0) -> 0 | AA42: =IFERROR(VLOOKUP($B42,'[1]Den 1'!$G$3:$O$93,8,FALSE),0) -> 0 | AD42: 0
A43: 04104-LA HIGUERA | B43: 105506-P.S.R. EL TRAPICHE | E43: =IFERROR(VLOOKUP($B43,'[1]Num 1 2021'!$G$3:$T$95,11,FALSE),0) -> 0 | F43: =IFERROR(VLOOKUP($B43,'[1]Num 1 2021'!$G$3:$T$95,12,FALSE),0) -> 0 | G43: =IFERROR(VLOOKUP($B43,'[1]Num 1 2021'!$G$3:$T$95,13,FALSE),0) -> 0 | H43: =IFERROR(VLOOKUP($B43,'[1]Num 1'!$G$3:$O$88,2,FALSE),0) -> 0 | I43: =IFERROR(VLOOKUP($B43,'[1]Num 1'!$G$3:$O$88,3,FALSE),0) -> 0 | J43: =IFERROR(VLOOKUP($B43,'[1]Num 1'!$G$3:$O$88,4,FALSE),0) -> 0 | K43: =IFERROR(VLOOKUP($B43,'[1]Num 1'!$G$3:$O$88,5,FALSE),0) -> 0 | L43: =IFERROR(VLOOKUP($B43,'[1]Num 1'!$G$3:$O$88,6,FALSE),0) -> 0 | M43: =IFERROR(VLOOKUP($B43,'[1]Num 1'!$G$3:$O$88,7,FALSE),0) -> 1 | N43: =IFERROR(VLOOKUP($B43,'[1]Num 1'!$G$3:$O$88,8,FALSE),0) -> 0 | Q43: =SUM(E43:P43) -> 1 | R43: =IFERROR(VLOOKUP($B43,'[1]Den 1 2021'!$G$3:$T$104,11,FALSE),0) -> 0 | S43: =IFERROR(VLOOKUP($B43,'[1]Den 1 2021'!$G$3:$T$104,12,FALSE),0) -> 0 | T43: =IFERROR(VLOOKUP($B43,'[1]Den 1 2021'!$G$3:$T$104,13,FALSE),0) -> 0 | U43: =IFERROR(VLOOKUP($B43,'[1]Den 1'!$G$3:$O$93,2,FALSE),0) -> 0 | V43: =IFERROR(VLOOKUP($B43,'[1]Den 1'!$G$3:$O$93,3,FALSE),0) -> 1 | W43: =IFERROR(VLOOKUP($B43,'[1]Den 1'!$G$3:$O$93,4,FALSE),0) -> 0 | X43: =IFERROR(VLOOKUP($B43,'[1]Den 1'!$G$3:$O$93,5,FALSE),0) -> 0 | Y43: =IFERROR(VLOOKUP($B43,'[1]Den 1'!$G$3:$O$93,6,FALSE),0) -> 0 | Z43: =IFERROR(VLOOKUP($B43,'[1]Den 1'!$G$3:$O$93,7,FALSE),0) -> 0 | AA43: =IFERROR(VLOOKUP($B43,'[1]Den 1'!$G$3:$O$93,8,FALSE),0) -> 0 | AD43: 1
A44: TOTAL LA HIGUERA | C44: =D44/Metas!G7 -> 111.11% | D44: =Q44/AD44 -> 100.00% | E44: =SUM(E40:E43) -> 0 | F44: =SUM(F40:F43) -> 0 | G44: =SUM(G40:G43) -> 2 | H44: =SUM(H40:H43) -> 0 | I44: =SUM(I40:I43) -> 0 | J44: 0 | K44: 0 | L44: 0 | M44: 2 | N44: 0 | O44: 0 | P44: 0 | Q44: 4 | R44: 1 | S44: 0 | T44: 0 | U44: 0 | V44: 2 | W44: 0 | X44: 1 | Y44: 0 | Z44: 0 | AA44: 0 | AB44: =SUM(AB40:AB43) -> 0 | AC44: =SUM(AC40:AC43) -> 0 | AD44: =SUM(AD40:AD43) -> 4
A45: 04105-PAIHUANO | B45: 105306-CES. PAIHUANO | E45: =IFERROR(VLOOKUP($B45,'[1]Num 1 2021'!$G$3:$T$95,11,FALSE),0) -> 0 | F45: =IFERROR(VLOOKUP($B45,'[1]Num 1 2021'!$G$3:$T$95,12,FALSE),0) -> 0 | G45: =IFERROR(VLOOKUP($B45,'[1]Num 1 2021'!$G$3:$T$95,13,FALSE),0) -> 0 | H45: =IFERROR(VLOOKUP($B45,'[1]Num 1'!$G$3:$O$88,2,FALSE),0) -> 0 | I45: =IFERROR(VLOOKUP($B45,'[1]Num 1'!$G$3:$O$88,3,FALSE),0) -> 0 | J45: =IFERROR(VLOOKUP($B45,'[1]Num 1'!$G$3:$O$88,4,FALSE),0) -> 0 | K45: =IFERROR(VLOOKUP($B45,'[1]Num 1'!$G$3:$O$88,5,FALSE),0) -> 0 | L45: =IFERROR(VLOOKUP($B45,'[1]Num 1'!$G$3:$O$88,6,FALSE),0) -> 0 | M45: =IFERROR(VLOOKUP($B45,'[1]Num 1'!$G$3:$O$88,7,FALSE),0) -> 0 | N45: =IFERROR(VLOOKUP($B45,'[1]Num 1'!$G$3:$O$88,8,FALSE),0) -> 0 | Q45: =SUM(E45:P45) -> 0 | R45: =IFERROR(VLOOKUP($B45,'[1]Den 1 2021'!$G$3:$T$104,11,FALSE),0) -> 0 | S45: =IFERROR(VLOOKUP($B45,'[1]Den 1 2021'!$G$3:$T$104,12,FALSE),0) -> 0 | T45: =IFERROR(VLOOKUP($B45,'[1]Den 1 2021'!$G$3:$T$104,13,FALSE),0) -> 0 | U45: =IFERROR(VLOOKUP($B45,'[1]Den 1'!$G$3:$O$93,2,FALSE),0) -> 0 | V45: =IFERROR(VLOOKUP($B45,'[1]Den 1'!$G$3:$O$93,3,FALSE),0) -> 0 | W45: =IFERROR(VLOOKUP($B45,'[1]Den 1'!$G$3:$O$93,4,FALSE),0) -> 0 | X45: =IFERROR(VLOOKUP($B45,'[1]Den 1'!$G$3:$O$93,5,FALSE),0) -> 0 | Y45: =IFERROR(VLOOKUP($B45,'[1]Den 1'!$G$3:$O$93,6,FALSE),0) -> 0 | Z45: =IFERROR(VLOOKUP($B45,'[1]Den 1'!$G$3:$O$93,7,FALSE),0) -> 0 | AA45: =IFERROR(VLOOKUP($B45,'[1]Den 1'!$G$3:$O$93,8,FALSE),0) -> 0 | AD45: =SUM(R45:AC45) -> 0
A46: 04105-PAIHUANO | B46: 105475-P.S.R. HORCON | E46: =IFERROR(VLOOKUP($B46,'[1]Num 1 2021'!$G$3:$T$95,11,FALSE),0) -> 0 | F46: =IFERROR(VLOOKUP($B46,'[1]Num 1 2021'!$G$3:$T$95,12,FALSE),0) -> 0 | G46: =IFERROR(VLOOKUP($B46,'[1]Num 1 2021'!$G$3:$T$95,13,FALSE),0) -> 1 | H46: =IFERROR(VLOOKUP($B46,'[1]Num 1'!$G$3:$O$88,2,FALSE),0) -> 0 | I46: =IFERROR(VLOOKUP($B46,'[1]Num 1'!$G$3:$O$88,3,FALSE),0) -> 0 | J46: =IFERROR(VLOOKUP($B46,'[1]Num 1'!$G$3:$O$88,4,FALSE),0) -> 0 | K46: =IFERROR(VLOOKUP($B46,'[1]Num 1'!$G$3:$O$88,5,FALSE),0) -> 0 | L46: =IFERROR(VLOOKUP($B46,'[1]Num 1'!$G$3:$O$88,6,FALSE),0) -> 0 | M46: =IFERROR(VLOOKUP($B46,'[1]Num 1'!$G$3:$O$88,7,FALSE),0) -> 0 | N46: =IFERROR(VLOOKUP($B46,'[1]Num 1'!$G$3:$O$88,8,FALSE),0) -> 0 | Q46: =SUM(E46:P46) -> 1 | R46: =IFERROR(VLOOKUP($B46,'[1]Den 1 2021'!$G$3:$T$104,11,FALSE),0) -> 1 | S46: =IFERROR(VLOOKUP($B46,'[1]Den 1 2021'!$G$3:$T$104,12,FALSE),0) -> 0 | T46: =IFERROR(VLOOKUP($B46,'[1]Den 1 2021'!$G$3:$T$104,13,FALSE),0) -> 0 | U46: =IFERROR(VLOOKUP($B46,'[1]Den 1'!$G$3:$O$93,2,FALSE),0) -> 0 | V46: =IFERROR(VLOOKUP($B46,'[1]Den 1'!$G$3:$O$93,3,FALSE),0) -> 0 | W46: =IFERROR(VLOOKUP($B46,'[1]Den 1'!$G$3:$O$93,4,FALSE),0) -> 0 | X46: =IFERROR(VLOOKUP($B46,'[1]Den 1'!$G$3:$O$93,5,FALSE),0) -> 0 | Y46: =IFERROR(VLOOKUP($B46,'[1]Den 1'!$G$3:$O$93,6,FALSE),0) -> 0 | Z46: =IFERROR(VLOOKUP($B46,'[1]Den 1'!$G$3:$O$93,7,FALSE),0) -> 0 | AA46: =IFERROR(VLOOKUP($B46,'[1]Den 1'!$G$3:$O$93,8,FALSE),0) -> 0 | AD46: =SUM(R46:AC46) -> 1
A47: 04105-PAIHUANO | B47: 105476-P.S.R. MONTE GRANDE | E47: =IFERROR(VLOOKUP($B47,'[1]Num 1 2021'!$G$3:$T$95,11,FALSE),0) -> 0 | F47: =IFERROR(VLOOKUP($B47,'[1]Num 1 2021'!$G$3:$T$95,12,FALSE),0) -> 0 | G47: =IFERROR(VLOOKUP($B47,'[1]Num 1 2021'!$G$3:$T$95,13,FALSE),0) -> 0 | H47: =IFERROR(VLOOKUP($B47,'[1]Num 1'!$G$3:$O$88,2,FALSE),0) -> 0 | I47: =IFERROR(VLOOKUP($B47,'[1]Num 1'!$G$3:$O$88,3,FALSE),0) -> 0 | J47: =IFERROR(VLOOKUP($B47,'[1]Num 1'!$G$3:$O$88,4,FALSE),0) -> 0 | K47: =IFERROR(VLOOKUP($B47,'[1]Num 1'!$G$3:$O$88,5,FALSE),0) -> 0 | L47: =IFERROR(VLOOKUP($B47,'[1]Num 1'!$G$3:$O$88,6,FALSE),0) -> 0 | M47: =IFERROR(VLOOKUP($B47,'[1]Num 1'!$G$3:$O$88,7,FALSE),0) -> 0 | N47: =IFERROR(VLOOKUP($B47,'[1]Num 1'!$G$3:$O$88,8,FALSE),0) -> 0 | Q47: =SUM(E47:P47) -> 0 | R47: =IFERROR(VLOOKUP($B47,'[1]Den 1 2021'!$G$3:$T$104,11,FALSE),0) -> 0 | S47: =IFERROR(VLOOKUP($B47,'[1]Den 1 2021'!$G$3:$T$104,12,FALSE),0) -> 0 | T47: =IFERROR(VLOOKUP($B47,'[1]Den 1 2021'!$G$3:$T$104,13,FALSE),0) -> 0 | U47: =IFERROR(VLOOKUP($B47,'[1]Den 1'!$G$3:$O$93,2,FALSE),0) -> 0 | V47: =IFERROR(VLOOKUP($B47,'[1]Den 1'!$G$3:$O$93,3,FALSE),0) -> 0 | W47: =IFERROR(VLOOKUP($B47,'[1]Den 1'!$G$3:$O$93,4,FALSE),0) -> 0 | X47: =IFERROR(VLOOKUP($B47,'[1]Den 1'!$G$3:$O$93,5,FALSE),0) -> 0 | Y47: =IFERROR(VLOOKUP($B47,'[1]Den 1'!$G$3:$O$93,6,FALSE),0) -> 0 | Z47: =IFERROR(VLOOKUP($B47,'[1]Den 1'!$G$3:$O$93,7,FALSE),0) -> 0 | AA47: =IFERROR(VLOOKUP($B47,'[1]Den 1'!$G$3:$O$93,8,FALSE),0) -> 0 | AD47: =SUM(R47:AC47) -> 0
A48: 04105-PAIHUANO | B48: 105477-P.S.R. PISCO ELQUI | E48: =IFERROR(VLOOKUP($B48,'[1]Num 1 2021'!$G$3:$T$95,11,FALSE),0) -> 0 | F48: =IFERROR(VLOOKUP($B48,'[1]Num 1 2021'!$G$3:$T$95,12,FALSE),0) -> 0 | G48: =IFERROR(VLOOKUP($B48,'[1]Num 1 2021'!$G$3:$T$95,13,FALSE),0) -> 0 | H48: =IFERROR(VLOOKUP($B48,'[1]Num 1'!$G$3:$O$88,2,FALSE),0) -> 0 | I48: =IFERROR(VLOOKUP($B48,'[1]Num 1'!$G$3:$O$88,3,FALSE),0) -> 0 | J48: =IFERROR(VLOOKUP($B48,'[1]Num 1'!$G$3:$O$88,4,FALSE),0) -> 0 | K48: =IFERROR(VLOOKUP($B48,'[1]Num 1'!$G$3:$O$88,5,FALSE),0) -> 0 | L48: =IFERROR(VLOOKUP($B48,'[1]Num 1'!$G$3:$O$88,6,FALSE),0) -> 0 | M48: =IFERROR(VLOOKUP($B48,'[1]Num 1'!$G$3:$O$88,7,FALSE),0) -> 0 | N48: =IFERROR(VLOOKUP($B48,'[1]Num 1'!$G$3:$O$88,8,FALSE),0) -> 0 | Q48: =SUM(E48:P48) -> 0 | R48: =IFERROR(VLOOKUP($B48,'[1]Den 1 2021'!$G$3:$T$104,11,FALSE),0) -> 0 | S48: =IFERROR(VLOOKUP($B48,'[1]Den 1 2021'!$G$3:$T$104,12,FALSE),0) -> 0 | T48: =IFERROR(VLOOKUP($B48,'[1]Den 1 2021'!$G$3:$T$104,13,FALSE),0) -> 0 | U48: =IFERROR(VLOOKUP($B48,'[1]Den 1'!$G$3:$O$93,2,FALSE),0) -> 0 | V48: =IFERROR(VLOOKUP($B48,'[1]Den 1'!$G$3:$O$93,3,FALSE),0) -> 0 | W48: =IFERROR(VLOOKUP($B48,'[1]Den 1'!$G$3:$O$93,4,FALSE),0) -> 0 | X48: =IFERROR(VLOOKUP($B48,'[1]Den 1'!$G$3:$O$93,5,FALSE),0) -> 0 | Y48: =IFERROR(VLOOKUP($B48,'[1]Den 1'!$G$3:$O$93,6,FALSE),0) -> 0 | Z48: =IFERROR(VLOOKUP($B48,'[1]Den 1'!$G$3:$O$93,7,FALSE),0) -> 0 | AA48: =IFERROR(VLOOKUP($B48,'[1]Den 1'!$G$3:$O$93,8,FALSE),0) -> 0 | AD48: =SUM(R48:AC48) -> 0
A49: TOTAL PAIHUANO | C49: =D49/Metas!G8 -> 111.11% | D49: =Q49/AD49 -> 100.00% | E49: =SUM(E45:E48) -> 0 | F49: =SUM(F45:F48) -> 0 | G49: =SUM(G45:G48) -> 1 | H49: =SUM(H45:H48) -> 0 | I49: =SUM(I45:I48) -> 0 | J49: 0 | K49: 0 | L49: 0 | M49: 0 | N49: 0 | O49: 0 | P49: =SUM(P45:P48) -> 0 | Q49: 1 | R49: 1 | S49: 0 | T49: 0 | U49: 0 | V49: 0 | W49: 0 | X49: 0 | Y49: 0 | Z49: 0 | AA49: 0 | AB49: =SUM(AB45:AB48) -> 0 | AC49: =SUM(AC45:AC48) -> 0 | AD49: =SUM(AD45:AD48) -> 1
A50: 04106-VICUÑA | B50: 105467-P.S.R. DIAGUITAS | E50: =IFERROR(VLOOKUP($B50,'[1]Num 1 2021'!$G$3:$T$95,11,FALSE),0) -> 0 | F50: =IFERROR(VLOOKUP($B50,'[1]Num 1 2021'!$G$3:$T$95,12,FALSE),0) -> 0 | G50: =IFERROR(VLOOKUP($B50,'[1]Num 1 2021'!$G$3:$T$95,13,FALSE),0) -> 0 | H50: =IFERROR(VLOOKUP($B50,'[1]Num 1'!$G$3:$O$88,2,FALSE),0) -> 0 | I50: =IFERROR(VLOOKUP($B50,'[1]Num 1'!$G$3:$O$88,3,FALSE),0) -> 0 | J50: =IFERROR(VLOOKUP($B50,'[1]Num 1'!$G$3:$O$88,4,FALSE),0) -> 0 | K50: =IFERROR(VLOOKUP($B50,'[1]Num 1'!$G$3:$O$88,5,FALSE),0) -> 0 | L50: =IFERROR(VLOOKUP($B50,'[1]Num 1'!$G$3:$O$88,6,FALSE),0) -> 0 | M50: =IFERROR(VLOOKUP($B50,'[1]Num 1'!$G$3:$O$88,7,FALSE),0) -> 0 | N50: =IFERROR(VLOOKUP($B50,'[1]Num 1'!$G$3:$O$88,8,FALSE),0) -> 0 | Q50: =SUM(E50:P50) -> 0 | R50: =IFERROR(VLOOKUP($B50,'[1]Den 1 2021'!$G$3:$T$104,11,FALSE),0) -> 0 | S50: =IFERROR(VLOOKUP($B50,'[1]Den 1 2021'!$G$3:$T$104,12,FALSE),0) -> 0 | T50: =IFERROR(VLOOKUP($B50,'[1]Den 1 2021'!$G$3:$T$104,13,FALSE),0) -> 0 | U50: =IFERROR(VLOOKUP($B50,'[1]Den 1'!$G$3:$O$93,2,FALSE),0) -> 0 | V50: =IFERROR(VLOOKUP($B50,'[1]Den 1'!$G$3:$O$93,3,FALSE),0) -> 0 | W50: =IFERROR(VLOOKUP($B50,'[1]Den 1'!$G$3:$O$93,4,FALSE),0) -> 0 | X50: =IFERROR(VLOOKUP($B50,'[1]Den 1'!$G$3:$O$93,5,FALSE),0) -> 0 | Y50: =IFERROR(VLOOKUP($B50,'[1]Den 1'!$G$3:$O$93,6,FALSE),0) -> 0 | Z50: =IFERROR(VLOOKUP($B50,'[1]Den 1'!$G$3:$O$93,7,FALSE),0) -> 0 | AA50: =IFERROR(VLOOKUP($B50,'[1]Den 1'!$G$3:$O$93,8,FALSE),0) -> 0 | AD50: 0
A51: 04106-VICUÑA | B51: 105468-P.S.R. EL MOLLE | E51: =IFERROR(VLOOKUP($B51,'[1]Num 1 2021'!$G$3:$T$95,11,FALSE),0) -> 0 | F51: =IFERROR(VLOOKUP($B51,'[1]Num 1 2021'!$G$3:$T$95,12,FALSE),0) -> 0 | G51: =IFERROR(VLOOKUP($B51,'[1]Num 1 2021'!$G$3:$T$95,13,FALSE),0) -> 0 | H51: =IFERROR(VLOOKUP($B51,'[1]Num 1'!$G$3:$O$88,2,FALSE),0) -> 0 | I51: =IFERROR(VLOOKUP($B51,'[1]Num 1'!$G$3:$O$88,3,FALSE),0) -> 0 | J51: =IFERROR(VLOOKUP($B51,'[1]Num 1'!$G$3:$O$88,4,FALSE),0) -> 0 | K51: =IFERROR(VLOOKUP($B51,'[1]Num 1'!$G$3:$O$88,5,FALSE),0) -> 0 | L51: =IFERROR(VLOOKUP($B51,'[1]Num 1'!$G$3:$O$88,6,FALSE),0) -> 0 | M51: =IFERROR(VLOOKUP($B51,'[1]Num 1'!$G$3:$O$88,7,FALSE),0) -> 0 | N51: =IFERROR(VLOOKUP($B51,'[1]Num 1'!$G$3:$O$88,8,FALSE),0) -> 0 | Q51: =SUM(E51:P51) -> 0 | R51: =IFERROR(VLOOKUP($B51,'[1]Den 1 2021'!$G$3:$T$104,11,FALSE),0) -> 0 | S51: =IFERROR(VLOOKUP($B51,'[1]Den 1 2021'!$G$3:$T$104,12,FALSE),0) -> 0 | T51: =IFERROR(VLOOKUP($B51,'[1]Den 1 2021'!$G$3:$T$104,13,FALSE),0) -> 0 | U51: =IFERROR(VLOOKUP($B51,'[1]Den 1'!$G$3:$O$93,2,FALSE),0) -> 0 | V51: =IFERROR(VLOOKUP($B51,'[1]Den 1'!$G$3:$O$93,3,FALSE),0) -> 0 | W51: =IFERROR(VLOOKUP($B51,'[1]Den 1'!$G$3:$O$93,4,FALSE),0) -> 0 | X51: =IFERROR(VLOOKUP($B51,'[1]Den 1'!$G$3:$O$93,5,FALSE),0) -> 0 | Y51: =IFERROR(VLOOKUP($B51,'[1]Den 1'!$G$3:$O$93,6,FALSE),0) -> 0 | Z51: =IFERROR(VLOOKUP($B51,'[1]Den 1'!$G$3:$O$93,7,FALSE),0) -> 0 | AA51: =IFERROR(VLOOKUP($B51,'[1]Den 1'!$G$3:$O$93,8,FALSE),0) -> 0 | AD51: 0
A52: 04106-VICUÑA | B52: 105469-P.S.R. EL TAMBO | E52: =IFERROR(VLOOKUP($B52,'[1]Num 1 2021'!$G$3:$T$95,11,FALSE),0) -> 0 | F52: =IFERROR(VLOOKUP($B52,'[1]Num 1 2021'!$G$3:$T$95,12,FALSE),0) -> 0 | G52: =IFERROR(VLOOKUP($B52,'[1]Num 1 2021'!$G$3:$T$95,13,FALSE),0) -> 0 | H52: =IFERROR(VLOOKUP($B52,'[1]Num 1'!$G$3:$O$88,2,FALSE),0) -> 0 | I52: =IFERROR(VLOOKUP($B52,'[1]Num 1'!$G$3:$O$88,3,FALSE),0) -> 0 | J52: =IFERROR(VLOOKUP($B52,'[1]Num 1'!$G$3:$O$88,4,FALSE),0) -> 0 | K52: =IFERROR(VLOOKUP($B52,'[1]Num 1'!$G$3:$O$88,5,FALSE),0) -> 0 | L52: =IFERROR(VLOOKUP($B52,'[1]Num 1'!$G$3:$O$88,6,FALSE),0) -> 0 | M52: =IFERROR(VLOOKUP($B52,'[1]Num 1'!$G$3:$O$88,7,FALSE),0) -> 0 | N52: =IFERROR(VLOOKUP($B52,'[1]Num 1'!$G$3:$O$88,8,FALSE),0) -> 0 | Q52: 0 | R52: =IFERROR(VLOOKUP($B52,'[1]Den 1 2021'!$G$3:$T$104,11,FALSE),0) -> 0 | S52: =IFERROR(VLOOKUP($B52,'[1]Den 1 2021'!$G$3:$T$104,12,FALSE),0) -> 0 | T52: =IFERROR(VLOOKUP($B52,'[1]Den 1 2021'!$G$3:$T$104,13,FALSE),0) -> 0 | U52: =IFERROR(VLOOKUP($B52,'[1]Den 1'!$G$3:$O$93,2,FALSE),0) -> 0 | V52: =IFERROR(VLOOKUP($B52,'[1]Den 1'!$G$3:$O$93,3,FALSE),0) -> 0 | W52: =IFERROR(VLOOKUP($B52,'[1]Den 1'!$G$3:$O$93,4,FALSE),0) -> 0 | X52: =IFERROR(VLOOKUP($B52,'[1]Den 1'!$G$3:$O$93,5,FALSE),0) -> 0 | Y52: =IFERROR(VLOOKUP($B52,'[1]Den 1'!$G$3:$O$93,6,FALSE),0) -> 0 | Z52: =IFERROR(VLOOKUP($B52,'[1]Den 1'!$G$3:$O$93,7,FALSE),0) -> 0 | AA52: =IFERROR(VLOOKUP($B52,'[1]Den 1'!$G$3:$O$93,8,FALSE),0) -> 0 | AD52: 0
A53: 04106-VICUÑA | B53: 105470-P.S.R. HUANTA | E53: =IFERROR(VLOOKUP($B53,'[1]Num 1 2021'!$G$3:$T$95,11,FALSE),0) -> 0 | F53: =IFERROR(VLOOKUP($B53,'[1]Num 1 2021'!$G$3:$T$95,12,FALSE),0) -> 0 | G53: =IFERROR(VLOOKUP($B53,'[1]Num 1 2021'!$G$3:$T$95,13,FALSE),0) -> 0 | H53: =IFERROR(VLOOKUP($B53,'[1]Num 1'!$G$3:$O$88,2,FALSE),0) -> 0 | I53: =IFERROR(VLOOKUP($B53,'[1]Num 1'!$G$3:$O$88,3,FALSE),0) -> 0 | J53: =IFERROR(VLOOKUP($B53,'[1]Num 1'!$G$3:$O$88,4,FALSE),0) -> 0 | K53: =IFERROR(VLOOKUP($B53,'[1]Num 1'!$G$3:$O$88,5,FALSE),0) -> 0 | L53: =IFERROR(VLOOKUP($B53,'[1]Num 1'!$G$3:$O$88,6,FALSE),0) -> 0 | M53: =IFERROR(VLOOKUP($B53,'[1]Num 1'!$G$3:$O$88,7,FALSE),0) -> 0 | N53: =IFERROR(VLOOKUP($B53,'[1]Num 1'!$G$3:$O$88,8,FALSE),0) -> 0 | Q53: 0 | R53: =IFERROR(VLOOKUP($B53,'[1]Den 1 2021'!$G$3:$T$104,11,FALSE),0) -> 0 | S53: =IFERROR(VLOOKUP($B53,'[1]Den 1 2021'!$G$3:$T$104,12,FALSE),0) -> 0 | T53: =IFERROR(VLOOKUP($B53,'[1]Den 1 2021'!$G$3:$T$104,13,FALSE),0) -> 0 | U53: =IFERROR(VLOOKUP($B53,'[1]Den 1'!$G$3:$O$93,2,FALSE),0) -> 0 | V53: =IFERROR(VLOOKUP($B53,'[1]Den 1'!$G$3:$O$93,3,FALSE),0) -> 0 | W53: =IFERROR(VLOOKUP($B53,'[1]Den 1'!$G$3:$O$93,4,FALSE),0) -> 0 | X53: =IFERROR(VLOOKUP($B53,'[1]Den 1'!$G$3:$O$93,5,FALSE),0) -> 0 | Y53: =IFERROR(VLOOKUP($B53,'[1]Den 1'!$G$3:$O$93,6,FALSE),0) -> 0 | Z53: =IFERROR(VLOOKUP($B53,'[1]Den 1'!$G$3:$O$93,7,FALSE),0) -> 0 | AA53: =IFERROR(VLOOKUP($B53,'[1]Den 1'!$G$3:$O$93,8,FALSE),0) -> 0 | AD53: 0
A54: 04106-VICUÑA | B54: 105471-P.S.R. PERALILLO | E54: =IFERROR(VLOOKUP($B54,'[1]Num 1 2021'!$G$3:$T$95,11,FALSE),0) -> 0 | F54: =IFERROR(VLOOKUP($B54,'[1]Num 1 2021'!$G$3:$T$95,12,FALSE),0) -> 0 | G54: =IFERROR(VLOOKUP($B54,'[1]Num 1 2021'!$G$3:$T$95,13,FALSE),0) -> 0 | H54: =IFERROR(VLOOKUP($B54,'[1]Num 1'!$G$3:$O$88,2,FALSE),0) -> 0 | I54: =IFERROR(VLOOKUP($B54,'[1]Num 1'!$G$3:$O$88,3,FALSE),0) -> 0 | J54: =IFERROR(VLOOKUP($B54,'[1]Num 1'!$G$3:$O$88,4,FALSE),0) -> 0 | K54: =IFERROR(VLOOKUP($B54,'[1]Num 1'!$G$3:$O$88,5,FALSE),0) -> 0 | L54: =IFERROR(VLOOKUP($B54,'[1]Num 1'!$G$3:$O$88,6,FALSE),0) -> 0 | M54: =IFERROR(VLOOKUP($B54,'[1]Num 1'!$G$3:$O$88,7,FALSE),0) -> 0 | N54: =IFERROR(VLOOKUP($B54,'[1]Num 1'!$G$3:$O$88,8,FALSE),0) -> 0 | Q54: 0 | R54: =IFERROR(VLOOKUP($B54,'[1]Den 1 2021'!$G$3:$T$104,11,FALSE),0) -> 0 | S54: =IFERROR(VLOOKUP($B54,'[1]Den 1 2021'!$G$3:$T$104,12,FALSE),0) -> 0 | T54: =IFERROR(VLOOKUP($B54,'[1]Den 1 2021'!$G$3:$T$104,13,FALSE),0) -> 0 | U54: =IFERROR(VLOOKUP($B54,'[1]Den 1'!$G$3:$O$93,2,FALSE),0) -> 0 | V54: =IFERROR(VLOOKUP($B54,'[1]Den 1'!$G$3:$O$93,3,FALSE),0) -> 0 | W54: =IFERROR(VLOOKUP($B54,'[1]Den 1'!$G$3:$O$93,4,FALSE),0) -> 0 | X54: =IFERROR(VLOOKUP($B54,'[1]Den 1'!$G$3:$O$93,5,FALSE),0) -> 0 | Y54: =IFERROR(VLOOKUP($B54,'[1]Den 1'!$G$3:$O$93,6,FALSE),0) -> 0 | Z54: =IFERROR(VLOOKUP($B54,'[1]Den 1'!$G$3:$O$93,7,FALSE),0) -> 0 | AA54: =IFERROR(VLOOKUP($B54,'[1]Den 1'!$G$3:$O$93,8,FALSE),0) -> 0 | AD54: 0
A55: 04106-VICUÑA | B55: 105472-P.S.R. RIVADAVIA | E55: =IFERROR(VLOOKUP($B55,'[1]Num 1 2021'!$G$3:$T$95,11,FALSE),0) -> 0 | F55: =IFERROR(VLOOKUP($B55,'[1]Num 1 2021'!$G$3:$T$95,12,FALSE),0) -> 0 | G55: =IFERROR(VLOOKUP($B55,'[1]Num 1 2021'!$G$3:$T$95,13,FALSE),0) -> 0 | H55: =IFERROR(VLOOKUP($B55,'[1]Num 1'!$G$3:$O$88,2,FALSE),0) -> 0 | I55: =IFERROR(VLOOKUP($B55,'[1]Num 1'!$G$3:$O$88,3,FALSE),0) -> 0 | J55: =IFERROR(VLOOKUP($B55,'[1]Num 1'!$G$3:$O$88,4,FALSE),0) -> 0 | K55: =IFERROR(VLOOKUP($B55,'[1]Num 1'!$G$3:$O$88,5,FALSE),0) -> 0 | L55: =IFERROR(VLOOKUP($B55,'[1]Num 1'!$G$3:$O$88,6,FALSE),0) -> 0 | M55: =IFERROR(VLOOKUP($B55,'[1]Num 1'!$G$3:$O$88,7,FALSE),0) -> 0 | N55: =IFERROR(VLOOKUP($B55,'[1]Num 1'!$G$3:$O$88,8,FALSE),0) -> 0 | Q55: 0 | R55: =IFERROR(VLOOKUP($B55,'[1]Den 1 2021'!$G$3:$T$104,11,FALSE),0) -> 0 | S55: =IFERROR(VLOOKUP($B55,'[1]Den 1 2021'!$G$3:$T$104,12,FALSE),0) -> 0 | T55: =IFERROR(VLOOKUP($B55,'[1]Den 1 2021'!$G$3:$T$104,13,FALSE),0) -> 0 | U55: =IFERROR(VLOOKUP($B55,'[1]Den 1'!$G$3:$O$93,2,FALSE),0) -> 0 | V55: =IFERROR(VLOOKUP($B55,'[1]Den 1'!$G$3:$O$93,3,FALSE),0) -> 0 | W55: =IFERROR(VLOOKUP($B55,'[1]Den 1'!$G$3:$O$93,4,FALSE),0) -> 0 | X55: =IFERROR(VLOOKUP($B55,'[1]Den 1'!$G$3:$O$93,5,FALSE),0) -> 0 | Y55: =IFERROR(VLOOKUP($B55,'[1]Den 1'!$G$3:$O$93,6,FALSE),0) -> 0 | Z55: =IFERROR(VLOOKUP($B55,'[1]Den 1'!$G$3:$O$93,7,FALSE),0) -> 0 | AA55: =IFERROR(VLOOKUP($B55,'[1]Den 1'!$G$3:$O$93,8,FALSE),0) -> 0 | AD55: 0
A56: 04106-VICUÑA | B56: 105473-P.S.R. TALCUNA | E56: =IFERROR(VLOOKUP($B56,'[1]Num 1 2021'!$G$3:$T$95,11,FALSE),0) -> 1 | F56: =IFERROR(VLOOKUP($B56,'[1]Num 1 2021'!$G$3:$T$95,12,FALSE),0) -> 0 | G56: =IFERROR(VLOOKUP($B56,'[1]Num 1 2021'!$G$3:$T$95,13,FALSE),0) -> 0 | H56: =IFERROR(VLOOKUP($B56,'[1]Num 1'!$G$3:$O$88,2,FALSE),0) -> 0 | I56: =IFERROR(VLOOKUP($B56,'[1]Num 1'!$G$3:$O$88,3,FALSE),0) -> 0 | J56: =IFERROR(VLOOKUP($B56,'[1]Num 1'!$G$3:$O$88,4,FALSE),0) -> 0 | K56: =IFERROR(VLOOKUP($B56,'[1]Num 1'!$G$3:$O$88,5,FALSE),0) -> 0 | L56: =IFERROR(VLOOKUP($B56,'[1]Num 1'!$G$3:$O$88,6,FALSE),0) -> 1 | M56: =IFERROR(VLOOKUP($B56,'[1]Num 1'!$G$3:$O$88,7,FALSE),0) -> 0 | N56: =IFERROR(VLOOKUP($B56,'[1]Num 1'!$G$3:$O$88,8,FALSE),0) -> 0 | Q56: 2 | R56: =IFERROR(VLOOKUP($B56,'[1]Den 1 2021'!$G$3:$T$104,11,FALSE),0) -> 0 | S56: =IFERROR(VLOOKUP($B56,'[1]Den 1 2021'!$G$3:$T$104,12,FALSE),0) -> 0 | T56: =IFERROR(VLOOKUP($B56,'[1]Den 1 2021'!$G$3:$T$104,13,FALSE),0) -> 0 | U56: =IFERROR(VLOOKUP($B56,'[1]Den 1'!$G$3:$O$93,2,FALSE),0) -> 0 | V56: =IFERROR(VLOOKUP($B56,'[1]Den 1'!$G$3:$O$93,3,FALSE),0) -> 1 | W56: =IFERROR(VLOOKUP($B56,'[1]Den 1'!$G$3:$O$93,4,FALSE),0) -> 0 | X56: =IFERROR(VLOOKUP($B56,'[1]Den 1'!$G$3:$O$93,5,FALSE),0) -> 0 | Y56: =IFERROR(VLOOKUP($B56,'[1]Den 1'!$G$3:$O$93,6,FALSE),0) -> 0 | Z56: =IFERROR(VLOOKUP($B56,'[1]Den 1'!$G$3:$O$93,7,FALSE),0) -> 0 | AA56: =IFERROR(VLOOKUP($B56,'[1]Den 1'!$G$3:$O$93,8,FALSE),0) -> 0 | AD56: 1
A57: 04106-VICUÑA | B57: 105474-P.S.R. CHAPILCA | E57: =IFERROR(VLOOKUP($B57,'[1]Num 1 2021'!$G$3:$T$95,11,FALSE),0) -> 0 | F57: =IFERROR(VLOOKUP($B57,'[1]Num 1 2021'!$G$3:$T$95,12,FALSE),0) -> 0 | G57: =IFERROR(VLOOKUP($B57,'[1]Num 1 2021'!$G$3:$T$95,13,FALSE),0) -> 0 | H57: =IFERROR(VLOOKUP($B57,'[1]Num 1'!$G$3:$O$88,2,FALSE),0) -> 0 | I57: =IFERROR(VLOOKUP($B57,'[1]Num 1'!$G$3:$O$88,3,FALSE),0) -> 0 | J57: =IFERROR(VLOOKUP($B57,'[1]Num 1'!$G$3:$O$88,4,FALSE),0) -> 0 | K57: =IFERROR(VLOOKUP($B57,'[1]Num 1'!$G$3:$O$88,5,FALSE),0) -> 0 | L57: =IFERROR(VLOOKUP($B57,'[1]Num 1'!$G$3:$O$88,6,FALSE),0) -> 0 | M57: =IFERROR(VLOOKUP($B57,'[1]Num 1'!$G$3:$O$88,7,FALSE),0) -> 0 | N57: =IFERROR(VLOOKUP($B57,'[1]Num 1'!$G$3:$O$88,8,FALSE),0) -> 0 | Q57: 0 | R57: =IFERROR(VLOOKUP($B57,'[1]Den 1 2021'!$G$3:$T$104,11,FALSE),0) -> 0 | S57: =IFERROR(VLOOKUP($B57,'[1]Den 1 2021'!$G$3:$T$104,12,FALSE),0) -> 0 | T57: =IFERROR(VLOOKUP($B57,'[1]Den 1 2021'!$G$3:$T$104,13,FALSE),0) -> 0 | U57: =IFERROR(VLOOKUP($B57,'[1]Den 1'!$G$3:$O$93,2,FALSE),0) -> 0 | V57: =IFERROR(VLOOKUP($B57,'[1]Den 1'!$G$3:$O$93,3,FALSE),0) -> 0 | W57: =IFERROR(VLOOKUP($B57,'[1]Den 1'!$G$3:$O$93,4,FALSE),0) -> 0 | X57: =IFERROR(VLOOKUP($B57,'[1]Den 1'!$G$3:$O$93,5,FALSE),0) -> 0 | Y57: =IFERROR(VLOOKUP($B57,'[1]Den 1'!$G$3:$O$93,6,FALSE),0) -> 0 | Z57: =IFERROR(VLOOKUP($B57,'[1]Den 1'!$G$3:$O$93,7,FALSE),0) -> 0 | AA57: =IFERROR(VLOOKUP($B57,'[1]Den 1'!$G$3:$O$93,8,FALSE),0) -> 0 | AD57: 0
A58: 04106-VICUÑA | B58: 105509-P.S.R. GUALLIGUAICA | E58: =IFERROR(VLOOKUP($B58,'[1]Num 1 2021'!$G$3:$T$95,11,FALSE),0) -> 0 | F58: =IFERROR(VLOOKUP($B58,'[1]Num 1 2021'!$G$3:$T$95,12,FALSE),0) -> 1 | G58: =IFERROR(VLOOKUP($B58,'[1]Num 1 2021'!$G$3:$T$95,13,FALSE),0) -> 0 | H58: =IFERROR(VLOOKUP($B58,'[1]Num 1'!$G$3:$O$88,2,FALSE),0) -> 0 | I58: =IFERROR(VLOOKUP($B58,'[1]Num 1'!$G$3:$O$88,3,FALSE),0) -> 0 | J58: =IFERROR(VLOOKUP($B58,'[1]Num 1'!$G$3:$O$88,4,FALSE),0) -> 0 | K58: =IFERROR(VLOOKUP($B58,'[1]Num 1'!$G$3:$O$88,5,FALSE),0) -> 0 | L58: =IFERROR(VLOOKUP($B58,'[1]Num 1'!$G$3:$O$88,6,FALSE),0) -> 0 | M58: =IFERROR(VLOOKUP($B58,'[1]Num 1'!$G$3:$O$88,7,FALSE),0) -> 0 | N58: =IFERROR(VLOOKUP($B58,'[1]Num 1'!$G$3:$O$88,8,FALSE),0) -> 0 | Q58: 1 | R58: =IFERROR(VLOOKUP($B58,'[1]Den 1 2021'!$G$3:$T$104,11,FALSE),0) -> 0 | S58: =IFERROR(VLOOKUP($B58,'[1]Den 1 2021'!$G$3:$T$104,12,FALSE),0) -> 0 | T58: =IFERROR(VLOOKUP($B58,'[1]Den 1 2021'!$G$3:$T$104,13,FALSE),0) -> 0 | U58: =IFERROR(VLOOKUP($B58,'[1]Den 1'!$G$3:$O$93,2,FALSE),0) -> 0 | V58: =IFERROR(VLOOKUP($B58,'[1]Den 1'!$G$3:$O$93,3,FALSE),0) -> 0 | W58: =IFERROR(VLOOKUP($B58,'[1]Den 1'!$G$3:$O$93,4,FALSE),0) -> 0 | X58: =IFERROR(VLOOKUP($B58,'[1]Den 1'!$G$3:$O$93,5,FALSE),0) -> 0 | Y58: =IFERROR(VLOOKUP($B58,'[1]Den 1'!$G$3:$O$93,6,FALSE),0) -> 0 | Z58: =IFERROR(VLOOKUP($B58,'[1]Den 1'!$G$3:$O$93,7,FALSE),0) -> 0 | AA58: =IFERROR(VLOOKUP($B58,'[1]Den 1'!$G$3:$O$93,8,FALSE),0) -> 0 | AD58: 0
A59: 04106-VICUÑA | B59: 200538-CESFAM SAN ISIDRO CALINGASTA | E59: =IFERROR(VLOOKUP($B59,'[1]Num 1 2021'!$G$3:$T$95,11,FALSE),0) -> 1 | F59: =IFERROR(VLOOKUP($B59,'[1]Num 1 2021'!$G$3:$T$95,12,FALSE),0) -> 0 | G59: =IFERROR(VLOOKUP($B59,'[1]Num 1 2021'!$G$3:$T$95,13,FALSE),0) -> 0 | H59: =IFERROR(VLOOKUP($B59,'[1]Num 1'!$G$3:$O$88,2,FALSE),0) -> 0 | I59: =IFERROR(VLOOKUP($B59,'[1]Num 1'!$G$3:$O$88,3,FALSE),0) -> 0 | J59: =IFERROR(VLOOKUP($B59,'[1]Num 1'!$G$3:$O$88,4,FALSE),0) -> 0 | K59: =IFERROR(VLOOKUP($B59,'[1]Num 1'!$G$3:$O$88,5,FALSE),0) -> 0 | L59: =IFERROR(VLOOKUP($B59,'[1]Num 1'!$G$3:$O$88,6,FALSE),0) -> 2 | M59: =IFERROR(VLOOKUP($B59,'[1]Num 1'!$G$3:$O$88,7,FALSE),0) -> 0 | N59: =IFERROR(VLOOKUP($B59,'[1]Num 1'!$G$3:$O$88,8,FALSE),0) -> 0 | Q59: =SUM(E59:P59) -> 3 | R59: =IFERROR(VLOOKUP($B59,'[1]Den 1 2021'!$G$3:$T$104,11,FALSE),0) -> 0 | S59: =IFERROR(VLOOKUP($B59,'[1]Den 1 2021'!$G$3:$T$104,12,FALSE),0) -> 0 | T59: =IFERROR(VLOOKUP($B59,'[1]Den 1 2021'!$G$3:$T$104,13,FALSE),0) -> 0 | U59: =IFERROR(VLOOKUP($B59,'[1]Den 1'!$G$3:$O$93,2,FALSE),0) -> 0 | V59: =IFERROR(VLOOKUP($B59,'[1]Den 1'!$G$3:$O$93,3,FALSE),0) -> 2 | W59: =IFERROR(VLOOKUP($B59,'[1]Den 1'!$G$3:$O$93,4,FALSE),0) -> 0 | X59: =IFERROR(VLOOKUP($B59,'[1]Den 1'!$G$3:$O$93,5,FALSE),0) -> 0 | Y59: =IFERROR(VLOOKUP($B59,'[1]Den 1'!$G$3:$O$93,6,FALSE),0) -> 0 | Z59: =IFERROR(VLOOKUP($B59,'[1]Den 1'!$G$3:$O$93,7,FALSE),0) -> 0 | AA59: =IFERROR(VLOOKUP($B59,'[1]Den 1'!$G$3:$O$93,8,FALSE),0) -> 0 | AD59: =SUM(R59:AC59) -> 2
A60: TOTAL VICUÑA | C60: =D60/Metas!G9 -> 222.22% | D60: =Q60/AD60 -> 200.00% | E60: =SUM(E50:E59) -> 2 | F60: 1 | G60: 0 | H60: 0 | I60: 0 | J60: 0 | K60: 0 | L60: 3 | M60: 0 | N60: 0 | O60: 0 | P60: 0 | Q60: 6 | R60: 0 | S60: 0 | T60: 0 | U60: 0 | V60: 3 | W60: 0 | X60: 0 | Y60: 0 | Z60: 0 | AA60: 0 | AB60: 0 | AC60: 0 | AD60: 3
A61: 04201-ILLAPEL | B61: 105326-CESFAM SAN RAFAEL | E61: =IFERROR(VLOOKUP($B61,'[1]Num 1 2021'!$G$3:$T$95,11,FALSE),0) -> 1 | F61: =IFERROR(VLOOKUP($B61,'[1]Num 1 2021'!$G$3:$T$95,12,FALSE),0) -> 2 | G61: =IFERROR(VLOOKUP($B61,'[1]Num 1 2021'!$G$3:$T$95,13,FALSE),0) -> 0 | H61: =IFERROR(VLOOKUP($B61,'[1]Num 1'!$G$3:$O$88,2,FALSE),0) -> 0 | I61: =IFERROR(VLOOKUP($B61,'[1]Num 1'!$G$3:$O$88,3,FALSE),0) -> 0 | J61: =IFERROR(VLOOKUP($B61,'[1]Num 1'!$G$3:$O$88,4,FALSE),0) -> 0 | K61: =IFERROR(VLOOKUP($B61,'[1]Num 1'!$G$3:$O$88,5,FALSE),0) -> 1 | L61: =IFERROR(VLOOKUP($B61,'[1]Num 1'!$G$3:$O$88,6,FALSE),0) -> 0 | M61: =IFERROR(VLOOKUP($B61,'[1]Num 1'!$G$3:$O$88,7,FALSE),0) -> 0 | N61: =IFERROR(VLOOKUP($B61,'[1]Num 1'!$G$3:$O$88,8,FALSE),0) -> 0 | Q61: =SUM(E61:P61) -> 4 | R61: =IFERROR(VLOOKUP($B61,'[1]Den 1 2021'!$G$3:$T$104,11,FALSE),0) -> 0 | S61: =IFERROR(VLOOKUP($B61,'[1]Den 1 2021'!$G$3:$T$104,12,FALSE),0) -> 0 | T61: =IFERROR(VLOOKUP($B61,'[1]Den 1 2021'!$G$3:$T$104,13,FALSE),0) -> 0 | U61: =IFERROR(VLOOKUP($B61,'[1]Den 1'!$G$3:$O$93,2,FALSE),0) -> 1 | V61: =IFERROR(VLOOKUP($B61,'[1]Den 1'!$G$3:$O$93,3,FALSE),0) -> 0 | W61: =IFERROR(VLOOKUP($B61,'[1]Den 1'!$G$3:$O$93,4,FALSE),0) -> 0 | X61: =IFERROR(VLOOKUP($B61,'[1]Den 1'!$G$3:$O$93,5,FALSE),0) -> 0 | Y61: =IFERROR(VLOOKUP($B61,'[1]Den 1'!$G$3:$O$93,6,FALSE),0) -> 0 | Z61: =IFERROR(VLOOKUP($B61,'[1]Den 1'!$G$3:$O$93,7,FALSE),0) -> 0 | AA61: =IFERROR(VLOOKUP($B61,'[1]Den 1'!$G$3:$O$93,8,FALSE),0) -> 0 | AD61: 1
A62: 04201-ILLAPEL | B62: 105443-P.S.R. CARCAMO | E62: =IFERROR(VLOOKUP($B62,'[1]Num 1 2021'!$G$3:$T$95,11,FALSE),0) -> 0 | F62: =IFERROR(VLOOKUP($B62,'[1]Num 1 2021'!$G$3:$T$95,12,FALSE),0) -> 0 | G62: =IFERROR(VLOOKUP($B62,'[1]Num 1 2021'!$G$3:$T$95,13,FALSE),0) -> 0 | H62: =IFERROR(VLOOKUP($B62,'[1]Num 1'!$G$3:$O$88,2,FALSE),0) -> 0 | I62: =IFERROR(VLOOKUP($B62,'[1]Num 1'!$G$3:$O$88,3,FALSE),0) -> 0 | J62: =IFERROR(VLOOKUP($B62,'[1]Num 1'!$G$3:$O$88,4,FALSE),0) -> 0 | K62: =IFERROR(VLOOKUP($B62,'[1]Num 1'!$G$3:$O$88,5,FALSE),0) -> 0 | L62: =IFERROR(VLOOKUP($B62,'[1]Num 1'!$G$3:$O$88,6,FALSE),0) -> 0 | M62: =IFERROR(VLOOKUP($B62,'[1]Num 1'!$G$3:$O$88,7,FALSE),0) -> 0 | N62: =IFERROR(VLOOKUP($B62,'[1]Num 1'!$G$3:$O$88,8,FALSE),0) -> 0 | Q62: 0 | R62: =IFERROR(VLOOKUP($B62,'[1]Den 1 2021'!$G$3:$T$104,11,FALSE),0) -> 0 | S62: =IFERROR(VLOOKUP($B62,'[1]Den 1 2021'!$G$3:$T$104,12,FALSE),0) -> 0 | T62: =IFERROR(VLOOKUP($B62,'[1]Den 1 2021'!$G$3:$T$104,13,FALSE),0) -> 0 | U62: =IFERROR(VLOOKUP($B62,'[1]Den 1'!$G$3:$O$93,2,FALSE),0) -> 0 | V62: =IFERROR(VLOOKUP($B62,'[1]Den 1'!$G$3:$O$93,3,FALSE),0) -> 0 | W62: =IFERROR(VLOOKUP($B62,'[1]Den 1'!$G$3:$O$93,4,FALSE),0) -> 0 | X62: =IFERROR(VLOOKUP($B62,'[1]Den 1'!$G$3:$O$93,5,FALSE),0) -> 0 | Y62: =IFERROR(VLOOKUP($B62,'[1]Den 1'!$G$3:$O$93,6,FALSE),0) -> 0 | Z62: =IFERROR(VLOOKUP($B62,'[1]Den 1'!$G$3:$O$93,7,FALSE),0) -> 0 | AA62: =IFERROR(VLOOKUP($B62,'[1]Den 1'!$G$3:$O$93,8,FALSE),0) -> 0 | AD62: 0
A63: 04201-ILLAPEL | B63: 105444-P.S.R. HUINTIL | E63: =IFERROR(VLOOKUP($B63,'[1]Num 1 2021'!$G$3:$T$95,11,FALSE),0) -> 0 | F63: =IFERROR(VLOOKUP($B63,'[1]Num 1 2021'!$G$3:$T$95,12,FALSE),0) -> 0 | G63: =IFERROR(VLOOKUP($B63,'[1]Num 1 2021'!$G$3:$T$95,13,FALSE),0) -> 0 | H63: =IFERROR(VLOOKUP($B63,'[1]Num 1'!$G$3:$O$88,2,FALSE),0) -> 0 | I63: =IFERROR(VLOOKUP($B63,'[1]Num 1'!$G$3:$O$88,3,FALSE),0) -> 0 | J63: =IFERROR(VLOOKUP($B63,'[1]Num 1'!$G$3:$O$88,4,FALSE),0) -> 0 | K63: =IFERROR(VLOOKUP($B63,'[1]Num 1'!$G$3:$O$88,5,FALSE),0) -> 0 | L63: =IFERROR(VLOOKUP($B63,'[1]Num 1'!$G$3:$O$88,6,FALSE),0) -> 0 | M63: =IFERROR(VLOOKUP($B63,'[1]Num 1'!$G$3:$O$88,7,FALSE),0) -> 0 | N63: =IFERROR(VLOOKUP($B63,'[1]Num 1'!$G$3:$O$88,8,FALSE),0) -> 0 | Q63: 0 | R63: =IFERROR(VLOOKUP($B63,'[1]Den 1 2021'!$G$3:$T$104,11,FALSE),0) -> 0 | S63: =IFERROR(VLOOKUP($B63,'[1]Den 1 2021'!$G$3:$T$104,12,FALSE),0) -> 0 | T63: =IFERROR(VLOOKUP($B63,'[1]Den 1 2021'!$G$3:$T$104,13,FALSE),0) -> 0 | U63: =IFERROR(VLOOKUP($B63,'[1]Den 1'!$G$3:$O$93,2,FALSE),0) -> 0 | V63: =IFERROR(VLOOKUP($B63,'[1]Den 1'!$G$3:$O$93,3,FALSE),0) -> 0 | W63: =IFERROR(VLOOKUP($B63,'[1]Den 1'!$G$3:$O$93,4,FALSE),0) -> 0 | X63: =IFERROR(VLOOKUP($B63,'[1]Den 1'!$G$3:$O$93,5,FALSE),0) -> 0 | Y63: =IFERROR(VLOOKUP($B63,'[1]Den 1'!$G$3:$O$93,6,FALSE),0) -> 0 | Z63: =IFERROR(VLOOKUP($B63,'[1]Den 1'!$G$3:$O$93,7,FALSE),0) -> 0 | AA63: =IFERROR(VLOOKUP($B63,'[1]Den 1'!$G$3:$O$93,8,FALSE),0) -> 0 | AD63: 0
A64: 04201-ILLAPEL | B64: 105445-P.S.R. LIMAHUIDA | E64: =IFERROR(VLOOKUP($B64,'[1]Num 1 2021'!$G$3:$T$95,11,FALSE),0) -> 0 | F64: =IFERROR(VLOOKUP($B64,'[1]Num 1 2021'!$G$3:$T$95,12,FALSE),0) -> 0 | G64: =IFERROR(VLOOKUP($B64,'[1]Num 1 2021'!$G$3:$T$95,13,FALSE),0) -> 0 | H64: =IFERROR(VLOOKUP($B64,'[1]Num 1'!$G$3:$O$88,2,FALSE),0) -> 0 | I64: =IFERROR(VLOOKUP($B64,'[1]Num 1'!$G$3:$O$88,3,FALSE),0) -> 0 | J64: =IFERROR(VLOOKUP($B64,'[1]Num 1'!$G$3:$O$88,4,FALSE),0) -> 0 | K64: =IFERROR(VLOOKUP($B64,'[1]Num 1'!$G$3:$O$88,5,FALSE),0) -> 0 | L64: =IFERROR(VLOOKUP($B64,'[1]Num 1'!$G$3:$O$88,6,FALSE),0) -> 0 | M64: =IFERROR(VLOOKUP($B64,'[1]Num 1'!$G$3:$O$88,7,FALSE),0) -> 0 | N64: =IFERROR(VLOOKUP($B64,'[1]Num 1'!$G$3:$O$88,8,FALSE),0) -> 0 | Q64: 0 | R64: =IFERROR(VLOOKUP($B64,'[1]Den 1 2021'!$G$3:$T$104,11,FALSE),0) -> 0 | S64: =IFERROR(VLOOKUP($B64,'[1]Den 1 2021'!$G$3:$T$104,12,FALSE),0) -> 0 | T64: =IFERROR(VLOOKUP($B64,'[1]Den 1 2021'!$G$3:$T$104,13,FALSE),0) -> 0 | U64: =IFERROR(VLOOKUP($B64,'[1]Den 1'!$G$3:$O$93,2,FALSE),0) -> 0 | V64: =IFERROR(VLOOKUP($B64,'[1]Den 1'!$G$3:$O$93,3,FALSE),0) -> 0 | W64: =IFERROR(VLOOKUP($B64,'[1]Den 1'!$G$3:$O$93,4,FALSE),0) -> 0 | X64: =IFERROR(VLOOKUP($B64,'[1]Den 1'!$G$3:$O$93,5,FALSE),0) -> 0 | Y64: =IFERROR(VLOOKUP($B64,'[1]Den 1'!$G$3:$O$93,6,FALSE),0) -> 0 | Z64: =IFERROR(VLOOKUP($B64,'[1]Den 1'!$G$3:$O$93,7,FALSE),0) -> 0 | AA64: =IFERROR(VLOOKUP($B64,'[1]Den 1'!$G$3:$O$93,8,FALSE),0) -> 0 | AD64: 0
A65: 04201-ILLAPEL | B65: 105446-P.S.R. MATANCILLA | E65: =IFERROR(VLOOKUP($B65,'[1]Num 1 2021'!$G$3:$T$95,11,FALSE),0) -> 0 | F65: =IFERROR(VLOOKUP($B65,'[1]Num 1 2021'!$G$3:$T$95,12,FALSE),0) -> 0 | G65: =IFERROR(VLOOKUP($B65,'[1]Num 1 2021'!$G$3:$T$95,13,FALSE),0) -> 0 | H65: =IFERROR(VLOOKUP($B65,'[1]Num 1'!$G$3:$O$88,2,FALSE),0) -> 0 | I65: =IFERROR(VLOOKUP($B65,'[1]Num 1'!$G$3:$O$88,3,FALSE),0) -> 0 | J65: =IFERROR(VLOOKUP($B65,'[1]Num 1'!$G$3:$O$88,4,FALSE),0) -> 0 | K65: =IFERROR(VLOOKUP($B65,'[1]Num 1'!$G$3:$O$88,5,FALSE),0) -> 0 | L65: =IFERROR(VLOOKUP($B65,'[1]Num 1'!$G$3:$O$88,6,FALSE),0) -> 0 | M65: =IFERROR(VLOOKUP($B65,'[1]Num 1'!$G$3:$O$88,7,FALSE),0) -> 0 | N65: =IFERROR(VLOOKUP($B65,'[1]Num 1'!$G$3:$O$88,8,FALSE),0) -> 0 | Q65: 0 | R65: =IFERROR(VLOOKUP($B65,'[1]Den 1 2021'!$G$3:$T$104,11,FALSE),0) -> 0 | S65: =IFERROR(VLOOKUP($B65,'[1]Den 1 2021'!$G$3:$T$104,12,FALSE),0) -> 0 | T65: =IFERROR(VLOOKUP($B65,'[1]Den 1 2021'!$G$3:$T$104,13,FALSE),0) -> 0 | U65: =IFERROR(VLOOKUP($B65,'[1]Den 1'!$G$3:$O$93,2,FALSE),0) -> 0 | V65: =IFERROR(VLOOKUP($B65,'[1]Den 1'!$G$3:$O$93,3,FALSE),0) -> 0 | W65: =IFERROR(VLOOKUP($B65,'[1]Den 1'!$G$3:$O$93,4,FALSE),0) -> 0 | X65: =IFERROR(VLOOKUP($B65,'[1]Den 1'!$G$3:$O$93,5,FALSE),0) -> 0 | Y65: =IFERROR(VLOOKUP($B65,'[1]Den 1'!$G$3:$O$93,6,FALSE),0) -> 0 | Z65: =IFERROR(VLOOKUP($B65,'[1]Den 1'!$G$3:$O$93,7,FALSE),0) -> 0 | AA65: =IFERROR(VLOOKUP($B65,'[1]Den 1'!$G$3:$O$93,8,FALSE),0) -> 0 | AD65: 0
A66: 04201-ILLAPEL | B66: 105447-P.S.R. PERALILLO | E66: =IFERROR(VLOOKUP($B66,'[1]Num 1 2021'!$G$3:$T$95,11,FALSE),0) -> 0 | F66: =IFERROR(VLOOKUP($B66,'[1]Num 1 2021'!$G$3:$T$95,12,FALSE),0) -> 0 | G66: =IFERROR(VLOOKUP($B66,'[1]Num 1 2021'!$G$3:$T$95,13,FALSE),0) -> 0 | H66: =IFERROR(VLOOKUP($B66,'[1]Num 1'!$G$3:$O$88,2,FALSE),0) -> 0 | I66: =IFERROR(VLOOKUP($B66,'[1]Num 1'!$G$3:$O$88,3,FALSE),0) -> 0 | J66: =IFERROR(VLOOKUP($B66,'[1]Num 1'!$G$3:$O$88,4,FALSE),0) -> 0 | K66: =IFERROR(VLOOKUP($B66,'[1]Num 1'!$G$3:$O$88,5,FALSE),0) -> 0 | L66: =IFERROR(VLOOKUP($B66,'[1]Num 1'!$G$3:$O$88,6,FALSE),0) -> 0 | M66: =IFERROR(VLOOKUP($B66,'[1]Num 1'!$G$3:$O$88,7,FALSE),0) -> 0 | N66: =IFERROR(VLOOKUP($B66,'[1]Num 1'!$G$3:$O$88,8,FALSE),0) -> 0 | Q66: 0 | R66: =IFERROR(VLOOKUP($B66,'[1]Den 1 2021'!$G$3:$T$104,11,FALSE),0) -> 0 | S66: =IFERROR(VLOOKUP($B66,'[1]Den 1 2021'!$G$3:$T$104,12,FALSE),0) -> 0 | T66: =IFERROR(VLOOKUP($B66,'[1]Den 1 2021'!$G$3:$T$104,13,FALSE),0) -> 0 | U66: =IFERROR(VLOOKUP($B66,'[1]Den 1'!$G$3:$O$93,2,FALSE),0) -> 0 | V66: =IFERROR(VLOOKUP($B66,'[1]Den 1'!$G$3:$O$93,3,FALSE),0) -> 0 | W66: =IFERROR(VLOOKUP($B66,'[1]Den 1'!$G$3:$O$93,4,FALSE),0) -> 0 | X66: =IFERROR(VLOOKUP($B66,'[1]Den 1'!$G$3:$O$93,5,FALSE),0) -> 0 | Y66: =IFERROR(VLOOKUP($B66,'[1]Den 1'!$G$3:$O$93,6,FALSE),0) -> 0 | Z66: =IFERROR(VLOOKUP($B66,'[1]Den 1'!$G$3:$O$93,7,FALSE),0) -> 0 | AA66: =IFERROR(VLOOKUP($B66,'[1]Den 1'!$G$3:$O$93,8,FALSE),0) -> 0 | AD66: 0
A67: 04201-ILLAPEL | B67: 105448-P.S.R. SANTA VIRGINIA | E67: =IFERROR(VLOOKUP($B67,'[1]Num 1 2021'!$G$3:$T$95,11,FALSE),0) -> 0 | F67: =IFERROR(VLOOKUP($B67,'[1]Num 1 2021'!$G$3:$T$95,12,FALSE),0) -> 0 | G67: =IFERROR(VLOOKUP($B67,'[1]Num 1 2021'!$G$3:$T$95,13,FALSE),0) -> 0 | H67: =IFERROR(VLOOKUP($B67,'[1]Num 1'!$G$3:$O$88,2,FALSE),0) -> 0 | I67: =IFERROR(VLOOKUP($B67,'[1]Num 1'!$G$3:$O$88,3,FALSE),0) -> 0 | J67: =IFERROR(VLOOKUP($B67,'[1]Num 1'!$G$3:$O$88,4,FALSE),0) -> 0 | K67: =IFERROR(VLOOKUP($B67,'[1]Num 1'!$G$3:$O$88,5,FALSE),0) -> 0 | L67: =IFERROR(VLOOKUP($B67,'[1]Num 1'!$G$3:$O$88,6,FALSE),0) -> 0 | M67: =IFERROR(VLOOKUP($B67,'[1]Num 1'!$G$3:$O$88,7,FALSE),0) -> 0 | N67: =IFERROR(VLOOKUP($B67,'[1]Num 1'!$G$3:$O$88,8,FALSE),0) -> 0 | Q67: 0 | R67: =IFERROR(VLOOKUP($B67,'[1]Den 1 2021'!$G$3:$T$104,11,FALSE),0) -> 0 | S67: =IFERROR(VLOOKUP($B67,'[1]Den 1 2021'!$G$3:$T$104,12,FALSE),0) -> 0 | T67: =IFERROR(VLOOKUP($B67,'[1]Den 1 2021'!$G$3:$T$104,13,FALSE),0) -> 0 | U67: =IFERROR(VLOOKUP($B67,'[1]Den 1'!$G$3:$O$93,2,FALSE),0) -> 0 | V67: =IFERROR(VLOOKUP($B67,'[1]Den 1'!$G$3:$O$93,3,FALSE),0) -> 0 | W67: =IFERROR(VLOOKUP($B67,'[1]Den 1'!$G$3:$O$93,4,FALSE),0) -> 0 | X67: =IFERROR(VLOOKUP($B67,'[1]Den 1'!$G$3:$O$93,5,FALSE),0) -> 0 | Y67: =IFERROR(VLOOKUP($B67,'[1]Den 1'!$G$3:$O$93,6,FALSE),0) -> 0 | Z67: =IFERROR(VLOOKUP($B67,'[1]Den 1'!$G$3:$O$93,7,FALSE),0) -> 0 | AA67: =IFERROR(VLOOKUP($B67,'[1]Den 1'!$G$3:$O$93,8,FALSE),0) -> 0 | AD67: 0
A68: 04201-ILLAPEL | B68: 105449-P.S.R. TUNGA NORTE | E68: =IFERROR(VLOOKUP($B68,'[1]Num 1 2021'!$G$3:$T$95,11,FALSE),0) -> 0 | F68: =IFERROR(VLOOKUP($B68,'[1]Num 1 2021'!$G$3:$T$95,12,FALSE),0) -> 0 | G68: =IFERROR(VLOOKUP($B68,'[1]Num 1 2021'!$G$3:$T$95,13,FALSE),0) -> 0 | H68: =IFERROR(VLOOKUP($B68,'[1]Num 1'!$G$3:$O$88,2,FALSE),0) -> 0 | I68: =IFERROR(VLOOKUP($B68,'[1]Num 1'!$G$3:$O$88,3,FALSE),0) -> 0 | J68: =IFERROR(VLOOKUP($B68,'[1]Num 1'!$G$3:$O$88,4,FALSE),0) -> 0 | K68: =IFERROR(VLOOKUP($B68,'[1]Num 1'!$G$3:$O$88,5,FALSE),0) -> 0 | L68: =IFERROR(VLOOKUP($B68,'[1]Num 1'!$G$3:$O$88,6,FALSE),0) -> 0 | M68: =IFERROR(VLOOKUP($B68,'[1]Num 1'!$G$3:$O$88,7,FALSE),0) -> 0 | N68: =IFERROR(VLOOKUP($B68,'[1]Num 1'!$G$3:$O$88,8,FALSE),0) -> 0 | Q68: 0 | R68: =IFERROR(VLOOKUP($B68,'[1]Den 1 2021'!$G$3:$T$104,11,FALSE),0) -> 0 | S68: =IFERROR(VLOOKUP($B68,'[1]Den 1 2021'!$G$3:$T$104,12,FALSE),0) -> 0 | T68: =IFERROR(VLOOKUP($B68,'[1]Den 1 2021'!$G$3:$T$104,13,FALSE),0) -> 0 | U68: =IFERROR(VLOOKUP($B68,'[1]Den 1'!$G$3:$O$93,2,FALSE),0) -> 0 | V68: =IFERROR(VLOOKUP($B68,'[1]Den 1'!$G$3:$O$93,3,FALSE),0) -> 0 | W68: =IFERROR(VLOOKUP($B68,'[1]Den 1'!$G$3:$O$93,4,FALSE),0) -> 0 | X68: =IFERROR(VLOOKUP($B68,'[1]Den 1'!$G$3:$O$93,5,FALSE),0) -> 0 | Y68: =IFERROR(VLOOKUP($B68,'[1]Den 1'!$G$3:$O$93,6,FALSE),0) -> 0 | Z68: =IFERROR(VLOOKUP($B68,'[1]Den 1'!$G$3:$O$93,7,FALSE),0) -> 0 | AA68: =IFERROR(VLOOKUP($B68,'[1]Den 1'!$G$3:$O$93,8,FALSE),0) -> 0 | AD68: 0
A69: 04201-ILLAPEL | B69: 105485-P.S.R. PLAN DE HORNOS | E69: =IFERROR(VLOOKUP($B69,'[1]Num 1 2021'!$G$3:$T$95,11,FALSE),0) -> 0 | F69: =IFERROR(VLOOKUP($B69,'[1]Num 1 2021'!$G$3:$T$95,12,FALSE),0) -> 0 | G69: =IFERROR(VLOOKUP($B69,'[1]Num 1 2021'!$G$3:$T$95,13,FALSE),0) -> 0 | H69: =IFERROR(VLOOKUP($B69,'[1]Num 1'!$G$3:$O$88,2,FALSE),0) -> 0 | I69: =IFERROR(VLOOKUP($B69,'[1]Num 1'!$G$3:$O$88,3,FALSE),0) -> 0 | J69: =IFERROR(VLOOKUP($B69,'[1]Num 1'!$G$3:$O$88,4,FALSE),0) -> 0 | K69: =IFERROR(VLOOKUP($B69,'[1]Num 1'!$G$3:$O$88,5,FALSE),0) -> 0 | L69: =IFERROR(VLOOKUP($B69,'[1]Num 1'!$G$3:$O$88,6,FALSE),0) -> 0 | M69: =IFERROR(VLOOKUP($B69,'[1]Num 1'!$G$3:$O$88,7,FALSE),0) -> 0 | N69: =IFERROR(VLOOKUP($B69,'[1]Num 1'!$G$3:$O$88,8,FALSE),0) -> 0 | Q69: 0 | R69: =IFERROR(VLOOKUP($B69,'[1]Den 1 2021'!$G$3:$T$104,11,FALSE),0) -> 0 | S69: =IFERROR(VLOOKUP($B69,'[1]Den 1 2021'!$G$3:$T$104,12,FALSE),0) -> 0 | T69: =IFERROR(VLOOKUP($B69,'[1]Den 1 2021'!$G$3:$T$104,13,FALSE),0) -> 0 | U69: =IFERROR(VLOOKUP($B69,'[1]Den 1'!$G$3:$O$93,2,FALSE),0) -> 0 | V69: =IFERROR(VLOOKUP($B69,'[1]Den 1'!$G$3:$O$93,3,FALSE),0) -> 0 | W69: =IFERROR(VLOOKUP($B69,'[1]Den 1'!$G$3:$O$93,4,FALSE),0) -> 0 | X69: =IFERROR(VLOOKUP($B69,'[1]Den 1'!$G$3:$O$93,5,FALSE),0) -> 0 | Y69: =IFERROR(VLOOKUP($B69,'[1]Den 1'!$G$3:$O$93,6,FALSE),0) -> 0 | Z69: =IFERROR(VLOOKUP($B69,'[1]Den 1'!$G$3:$O$93,7,FALSE),0) -> 0 | AA69: =IFERROR(VLOOKUP($B69,'[1]Den 1'!$G$3:$O$93,8,FALSE),0) -> 0 | AD69: 0
A70: 04201-ILLAPEL | B70: 105486-P.S.R. TUNGA SUR | E70: =IFERROR(VLOOKUP($B70,'[1]Num 1 2021'!$G$3:$T$95,11,FALSE),0) -> 0 | F70: =IFERROR(VLOOKUP($B70,'[1]Num 1 2021'!$G$3:$T$95,12,FALSE),0) -> 0 | G70: =IFERROR(VLOOKUP($B70,'[1]Num 1 2021'!$G$3:$T$95,13,FALSE),0) -> 0 | H70: =IFERROR(VLOOKUP($B70,'[1]Num 1'!$G$3:$O$88,2,FALSE),0) -> 0 | I70: =IFERROR(VLOOKUP($B70,'[1]Num 1'!$G$3:$O$88,3,FALSE),0) -> 0 | J70: =IFERROR(VLOOKUP($B70,'[1]Num 1'!$G$3:$O$88,4,FALSE),0) -> 0 | K70: =IFERROR(VLOOKUP($B70,'[1]Num 1'!$G$3:$O$88,5,FALSE),0) -> 0 | L70: =IFERROR(VLOOKUP($B70,'[1]Num 1'!$G$3:$O$88,6,FALSE),0) -> 0 | M70: =IFERROR(VLOOKUP($B70,'[1]Num 1'!$G$3:$O$88,7,FALSE),0) -> 0 | N70: =IFERROR(VLOOKUP($B70,'[1]Num 1'!$G$3:$O$88,8,FALSE),0) -> 0 | Q70: 0 | R70: =IFERROR(VLOOKUP($B70,'[1]Den 1 2021'!$G$3:$T$104,11,FALSE),0) -> 0 | S70: =IFERROR(VLOOKUP($B70,'[1]Den 1 2021'!$G$3:$T$104,12,FALSE),0) -> 0 | T70: =IFERROR(VLOOKUP($B70,'[1]Den 1 2021'!$G$3:$T$104,13,FALSE),0) -> 0 | U70: =IFERROR(VLOOKUP($B70,'[1]Den 1'!$G$3:$O$93,2,FALSE),0) -> 0 | V70: =IFERROR(VLOOKUP($B70,'[1]Den 1'!$G$3:$O$93,3,FALSE),0) -> 0 | W70: =IFERROR(VLOOKUP($B70,'[1]Den 1'!$G$3:$O$93,4,FALSE),0) -> 0 | X70: =IFERROR(VLOOKUP($B70,'[1]Den 1'!$G$3:$O$93,5,FALSE),0) -> 0 | Y70: =IFERROR(VLOOKUP($B70,'[1]Den 1'!$G$3:$O$93,6,FALSE),0) -> 0 | Z70: =IFERROR(VLOOKUP($B70,'[1]Den 1'!$G$3:$O$93,7,FALSE),0) -> 0 | AA70: =IFERROR(VLOOKUP($B70,'[1]Den 1'!$G$3:$O$93,8,FALSE),0) -> 0 | AD70: 0
A71: 04201-ILLAPEL | B71: 105487-P.S.R. CAÑAS UNO | E71: =IFERROR(VLOOKUP($B71,'[1]Num 1 2021'!$G$3:$T$95,11,FALSE),0) -> 0 | F71: =IFERROR(VLOOKUP($B71,'[1]Num 1 2021'!$G$3:$T$95,12,FALSE),0) -> 0 | G71: =IFERROR(VLOOKUP($B71,'[1]Num 1 2021'!$G$3:$T$95,13,FALSE),0) -> 0 | H71: =IFERROR(VLOOKUP($B71,'[1]Num 1'!$G$3:$O$88,2,FALSE),0) -> 0 | I71: =IFERROR(VLOOKUP($B71,'[1]Num 1'!$G$3:$O$88,3,FALSE),0) -> 0 | J71: =IFERROR(VLOOKUP($B71,'[1]Num 1'!$G$3:$O$88,4,FALSE),0) -> 0 | K71: =IFERROR(VLOOKUP($B71,'[1]Num 1'!$G$3:$O$88,5,FALSE),0) -> 1 | L71: =IFERROR(VLOOKUP($B71,'[1]Num 1'!$G$3:$O$88,6,FALSE),0) -> 0 | M71: =IFERROR(VLOOKUP($B71,'[1]Num 1'!$G$3:$O$88,7,FALSE),0) -> 0 | N71: =IFERROR(VLOOKUP($B71,'[1]Num 1'!$G$3:$O$88,8,FALSE),0) -> 0 | Q71: =SUM(E71:P71) -> 1 | R71: =IFERROR(VLOOKUP($B71,'[1]Den 1 2021'!$G$3:$T$104,11,FALSE),0) -> 0 | S71: =IFERROR(VLOOKUP($B71,'[1]Den 1 2021'!$G$3:$T$104,12,FALSE),0) -> 0 | T71: =IFERROR(VLOOKUP($B71,'[1]Den 1 2021'!$G$3:$T$104,13,FALSE),0) -> 0 | U71: =IFERROR(VLOOKUP($B71,'[1]Den 1'!$G$3:$O$93,2,FALSE),0) -> 0 | V71: =IFERROR(VLOOKUP($B71,'[1]Den 1'!$G$3:$O$93,3,FALSE),0) -> 1 | W71: =IFERROR(VLOOKUP($B71,'[1]Den 1'!$G$3:$O$93,4,FALSE),0) -> 0 | X71: =IFERROR(VLOOKUP($B71,'[1]Den 1'!$G$3:$O$93,5,FALSE),0) -> 0 | Y71: =IFERROR(VLOOKUP($B71,'[1]Den 1'!$G$3:$O$93,6,FALSE),0) -> 0 | Z71: =IFERROR(VLOOKUP($B71,'[1]Den 1'!$G$3:$O$93,7,FALSE),0) -> 0 | AA71: =IFERROR(VLOOKUP($B71,'[1]Den 1'!$G$3:$O$93,8,FALSE),0) -> 0 | AD71: 1
A72: 04201-ILLAPEL | B72: 105496-P.S.R. PINTACURA SUR | E72: =IFERROR(VLOOKUP($B72,'[1]Num 1 2021'!$G$3:$T$95,11,FALSE),0) -> 0 | F72: =IFERROR(VLOOKUP($B72,'[1]Num 1 2021'!$G$3:$T$95,12,FALSE),0) -> 0 | G72: =IFERROR(VLOOKUP($B72,'[1]Num 1 2021'!$G$3:$T$95,13,FALSE),0) -> 0 | H72: =IFERROR(VLOOKUP($B72,'[1]Num 1'!$G$3:$O$88,2,FALSE),0) -> 0 | I72: =IFERROR(VLOOKUP($B72,'[1]Num 1'!$G$3:$O$88,3,FALSE),0) -> 0 | J72: =IFERROR(VLOOKUP($B72,'[1]Num 1'!$G$3:$O$88,4,FALSE),0) -> 0 | K72: =IFERROR(VLOOKUP($B72,'[1]Num 1'!$G$3:$O$88,5,FALSE),0) -> 0 | L72: =IFERROR(VLOOKUP($B72,'[1]Num 1'!$G$3:$O$88,6,FALSE),0) -> 0 | M72: =IFERROR(VLOOKUP($B72,'[1]Num 1'!$G$3:$O$88,7,FALSE),0) -> 0 | N72: =IFERROR(VLOOKUP($B72,'[1]Num 1'!$G$3:$O$88,8,FALSE),0) -> 0 | Q72: =SUM(E72:P72) -> 0 | R72: =IFERROR(VLOOKUP($B72,'[1]Den 1 2021'!$G$3:$T$104,11,FALSE),0) -> 0 | S72: =IFERROR(VLOOKUP($B72,'[1]Den 1 2021'!$G$3:$T$104,12,FALSE),0) -> 0 | T72: =IFERROR(VLOOKUP($B72,'[1]Den 1 2021'!$G$3:$T$104,13,FALSE),0) -> 0 | U72: =IFERROR(VLOOKUP($B72,'[1]Den 1'!$G$3:$O$93,2,FALSE),0) -> 0 | V72: =IFERROR(VLOOKUP($B72,'[1]Den 1'!$G$3:$O$93,3,FALSE),0) -> 0 | W72: =IFERROR(VLOOKUP($B72,'[1]Den 1'!$G$3:$O$93,4,FALSE),0) -> 0 | X72: =IFERROR(VLOOKUP($B72,'[1]Den 1'!$G$3:$O$93,5,FALSE),0) -> 0 | Y72: =IFERROR(VLOOKUP($B72,'[1]Den 1'!$G$3:$O$93,6,FALSE),0) -> 0 | Z72: =IFERROR(VLOOKUP($B72,'[1]Den 1'!$G$3:$O$93,7,FALSE),0) -> 0 | AA72: =IFERROR(VLOOKUP($B72,'[1]Den 1'!$G$3:$O$93,8,FALSE),0) -> 0 | AD72: 0
A73: 04201-ILLAPEL | B73: 105504-P.S.R. SOCAVON | E73: =IFERROR(VLOOKUP($B73,'[1]Num 1 2021'!$G$3:$T$95,11,FALSE),0) -> 0 | F73: =IFERROR(VLOOKUP($B73,'[1]Num 1 2021'!$G$3:$T$95,12,FALSE),0) -> 0 | G73: =IFERROR(VLOOKUP($B73,'[1]Num 1 2021'!$G$3:$T$95,13,FALSE),0) -> 0 | H73: =IFERROR(VLOOKUP($B73,'[1]Num 1'!$G$3:$O$88,2,FALSE),0) -> 0 | I73: =IFERROR(VLOOKUP($B73,'[1]Num 1'!$G$3:$O$88,3,FALSE),0) -> 0 | J73: =IFERROR(VLOOKUP($B73,'[1]Num 1'!$G$3:$O$88,4,FALSE),0) -> 0 | K73: =IFERROR(VLOOKUP($B73,'[1]Num 1'!$G$3:$O$88,5,FALSE),0) -> 0 | L73: =IFERROR(VLOOKUP($B73,'[1]Num 1'!$G$3:$O$88,6,FALSE),0) -> 0 | M73: =IFERROR(VLOOKUP($B73,'[1]Num 1'!$G$3:$O$88,7,FALSE),0) -> 0 | N73: =IFERROR(VLOOKUP($B73,'[1]Num 1'!$G$3:$O$88,8,FALSE),0) -> 0 | Q73: 0 | R73: =IFERROR(VLOOKUP($B73,'[1]Den 1 2021'!$G$3:$T$104,11,FALSE),0) -> 0 | S73: =IFERROR(VLOOKUP($B73,'[1]Den 1 2021'!$G$3:$T$104,12,FALSE),0) -> 0 | T73: =IFERROR(VLOOKUP($B73,'[1]Den 1 2021'!$G$3:$T$104,13,FALSE),0) -> 0 | U73: =IFERROR(VLOOKUP($B73,'[1]Den 1'!$G$3:$O$93,2,FALSE),0) -> 0 | V73: =IFERROR(VLOOKUP($B73,'[1]Den 1'!$G$3:$O$93,3,FALSE),0) -> 0 | W73: =IFERROR(VLOOKUP($B73,'[1]Den 1'!$G$3:$O$93,4,FALSE),0) -> 0 | X73: =IFERROR(VLOOKUP($B73,'[1]Den 1'!$G$3:$O$93,5,FALSE),0) -> 0 | Y73: =IFERROR(VLOOKUP($B73,'[1]Den 1'!$G$3:$O$93,6,FALSE),0) -> 0 | Z73: =IFERROR(VLOOKUP($B73,'[1]Den 1'!$G$3:$O$93,7,FALSE),0) -> 0 | AA73: =IFERROR(VLOOKUP($B73,'[1]Den 1'!$G$3:$O$93,8,FALSE),0) -> 0 | AD73: 0
A74: 04201-ILLAPEL | B74: 200366-CESFAM URBANO II | E74: =IFERROR(VLOOKUP($B74,'[1]Num 1 2021'!$G$3:$T$95,11,FALSE),0) -> 2 | F74: =IFERROR(VLOOKUP($B74,'[1]Num 1 2021'!$G$3:$T$95,12,FALSE),0) -> 0 | G74: =IFERROR(VLOOKUP($B74,'[1]Num 1 2021'!$G$3:$T$95,13,FALSE),0) -> 2 | H74: =IFERROR(VLOOKUP($B74,'[1]Num 1'!$G$3:$O$88,2,FALSE),0) -> 0 | I74: =IFERROR(VLOOKUP($B74,'[1]Num 1'!$G$3:$O$88,3,FALSE),0) -> 0 | J74: =IFERROR(VLOOKUP($B74,'[1]Num 1'!$G$3:$O$88,4,FALSE),0) -> 0 | K74: =IFERROR(VLOOKUP($B74,'[1]Num 1'!$G$3:$O$88,5,FALSE),0) -> 1 | L74: =IFERROR(VLOOKUP($B74,'[1]Num 1'!$G$3:$O$88,6,FALSE),0) -> 0 | M74: =IFERROR(VLOOKUP($B74,'[1]Num 1'!$G$3:$O$88,7,FALSE),0) -> 8 | N74: =IFERROR(VLOOKUP($B74,'[1]Num 1'!$G$3:$O$88,8,FALSE),0) -> 0 | Q74: 13 | R74: =IFERROR(VLOOKUP($B74,'[1]Den 1 2021'!$G$3:$T$104,11,FALSE),0) -> 0 | S74: =IFERROR(VLOOKUP($B74,'[1]Den 1 2021'!$G$3:$T$104,12,FALSE),0) -> 0 | T74: =IFERROR(VLOOKUP($B74,'[1]Den 1 2021'!$G$3:$T$104,13,FALSE),0) -> 0 | U74: =IFERROR(VLOOKUP($B74,'[1]Den 1'!$G$3:$O$93,2,FALSE),0) -> 2 | V74: =IFERROR(VLOOKUP($B74,'[1]Den 1'!$G$3:$O$93,3,FALSE),0) -> 2 | W74: =IFERROR(VLOOKUP($B74,'[1]Den 1'!$G$3:$O$93,4,FALSE),0) -> 4 | X74: =IFERROR(VLOOKUP($B74,'[1]Den 1'!$G$3:$O$93,5,FALSE),0) -> 0 | Y74: =IFERROR(VLOOKUP($B74,'[1]Den 1'!$G$3:$O$93,6,FALSE),0) -> 0 | Z74: =IFERROR(VLOOKUP($B74,'[1]Den 1'!$G$3:$O$93,7,FALSE),0) -> 0 | AA74: =IFERROR(VLOOKUP($B74,'[1]Den 1'!$G$3:$O$93,8,FALSE),0) -> 1 | AD74: 9
A75: TOTAL ILLAPEL | C75: =D75/Metas!G10 -> 181.82% | D75: =Q75/AD75 -> 163.64% | E75: =SUM(E61:E74) -> 3 | F75: =SUM(F61:F74) -> 2 | G75: 2 | H75: 0 | I75: 0 | J75: 0 | K75: 3 | L75: 0 | M75: 8 | N75: 0 | O75: 0 | P75: 0 | Q75: =SUM(Q61:Q74) -> 18 | R75: =SUM(R61:R74) -> 0 | S75: =SUM(S61:S74) -> 0 | T75: 0 | U75: 3 | V75: 3 | W75: 4 | X75: 0 | Y75: 0 | Z75: 0 | AA75: 1 | AB75: 0 | AC75: 0 | AD75: 11
A76: 04202-CANELA | B76: 105309-CES. RURAL CANELA | E76: =IFERROR(VLOOKUP($B76,'[1]Num 1 2021'!$G$3:$T$95,11,FALSE),0) -> 0 | F76: =IFERROR(VLOOKUP($B76,'[1]Num 1 2021'!$G$3:$T$95,12,FALSE),0) -> 0 | G76: =IFERROR(VLOOKUP($B76,'[1]Num 1 2021'!$G$3:$T$95,13,FALSE),0) -> 3 | H76: =IFERROR(VLOOKUP($B76,'[1]Num 1'!$G$3:$O$88,2,FALSE),0) -> 1 | I76: =IFERROR(VLOOKUP($B76,'[1]Num 1'!$G$3:$O$88,3,FALSE),0) -> 0 | J76: =IFERROR(VLOOKUP($B76,'[1]Num 1'!$G$3:$O$88,4,FALSE),0) -> 0 | K76: =IFERROR(VLOOKUP($B76,'[1]Num 1'!$G$3:$O$88,5,FALSE),0) -> 1 | L76: =IFERROR(VLOOKUP($B76,'[1]Num 1'!$G$3:$O$88,6,FALSE),0) -> 1 | M76: =IFERROR(VLOOKUP($B76,'[1]Num 1'!$G$3:$O$88,7,FALSE),0) -> 3 | N76: =IFERROR(VLOOKUP($B76,'[1]Num 1'!$G$3:$O$88,8,FALSE),0) -> 0 | Q76: =SUM(E76:P76) -> 9 | R76: =IFERROR(VLOOKUP($B76,'[1]Den 1 2021'!$G$3:$T$104,11,FALSE),0) -> 2 | S76: =IFERROR(VLOOKUP($B76,'[1]Den 1 2021'!$G$3:$T$104,12,FALSE),0) -> 1 | T76: =IFERROR(VLOOKUP($B76,'[1]Den 1 2021'!$G$3:$T$104,13,FALSE),0) -> 2 | U76: =IFERROR(VLOOKUP($B76,'[1]Den 1'!$G$3:$O$93,2,FALSE),0) -> 0 | V76: =IFERROR(VLOOKUP($B76,'[1]Den 1'!$G$3:$O$93,3,FALSE),0) -> 1 | W76: =IFERROR(VLOOKUP($B76,'[1]Den 1'!$G$3:$O$93,4,FALSE),0) -> 2 | X76: =IFERROR(VLOOKUP($B76,'[1]Den 1'!$G$3:$O$93,5,FALSE),0) -> 2 | Y76: =IFERROR(VLOOKUP($B76,'[1]Den 1'!$G$3:$O$93,6,FALSE),0) -> 2 | Z76: =IFERROR(VLOOKUP($B76,'[1]Den 1'!$G$3:$O$93,7,FALSE),0) -> 2 | AA76: =IFERROR(VLOOKUP($B76,'[1]Den 1'!$G$3:$O$93,8,FALSE),0) -> 1 | AD76: 15
A77: 04202-CANELA | B77: 105450-P.S.R. MINCHA NORTE | E77: =IFERROR(VLOOKUP($B77,'[1]Num 1 2021'!$G$3:$T$95,11,FALSE),0) -> 0 | F77: =IFERROR(VLOOKUP($B77,'[1]Num 1 2021'!$G$3:$T$95,12,FALSE),0) -> 0 | G77: =IFERROR(VLOOKUP($B77,'[1]Num 1 2021'!$G$3:$T$95,13,FALSE),0) -> 0 | H77: =IFERROR(VLOOKUP($B77,'[1]Num 1'!$G$3:$O$88,2,FALSE),0) -> 0 | I77: =IFERROR(VLOOKUP($B77,'[1]Num 1'!$G$3:$O$88,3,FALSE),0) -> 0 | J77: =IFERROR(VLOOKUP($B77,'[1]Num 1'!$G$3:$O$88,4,FALSE),0) -> 0 | K77: =IFERROR(VLOOKUP($B77,'[1]Num 1'!$G$3:$O$88,5,FALSE),0) -> 0 | L77: =IFERROR(VLOOKUP($B77,'[1]Num 1'!$G$3:$O$88,6,FALSE),0) -> 0 | M77: =IFERROR(VLOOKUP($B77,'[1]Num 1'!$G$3:$O$88,7,FALSE),0) -> 0 | N77: =IFERROR(VLOOKUP($B77,'[1]Num 1'!$G$3:$O$88,8,FALSE),0) -> 0 | Q77: 0 | R77: =IFERROR(VLOOKUP($B77,'[1]Den 1 2021'!$G$3:$T$104,11,FALSE),0) -> 0 | S77: =IFERROR(VLOOKUP($B77,'[1]Den 1 2021'!$G$3:$T$104,12,FALSE),0) -> 0 | T77: =IFERROR(VLOOKUP($B77,'[1]Den 1 2021'!$G$3:$T$104,13,FALSE),0) -> 1 | U77: =IFERROR(VLOOKUP($B77,'[1]Den 1'!$G$3:$O$93,2,FALSE),0) -> 0 | V77: =IFERROR(VLOOKUP($B77,'[1]Den 1'!$G$3:$O$93,3,FALSE),0) -> 0 | W77: =IFERROR(VLOOKUP($B77,'[1]Den 1'!$G$3:$O$93,4,FALSE),0) -> 0 | X77: =IFERROR(VLOOKUP($B77,'[1]Den 1'!$G$3:$O$93,5,FALSE),0) -> 0 | Y77: =IFERROR(VLOOKUP($B77,'[1]Den 1'!$G$3:$O$93,6,FALSE),0) -> 0 | Z77: =IFERROR(VLOOKUP($B77,'[1]Den 1'!$G$3:$O$93,7,FALSE),0) -> 0 | AA77: =IFERROR(VLOOKUP($B77,'[1]Den 1'!$G$3:$O$93,8,FALSE),0) -> 0 | AD77: 1
A78: 04202-CANELA | B78: 105451-P.S.R. AGUA FRIA | E78: =IFERROR(VLOOKUP($B78,'[1]Num 1 2021'!$G$3:$T$95,11,FALSE),0) -> 0 | F78: =IFERROR(VLOOKUP($B78,'[1]Num 1 2021'!$G$3:$T$95,12,FALSE),0) -> 0 | G78: =IFERROR(VLOOKUP($B78,'[1]Num 1 2021'!$G$3:$T$95,13,FALSE),0) -> 0 | H78: =IFERROR(VLOOKUP($B78,'[1]Num 1'!$G$3:$O$88,2,FALSE),0) -> 0 | I78: =IFERROR(VLOOKUP($B78,'[1]Num 1'!$G$3:$O$88,3,FALSE),0) -> 0 | J78: =IFERROR(VLOOKUP($B78,'[1]Num 1'!$G$3:$O$88,4,FALSE),0) -> 0 | K78: =IFERROR(VLOOKUP($B78,'[1]Num 1'!$G$3:$O$88,5,FALSE),0) -> 0 | L78: =IFERROR(VLOOKUP($B78,'[1]Num 1'!$G$3:$O$88,6,FALSE),0) -> 0 | M78: =IFERROR(VLOOKUP($B78,'[1]Num 1'!$G$3:$O$88,7,FALSE),0) -> 0 | N78: =IFERROR(VLOOKUP($B78,'[1]Num 1'!$G$3:$O$88,8,FALSE),0) -> 0 | Q78: 0 | R78: =IFERROR(VLOOKUP($B78,'[1]Den 1 2021'!$G$3:$T$104,11,FALSE),0) -> 0 | S78: =IFERROR(VLOOKUP($B78,'[1]Den 1 2021'!$G$3:$T$104,12,FALSE),0) -> 0 | T78: =IFERROR(VLOOKUP($B78,'[1]Den 1 2021'!$G$3:$T$104,13,FALSE),0) -> 0 | U78: =IFERROR(VLOOKUP($B78,'[1]Den 1'!$G$3:$O$93,2,FALSE),0) -> 0 | V78: =IFERROR(VLOOKUP($B78,'[1]Den 1'!$G$3:$O$93,3,FALSE),0) -> 0 | W78: =IFERROR(VLOOKUP($B78,'[1]Den 1'!$G$3:$O$93,4,FALSE),0) -> 0 | X78: =IFERROR(VLOOKUP($B78,'[1]Den 1'!$G$3:$O$93,5,FALSE),0) -> 0 | Y78: =IFERROR(VLOOKUP($B78,'[1]Den 1'!$G$3:$O$93,6,FALSE),0) -> 0 | Z78: =IFERROR(VLOOKUP($B78,'[1]Den 1'!$G$3:$O$93,7,FALSE),0) -> 0 | AA78: =IFERROR(VLOOKUP($B78,'[1]Den 1'!$G$3:$O$93,8,FALSE),0) -> 0 | AD78: 0
A79: 04202-CANELA | B79: 105482-P.S.R. CANELA ALTA | E79: =IFERROR(VLOOKUP($B79,'[1]Num 1 2021'!$G$3:$T$95,11,FALSE),0) -> 0 | F79: =IFERROR(VLOOKUP($B79,'[1]Num 1 2021'!$G$3:$T$95,12,FALSE),0) -> 0 | G79: =IFERROR(VLOOKUP($B79,'[1]Num 1 2021'!$G$3:$T$95,13,FALSE),0) -> 0 | H79: =IFERROR(VLOOKUP($B79,'[1]Num 1'!$G$3:$O$88,2,FALSE),0) -> 0 | I79: =IFERROR(VLOOKUP($B79,'[1]Num 1'!$G$3:$O$88,3,FALSE),0) -> 0 | J79: =IFERROR(VLOOKUP($B79,'[1]Num 1'!$G$3:$O$88,4,FALSE),0) -> 0 | K79: =IFERROR(VLOOKUP($B79,'[1]Num 1'!$G$3:$O$88,5,FALSE),0) -> 0 | L79: =IFERROR(VLOOKUP($B79,'[1]Num 1'!$G$3:$O$88,6,FALSE),0) -> 0 | M79: =IFERROR(VLOOKUP($B79,'[1]Num 1'!$G$3:$O$88,7,FALSE),0) -> 0 | N79: =IFERROR(VLOOKUP($B79,'[1]Num 1'!$G$3:$O$88,8,FALSE),0) -> 0 | Q79: 0 | R79: =IFERROR(VLOOKUP($B79,'[1]Den 1 2021'!$G$3:$T$104,11,FALSE),0) -> 0 | S79: =IFERROR(VLOOKUP($B79,'[1]Den 1 2021'!$G$3:$T$104,12,FALSE),0) -> 0 | T79: =IFERROR(VLOOKUP($B79,'[1]Den 1 2021'!$G$3:$T$104,13,FALSE),0) -> 0 | U79: =IFERROR(VLOOKUP($B79,'[1]Den 1'!$G$3:$O$93,2,FALSE),0) -> 0 | V79: =IFERROR(VLOOKUP($B79,'[1]Den 1'!$G$3:$O$93,3,FALSE),0) -> 0 | W79: =IFERROR(VLOOKUP($B79,'[1]Den 1'!$G$3:$O$93,4,FALSE),0) -> 0 | X79: =IFERROR(VLOOKUP($B79,'[1]Den 1'!$G$3:$O$93,5,FALSE),0) -> 0 | Y79: =IFERROR(VLOOKUP($B79,'[1]Den 1'!$G$3:$O$93,6,FALSE),0) -> 0 | Z79: =IFERROR(VLOOKUP($B79,'[1]Den 1'!$G$3:$O$93,7,FALSE),0) -> 0 | AA79: =IFERROR(VLOOKUP($B79,'[1]Den 1'!$G$3:$O$93,8,FALSE),0) -> 0 | AD79: 0
A80: 04202-CANELA | B80: 105483-P.S.R. LOS RULOS | E80: =IFERROR(VLOOKUP($B80,'[1]Num 1 2021'!$G$3:$T$95,11,FALSE),0) -> 0 | F80: =IFERROR(VLOOKUP($B80,'[1]Num 1 2021'!$G$3:$T$95,12,FALSE),0) -> 0 | G80: =IFERROR(VLOOKUP($B80,'[1]Num 1 2021'!$G$3:$T$95,13,FALSE),0) -> 0 | H80: =IFERROR(VLOOKUP($B80,'[1]Num 1'!$G$3:$O$88,2,FALSE),0) -> 0 | I80: =IFERROR(VLOOKUP($B80,'[1]Num 1'!$G$3:$O$88,3,FALSE),0) -> 0 | J80: =IFERROR(VLOOKUP($B80,'[1]Num 1'!$G$3:$O$88,4,FALSE),0) -> 0 | K80: =IFERROR(VLOOKUP($B80,'[1]Num 1'!$G$3:$O$88,5,FALSE),0) -> 0 | L80: =IFERROR(VLOOKUP($B80,'[1]Num 1'!$G$3:$O$88,6,FALSE),0) -> 0 | M80: =IFERROR(VLOOKUP($B80,'[1]Num 1'!$G$3:$O$88,7,FALSE),0) -> 0 | N80: =IFERROR(VLOOKUP($B80,'[1]Num 1'!$G$3:$O$88,8,FALSE),0) -> 0 | Q80: 0 | R80: =IFERROR(VLOOKUP($B80,'[1]Den 1 2021'!$G$3:$T$104,11,FALSE),0) -> 0 | S80: =IFERROR(VLOOKUP($B80,'[1]Den 1 2021'!$G$3:$T$104,12,FALSE),0) -> 0 | T80: =IFERROR(VLOOKUP($B80,'[1]Den 1 2021'!$G$3:$T$104,13,FALSE),0) -> 0 | U80: =IFERROR(VLOOKUP($B80,'[1]Den 1'!$G$3:$O$93,2,FALSE),0) -> 0 | V80: =IFERROR(VLOOKUP($B80,'[1]Den 1'!$G$3:$O$93,3,FALSE),0) -> 0 | W80: =IFERROR(VLOOKUP($B80,'[1]Den 1'!$G$3:$O$93,4,FALSE),0) -> 0 | X80: =IFERROR(VLOOKUP($B80,'[1]Den 1'!$G$3:$O$93,5,FALSE),0) -> 0 | Y80: =IFERROR(VLOOKUP($B80,'[1]Den 1'!$G$3:$O$93,6,FALSE),0) -> 0 | Z80: =IFERROR(VLOOKUP($B80,'[1]Den 1'!$G$3:$O$93,7,FALSE),0) -> 0 | AA80: =IFERROR(VLOOKUP($B80,'[1]Den 1'!$G$3:$O$93,8,FALSE),0) -> 0 | AD80: 0
A81: 04202-CANELA | B81: 105484-P.S.R. HUENTELAUQUEN | E81: =IFERROR(VLOOKUP($B81,'[1]Num 1 2021'!$G$3:$T$95,11,FALSE),0) -> 0 | F81: =IFERROR(VLOOKUP($B81,'[1]Num 1 2021'!$G$3:$T$95,12,FALSE),0) -> 0 | G81: =IFERROR(VLOOKUP($B81,'[1]Num 1 2021'!$G$3:$T$95,13,FALSE),0) -> 0 | H81: =IFERROR(VLOOKUP($B81,'[1]Num 1'!$G$3:$O$88,2,FALSE),0) -> 0 | I81: =IFERROR(VLOOKUP($B81,'[1]Num 1'!$G$3:$O$88,3,FALSE),0) -> 0 | J81: =IFERROR(VLOOKUP($B81,'[1]Num 1'!$G$3:$O$88,4,FALSE),0) -> 0 | K81: =IFERROR(VLOOKUP($B81,'[1]Num 1'!$G$3:$O$88,5,FALSE),0) -> 0 | L81: =IFERROR(VLOOKUP($B81,'[1]Num 1'!$G$3:$O$88,6,FALSE),0) -> 0 | M81: =IFERROR(VLOOKUP($B81,'[1]Num 1'!$G$3:$O$88,7,FALSE),0) -> 0 | N81: =IFERROR(VLOOKUP($B81,'[1]Num 1'!$G$3:$O$88,8,FALSE),0) -> 0 | Q81: 0 | R81: =IFERROR(VLOOKUP($B81,'[1]Den 1 2021'!$G$3:$T$104,11,FALSE),0) -> 0 | S81: =IFERROR(VLOOKUP($B81,'[1]Den 1 2021'!$G$3:$T$104,12,FALSE),0) -> 0 | T81: =IFERROR(VLOOKUP($B81,'[1]Den 1 2021'!$G$3:$T$104,13,FALSE),0) -> 0 | U81: =IFERROR(VLOOKUP($B81,'[1]Den 1'!$G$3:$O$93,2,FALSE),0) -> 0 | V81: =IFERROR(VLOOKUP($B81,'[1]Den 1'!$G$3:$O$93,3,FALSE),0) -> 0 | W81: =IFERROR(VLOOKUP($B81,'[1]Den 1'!$G$3:$O$93,4,FALSE),0) -> 0 | X81: =IFERROR(VLOOKUP($B81,'[1]Den 1'!$G$3:$O$93,5,FALSE),0) -> 0 | Y81: =IFERROR(VLOOKUP($B81,'[1]Den 1'!$G$3:$O$93,6,FALSE),0) -> 0 | Z81: =IFERROR(VLOOKUP($B81,'[1]Den 1'!$G$3:$O$93,7,FALSE),0) -> 0 | AA81: =IFERROR(VLOOKUP($B81,'[1]Den 1'!$G$3:$O$93,8,FALSE),0) -> 0 | AD81: 0
A82: 04202-CANELA | B82: 105488-P.S.R. ESPIRITU SANTO | E82: =IFERROR(VLOOKUP($B82,'[1]Num 1 2021'!$G$3:$T$95,11,FALSE),0) -> 0 | F82: =IFERROR(VLOOKUP($B82,'[1]Num 1 2021'!$G$3:$T$95,12,FALSE),0) -> 0 | G82: =IFERROR(VLOOKUP($B82,'[1]Num 1 2021'!$G$3:$T$95,13,FALSE),0) -> 0 | H82: =IFERROR(VLOOKUP($B82,'[1]Num 1'!$G$3:$O$88,2,FALSE),0) -> 0 | I82: =IFERROR(VLOOKUP($B82,'[1]Num 1'!$G$3:$O$88,3,FALSE),0) -> 0 | J82: =IFERROR(VLOOKUP($B82,'[1]Num 1'!$G$3:$O$88,4,FALSE),0) -> 0 | K82: =IFERROR(VLOOKUP($B82,'[1]Num 1'!$G$3:$O$88,5,FALSE),0) -> 0 | L82: =IFERROR(VLOOKUP($B82,'[1]Num 1'!$G$3:$O$88,6,FALSE),0) -> 0 | M82: =IFERROR(VLOOKUP($B82,'[1]Num 1'!$G$3:$O$88,7,FALSE),0) -> 0 | N82: =IFERROR(VLOOKUP($B82,'[1]Num 1'!$G$3:$O$88,8,FALSE),0) -> 0 | Q82: 0 | R82: =IFERROR(VLOOKUP($B82,'[1]Den 1 2021'!$G$3:$T$104,11,FALSE),0) -> 0 | S82: =IFERROR(VLOOKUP($B82,'[1]Den 1 2021'!$G$3:$T$104,12,FALSE),0) -> 0 | T82: =IFERROR(VLOOKUP($B82,'[1]Den 1 2021'!$G$3:$T$104,13,FALSE),0) -> 0 | U82: =IFERROR(VLOOKUP($B82,'[1]Den 1'!$G$3:$O$93,2,FALSE),0) -> 0 | V82: =IFERROR(VLOOKUP($B82,'[1]Den 1'!$G$3:$O$93,3,FALSE),0) -> 0 | W82: =IFERROR(VLOOKUP($B82,'[1]Den 1'!$G$3:$O$93,4,FALSE),0) -> 0 | X82: =IFERROR(VLOOKUP($B82,'[1]Den 1'!$G$3:$O$93,5,FALSE),0) -> 0 | Y82: =IFERROR(VLOOKUP($B82,'[1]Den 1'!$G$3:$O$93,6,FALSE),0) -> 0 | Z82: =IFERROR(VLOOKUP($B82,'[1]Den 1'!$G$3:$O$93,7,FALSE),0) -> 0 | AA82: =IFERROR(VLOOKUP($B82,'[1]Den 1'!$G$3:$O$93,8,FALSE),0) -> 0 | AD82: 0
A83: 04202-CANELA | B83: 105493-P.S.R. MINCHA SUR | E83: =IFERROR(VLOOKUP($B83,'[1]Num 1 2021'!$G$3:$T$95,11,FALSE),0) -> 0 | F83: =IFERROR(VLOOKUP($B83,'[1]Num 1 2021'!$G$3:$T$95,12,FALSE),0) -> 0 | G83: =IFERROR(VLOOKUP($B83,'[1]Num 1 2021'!$G$3:$T$95,13,FALSE),0) -> 0 | H83: =IFERROR(VLOOKUP($B83,'[1]Num 1'!$G$3:$O$88,2,FALSE),0) -> 0 | I83: =IFERROR(VLOOKUP($B83,'[1]Num 1'!$G$3:$O$88,3,FALSE),0) -> 0 | J83: =IFERROR(VLOOKUP($B83,'[1]Num 1'!$G$3:$O$88,4,FALSE),0) -> 0 | K83: =IFERROR(VLOOKUP($B83,'[1]Num 1'!$G$3:$O$88,5,FALSE),0) -> 0 | L83: =IFERROR(VLOOKUP($B83,'[1]Num 1'!$G$3:$O$88,6,FALSE),0) -> 0 | M83: =IFERROR(VLOOKUP($B83,'[1]Num 1'!$G$3:$O$88,7,FALSE),0) -> 0 | N83: =IFERROR(VLOOKUP($B83,'[1]Num 1'!$G$3:$O$88,8,FALSE),0) -> 0 | Q83: 0 | R83: =IFERROR(VLOOKUP($B83,'[1]Den 1 2021'!$G$3:$T$104,11,FALSE),0) -> 0 | S83: =IFERROR(VLOOKUP($B83,'[1]Den 1 2021'!$G$3:$T$104,12,FALSE),0) -> 0 | T83: =IFERROR(VLOOKUP($B83,'[1]Den 1 2021'!$G$3:$T$104,13,FALSE),0) -> 0 | U83: =IFERROR(VLOOKUP($B83,'[1]Den 1'!$G$3:$O$93,2,FALSE),0) -> 0 | V83: =IFERROR(VLOOKUP($B83,'[1]Den 1'!$G$3:$O$93,3,FALSE),0) -> 0 | W83: =IFERROR(VLOOKUP($B83,'[1]Den 1'!$G$3:$O$93,4,FALSE),0) -> 0 | X83: =IFERROR(VLOOKUP($B83,'[1]Den 1'!$G$3:$O$93,5,FALSE),0) -> 0 | Y83: =IFERROR(VLOOKUP($B83,'[1]Den 1'!$G$3:$O$93,6,FALSE),0) -> 0 | Z83: =IFERROR(VLOOKUP($B83,'[1]Den 1'!$G$3:$O$93,7,FALSE),0) -> 0 | AA83: =IFERROR(VLOOKUP($B83,'[1]Den 1'!$G$3:$O$93,8,FALSE),0) -> 0 | AD83: 0
A84: 04202-CANELA | B84: 105497-P.S.R. JABONERIA | E84: =IFERROR(VLOOKUP($B84,'[1]Num 1 2021'!$G$3:$T$95,11,FALSE),0) -> 0 | F84: =IFERROR(VLOOKUP($B84,'[1]Num 1 2021'!$G$3:$T$95,12,FALSE),0) -> 0 | G84: =IFERROR(VLOOKUP($B84,'[1]Num 1 2021'!$G$3:$T$95,13,FALSE),0) -> 0 | H84: =IFERROR(VLOOKUP($B84,'[1]Num 1'!$G$3:$O$88,2,FALSE),0) -> 0 | I84: =IFERROR(VLOOKUP($B84,'[1]Num 1'!$G$3:$O$88,3,FALSE),0) -> 0 | J84: =IFERROR(VLOOKUP($B84,'[1]Num 1'!$G$3:$O$88,4,FALSE),0) -> 0 | K84: =IFERROR(VLOOKUP($B84,'[1]Num 1'!$G$3:$O$88,5,FALSE),0) -> 0 | L84: =IFERROR(VLOOKUP($B84,'[1]Num 1'!$G$3:$O$88,6,FALSE),0) -> 0 | M84: =IFERROR(VLOOKUP($B84,'[1]Num 1'!$G$3:$O$88,7,FALSE),0) -> 0 | N84: =IFERROR(VLOOKUP($B84,'[1]Num 1'!$G$3:$O$88,8,FALSE),0) -> 0 | Q84: =SUM(E84:P84) -> 0 | R84: =IFERROR(VLOOKUP($B84,'[1]Den 1 2021'!$G$3:$T$104,11,FALSE),0) -> 0 | S84: =IFERROR(VLOOKUP($B84,'[1]Den 1 2021'!$G$3:$T$104,12,FALSE),0) -> 0 | T84: =IFERROR(VLOOKUP($B84,'[1]Den 1 2021'!$G$3:$T$104,13,FALSE),0) -> 0 | U84: =IFERROR(VLOOKUP($B84,'[1]Den 1'!$G$3:$O$93,2,FALSE),0) -> 0 | V84: =IFERROR(VLOOKUP($B84,'[1]Den 1'!$G$3:$O$93,3,FALSE),0) -> 0 | W84: =IFERROR(VLOOKUP($B84,'[1]Den 1'!$G$3:$O$93,4,FALSE),0) -> 0 | X84: =IFERROR(VLOOKUP($B84,'[1]Den 1'!$G$3:$O$93,5,FALSE),0) -> 0 | Y84: =IFERROR(VLOOKUP($B84,'[1]Den 1'!$G$3:$O$93,6,FALSE),0) -> 0 | Z84: =IFERROR(VLOOKUP($B84,'[1]Den 1'!$G$3:$O$93,7,FALSE),0) -> 0 | AA84: =IFERROR(VLOOKUP($B84,'[1]Den 1'!$G$3:$O$93,8,FALSE),0) -> 0 | AD84: 0
A85: 04202-CANELA | B85: 105498-P.S.R. QUEBRADA DE LINARES | E85: =IFERROR(VLOOKUP($B85,'[1]Num 1 2021'!$G$3:$T$95,11,FALSE),0) -> 0 | F85: =IFERROR(VLOOKUP($B85,'[1]Num 1 2021'!$G$3:$T$95,12,FALSE),0) -> 0 | G85: =IFERROR(VLOOKUP($B85,'[1]Num 1 2021'!$G$3:$T$95,13,FALSE),0) -> 0 | H85: =IFERROR(VLOOKUP($B85,'[1]Num 1'!$G$3:$O$88,2,FALSE),0) -> 0 | I85: =IFERROR(VLOOKUP($B85,'[1]Num 1'!$G$3:$O$88,3,FALSE),0) -> 0 | J85: =IFERROR(VLOOKUP($B85,'[1]Num 1'!$G$3:$O$88,4,FALSE),0) -> 0 | K85: =IFERROR(VLOOKUP($B85,'[1]Num 1'!$G$3:$O$88,5,FALSE),0) -> 0 | L85: =IFERROR(VLOOKUP($B85,'[1]Num 1'!$G$3:$O$88,6,FALSE),0) -> 0 | M85: =IFERROR(VLOOKUP($B85,'[1]Num 1'!$G$3:$O$88,7,FALSE),0) -> 0 | N85: =IFERROR(VLOOKUP($B85,'[1]Num 1'!$G$3:$O$88,8,FALSE),0) -> 0 | Q85: 0 | R85: =IFERROR(VLOOKUP($B85,'[1]Den 1 2021'!$G$3:$T$104,11,FALSE),0) -> 0 | S85: =IFERROR(VLOOKUP($B85,'[1]Den 1 2021'!$G$3:$T$104,12,FALSE),0) -> 0 | T85: =IFERROR(VLOOKUP($B85,'[1]Den 1 2021'!$G$3:$T$104,13,FALSE),0) -> 0 | U85: =IFERROR(VLOOKUP($B85,'[1]Den 1'!$G$3:$O$93,2,FALSE),0) -> 0 | V85: =IFERROR(VLOOKUP($B85,'[1]Den 1'!$G$3:$O$93,3,FALSE),0) -> 0 | W85: =IFERROR(VLOOKUP($B85,'[1]Den 1'!$G$3:$O$93,4,FALSE),0) -> 0 | X85: =IFERROR(VLOOKUP($B85,'[1]Den 1'!$G$3:$O$93,5,FALSE),0) -> 0 | Y85: =IFERROR(VLOOKUP($B85,'[1]Den 1'!$G$3:$O$93,6,FALSE),0) -> 0 | Z85: =IFERROR(VLOOKUP($B85,'[1]Den 1'!$G$3:$O$93,7,FALSE),0) -> 0 | AA85: =IFERROR(VLOOKUP($B85,'[1]Den 1'!$G$3:$O$93,8,FALSE),0) -> 0 | AD85: 0
A86: TOTAL CANELA | C86: =D86/Metas!G11 -> 70.31% | D86: =Q86/AD86 -> 56.25% | E86: =SUM(E76:E85) -> 0 | F86: =SUM(F76:F85) -> 0 | G86: =SUM(G76:G85) -> 3 | H86: =SUM(H76:H85) -> 1 | I86: =SUM(I76:I85) -> 0 | J86: 0 | K86: 1 | L86: 1 | M86: 3 | N86: 0 | O86: 0 | P86: =SUM(P76:P85) -> 0 | Q86: =SUM(Q76:Q85) -> 9 | R86: 2 | S86: 1 | T86: 3 | U86: 0 | V86: 1 | W86: 2 | X86: 2 | Y86: 2 | Z86: 2 | AA86: 1 | AB86: =SUM(AB76:AB85) -> 0 | AC86: =SUM(AC76:AC85) -> 0 | AD86: 16
A87: 04203-LOS VILOS | B87: 105478-P.S.R. CAIMANES | E87: =IFERROR(VLOOKUP($B87,'[1]Num 1 2021'!$G$3:$T$95,11,FALSE),0) -> 0 | F87: =IFERROR(VLOOKUP($B87,'[1]Num 1 2021'!$G$3:$T$95,12,FALSE),0) -> 0 | G87: =IFERROR(VLOOKUP($B87,'[1]Num 1 2021'!$G$3:$T$95,13,FALSE),0) -> 0 | H87: =IFERROR(VLOOKUP($B87,'[1]Num 1'!$G$3:$O$88,2,FALSE),0) -> 0 | I87: =IFERROR(VLOOKUP($B87,'[1]Num 1'!$G$3:$O$88,3,FALSE),0) -> 0 | J87: =IFERROR(VLOOKUP($B87,'[1]Num 1'!$G$3:$O$88,4,FALSE),0) -> 0 | K87: =IFERROR(VLOOKUP($B87,'[1]Num 1'!$G$3:$O$88,5,FALSE),0) -> 0 | L87: =IFERROR(VLOOKUP($B87,'[1]Num 1'!$G$3:$O$88,6,FALSE),0) -> 0 | M87: =IFERROR(VLOOKUP($B87,'[1]Num 1'!$G$3:$O$88,7,FALSE),0) -> 0 | N87: =IFERROR(VLOOKUP($B87,'[1]Num 1'!$G$3:$O$88,8,FALSE),0) -> 0 | Q87: =SUM(E87:P87) -> 0 | R87: =IFERROR(VLOOKUP($B87,'[1]Den 1 2021'!$G$3:$T$104,11,FALSE),0) -> 0 | S87: =IFERROR(VLOOKUP($B87,'[1]Den 1 2021'!$G$3:$T$104,12,FALSE),0) -> 0 | T87: =IFERROR(VLOOKUP($B87,'[1]Den 1 2021'!$G$3:$T$104,13,FALSE),0) -> 0 | U87: =IFERROR(VLOOKUP($B87,'[1]Den 1'!$G$3:$O$93,2,FALSE),0) -> 0 | V87: =IFERROR(VLOOKUP($B87,'[1]Den 1'!$G$3:$O$93,3,FALSE),0) -> 0 | W87: =IFERROR(VLOOKUP($B87,'[1]Den 1'!$G$3:$O$93,4,FALSE),0) -> 0 | X87: =IFERROR(VLOOKUP($B87,'[1]Den 1'!$G$3:$O$93,5,FALSE),0) -> 0 | Y87: =IFERROR(VLOOKUP($B87,'[1]Den 1'!$G$3:$O$93,6,FALSE),0) -> 0 | Z87: =IFERROR(VLOOKUP($B87,'[1]Den 1'!$G$3:$O$93,7,FALSE),0) -> 1 | AA87: =IFERROR(VLOOKUP($B87,'[1]Den 1'!$G$3:$O$93,8,FALSE),0) -> 0 | AD87: 1
A88: 04203-LOS VILOS | B88: 105479-P.S.R. GUANGUALI | E88: =IFERROR(VLOOKUP($B88,'[1]Num 1 2021'!$G$3:$T$95,11,FALSE),0) -> 0 | F88: =IFERROR(VLOOKUP($B88,'[1]Num 1 2021'!$G$3:$T$95,12,FALSE),0) -> 0 | G88: =IFERROR(VLOOKUP($B88,'[1]Num 1 2021'!$G$3:$T$95,13,FALSE),0) -> 0 | H88: =IFERROR(VLOOKUP($B88,'[1]Num 1'!$G$3:$O$88,2,FALSE),0) -> 0 | I88: =IFERROR(VLOOKUP($B88,'[1]Num 1'!$G$3:$O$88,3,FALSE),0) -> 0 | J88: =IFERROR(VLOOKUP($B88,'[1]Num 1'!$G$3:$O$88,4,FALSE),0) -> 0 | K88: =IFERROR(VLOOKUP($B88,'[1]Num 1'!$G$3:$O$88,5,FALSE),0) -> 0 | L88: =IFERROR(VLOOKUP($B88,'[1]Num 1'!$G$3:$O$88,6,FALSE),0) -> 0 | M88: =IFERROR(VLOOKUP($B88,'[1]Num 1'!$G$3:$O$88,7,FALSE),0) -> 0 | N88: =IFERROR(VLOOKUP($B88,'[1]Num 1'!$G$3:$O$88,8,FALSE),0) -> 0 | Q88: =SUM(E88:P88) -> 0 | R88: =IFERROR(VLOOKUP($B88,'[1]Den 1 2021'!$G$3:$T$104,11,FALSE),0) -> 0 | S88: =IFERROR(VLOOKUP($B88,'[1]Den 1 2021'!$G$3:$T$104,12,FALSE),0) -> 0 | T88: =IFERROR(VLOOKUP($B88,'[1]Den 1 2021'!$G$3:$T$104,13,FALSE),0) -> 0 | U88: =IFERROR(VLOOKUP($B88,'[1]Den 1'!$G$3:$O$93,2,FALSE),0) -> 0 | V88: =IFERROR(VLOOKUP($B88,'[1]Den 1'!$G$3:$O$93,3,FALSE),0) -> 0 | W88: =IFERROR(VLOOKUP($B88,'[1]Den 1'!$G$3:$O$93,4,FALSE),0) -> 0 | X88: =IFERROR(VLOOKUP($B88,'[1]Den 1'!$G$3:$O$93,5,FALSE),0) -> 0 | Y88: =IFERROR(VLOOKUP($B88,'[1]Den 1'!$G$3:$O$93,6,FALSE),0) -> 0 | Z88: =IFERROR(VLOOKUP($B88,'[1]Den 1'!$G$3:$O$93,7,FALSE),0) -> 0 | AA88: =IFERROR(VLOOKUP($B88,'[1]Den 1'!$G$3:$O$93,8,FALSE),0) -> 0 | AD88: 0
A89: 04203-LOS VILOS | B89: 105480-P.S.R. QUILIMARI | E89: =IFERROR(VLOOKUP($B89,'[1]Num 1 2021'!$G$3:$T$95,11,FALSE),0) -> 0 | F89: =IFERROR(VLOOKUP($B89,'[1]Num 1 2021'!$G$3:$T$95,12,FALSE),0) -> 1 | G89: =IFERROR(VLOOKUP($B89,'[1]Num 1 2021'!$G$3:$T$95,13,FALSE),0) -> 0 | H89: =IFERROR(VLOOKUP($B89,'[1]Num 1'!$G$3:$O$88,2,FALSE),0) -> 0 | I89: =IFERROR(VLOOKUP($B89,'[1]Num 1'!$G$3:$O$88,3,FALSE),0) -> 0 | J89: =IFERROR(VLOOKUP($B89,'[1]Num 1'!$G$3:$O$88,4,FALSE),0) -> 0 | K89: =IFERROR(VLOOKUP($B89,'[1]Num 1'!$G$3:$O$88,5,FALSE),0) -> 0 | L89: =IFERROR(VLOOKUP($B89,'[1]Num 1'!$G$3:$O$88,6,FALSE),0) -> 0 | M89: =IFERROR(VLOOKUP($B89,'[1]Num 1'!$G$3:$O$88,7,FALSE),0) -> 0 | N89: =IFERROR(VLOOKUP($B89,'[1]Num 1'!$G$3:$O$88,8,FALSE),0) -> 0 | Q89: =SUM(E89:P89) -> 1 | R89: =IFERROR(VLOOKUP($B89,'[1]Den 1 2021'!$G$3:$T$104,11,FALSE),0) -> 0 | S89: =IFERROR(VLOOKUP($B89,'[1]Den 1 2021'!$G$3:$T$104,12,FALSE),0) -> 0 | T89: =IFERROR(VLOOKUP($B89,'[1]Den 1 2021'!$G$3:$T$104,13,FALSE),0) -> 0 | U89: =IFERROR(VLOOKUP($B89,'[1]Den 1'!$G$3:$O$93,2,FALSE),0) -> 0 | V89: =IFERROR(VLOOKUP($B89,'[1]Den 1'!$G$3:$O$93,3,FALSE),0) -> 0 | W89: =IFERROR(VLOOKUP($B89,'[1]Den 1'!$G$3:$O$93,4,FALSE),0) -> 1 | X89: =IFERROR(VLOOKUP($B89,'[1]Den 1'!$G$3:$O$93,5,FALSE),0) -> 0 | Y89: =IFERROR(VLOOKUP($B89,'[1]Den 1'!$G$3:$O$93,6,FALSE),0) -> 1 | Z89: =IFERROR(VLOOKUP($B89,'[1]Den 1'!$G$3:$O$93,7,FALSE),0) -> 0 | AA89: =IFERROR(VLOOKUP($B89,'[1]Den 1'!$G$3:$O$93,8,FALSE),0) -> 0 | AD89: 2
A90: 04203-LOS VILOS | B90: 105481-P.S.R. TILAMA | E90: =IFERROR(VLOOKUP($B90,'[1]Num 1 2021'!$G$3:$T$95,11,FALSE),0) -> 0 | F90: =IFERROR(VLOOKUP($B90,'[1]Num 1 2021'!$G$3:$T$95,12,FALSE),0) -> 0 | G90: =IFERROR(VLOOKUP($B90,'[1]Num 1 2021'!$G$3:$T$95,13,FALSE),0) -> 0 | H90: =IFERROR(VLOOKUP($B90,'[1]Num 1'!$G$3:$O$88,2,FALSE),0) -> 0 | I90: =IFERROR(VLOOKUP($B90,'[1]Num 1'!$G$3:$O$88,3,FALSE),0) -> 0 | J90: =IFERROR(VLOOKUP($B90,'[1]Num 1'!$G$3:$O$88,4,FALSE),0) -> 0 | K90: =IFERROR(VLOOKUP($B90,'[1]Num 1'!$G$3:$O$88,5,FALSE),0) -> 0 | L90: =IFERROR(VLOOKUP($B90,'[1]Num 1'!$G$3:$O$88,6,FALSE),0) -> 0 | M90: =IFERROR(VLOOKUP($B90,'[1]Num 1'!$G$3:$O$88,7,FALSE),0) -> 0 | N90: =IFERROR(VLOOKUP($B90,'[1]Num 1'!$G$3:$O$88,8,FALSE),0) -> 0 | Q90: =SUM(E90:P90) -> 0 | R90: =IFERROR(VLOOKUP($B90,'[1]Den 1 2021'!$G$3:$T$104,11,FALSE),0) -> 0 | S90: =IFERROR(VLOOKUP($B90,'[1]Den 1 2021'!$G$3:$T$104,12,FALSE),0) -> 0 | T90: =IFERROR(VLOOKUP($B90,'[1]Den 1 2021'!$G$3:$T$104,13,FALSE),0) -> 0 | U90: =IFERROR(VLOOKUP($B90,'[1]Den 1'!$G$3:$O$93,2,FALSE),0) -> 0 | V90: =IFERROR(VLOOKUP($B90,'[1]Den 1'!$G$3:$O$93,3,FALSE),0) -> 0 | W90: =IFERROR(VLOOKUP($B90,'[1]Den 1'!$G$3:$O$93,4,FALSE),0) -> 0 | X90: =IFERROR(VLOOKUP($B90,'[1]Den 1'!$G$3:$O$93,5,FALSE),0) -> 0 | Y90: =IFERROR(VLOOKUP($B90,'[1]Den 1'!$G$3:$O$93,6,FALSE),0) -> 0 | Z90: =IFERROR(VLOOKUP($B90,'[1]Den 1'!$G$3:$O$93,7,FALSE),0) -> 0 | AA90: =IFERROR(VLOOKUP($B90,'[1]Den 1'!$G$3:$O$93,8,FALSE),0) -> 0 | AD90: =SUM(R90:AC90) -> 0
A91: 04203-LOS VILOS | B91: 105511-P.S.R. LOS CONDORES | E91: =IFERROR(VLOOKUP($B91,'[1]Num 1 2021'!$G$3:$T$95,11,FALSE),0) -> 0 | F91: =IFERROR(VLOOKUP($B91,'[1]Num 1 2021'!$G$3:$T$95,12,FALSE),0) -> 0 | G91: =IFERROR(VLOOKUP($B91,'[1]Num 1 2021'!$G$3:$T$95,13,FALSE),0) -> 0 | H91: =IFERROR(VLOOKUP($B91,'[1]Num 1'!$G$3:$O$88,2,FALSE),0) -> 0 | I91: =IFERROR(VLOOKUP($B91,'[1]Num 1'!$G$3:$O$88,3,FALSE),0) -> 0 | J91: =IFERROR(VLOOKUP($B91,'[1]Num 1'!$G$3:$O$88,4,FALSE),0) -> 0 | K91: =IFERROR(VLOOKUP($B91,'[1]Num 1'!$G$3:$O$88,5,FALSE),0) -> 0 | L91: =IFERROR(VLOOKUP($B91,'[1]Num 1'!$G$3:$O$88,6,FALSE),0) -> 0 | M91: =IFERROR(VLOOKUP($B91,'[1]Num 1'!$G$3:$O$88,7,FALSE),0) -> 0 | N91: =IFERROR(VLOOKUP($B91,'[1]Num 1'!$G$3:$O$88,8,FALSE),0) -> 0 | Q91: =SUM(E91:P91) -> 0 | R91: =IFERROR(VLOOKUP($B91,'[1]Den 1 2021'!$G$3:$T$104,11,FALSE),0) -> 0 | S91: =IFERROR(VLOOKUP($B91,'[1]Den 1 2021'!$G$3:$T$104,12,FALSE),0) -> 0 | T91: =IFERROR(VLOOKUP($B91,'[1]Den 1 2021'!$G$3:$T$104,13,FALSE),0) -> 0 | U91: =IFERROR(VLOOKUP($B91,'[1]Den 1'!$G$3:$O$93,2,FALSE),0) -> 0 | V91: =IFERROR(VLOOKUP($B91,'[1]Den 1'!$G$3:$O$93,3,FALSE),0) -> 0 | W91: =IFERROR(VLOOKUP($B91,'[1]Den 1'!$G$3:$O$93,4,FALSE),0) -> 0 | X91: =IFERROR(VLOOKUP($B91,'[1]Den 1'!$G$3:$O$93,5,FALSE),0) -> 0 | Y91: =IFERROR(VLOOKUP($B91,'[1]Den 1'!$G$3:$O$93,6,FALSE),0) -> 0 | Z91: =IFERROR(VLOOKUP($B91,'[1]Den 1'!$G$3:$O$93,7,FALSE),0) -> 0 | AA91: =IFERROR(VLOOKUP($B91,'[1]Den 1'!$G$3:$O$93,8,FALSE),0) -> 0 | AD91: 0
A92: TOTAL LOS VILOS | C92: =D92/Metas!G12 -> 55.56% | D92: =Q92/AD92 -> 33.33% | E92: =SUM(E87:E91) -> 0 | F92: =SUM(F87:F91) -> 1 | G92: =SUM(G87:G91) -> 0 | H92: =SUM(H87:H91) -> 0 | I92: =SUM(I87:I91) -> 0 | J92: 0 | K92: 0 | L92: 0 | M92: 0 | N92: 0 | O92: 0 | P92: =SUM(P87:P91) -> 0 | Q92: 1 | R92: 0 | S92: 0 | T92: 0 | U92: 0 | V92: 0 | W92: 1 | X92: 0 | Y92: 1 | Z92: 1 | AA92: 0 | AB92: =SUM(AB87:AB91) -> 0 | AC92: =SUM(AC87:AC91) -> 0 | AD92: 3
A93: 04204-SALAMANCA | B93: 105452-P.S.R. CUNCUMEN | E93: =IFERROR(VLOOKUP($B93,'[1]Num 1 2021'!$G$3:$T$95,11,FALSE),0) -> 0 | F93: =IFERROR(VLOOKUP($B93,'[1]Num 1 2021'!$G$3:$T$95,12,FALSE),0) -> 0 | G93: =IFERROR(VLOOKUP($B93,'[1]Num 1 2021'!$G$3:$T$95,13,FALSE),0) -> 0 | H93: =IFERROR(VLOOKUP($B93,'[1]Num 1'!$G$3:$O$88,2,FALSE),0) -> 0 | I93: =IFERROR(VLOOKUP($B93,'[1]Num 1'!$G$3:$O$88,3,FALSE),0) -> 0 | J93: =IFERROR(VLOOKUP($B93,'[1]Num 1'!$G$3:$O$88,4,FALSE),0) -> 0 | K93: =IFERROR(VLOOKUP($B93,'[1]Num 1'!$G$3:$O$88,5,FALSE),0) -> 0 | L93: =IFERROR(VLOOKUP($B93,'[1]Num 1'!$G$3:$O$88,6,FALSE),0) -> 0 | M93: =IFERROR(VLOOKUP($B93,'[1]Num 1'!$G$3:$O$88,7,FALSE),0) -> 0 | N93: =IFERROR(VLOOKUP($B93,'[1]Num 1'!$G$3:$O$88,8,FALSE),0) -> 0 | Q93: =SUM(E93:P93) -> 0 | R93: =IFERROR(VLOOKUP($B93,'[1]Den 1 2021'!$G$3:$T$104,11,FALSE),0) -> 0 | S93: =IFERROR(VLOOKUP($B93,'[1]Den 1 2021'!$G$3:$T$104,12,FALSE),0) -> 0 | T93: =IFERROR(VLOOKUP($B93,'[1]Den 1 2021'!$G$3:$T$104,13,FALSE),0) -> 0 | U93: =IFERROR(VLOOKUP($B93,'[1]Den 1'!$G$3:$O$93,2,FALSE),0) -> 0 | V93: =IFERROR(VLOOKUP($B93,'[1]Den 1'!$G$3:$O$93,3,FALSE),0) -> 0 | W93: =IFERROR(VLOOKUP($B93,'[1]Den 1'!$G$3:$O$93,4,FALSE),0) -> 0 | X93: =IFERROR(VLOOKUP($B93,'[1]Den 1'!$G$3:$O$93,5,FALSE),0) -> 0 | Y93: =IFERROR(VLOOKUP($B93,'[1]Den 1'!$G$3:$O$93,6,FALSE),0) -> 0 | Z93: =IFERROR(VLOOKUP($B93,'[1]Den 1'!$G$3:$O$93,7,FALSE),0) -> 0 | AA93: =IFERROR(VLOOKUP($B93,'[1]Den 1'!$G$3:$O$93,8,FALSE),0) -> 0 | AD93: 0
A94: 04204-SALAMANCA | B94: 105453-P.S.R. TRANQUILLA | E94: =IFERROR(VLOOKUP($B94,'[1]Num 1 2021'!$G$3:$T$95,11,FALSE),0) -> 0 | F94: =IFERROR(VLOOKUP($B94,'[1]Num 1 2021'!$G$3:$T$95,12,FALSE),0) -> 3 | G94: =IFERROR(VLOOKUP($B94,'[1]Num 1 2021'!$G$3:$T$95,13,FALSE),0) -> 0 | H94: =IFERROR(VLOOKUP($B94,'[1]Num 1'!$G$3:$O$88,2,FALSE),0) -> 0 | I94: =IFERROR(VLOOKUP($B94,'[1]Num 1'!$G$3:$O$88,3,FALSE),0) -> 0 | J94: =IFERROR(VLOOKUP($B94,'[1]Num 1'!$G$3:$O$88,4,FALSE),0) -> 0 | K94: =IFERROR(VLOOKUP($B94,'[1]Num 1'!$G$3:$O$88,5,FALSE),0) -> 0 | L94: =IFERROR(VLOOKUP($B94,'[1]Num 1'!$G$3:$O$88,6,FALSE),0) -> 0 | M94: =IFERROR(VLOOKUP($B94,'[1]Num 1'!$G$3:$O$88,7,FALSE),0) -> 0 | N94: =IFERROR(VLOOKUP($B94,'[1]Num 1'!$G$3:$O$88,8,FALSE),0) -> 0 | Q94: 3 | R94: =IFERROR(VLOOKUP($B94,'[1]Den 1 2021'!$G$3:$T$104,11,FALSE),0) -> 0 | S94: =IFERROR(VLOOKUP($B94,'[1]Den 1 2021'!$G$3:$T$104,12,FALSE),0) -> 0 | T94: =IFERROR(VLOOKUP($B94,'[1]Den 1 2021'!$G$3:$T$104,13,FALSE),0) -> 0 | U94: =IFERROR(VLOOKUP($B94,'[1]Den 1'!$G$3:$O$93,2,FALSE),0) -> 0 | V94: =IFERROR(VLOOKUP($B94,'[1]Den 1'!$G$3:$O$93,3,FALSE),0) -> 0 | W94: =IFERROR(VLOOKUP($B94,'[1]Den 1'!$G$3:$O$93,4,FALSE),0) -> 0 | X94: =IFERROR(VLOOKUP($B94,'[1]Den 1'!$G$3:$O$93,5,FALSE),0) -> 0 | Y94: =IFERROR(VLOOKUP($B94,'[1]Den 1'!$G$3:$O$93,6,FALSE),0) -> 0 | Z94: =IFERROR(VLOOKUP($B94,'[1]Den 1'!$G$3:$O$93,7,FALSE),0) -> 0 | AA94: =IFERROR(VLOOKUP($B94,'[1]Den 1'!$G$3:$O$93,8,FALSE),0) -> 0 | AD94: 0
A95: 04204-SALAMANCA | B95: 105454-P.S.R. CUNLAGUA | E95: =IFERROR(VLOOKUP($B95,'[1]Num 1 2021'!$G$3:$T$95,11,FALSE),0) -> 0 | F95: =IFERROR(VLOOKUP($B95,'[1]Num 1 2021'!$G$3:$T$95,12,FALSE),0) -> 0 | G95: =IFERROR(VLOOKUP($B95,'[1]Num 1 2021'!$G$3:$T$95,13,FALSE),0) -> 1 | H95: =IFERROR(VLOOKUP($B95,'[1]Num 1'!$G$3:$O$88,2,FALSE),0) -> 0 | I95: =IFERROR(VLOOKUP($B95,'[1]Num 1'!$G$3:$O$88,3,FALSE),0) -> 0 | J95: =IFERROR(VLOOKUP($B95,'[1]Num 1'!$G$3:$O$88,4,FALSE),0) -> 0 | K95: =IFERROR(VLOOKUP($B95,'[1]Num 1'!$G$3:$O$88,5,FALSE),0) -> 0 | L95: =IFERROR(VLOOKUP($B95,'[1]Num 1'!$G$3:$O$88,6,FALSE),0) -> 0 | M95: =IFERROR(VLOOKUP($B95,'[1]Num 1'!$G$3:$O$88,7,FALSE),0) -> 0 | N95: =IFERROR(VLOOKUP($B95,'[1]Num 1'!$G$3:$O$88,8,FALSE),0) -> 0 | Q95: 1 | R95: =IFERROR(VLOOKUP($B95,'[1]Den 1 2021'!$G$3:$T$104,11,FALSE),0) -> 0 | S95: =IFERROR(VLOOKUP($B95,'[1]Den 1 2021'!$G$3:$T$104,12,FALSE),0) -> 0 | T95: =IFERROR(VLOOKUP($B95,'[1]Den 1 2021'!$G$3:$T$104,13,FALSE),0) -> 0 | U95: =IFERROR(VLOOKUP($B95,'[1]Den 1'!$G$3:$O$93,2,FALSE),0) -> 0 | V95: =IFERROR(VLOOKUP($B95,'[1]Den 1'!$G$3:$O$93,3,FALSE),0) -> 0 | W95: =IFERROR(VLOOKUP($B95,'[1]Den 1'!$G$3:$O$93,4,FALSE),0) -> 0 | X95: =IFERROR(VLOOKUP($B95,'[1]Den 1'!$G$3:$O$93,5,FALSE),0) -> 0 | Y95: =IFERROR(VLOOKUP($B95,'[1]Den 1'!$G$3:$O$93,6,FALSE),0) -> 0 | Z95: =IFERROR(VLOOKUP($B95,'[1]Den 1'!$G$3:$O$93,7,FALSE),0) -> 0 | AA95: =IFERROR(VLOOKUP($B95,'[1]Den 1'!$G$3:$O$93,8,FALSE),0) -> 0 | AD95: 0
A96: 04204-SALAMANCA | B96: 105455-P.S.R. CHILLEPIN | E96: =IFERROR(VLOOKUP($B96,'[1]Num 1 2021'!$G$3:$T$95,11,FALSE),0) -> 0 | F96: =IFERROR(VLOOKUP($B96,'[1]Num 1 2021'!$G$3:$T$95,12,FALSE),0) -> 0 | G96: =IFERROR(VLOOKUP($B96,'[1]Num 1 2021'!$G$3:$T$95,13,FALSE),0) -> 0 | H96: =IFERROR(VLOOKUP($B96,'[1]Num 1'!$G$3:$O$88,2,FALSE),0) -> 0 | I96: =IFERROR(VLOOKUP($B96,'[1]Num 1'!$G$3:$O$88,3,FALSE),0) -> 0 | J96: =IFERROR(VLOOKUP($B96,'[1]Num 1'!$G$3:$O$88,4,FALSE),0) -> 0 | K96: =IFERROR(VLOOKUP($B96,'[1]Num 1'!$G$3:$O$88,5,FALSE),0) -> 0 | L96: =IFERROR(VLOOKUP($B96,'[1]Num 1'!$G$3:$O$88,6,FALSE),0) -> 0 | M96: =IFERROR(VLOOKUP($B96,'[1]Num 1'!$G$3:$O$88,7,FALSE),0) -> 0 | N96: =IFERROR(VLOOKUP($B96,'[1]Num 1'!$G$3:$O$88,8,FALSE),0) -> 0 | Q96: 0 | R96: =IFERROR(VLOOKUP($B96,'[1]Den 1 2021'!$G$3:$T$104,11,FALSE),0) -> 0 | S96: =IFERROR(VLOOKUP($B96,'[1]Den 1 2021'!$G$3:$T$104,12,FALSE),0) -> 0 | T96: =IFERROR(VLOOKUP($B96,'[1]Den 1 2021'!$G$3:$T$104,13,FALSE),0) -> 0 | U96: =IFERROR(VLOOKUP($B96,'[1]Den 1'!$G$3:$O$93,2,FALSE),0) -> 0 | V96: =IFERROR(VLOOKUP($B96,'[1]Den 1'!$G$3:$O$93,3,FALSE),0) -> 0 | W96: =IFERROR(VLOOKUP($B96,'[1]Den 1'!$G$3:$O$93,4,FALSE),0) -> 0 | X96: =IFERROR(VLOOKUP($B96,'[1]Den 1'!$G$3:$O$93,5,FALSE),0) -> 0 | Y96: =IFERROR(VLOOKUP($B96,'[1]Den 1'!$G$3:$O$93,6,FALSE),0) -> 0 | Z96: =IFERROR(VLOOKUP($B96,'[1]Den 1'!$G$3:$O$93,7,FALSE),0) -> 0 | AA96: =IFERROR(VLOOKUP($B96,'[1]Den 1'!$G$3:$O$93,8,FALSE),0) -> 0 | AD96: 0
A97: 04204-SALAMANCA | B97: 105456-P.S.R. LLIMPO | E97: =IFERROR(VLOOKUP($B97,'[1]Num 1 2021'!$G$3:$T$95,11,FALSE),0) -> 0 | F97: =IFERROR(VLOOKUP($B97,'[1]Num 1 2021'!$G$3:$T$95,12,FALSE),0) -> 0 | G97: =IFERROR(VLOOKUP($B97,'[1]Num 1 2021'!$G$3:$T$95,13,FALSE),0) -> 0 | H97: =IFERROR(VLOOKUP($B97,'[1]Num 1'!$G$3:$O$88,2,FALSE),0) -> 0 | I97: =IFERROR(VLOOKUP($B97,'[1]Num 1'!$G$3:$O$88,3,FALSE),0) -> 0 | J97: =IFERROR(VLOOKUP($B97,'[1]Num 1'!$G$3:$O$88,4,FALSE),0) -> 0 | K97: =IFERROR(VLOOKUP($B97,'[1]Num 1'!$G$3:$O$88,5,FALSE),0) -> 0 | L97: =IFERROR(VLOOKUP($B97,'[1]Num 1'!$G$3:$O$88,6,FALSE),0) -> 0 | M97: =IFERROR(VLOOKUP($B97,'[1]Num 1'!$G$3:$O$88,7,FALSE),0) -> 0 | N97: =IFERROR(VLOOKUP($B97,'[1]Num 1'!$G$3:$O$88,8,FALSE),0) -> 0 | Q97: 0 | R97: =IFERROR(VLOOKUP($B97,'[1]Den 1 2021'!$G$3:$T$104,11,FALSE),0) -> 0 | S97: =IFERROR(VLOOKUP($B97,'[1]Den 1 2021'!$G$3:$T$104,12,FALSE),0) -> 0 | T97: =IFERROR(VLOOKUP($B97,'[1]Den 1 2021'!$G$3:$T$104,13,FALSE),0) -> 0 | U97: =IFERROR(VLOOKUP($B97,'[1]Den 1'!$G$3:$O$93,2,FALSE),0) -> 0 | V97: =IFERROR(VLOOKUP($B97,'[1]Den 1'!$G$3:$O$93,3,FALSE),0) -> 0 | W97: =IFERROR(VLOOKUP($B97,'[1]Den 1'!$G$3:$O$93,4,FALSE),0) -> 0 | X97: =IFERROR(VLOOKUP($B97,'[1]Den 1'!$G$3:$O$93,5,FALSE),0) -> 0 | Y97: =IFERROR(VLOOKUP($B97,'[1]Den 1'!$G$3:$O$93,6,FALSE),0) -> 0 | Z97: =IFERROR(VLOOKUP($B97,'[1]Den 1'!$G$3:$O$93,7,FALSE),0) -> 0 | AA97: =IFERROR(VLOOKUP($B97,'[1]Den 1'!$G$3:$O$93,8,FALSE),0) -> 0 | AD97: 0
A98: 04204-SALAMANCA | B98: 105457-P.S.R. SAN AGUSTIN | E98: =IFERROR(VLOOKUP($B98,'[1]Num 1 2021'!$G$3:$T$95,11,FALSE),0) -> 0 | F98: =IFERROR(VLOOKUP($B98,'[1]Num 1 2021'!$G$3:$T$95,12,FALSE),0) -> 0 | G98: =IFERROR(VLOOKUP($B98,'[1]Num 1 2021'!$G$3:$T$95,13,FALSE),0) -> 0 | H98: =IFERROR(VLOOKUP($B98,'[1]Num 1'!$G$3:$O$88,2,FALSE),0) -> 0 | I98: =IFERROR(VLOOKUP($B98,'[1]Num 1'!$G$3:$O$88,3,FALSE),0) -> 0 | J98: =IFERROR(VLOOKUP($B98,'[1]Num 1'!$G$3:$O$88,4,FALSE),0) -> 0 | K98: =IFERROR(VLOOKUP($B98,'[1]Num 1'!$G$3:$O$88,5,FALSE),0) -> 0 | L98: =IFERROR(VLOOKUP($B98,'[1]Num 1'!$G$3:$O$88,6,FALSE),0) -> 0 | M98: =IFERROR(VLOOKUP($B98,'[1]Num 1'!$G$3:$O$88,7,FALSE),0) -> 0 | N98: =IFERROR(VLOOKUP($B98,'[1]Num 1'!$G$3:$O$88,8,FALSE),0) -> 0 | Q98: 0 | R98: =IFERROR(VLOOKUP($B98,'[1]Den 1 2021'!$G$3:$T$104,11,FALSE),0) -> 0 | S98: =IFERROR(VLOOKUP($B98,'[1]Den 1 2021'!$G$3:$T$104,12,FALSE),0) -> 0 | T98: =IFERROR(VLOOKUP($B98,'[1]Den 1 2021'!$G$3:$T$104,13,FALSE),0) -> 0 | U98: =IFERROR(VLOOKUP($B98,'[1]Den 1'!$G$3:$O$93,2,FALSE),0) -> 0 | V98: =IFERROR(VLOOKUP($B98,'[1]Den 1'!$G$3:$O$93,3,FALSE),0) -> 0 | W98: =IFERROR(VLOOKUP($B98,'[1]Den 1'!$G$3:$O$93,4,FALSE),0) -> 0 | X98: =IFERROR(VLOOKUP($B98,'[1]Den 1'!$G$3:$O$93,5,FALSE),0) -> 0 | Y98: =IFERROR(VLOOKUP($B98,'[1]Den 1'!$G$3:$O$93,6,FALSE),0) -> 0 | Z98: =IFERROR(VLOOKUP($B98,'[1]Den 1'!$G$3:$O$93,7,FALSE),0) -> 0 | AA98: =IFERROR(VLOOKUP($B98,'[1]Den 1'!$G$3:$O$93,8,FALSE),0) -> 0 | AD98: 0
A99: 04204-SALAMANCA | B99: 105458-P.S.R. TAHUINCO | E99: =IFERROR(VLOOKUP($B99,'[1]Num 1 2021'!$G$3:$T$95,11,FALSE),0) -> 0 | F99: =IFERROR(VLOOKUP($B99,'[1]Num 1 2021'!$G$3:$T$95,12,FALSE),0) -> 2 | G99: =IFERROR(VLOOKUP($B99,'[1]Num 1 2021'!$G$3:$T$95,13,FALSE),0) -> 0 | H99: =IFERROR(VLOOKUP($B99,'[1]Num 1'!$G$3:$O$88,2,FALSE),0) -> 0 | I99: =IFERROR(VLOOKUP($B99,'[1]Num 1'!$G$3:$O$88,3,FALSE),0) -> 0 | J99: =IFERROR(VLOOKUP($B99,'[1]Num 1'!$G$3:$O$88,4,FALSE),0) -> 0 | K99: =IFERROR(VLOOKUP($B99,'[1]Num 1'!$G$3:$O$88,5,FALSE),0) -> 0 | L99: =IFERROR(VLOOKUP($B99,'[1]Num 1'!$G$3:$O$88,6,FALSE),0) -> 0 | M99: =IFERROR(VLOOKUP($B99,'[1]Num 1'!$G$3:$O$88,7,FALSE),0) -> 0 | N99: =IFERROR(VLOOKUP($B99,'[1]Num 1'!$G$3:$O$88,8,FALSE),0) -> 0 | Q99: 2 | R99: =IFERROR(VLOOKUP($B99,'[1]Den 1 2021'!$G$3:$T$104,11,FALSE),0) -> 0 | S99: =IFERROR(VLOOKUP($B99,'[1]Den 1 2021'!$G$3:$T$104,12,FALSE),0) -> 0 | T99: =IFERROR(VLOOKUP($B99,'[1]Den 1 2021'!$G$3:$T$104,13,FALSE),0) -> 0 | U99: =IFERROR(VLOOKUP($B99,'[1]Den 1'!$G$3:$O$93,2,FALSE),0) -> 0 | V99: =IFERROR(VLOOKUP($B99,'[1]Den 1'!$G$3:$O$93,3,FALSE),0) -> 0 | W99: =IFERROR(VLOOKUP($B99,'[1]Den 1'!$G$3:$O$93,4,FALSE),0) -> 0 | X99: =IFERROR(VLOOKUP($B99,'[1]Den 1'!$G$3:$O$93,5,FALSE),0) -> 0 | Y99: =IFERROR(VLOOKUP($B99,'[1]Den 1'!$G$3:$O$93,6,FALSE),0) -> 0 | Z99: =IFERROR(VLOOKUP($B99,'[1]Den 1'!$G$3:$O$93,7,FALSE),0) -> 0 | AA99: =IFERROR(VLOOKUP($B99,'[1]Den 1'!$G$3:$O$93,8,FALSE),0) -> 0 | AD99: 0
A100: 04204-SALAMANCA | B100: 105491-P.S.R. QUELEN BAJO | E100: =IFERROR(VLOOKUP($B100,'[1]Num 1 2021'!$G$3:$T$95,11,FALSE),0) -> 0 | F100: =IFERROR(VLOOKUP($B100,'[1]Num 1 2021'!$G$3:$T$95,12,FALSE),0) -> 0 | G100: =IFERROR(VLOOKUP($B100,'[1]Num 1 2021'!$G$3:$T$95,13,FALSE),0) -> 0 | H100: =IFERROR(VLOOKUP($B100,'[1]Num 1'!$G$3:$O$88,2,FALSE),0) -> 0 | I100: =IFERROR(VLOOKUP($B100,'[1]Num 1'!$G$3:$O$88,3,FALSE),0) -> 0 | J100: =IFERROR(VLOOKUP($B100,'[1]Num 1'!$G$3:$O$88,4,FALSE),0) -> 0 | K100: =IFERROR(VLOOKUP($B100,'[1]Num 1'!$G$3:$O$88,5,FALSE),0) -> 0 | L100: =IFERROR(VLOOKUP($B100,'[1]Num 1'!$G$3:$O$88,6,FALSE),0) -> 0 | M100: =IFERROR(VLOOKUP($B100,'[1]Num 1'!$G$3:$O$88,7,FALSE),0) -> 0 | N100: =IFERROR(VLOOKUP($B100,'[1]Num 1'!$G$3:$O$88,8,FALSE),0) -> 0 | Q100: 0 | R100: =IFERROR(VLOOKUP($B100,'[1]Den 1 2021'!$G$3:$T$104,11,FALSE),0) -> 1 | S100: =IFERROR(VLOOKUP($B100,'[1]Den 1 2021'!$G$3:$T$104,12,FALSE),0) -> 0 | T100: =IFERROR(VLOOKUP($B100,'[1]Den 1 2021'!$G$3:$T$104,13,FALSE),0) -> 0 | U100: =IFERROR(VLOOKUP($B100,'[1]Den 1'!$G$3:$O$93,2,FALSE),0) -> 0 | V100: =IFERROR(VLOOKUP($B100,'[1]Den 1'!$G$3:$O$93,3,FALSE),0) -> 0 | W100: =IFERROR(VLOOKUP($B100,'[1]Den 1'!$G$3:$O$93,4,FALSE),0) -> 0 | X100: =IFERROR(VLOOKUP($B100,'[1]Den 1'!$G$3:$O$93,5,FALSE),0) -> 0 | Y100: =IFERROR(VLOOKUP($B100,'[1]Den 1'!$G$3:$O$93,6,FALSE),0) -> 0 | Z100: =IFERROR(VLOOKUP($B100,'[1]Den 1'!$G$3:$O$93,7,FALSE),0) -> 0 | AA100: =IFERROR(VLOOKUP($B100,'[1]Den 1'!$G$3:$O$93,8,FALSE),0) -> 0 | AD100: 1
A101: 04204-SALAMANCA | B101: 105492-P.S.R. CAMISA | E101: =IFERROR(VLOOKUP($B101,'[1]Num 1 2021'!$G$3:$T$95,11,FALSE),0) -> 0 | F101: =IFERROR(VLOOKUP($B101,'[1]Num 1 2021'!$G$3:$T$95,12,FALSE),0) -> 0 | G101: =IFERROR(VLOOKUP($B101,'[1]Num 1 2021'!$G$3:$T$95,13,FALSE),0) -> 0 | H101: =IFERROR(VLOOKUP($B101,'[1]Num 1'!$G$3:$O$88,2,FALSE),0) -> 0 | I101: =IFERROR(VLOOKUP($B101,'[1]Num 1'!$G$3:$O$88,3,FALSE),0) -> 0 | J101: =IFERROR(VLOOKUP($B101,'[1]Num 1'!$G$3:$O$88,4,FALSE),0) -> 0 | K101: =IFERROR(VLOOKUP($B101,'[1]Num 1'!$G$3:$O$88,5,FALSE),0) -> 0 | L101: =IFERROR(VLOOKUP($B101,'[1]Num 1'!$G$3:$O$88,6,FALSE),0) -> 0 | M101: =IFERROR(VLOOKUP($B101,'[1]Num 1'!$G$3:$O$88,7,FALSE),0) -> 0 | N101: =IFERROR(VLOOKUP($B101,'[1]Num 1'!$G$3:$O$88,8,FALSE),0) -> 0 | Q101: 0 | R101: =IFERROR(VLOOKUP($B101,'[1]Den 1 2021'!$G$3:$T$104,11,FALSE),0) -> 0 | S101: =IFERROR(VLOOKUP($B101,'[1]Den 1 2021'!$G$3:$T$104,12,FALSE),0) -> 0 | T101: =IFERROR(VLOOKUP($B101,'[1]Den 1 2021'!$G$3:$T$104,13,FALSE),0) -> 0 | U101: =IFERROR(VLOOKUP($B101,'[1]Den 1'!$G$3:$O$93,2,FALSE),0) -> 0 | V101: =IFERROR(VLOOKUP($B101,'[1]Den 1'!$G$3:$O$93,3,FALSE),0) -> 0 | W101: =IFERROR(VLOOKUP($B101,'[1]Den 1'!$G$3:$O$93,4,FALSE),0) -> 0 | X101: =IFERROR(VLOOKUP($B101,'[1]Den 1'!$G$3:$O$93,5,FALSE),0) -> 0 | Y101: =IFERROR(VLOOKUP($B101,'[1]Den 1'!$G$3:$O$93,6,FALSE),0) -> 0 | Z101: =IFERROR(VLOOKUP($B101,'[1]Den 1'!$G$3:$O$93,7,FALSE),0) -> 0 | AA101: =IFERROR(VLOOKUP($B101,'[1]Den 1'!$G$3:$O$93,8,FALSE),0) -> 0 | AD101: 0
A102: 04204-SALAMANCA | B102: 105501-P.S.R. ARBOLEDA GRANDE | E102: =IFERROR(VLOOKUP($B102,'[1]Num 1 2021'!$G$3:$T$95,11,FALSE),0) -> 0 | F102: =IFERROR(VLOOKUP($B102,'[1]Num 1 2021'!$G$3:$T$95,12,FALSE),0) -> 0 | G102: =IFERROR(VLOOKUP($B102,'[1]Num 1 2021'!$G$3:$T$95,13,FALSE),0) -> 0 | H102: =IFERROR(VLOOKUP($B102,'[1]Num 1'!$G$3:$O$88,2,FALSE),0) -> 0 | I102: =IFERROR(VLOOKUP($B102,'[1]Num 1'!$G$3:$O$88,3,FALSE),0) -> 0 | J102: =IFERROR(VLOOKUP($B102,'[1]Num 1'!$G$3:$O$88,4,FALSE),0) -> 0 | K102: =IFERROR(VLOOKUP($B102,'[1]Num 1'!$G$3:$O$88,5,FALSE),0) -> 0 | L102: =IFERROR(VLOOKUP($B102,'[1]Num 1'!$G$3:$O$88,6,FALSE),0) -> 0 | M102: =IFERROR(VLOOKUP($B102,'[1]Num 1'!$G$3:$O$88,7,FALSE),0) -> 0 | N102: =IFERROR(VLOOKUP($B102,'[1]Num 1'!$G$3:$O$88,8,FALSE),0) -> 0 | Q102: 0 | R102: =IFERROR(VLOOKUP($B102,'[1]Den 1 2021'!$G$3:$T$104,11,FALSE),0) -> 0 | S102: =IFERROR(VLOOKUP($B102,'[1]Den 1 2021'!$G$3:$T$104,12,FALSE),0) -> 0 | T102: =IFERROR(VLOOKUP($B102,'[1]Den 1 2021'!$G$3:$T$104,13,FALSE),0) -> 0 | U102: =IFERROR(VLOOKUP($B102,'[1]Den 1'!$G$3:$O$93,2,FALSE),0) -> 0 | V102: =IFERROR(VLOOKUP($B102,'[1]Den 1'!$G$3:$O$93,3,FALSE),0) -> 0 | W102: =IFERROR(VLOOKUP($B102,'[1]Den 1'!$G$3:$O$93,4,FALSE),0) -> 0 | X102: =IFERROR(VLOOKUP($B102,'[1]Den 1'!$G$3:$O$93,5,FALSE),0) -> 0 | Y102: =IFERROR(VLOOKUP($B102,'[1]Den 1'!$G$3:$O$93,6,FALSE),0) -> 0 | Z102: =IFERROR(VLOOKUP($B102,'[1]Den 1'!$G$3:$O$93,7,FALSE),0) -> 0 | AA102: =IFERROR(VLOOKUP($B102,'[1]Den 1'!$G$3:$O$93,8,FALSE),0) -> 0 | AD102: 0
A103: TOTAL SALAMANCA | C103: =D103/Metas!G13 -> 681.82% | D103: =Q103/AD103 -> 600.00% | E103: =SUM(E93:E102) -> 0 | F103: =SUM(F93:F102) -> 5 | G103: =SUM(G93:G102) -> 1 | H103: =SUM(H93:H102) -> 0 | I103: =SUM(I93:I102) -> 0 | J103: 0 | K103: 0 | L103: 0 | M103: 0 | N103: 0 | O103: 0 | P103: =SUM(P93:P102) -> 0 | Q103: 6 | R103: 1 | S103: 0 | T103: 0 | U103: 0 | V103: 0 | W103: 0 | X103: 0 | Y103: 0 | Z103: 0 | AA103: 0 | AB103: =SUM(AB93:AB102) -> 0 | AC103: =SUM(AC93:AC102) -> 0 | AD103: 1
A104: 04301-OVALLE | B104: 105315-CES. RURAL C. DE TAMAYA | E104: =IFERROR(VLOOKUP($B104,'[1]Num 1 2021'!$G$3:$T$95,11,FALSE),0) -> 1 | F104: =IFERROR(VLOOKUP($B104,'[1]Num 1 2021'!$G$3:$T$95,12,FALSE),0) -> 2 | G104: =IFERROR(VLOOKUP($B104,'[1]Num 1 2021'!$G$3:$T$95,13,FALSE),0) -> 4 | H104: =IFERROR(VLOOKUP($B104,'[1]Num 1'!$G$3:$O$88,2,FALSE),0) -> 0 | I104: =IFERROR(VLOOKUP($B104,'[1]Num 1'!$G$3:$O$88,3,FALSE),0) -> 0 | J104: =IFERROR(VLOOKUP($B104,'[1]Num 1'!$G$3:$O$88,4,FALSE),0) -> 0 | K104: =IFERROR(VLOOKUP($B104,'[1]Num 1'!$G$3:$O$88,5,FALSE),0) -> 0 | L104: =IFERROR(VLOOKUP($B104,'[1]Num 1'!$G$3:$O$88,6,FALSE),0) -> 0 | M104: =IFERROR(VLOOKUP($B104,'[1]Num 1'!$G$3:$O$88,7,FALSE),0) -> 1 | N104: =IFERROR(VLOOKUP($B104,'[1]Num 1'!$G$3:$O$88,8,FALSE),0) -> 0 | Q104: =SUM(E104:P104) -> 8 | R104: =IFERROR(VLOOKUP($B104,'[1]Den 1 2021'!$G$3:$T$104,11,FALSE),0) -> 1 | S104: =IFERROR(VLOOKUP($B104,'[1]Den 1 2021'!$G$3:$T$104,12,FALSE),0) -> 0 | T104: =IFERROR(VLOOKUP($B104,'[1]Den 1 2021'!$G$3:$T$104,13,FALSE),0) -> 0 | U104: =IFERROR(VLOOKUP($B104,'[1]Den 1'!$G$3:$O$93,2,FALSE),0) -> 2 | V104: =IFERROR(VLOOKUP($B104,'[1]Den 1'!$G$3:$O$93,3,FALSE),0) -> 0 | W104: =IFERROR(VLOOKUP($B104,'[1]Den 1'!$G$3:$O$93,4,FALSE),0) -> 0 | X104: =IFERROR(VLOOKUP($B104,'[1]Den 1'!$G$3:$O$93,5,FALSE),0) -> 0 | Y104: =IFERROR(VLOOKUP($B104,'[1]Den 1'!$G$3:$O$93,6,FALSE),0) -> 0 | Z104: =IFERROR(VLOOKUP($B104,'[1]Den 1'!$G$3:$O$93,7,FALSE),0) -> 0 | AA104: =IFERROR(VLOOKUP($B104,'[1]Den 1'!$G$3:$O$93,8,FALSE),0) -> 0 | AD104: 3
A105: 04301-OVALLE | B105: 105317-CES. JORGE JORDAN D. | E105: =IFERROR(VLOOKUP($B105,'[1]Num 1 2021'!$G$3:$T$95,11,FALSE),0) -> 1 | F105: =IFERROR(VLOOKUP($B105,'[1]Num 1 2021'!$G$3:$T$95,12,FALSE),0) -> 0 | G105: =IFERROR(VLOOKUP($B105,'[1]Num 1 2021'!$G$3:$T$95,13,FALSE),0) -> 0 | H105: =IFERROR(VLOOKUP($B105,'[1]Num 1'!$G$3:$O$88,2,FALSE),0) -> 0 | I105: =IFERROR(VLOOKUP($B105,'[1]Num 1'!$G$3:$O$88,3,FALSE),0) -> 4 | J105: =IFERROR(VLOOKUP($B105,'[1]Num 1'!$G$3:$O$88,4,FALSE),0) -> 6 | K105: =IFERROR(VLOOKUP($B105,'[1]Num 1'!$G$3:$O$88,5,FALSE),0) -> 0 | L105: =IFERROR(VLOOKUP($B105,'[1]Num 1'!$G$3:$O$88,6,FALSE),0) -> 0 | M105: =IFERROR(VLOOKUP($B105,'[1]Num 1'!$G$3:$O$88,7,FALSE),0) -> 0 | N105: =IFERROR(VLOOKUP($B105,'[1]Num 1'!$G$3:$O$88,8,FALSE),0) -> 0 | Q105: 11 | R105: =IFERROR(VLOOKUP($B105,'[1]Den 1 2021'!$G$3:$T$104,11,FALSE),0) -> 1 | S105: =IFERROR(VLOOKUP($B105,'[1]Den 1 2021'!$G$3:$T$104,12,FALSE),0) -> 5 | T105: =IFERROR(VLOOKUP($B105,'[1]Den 1 2021'!$G$3:$T$104,13,FALSE),0) -> 5 | U105: =IFERROR(VLOOKUP($B105,'[1]Den 1'!$G$3:$O$93,2,FALSE),0) -> 0 | V105: =IFERROR(VLOOKUP($B105,'[1]Den 1'!$G$3:$O$93,3,FALSE),0) -> 0 | W105: =IFERROR(VLOOKUP($B105,'[1]Den 1'!$G$3:$O$93,4,FALSE),0) -> 4 | X105: =IFERROR(VLOOKUP($B105,'[1]Den 1'!$G$3:$O$93,5,FALSE),0) -> 1 | Y105: =IFERROR(VLOOKUP($B105,'[1]Den 1'!$G$3:$O$93,6,FALSE),0) -> 1 | Z105: =IFERROR(VLOOKUP($B105,'[1]Den 1'!$G$3:$O$93,7,FALSE),0) -> 0 | AA105: =IFERROR(VLOOKUP($B105,'[1]Den 1'!$G$3:$O$93,8,FALSE),0) -> 2 | AD105: 19
A106: 04301-OVALLE | B106: 105322-CES. MARCOS MACUADA | E106: =IFERROR(VLOOKUP($B106,'[1]Num 1 2021'!$G$3:$T$95,11,FALSE),0) -> 2 | F106: =IFERROR(VLOOKUP($B106,'[1]Num 1 2021'!$G$3:$T$95,12,FALSE),0) -> 2 | G106: =IFERROR(VLOOKUP($B106,'[1]Num 1 2021'!$G$3:$T$95,13,FALSE),0) -> 3 | H106: =IFERROR(VLOOKUP($B106,'[1]Num 1'!$G$3:$O$88,2,FALSE),0) -> 0 | I106: =IFERROR(VLOOKUP($B106,'[1]Num 1'!$G$3:$O$88,3,FALSE),0) -> 0 | J106: =IFERROR(VLOOKUP($B106,'[1]Num 1'!$G$3:$O$88,4,FALSE),0) -> 0 | K106: =IFERROR(VLOOKUP($B106,'[1]Num 1'!$G$3:$O$88,5,FALSE),0) -> 0 | L106: =IFERROR(VLOOKUP($B106,'[1]Num 1'!$G$3:$O$88,6,FALSE),0) -> 0 | M106: =IFERROR(VLOOKUP($B106,'[1]Num 1'!$G$3:$O$88,7,FALSE),0) -> 3 | N106: =IFERROR(VLOOKUP($B106,'[1]Num 1'!$G$3:$O$88,8,FALSE),0) -> 2 | Q106: 12 | R106: =IFERROR(VLOOKUP($B106,'[1]Den 1 2021'!$G$3:$T$104,11,FALSE),0) -> 0 | S106: =IFERROR(VLOOKUP($B106,'[1]Den 1 2021'!$G$3:$T$104,12,FALSE),0) -> 0 | T106: =IFERROR(VLOOKUP($B106,'[1]Den 1 2021'!$G$3:$T$104,13,FALSE),0) -> 0 | U106: =IFERROR(VLOOKUP($B106,'[1]Den 1'!$G$3:$O$93,2,FALSE),0) -> 0 | V106: =IFERROR(VLOOKUP($B106,'[1]Den 1'!$G$3:$O$93,3,FALSE),0) -> 3 | W106: =IFERROR(VLOOKUP($B106,'[1]Den 1'!$G$3:$O$93,4,FALSE),0) -> 3 | X106: =IFERROR(VLOOKUP($B106,'[1]Den 1'!$G$3:$O$93,5,FALSE),0) -> 1 | Y106: =IFERROR(VLOOKUP($B106,'[1]Den 1'!$G$3:$O$93,6,FALSE),0) -> 2 | Z106: =IFERROR(VLOOKUP($B106,'[1]Den 1'!$G$3:$O$93,7,FALSE),0) -> 0 | AA106: =IFERROR(VLOOKUP($B106,'[1]Den 1'!$G$3:$O$93,8,FALSE),0) -> 2 | AD106: 11
A107: 04301-OVALLE | B107: 105324-CES. SOTAQUI | E107: =IFERROR(VLOOKUP($B107,'[1]Num 1 2021'!$G$3:$T$95,11,FALSE),0) -> 1 | F107: =IFERROR(VLOOKUP($B107,'[1]Num 1 2021'!$G$3:$T$95,12,FALSE),0) -> 1 | G107: =IFERROR(VLOOKUP($B107,'[1]Num 1 2021'!$G$3:$T$95,13,FALSE),0) -> 0 | H107: =IFERROR(VLOOKUP($B107,'[1]Num 1'!$G$3:$O$88,2,FALSE),0) -> 0 | I107: =IFERROR(VLOOKUP($B107,'[1]Num 1'!$G$3:$O$88,3,FALSE),0) -> 1 | J107: =IFERROR(VLOOKUP($B107,'[1]Num 1'!$G$3:$O$88,4,FALSE),0) -> 1 | K107: =IFERROR(VLOOKUP($B107,'[1]Num 1'!$G$3:$O$88,5,FALSE),0) -> 0 | L107: =IFERROR(VLOOKUP($B107,'[1]Num 1'!$G$3:$O$88,6,FALSE),0) -> 0 | M107: =IFERROR(VLOOKUP($B107,'[1]Num 1'!$G$3:$O$88,7,FALSE),0) -> 0 | N107: =IFERROR(VLOOKUP($B107,'[1]Num 1'!$G$3:$O$88,8,FALSE),0) -> 0 | Q107: 4 | R107: =IFERROR(VLOOKUP($B107,'[1]Den 1 2021'!$G$3:$T$104,11,FALSE),0) -> 1 | S107: =IFERROR(VLOOKUP($B107,'[1]Den 1 2021'!$G$3:$T$104,12,FALSE),0) -> 2 | T107: =IFERROR(VLOOKUP($B107,'[1]Den 1 2021'!$G$3:$T$104,13,FALSE),0) -> 0 | U107: =IFERROR(VLOOKUP($B107,'[1]Den 1'!$G$3:$O$93,2,FALSE),0) -> 0 | V107: =IFERROR(VLOOKUP($B107,'[1]Den 1'!$G$3:$O$93,3,FALSE),0) -> 0 | W107: =IFERROR(VLOOKUP($B107,'[1]Den 1'!$G$3:$O$93,4,FALSE),0) -> 0 | X107: =IFERROR(VLOOKUP($B107,'[1]Den 1'!$G$3:$O$93,5,FALSE),0) -> 0 | Y107: =IFERROR(VLOOKUP($B107,'[1]Den 1'!$G$3:$O$93,6,FALSE),0) -> 2 | Z107: =IFERROR(VLOOKUP($B107,'[1]Den 1'!$G$3:$O$93,7,FALSE),0) -> 0 | AA107: =IFERROR(VLOOKUP($B107,'[1]Den 1'!$G$3:$O$93,8,FALSE),0) -> 1 | AD107: 6
A108: 04301-OVALLE | B108: 105415-P.S.R. BARRAZA | E108: =IFERROR(VLOOKUP($B108,'[1]Num 1 2021'!$G$3:$T$95,11,FALSE),0) -> 0 | F108: =IFERROR(VLOOKUP($B108,'[1]Num 1 2021'!$G$3:$T$95,12,FALSE),0) -> 0 | G108: =IFERROR(VLOOKUP($B108,'[1]Num 1 2021'!$G$3:$T$95,13,FALSE),0) -> 0 | H108: =IFERROR(VLOOKUP($B108,'[1]Num 1'!$G$3:$O$88,2,FALSE),0) -> 0 | I108: =IFERROR(VLOOKUP($B108,'[1]Num 1'!$G$3:$O$88,3,FALSE),0) -> 0 | J108: =IFERROR(VLOOKUP($B108,'[1]Num 1'!$G$3:$O$88,4,FALSE),0) -> 0 | K108: =IFERROR(VLOOKUP($B108,'[1]Num 1'!$G$3:$O$88,5,FALSE),0) -> 0 | L108: =IFERROR(VLOOKUP($B108,'[1]Num 1'!$G$3:$O$88,6,FALSE),0) -> 0 | M108: =IFERROR(VLOOKUP($B108,'[1]Num 1'!$G$3:$O$88,7,FALSE),0) -> 0 | N108: =IFERROR(VLOOKUP($B108,'[1]Num 1'!$G$3:$O$88,8,FALSE),0) -> 0 | Q108: 0 | R108: =IFERROR(VLOOKUP($B108,'[1]Den 1 2021'!$G$3:$T$104,11,FALSE),0) -> 0 | S108: =IFERROR(VLOOKUP($B108,'[1]Den 1 2021'!$G$3:$T$104,12,FALSE),0) -> 0 | T108: =IFERROR(VLOOKUP($B108,'[1]Den 1 2021'!$G$3:$T$104,13,FALSE),0) -> 0 | U108: =IFERROR(VLOOKUP($B108,'[1]Den 1'!$G$3:$O$93,2,FALSE),0) -> 1 | V108: =IFERROR(VLOOKUP($B108,'[1]Den 1'!$G$3:$O$93,3,FALSE),0) -> 0 | W108: =IFERROR(VLOOKUP($B108,'[1]Den 1'!$G$3:$O$93,4,FALSE),0) -> 1 | X108: =IFERROR(VLOOKUP($B108,'[1]Den 1'!$G$3:$O$93,5,FALSE),0) -> 0 | Y108: =IFERROR(VLOOKUP($B108,'[1]Den 1'!$G$3:$O$93,6,FALSE),0) -> 0 | Z108: =IFERROR(VLOOKUP($B108,'[1]Den 1'!$G$3:$O$93,7,FALSE),0) -> 0 | AA108: =IFERROR(VLOOKUP($B108,'[1]Den 1'!$G$3:$O$93,8,FALSE),0) -> 1 | AD108: 3
A109: 04301-OVALLE | B109: 105416-P.S.R. CAMARICO | E109: =IFERROR(VLOOKUP($B109,'[1]Num 1 2021'!$G$3:$T$95,11,FALSE),0) -> 0 | F109: =IFERROR(VLOOKUP($B109,'[1]Num 1 2021'!$G$3:$T$95,12,FALSE),0) -> 0 | G109: =IFERROR(VLOOKUP($B109,'[1]Num 1 2021'!$G$3:$T$95,13,FALSE),0) -> 0 | H109: =IFERROR(VLOOKUP($B109,'[1]Num 1'!$G$3:$O$88,2,FALSE),0) -> 0 | I109: =IFERROR(VLOOKUP($B109,'[1]Num 1'!$G$3:$O$88,3,FALSE),0) -> 0 | J109: =IFERROR(VLOOKUP($B109,'[1]Num 1'!$G$3:$O$88,4,FALSE),0) -> 0 | K109: =IFERROR(VLOOKUP($B109,'[1]Num 1'!$G$3:$O$88,5,FALSE),0) -> 0 | L109: =IFERROR(VLOOKUP($B109,'[1]Num 1'!$G$3:$O$88,6,FALSE),0) -> 0 | M109: =IFERROR(VLOOKUP($B109,'[1]Num 1'!$G$3:$O$88,7,FALSE),0) -> 0 | N109: =IFERROR(VLOOKUP($B109,'[1]Num 1'!$G$3:$O$88,8,FALSE),0) -> 0 | Q109: 0 | R109: =IFERROR(VLOOKUP($B109,'[1]Den 1 2021'!$G$3:$T$104,11,FALSE),0) -> 0 | S109: =IFERROR(VLOOKUP($B109,'[1]Den 1 2021'!$G$3:$T$104,12,FALSE),0) -> 0 | T109: =IFERROR(VLOOKUP($B109,'[1]Den 1 2021'!$G$3:$T$104,13,FALSE),0) -> 0 | U109: =IFERROR(VLOOKUP($B109,'[1]Den 1'!$G$3:$O$93,2,FALSE),0) -> 0 | V109: =IFERROR(VLOOKUP($B109,'[1]Den 1'!$G$3:$O$93,3,FALSE),0) -> 0 | W109: =IFERROR(VLOOKUP($B109,'[1]Den 1'!$G$3:$O$93,4,FALSE),0) -> 0 | X109: =IFERROR(VLOOKUP($B109,'[1]Den 1'!$G$3:$O$93,5,FALSE),0) -> 1 | Y109: =IFERROR(VLOOKUP($B109,'[1]Den 1'!$G$3:$O$93,6,FALSE),0) -> 0 | Z109: =IFERROR(VLOOKUP($B109,'[1]Den 1'!$G$3:$O$93,7,FALSE),0) -> 0 | AA109: =IFERROR(VLOOKUP($B109,'[1]Den 1'!$G$3:$O$93,8,FALSE),0) -> 0 | AD109: 1
A110: 04301-OVALLE | B110: 105417-P.S.R. ALCONES BAJOS | E110: =IFERROR(VLOOKUP($B110,'[1]Num 1 2021'!$G$3:$T$95,11,FALSE),0) -> 0 | F110: =IFERROR(VLOOKUP($B110,'[1]Num 1 2021'!$G$3:$T$95,12,FALSE),0) -> 0 | G110: =IFERROR(VLOOKUP($B110,'[1]Num 1 2021'!$G$3:$T$95,13,FALSE),0) -> 0 | H110: =IFERROR(VLOOKUP($B110,'[1]Num 1'!$G$3:$O$88,2,FALSE),0) -> 0 | I110: =IFERROR(VLOOKUP($B110,'[1]Num 1'!$G$3:$O$88,3,FALSE),0) -> 0 | J110: =IFERROR(VLOOKUP($B110,'[1]Num 1'!$G$3:$O$88,4,FALSE),0) -> 0 | K110: =IFERROR(VLOOKUP($B110,'[1]Num 1'!$G$3:$O$88,5,FALSE),0) -> 0 | L110: =IFERROR(VLOOKUP($B110,'[1]Num 1'!$G$3:$O$88,6,FALSE),0) -> 0 | M110: =IFERROR(VLOOKUP($B110,'[1]Num 1'!$G$3:$O$88,7,FALSE),0) -> 0 | N110: =IFERROR(VLOOKUP($B110,'[1]Num 1'!$G$3:$O$88,8,FALSE),0) -> 0 | Q110: 0 | R110: =IFERROR(VLOOKUP($B110,'[1]Den 1 2021'!$G$3:$T$104,11,FALSE),0) -> 0 | S110: =IFERROR(VLOOKUP($B110,'[1]Den 1 2021'!$G$3:$T$104,12,FALSE),0) -> 0 | T110: =IFERROR(VLOOKUP($B110,'[1]Den 1 2021'!$G$3:$T$104,13,FALSE),0) -> 0 | U110: =IFERROR(VLOOKUP($B110,'[1]Den 1'!$G$3:$O$93,2,FALSE),0) -> 0 | V110: =IFERROR(VLOOKUP($B110,'[1]Den 1'!$G$3:$O$93,3,FALSE),0) -> 0 | W110: =IFERROR(VLOOKUP($B110,'[1]Den 1'!$G$3:$O$93,4,FALSE),0) -> 0 | X110: =IFERROR(VLOOKUP($B110,'[1]Den 1'!$G$3:$O$93,5,FALSE),0) -> 0 | Y110: =IFERROR(VLOOKUP($B110,'[1]Den 1'!$G$3:$O$93,6,FALSE),0) -> 0 | Z110: =IFERROR(VLOOKUP($B110,'[1]Den 1'!$G$3:$O$93,7,FALSE),0) -> 0 | AA110: =IFERROR(VLOOKUP($B110,'[1]Den 1'!$G$3:$O$93,8,FALSE),0) -> 0 | AD110: 0
A111: 04301-OVALLE | B111: 105419-P.S.R. LAS SOSSAS | E111: =IFERROR(VLOOKUP($B111,'[1]Num 1 2021'!$G$3:$T$95,11,FALSE),0) -> 0 | F111: =IFERROR(VLOOKUP($B111,'[1]Num 1 2021'!$G$3:$T$95,12,FALSE),0) -> 0 | G111: =IFERROR(VLOOKUP($B111,'[1]Num 1 2021'!$G$3:$T$95,13,FALSE),0) -> 0 | H111: =IFERROR(VLOOKUP($B111,'[1]Num 1'!$G$3:$O$88,2,FALSE),0) -> 0 | I111: =IFERROR(VLOOKUP($B111,'[1]Num 1'!$G$3:$O$88,3,FALSE),0) -> 0 | J111: =IFERROR(VLOOKUP($B111,'[1]Num 1'!$G$3:$O$88,4,FALSE),0) -> 0 | K111: =IFERROR(VLOOKUP($B111,'[1]Num 1'!$G$3:$O$88,5,FALSE),0) -> 0 | L111: =IFERROR(VLOOKUP($B111,'[1]Num 1'!$G$3:$O$88,6,FALSE),0) -> 1 | M111: =IFERROR(VLOOKUP($B111,'[1]Num 1'!$G$3:$O$88,7,FALSE),0) -> 0 | N111: =IFERROR(VLOOKUP($B111,'[1]Num 1'!$G$3:$O$88,8,FALSE),0) -> 0 | Q111: 1 | R111: =IFERROR(VLOOKUP($B111,'[1]Den 1 2021'!$G$3:$T$104,11,FALSE),0) -> 0 | S111: =IFERROR(VLOOKUP($B111,'[1]Den 1 2021'!$G$3:$T$104,12,FALSE),0) -> 0 | T111: =IFERROR(VLOOKUP($B111,'[1]Den 1 2021'!$G$3:$T$104,13,FALSE),0) -> 0 | U111: =IFERROR(VLOOKUP($B111,'[1]Den 1'!$G$3:$O$93,2,FALSE),0) -> 1 | V111: =IFERROR(VLOOKUP($B111,'[1]Den 1'!$G$3:$O$93,3,FALSE),0) -> 0 | W111: =IFERROR(VLOOKUP($B111,'[1]Den 1'!$G$3:$O$93,4,FALSE),0) -> 1 | X111: =IFERROR(VLOOKUP($B111,'[1]Den 1'!$G$3:$O$93,5,FALSE),0) -> 0 | Y111: =IFERROR(VLOOKUP($B111,'[1]Den 1'!$G$3:$O$93,6,FALSE),0) -> 0 | Z111: =IFERROR(VLOOKUP($B111,'[1]Den 1'!$G$3:$O$93,7,FALSE),0) -> 0 | AA111: =IFERROR(VLOOKUP($B111,'[1]Den 1'!$G$3:$O$93,8,FALSE),0) -> 0 | AD111: 2
A112: 04301-OVALLE | B112: 105422-P.S.R. HORNILLOS | E112: =IFERROR(VLOOKUP($B112,'[1]Num 1 2021'!$G$3:$T$95,11,FALSE),0) -> 0 | F112: =IFERROR(VLOOKUP($B112,'[1]Num 1 2021'!$G$3:$T$95,12,FALSE),0) -> 0 | G112: =IFERROR(VLOOKUP($B112,'[1]Num 1 2021'!$G$3:$T$95,13,FALSE),0) -> 0 | H112: =IFERROR(VLOOKUP($B112,'[1]Num 1'!$G$3:$O$88,2,FALSE),0) -> 0 | I112: =IFERROR(VLOOKUP($B112,'[1]Num 1'!$G$3:$O$88,3,FALSE),0) -> 0 | J112: =IFERROR(VLOOKUP($B112,'[1]Num 1'!$G$3:$O$88,4,FALSE),0) -> 0 | K112: =IFERROR(VLOOKUP($B112,'[1]Num 1'!$G$3:$O$88,5,FALSE),0) -> 0 | L112: =IFERROR(VLOOKUP($B112,'[1]Num 1'!$G$3:$O$88,6,FALSE),0) -> 0 | M112: =IFERROR(VLOOKUP($B112,'[1]Num 1'!$G$3:$O$88,7,FALSE),0) -> 0 | N112: =IFERROR(VLOOKUP($B112,'[1]Num 1'!$G$3:$O$88,8,FALSE),0) -> 0 | Q112: 0 | R112: =IFERROR(VLOOKUP($B112,'[1]Den 1 2021'!$G$3:$T$104,11,FALSE),0) -> 0 | S112: =IFERROR(VLOOKUP($B112,'[1]Den 1 2021'!$G$3:$T$104,12,FALSE),0) -> 0 | T112: =IFERROR(VLOOKUP($B112,'[1]Den 1 2021'!$G$3:$T$104,13,FALSE),0) -> 0 | U112: =IFERROR(VLOOKUP($B112,'[1]Den 1'!$G$3:$O$93,2,FALSE),0) -> 0 | V112: =IFERROR(VLOOKUP($B112,'[1]Den 1'!$G$3:$O$93,3,FALSE),0) -> 0 | W112: =IFERROR(VLOOKUP($B112,'[1]Den 1'!$G$3:$O$93,4,FALSE),0) -> 0 | X112: =IFERROR(VLOOKUP($B112,'[1]Den 1'!$G$3:$O$93,5,FALSE),0) -> 0 | Y112: =IFERROR(VLOOKUP($B112,'[1]Den 1'!$G$3:$O$93,6,FALSE),0) -> 0 | Z112: =IFERROR(VLOOKUP($B112,'[1]Den 1'!$G$3:$O$93,7,FALSE),0) -> 0 | AA112: =IFERROR(VLOOKUP($B112,'[1]Den 1'!$G$3:$O$93,8,FALSE),0) -> 0 | AD112: 0
A113: 04301-OVALLE | B113: 105437-P.S.R. CHALINGA | E113: =IFERROR(VLOOKUP($B113,'[1]Num 1 2021'!$G$3:$T$95,11,FALSE),0) -> 0 | F113: =IFERROR(VLOOKUP($B113,'[1]Num 1 2021'!$G$3:$T$95,12,FALSE),0) -> 0 | G113: =IFERROR(VLOOKUP($B113,'[1]Num 1 2021'!$G$3:$T$95,13,FALSE),0) -> 0 | H113: =IFERROR(VLOOKUP($B113,'[1]Num 1'!$G$3:$O$88,2,FALSE),0) -> 0 | I113: =IFERROR(VLOOKUP($B113,'[1]Num 1'!$G$3:$O$88,3,FALSE),0) -> 0 | J113: =IFERROR(VLOOKUP($B113,'[1]Num 1'!$G$3:$O$88,4,FALSE),0) -> 0 | K113: =IFERROR(VLOOKUP($B113,'[1]Num 1'!$G$3:$O$88,5,FALSE),0) -> 0 | L113: =IFERROR(VLOOKUP($B113,'[1]Num 1'!$G$3:$O$88,6,FALSE),0) -> 0 | M113: =IFERROR(VLOOKUP($B113,'[1]Num 1'!$G$3:$O$88,7,FALSE),0) -> 0 | N113: =IFERROR(VLOOKUP($B113,'[1]Num 1'!$G$3:$O$88,8,FALSE),0) -> 0 | Q113: 0 | R113: =IFERROR(VLOOKUP($B113,'[1]Den 1 2021'!$G$3:$T$104,11,FALSE),0) -> 0 | S113: =IFERROR(VLOOKUP($B113,'[1]Den 1 2021'!$G$3:$T$104,12,FALSE),0) -> 0 | T113: =IFERROR(VLOOKUP($B113,'[1]Den 1 2021'!$G$3:$T$104,13,FALSE),0) -> 0 | U113: =IFERROR(VLOOKUP($B113,'[1]Den 1'!$G$3:$O$93,2,FALSE),0) -> 0 | V113: =IFERROR(VLOOKUP($B113,'[1]Den 1'!$G$3:$O$93,3,FALSE),0) -> 0 | W113: =IFERROR(VLOOKUP($B113,'[1]Den 1'!$G$3:$O$93,4,FALSE),0) -> 0 | X113: =IFERROR(VLOOKUP($B113,'[1]Den 1'!$G$3:$O$93,5,FALSE),0) -> 0 | Y113: =IFERROR(VLOOKUP($B113,'[1]Den 1'!$G$3:$O$93,6,FALSE),0) -> 0 | Z113: =IFERROR(VLOOKUP($B113,'[1]Den 1'!$G$3:$O$93,7,FALSE),0) -> 0 | AA113: =IFERROR(VLOOKUP($B113,'[1]Den 1'!$G$3:$O$93,8,FALSE),0) -> 0 | AD113: 0
A114: 04301-OVALLE | B114: 105439-P.S.R. CERRO BLANCO | E114: =IFERROR(VLOOKUP($B114,'[1]Num 1 2021'!$G$3:$T$95,11,FALSE),0) -> 0 | F114: =IFERROR(VLOOKUP($B114,'[1]Num 1 2021'!$G$3:$T$95,12,FALSE),0) -> 0 | G114: =IFERROR(VLOOKUP($B114,'[1]Num 1 2021'!$G$3:$T$95,13,FALSE),0) -> 0 | H114: =IFERROR(VLOOKUP($B114,'[1]Num 1'!$G$3:$O$88,2,FALSE),0) -> 0 | I114: =IFERROR(VLOOKUP($B114,'[1]Num 1'!$G$3:$O$88,3,FALSE),0) -> 0 | J114: =IFERROR(VLOOKUP($B114,'[1]Num 1'!$G$3:$O$88,4,FALSE),0) -> 0 | K114: =IFERROR(VLOOKUP($B114,'[1]Num 1'!$G$3:$O$88,5,FALSE),0) -> 0 | L114: =IFERROR(VLOOKUP($B114,'[1]Num 1'!$G$3:$O$88,6,FALSE),0) -> 0 | M114: =IFERROR(VLOOKUP($B114,'[1]Num 1'!$G$3:$O$88,7,FALSE),0) -> 0 | N114: =IFERROR(VLOOKUP($B114,'[1]Num 1'!$G$3:$O$88,8,FALSE),0) -> 0 | Q114: 0 | R114: =IFERROR(VLOOKUP($B114,'[1]Den 1 2021'!$G$3:$T$104,11,FALSE),0) -> 0 | S114: =IFERROR(VLOOKUP($B114,'[1]Den 1 2021'!$G$3:$T$104,12,FALSE),0) -> 0 | T114: =IFERROR(VLOOKUP($B114,'[1]Den 1 2021'!$G$3:$T$104,13,FALSE),0) -> 0 | U114: =IFERROR(VLOOKUP($B114,'[1]Den 1'!$G$3:$O$93,2,FALSE),0) -> 0 | V114: =IFERROR(VLOOKUP($B114,'[1]Den 1'!$G$3:$O$93,3,FALSE),0) -> 0 | W114: =IFERROR(VLOOKUP($B114,'[1]Den 1'!$G$3:$O$93,4,FALSE),0) -> 0 | X114: =IFERROR(VLOOKUP($B114,'[1]Den 1'!$G$3:$O$93,5,FALSE),0) -> 0 | Y114: =IFERROR(VLOOKUP($B114,'[1]Den 1'!$G$3:$O$93,6,FALSE),0) -> 0 | Z114: =IFERROR(VLOOKUP($B114,'[1]Den 1'!$G$3:$O$93,7,FALSE),0) -> 0 | AA114: =IFERROR(VLOOKUP($B114,'[1]Den 1'!$G$3:$O$93,8,FALSE),0) -> 0 | AD114: 0
A115: 04301-OVALLE | B115: 105507-P.S.R. HUAMALATA | E115: =IFERROR(VLOOKUP($B115,'[1]Num 1 2021'!$G$3:$T$95,11,FALSE),0) -> 0 | F115: =IFERROR(VLOOKUP($B115,'[1]Num 1 2021'!$G$3:$T$95,12,FALSE),0) -> 0 | G115: =IFERROR(VLOOKUP($B115,'[1]Num 1 2021'!$G$3:$T$95,13,FALSE),0) -> 0 | H115: =IFERROR(VLOOKUP($B115,'[1]Num 1'!$G$3:$O$88,2,FALSE),0) -> 0 | I115: =IFERROR(VLOOKUP($B115,'[1]Num 1'!$G$3:$O$88,3,FALSE),0) -> 0 | J115: =IFERROR(VLOOKUP($B115,'[1]Num 1'!$G$3:$O$88,4,FALSE),0) -> 0 | K115: =IFERROR(VLOOKUP($B115,'[1]Num 1'!$G$3:$O$88,5,FALSE),0) -> 0 | L115: =IFERROR(VLOOKUP($B115,'[1]Num 1'!$G$3:$O$88,6,FALSE),0) -> 0 | M115: =IFERROR(VLOOKUP($B115,'[1]Num 1'!$G$3:$O$88,7,FALSE),0) -> 0 | N115: =IFERROR(VLOOKUP($B115,'[1]Num 1'!$G$3:$O$88,8,FALSE),0) -> 0 | Q115: 0 | R115: =IFERROR(VLOOKUP($B115,'[1]Den 1 2021'!$G$3:$T$104,11,FALSE),0) -> 0 | S115: =IFERROR(VLOOKUP($B115,'[1]Den 1 2021'!$G$3:$T$104,12,FALSE),0) -> 0 | T115: =IFERROR(VLOOKUP($B115,'[1]Den 1 2021'!$G$3:$T$104,13,FALSE),0) -> 0 | U115: =IFERROR(VLOOKUP($B115,'[1]Den 1'!$G$3:$O$93,2,FALSE),0) -> 0 | V115: =IFERROR(VLOOKUP($B115,'[1]Den 1'!$G$3:$O$93,3,FALSE),0) -> 0 | W115: =IFERROR(VLOOKUP($B115,'[1]Den 1'!$G$3:$O$93,4,FALSE),0) -> 0 | X115: =IFERROR(VLOOKUP($B115,'[1]Den 1'!$G$3:$O$93,5,FALSE),0) -> 0 | Y115: =IFERROR(VLOOKUP($B115,'[1]Den 1'!$G$3:$O$93,6,FALSE),0) -> 0 | Z115: =IFERROR(VLOOKUP($B115,'[1]Den 1'!$G$3:$O$93,7,FALSE),0) -> 0 | AA115: =IFERROR(VLOOKUP($B115,'[1]Den 1'!$G$3:$O$93,8,FALSE),0) -> 0 | AD115: =SUM(R115:AC115) -> 0
A116: 04301-OVALLE | B116: 105510-P.S.R. RECOLETA | E116: =IFERROR(VLOOKUP($B116,'[1]Num 1 2021'!$G$3:$T$95,11,FALSE),0) -> 0 | F116: =IFERROR(VLOOKUP($B116,'[1]Num 1 2021'!$G$3:$T$95,12,FALSE),0) -> 0 | G116: =IFERROR(VLOOKUP($B116,'[1]Num 1 2021'!$G$3:$T$95,13,FALSE),0) -> 0 | H116: =IFERROR(VLOOKUP($B116,'[1]Num 1'!$G$3:$O$88,2,FALSE),0) -> 0 | I116: =IFERROR(VLOOKUP($B116,'[1]Num 1'!$G$3:$O$88,3,FALSE),0) -> 0 | J116: =IFERROR(VLOOKUP($B116,'[1]Num 1'!$G$3:$O$88,4,FALSE),0) -> 0 | K116: =IFERROR(VLOOKUP($B116,'[1]Num 1'!$G$3:$O$88,5,FALSE),0) -> 0 | L116: =IFERROR(VLOOKUP($B116,'[1]Num 1'!$G$3:$O$88,6,FALSE),0) -> 1 | M116: =IFERROR(VLOOKUP($B116,'[1]Num 1'!$G$3:$O$88,7,FALSE),0) -> 0 | N116: =IFERROR(VLOOKUP($B116,'[1]Num 1'!$G$3:$O$88,8,FALSE),0) -> 0 | Q116: 1 | R116: =IFERROR(VLOOKUP($B116,'[1]Den 1 2021'!$G$3:$T$104,11,FALSE),0) -> 0 | S116: =IFERROR(VLOOKUP($B116,'[1]Den 1 2021'!$G$3:$T$104,12,FALSE),0) -> 0 | T116: =IFERROR(VLOOKUP($B116,'[1]Den 1 2021'!$G$3:$T$104,13,FALSE),0) -> 0 | U116: =IFERROR(VLOOKUP($B116,'[1]Den 1'!$G$3:$O$93,2,FALSE),0) -> 0 | V116: =IFERROR(VLOOKUP($B116,'[1]Den 1'!$G$3:$O$93,3,FALSE),0) -> 1 | W116: =IFERROR(VLOOKUP($B116,'[1]Den 1'!$G$3:$O$93,4,FALSE),0) -> 0 | X116: =IFERROR(VLOOKUP($B116,'[1]Den 1'!$G$3:$O$93,5,FALSE),0) -> 0 | Y116: =IFERROR(VLOOKUP($B116,'[1]Den 1'!$G$3:$O$93,6,FALSE),0) -> 0 | Z116: =IFERROR(VLOOKUP($B116,'[1]Den 1'!$G$3:$O$93,7,FALSE),0) -> 0 | AA116: =IFERROR(VLOOKUP($B116,'[1]Den 1'!$G$3:$O$93,8,FALSE),0) -> 0 | AD116: =SUM(R116:AC116) -> 1
A117: 04301-OVALLE | B117: 105722-CECOF SAN JOSE DE LA DEHESA | E117: =IFERROR(VLOOKUP($B117,'[1]Num 1 2021'!$G$3:$T$95,11,FALSE),0) -> 0 | F117: =IFERROR(VLOOKUP($B117,'[1]Num 1 2021'!$G$3:$T$95,12,FALSE),0) -> 1 | G117: =IFERROR(VLOOKUP($B117,'[1]Num 1 2021'!$G$3:$T$95,13,FALSE),0) -> 0 | H117: =IFERROR(VLOOKUP($B117,'[1]Num 1'!$G$3:$O$88,2,FALSE),0) -> 0 | I117: =IFERROR(VLOOKUP($B117,'[1]Num 1'!$G$3:$O$88,3,FALSE),0) -> 0 | J117: =IFERROR(VLOOKUP($B117,'[1]Num 1'!$G$3:$O$88,4,FALSE),0) -> 0 | K117: =IFERROR(VLOOKUP($B117,'[1]Num 1'!$G$3:$O$88,5,FALSE),0) -> 0 | L117: =IFERROR(VLOOKUP($B117,'[1]Num 1'!$G$3:$O$88,6,FALSE),0) -> 0 | M117: =IFERROR(VLOOKUP($B117,'[1]Num 1'!$G$3:$O$88,7,FALSE),0) -> 0 | N117: =IFERROR(VLOOKUP($B117,'[1]Num 1'!$G$3:$O$88,8,FALSE),0) -> 0 | Q117: 1 | R117: =IFERROR(VLOOKUP($B117,'[1]Den 1 2021'!$G$3:$T$104,11,FALSE),0) -> 0 | S117: =IFERROR(VLOOKUP($B117,'[1]Den 1 2021'!$G$3:$T$104,12,FALSE),0) -> 0 | T117: =IFERROR(VLOOKUP($B117,'[1]Den 1 2021'!$G$3:$T$104,13,FALSE),0) -> 0 | U117: =IFERROR(VLOOKUP($B117,'[1]Den 1'!$G$3:$O$93,2,FALSE),0) -> 2 | V117: =IFERROR(VLOOKUP($B117,'[1]Den 1'!$G$3:$O$93,3,FALSE),0) -> 0 | W117: =IFERROR(VLOOKUP($B117,'[1]Den 1'!$G$3:$O$93,4,FALSE),0) -> 0 | X117: =IFERROR(VLOOKUP($B117,'[1]Den 1'!$G$3:$O$93,5,FALSE),0) -> 0 | Y117: =IFERROR(VLOOKUP($B117,'[1]Den 1'!$G$3:$O$93,6,FALSE),0) -> 0 | Z117: =IFERROR(VLOOKUP($B117,'[1]Den 1'!$G$3:$O$93,7,FALSE),0) -> 0 | AA117: =IFERROR(VLOOKUP($B117,'[1]Den 1'!$G$3:$O$93,8,FALSE),0) -> 0 | AD117: =SUM(R117:AC117) -> 2
A118: 04301-OVALLE | B118: 105723-CECOF LIMARI | E118: =IFERROR(VLOOKUP($B118,'[1]Num 1 2021'!$G$3:$T$95,11,FALSE),0) -> 0 | F118: =IFERROR(VLOOKUP($B118,'[1]Num 1 2021'!$G$3:$T$95,12,FALSE),0) -> 0 | G118: =IFERROR(VLOOKUP($B118,'[1]Num 1 2021'!$G$3:$T$95,13,FALSE),0) -> 0 | H118: =IFERROR(VLOOKUP($B118,'[1]Num 1'!$G$3:$O$88,2,FALSE),0) -> 0 | I118: =IFERROR(VLOOKUP($B118,'[1]Num 1'!$G$3:$O$88,3,FALSE),0) -> 0 | J118: =IFERROR(VLOOKUP($B118,'[1]Num 1'!$G$3:$O$88,4,FALSE),0) -> 0 | K118: =IFERROR(VLOOKUP($B118,'[1]Num 1'!$G$3:$O$88,5,FALSE),0) -> 0 | L118: =IFERROR(VLOOKUP($B118,'[1]Num 1'!$G$3:$O$88,6,FALSE),0) -> 0 | M118: =IFERROR(VLOOKUP($B118,'[1]Num 1'!$G$3:$O$88,7,FALSE),0) -> 0 | N118: =IFERROR(VLOOKUP($B118,'[1]Num 1'!$G$3:$O$88,8,FALSE),0) -> 0 | Q118: 0 | R118: =IFERROR(VLOOKUP($B118,'[1]Den 1 2021'!$G$3:$T$104,11,FALSE),0) -> 0 | S118: =IFERROR(VLOOKUP($B118,'[1]Den 1 2021'!$G$3:$T$104,12,FALSE),0) -> 0 | T118: =IFERROR(VLOOKUP($B118,'[1]Den 1 2021'!$G$3:$T$104,13,FALSE),0) -> 0 | U118: =IFERROR(VLOOKUP($B118,'[1]Den 1'!$G$3:$O$93,2,FALSE),0) -> 0 | V118: =IFERROR(VLOOKUP($B118,'[1]Den 1'!$G$3:$O$93,3,FALSE),0) -> 0 | W118: =IFERROR(VLOOKUP($B118,'[1]Den 1'!$G$3:$O$93,4,FALSE),0) -> 0 | X118: =IFERROR(VLOOKUP($B118,'[1]Den 1'!$G$3:$O$93,5,FALSE),0) -> 0 | Y118: =IFERROR(VLOOKUP($B118,'[1]Den 1'!$G$3:$O$93,6,FALSE),0) -> 0 | Z118: =IFERROR(VLOOKUP($B118,'[1]Den 1'!$G$3:$O$93,7,FALSE),0) -> 0 | AA118: =IFERROR(VLOOKUP($B118,'[1]Den 1'!$G$3:$O$93,8,FALSE),0) -> 0 | AD118: 0
A119: 04301-OVALLE | B119: 200258-CECOF LOS COPIHUES | E119: =IFERROR(VLOOKUP($B119,'[1]Num 1 2021'!$G$3:$T$95,11,FALSE),0) -> 0 | F119: =IFERROR(VLOOKUP($B119,'[1]Num 1 2021'!$G$3:$T$95,12,FALSE),0) -> 0 | G119: =IFERROR(VLOOKUP($B119,'[1]Num 1 2021'!$G$3:$T$95,13,FALSE),0) -> 0 | H119: =IFERROR(VLOOKUP($B119,'[1]Num 1'!$G$3:$O$88,2,FALSE),0) -> 0 | I119: =IFERROR(VLOOKUP($B119,'[1]Num 1'!$G$3:$O$88,3,FALSE),0) -> 0 | J119: =IFERROR(VLOOKUP($B119,'[1]Num 1'!$G$3:$O$88,4,FALSE),0) -> 0 | K119: =IFERROR(VLOOKUP($B119,'[1]Num 1'!$G$3:$O$88,5,FALSE),0) -> 1 | L119: =IFERROR(VLOOKUP($B119,'[1]Num 1'!$G$3:$O$88,6,FALSE),0) -> 0 | M119: =IFERROR(VLOOKUP($B119,'[1]Num 1'!$G$3:$O$88,7,FALSE),0) -> 0 | N119: =IFERROR(VLOOKUP($B119,'[1]Num 1'!$G$3:$O$88,8,FALSE),0) -> 0 | Q119: 1 | R119: =IFERROR(VLOOKUP($B119,'[1]Den 1 2021'!$G$3:$T$104,11,FALSE),0) -> 0 | S119: =IFERROR(VLOOKUP($B119,'[1]Den 1 2021'!$G$3:$T$104,12,FALSE),0) -> 0 | T119: =IFERROR(VLOOKUP($B119,'[1]Den 1 2021'!$G$3:$T$104,13,FALSE),0) -> 0 | U119: =IFERROR(VLOOKUP($B119,'[1]Den 1'!$G$3:$O$93,2,FALSE),0) -> 0 | V119: =IFERROR(VLOOKUP($B119,'[1]Den 1'!$G$3:$O$93,3,FALSE),0) -> 0 | W119: =IFERROR(VLOOKUP($B119,'[1]Den 1'!$G$3:$O$93,4,FALSE),0) -> 1 | X119: =IFERROR(VLOOKUP($B119,'[1]Den 1'!$G$3:$O$93,5,FALSE),0) -> 1 | Y119: =IFERROR(VLOOKUP($B119,'[1]Den 1'!$G$3:$O$93,6,FALSE),0) -> 0 | Z119: =IFERROR(VLOOKUP($B119,'[1]Den 1'!$G$3:$O$93,7,FALSE),0) -> 0 | AA119: =IFERROR(VLOOKUP($B119,'[1]Den 1'!$G$3:$O$93,8,FALSE),0) -> 0 | AD119: 2
A120: 04301-OVALLE | B120: 200367-CECOF COLONIA LIMARÍ | E120: =IFERROR(VLOOKUP($B120,'[1]Num 1 2021'!$G$3:$T$95,11,FALSE),0) -> 1 | F120: =IFERROR(VLOOKUP($B120,'[1]Num 1 2021'!$G$3:$T$95,12,FALSE),0) -> 0 | G120: =IFERROR(VLOOKUP($B120,'[1]Num 1 2021'!$G$3:$T$95,13,FALSE),0) -> 0 | H120: =IFERROR(VLOOKUP($B120,'[1]Num 1'!$G$3:$O$88,2,FALSE),0) -> 0 | I120: =IFERROR(VLOOKUP($B120,'[1]Num 1'!$G$3:$O$88,3,FALSE),0) -> 0 | J120: =IFERROR(VLOOKUP($B120,'[1]Num 1'!$G$3:$O$88,4,FALSE),0) -> 0 | K120: =IFERROR(VLOOKUP($B120,'[1]Num 1'!$G$3:$O$88,5,FALSE),0) -> 1 | L120: =IFERROR(VLOOKUP($B120,'[1]Num 1'!$G$3:$O$88,6,FALSE),0) -> 0 | M120: =IFERROR(VLOOKUP($B120,'[1]Num 1'!$G$3:$O$88,7,FALSE),0) -> 0 | N120: =IFERROR(VLOOKUP($B120,'[1]Num 1'!$G$3:$O$88,8,FALSE),0) -> 0 | Q120: 2 | R120: =IFERROR(VLOOKUP($B120,'[1]Den 1 2021'!$G$3:$T$104,11,FALSE),0) -> 0 | S120: =IFERROR(VLOOKUP($B120,'[1]Den 1 2021'!$G$3:$T$104,12,FALSE),0) -> 0 | T120: =IFERROR(VLOOKUP($B120,'[1]Den 1 2021'!$G$3:$T$104,13,FALSE),0) -> 0 | U120: =IFERROR(VLOOKUP($B120,'[1]Den 1'!$G$3:$O$93,2,FALSE),0) -> 1 | V120: =IFERROR(VLOOKUP($B120,'[1]Den 1'!$G$3:$O$93,3,FALSE),0) -> 0 | W120: =IFERROR(VLOOKUP($B120,'[1]Den 1'!$G$3:$O$93,4,FALSE),0) -> 0 | X120: =IFERROR(VLOOKUP($B120,'[1]Den 1'!$G$3:$O$93,5,FALSE),0) -> 0 | Y120: =IFERROR(VLOOKUP($B120,'[1]Den 1'!$G$3:$O$93,6,FALSE),0) -> 0 | Z120: =IFERROR(VLOOKUP($B120,'[1]Den 1'!$G$3:$O$93,7,FALSE),0) -> 0 | AA120: =IFERROR(VLOOKUP($B120,'[1]Den 1'!$G$3:$O$93,8,FALSE),0) -> 0 | AD120: 1
A121: 04301-OVALLE | B121: 200569-CESFAM FRAY JORGE | E121: =IFERROR(VLOOKUP($B121,'[1]Num 1 2021'!$G$3:$T$95,11,FALSE),0) -> 0 | F121: =IFERROR(VLOOKUP($B121,'[1]Num 1 2021'!$G$3:$T$95,12,FALSE),0) -> 1 | G121: =IFERROR(VLOOKUP($B121,'[1]Num 1 2021'!$G$3:$T$95,13,FALSE),0) -> 2 | H121: =IFERROR(VLOOKUP($B121,'[1]Num 1'!$G$3:$O$88,2,FALSE),0) -> 0 | I121: =IFERROR(VLOOKUP($B121,'[1]Num 1'!$G$3:$O$88,3,FALSE),0) -> 0 | J121: =IFERROR(VLOOKUP($B121,'[1]Num 1'!$G$3:$O$88,4,FALSE),0) -> 3 | K121: =IFERROR(VLOOKUP($B121,'[1]Num 1'!$G$3:$O$88,5,FALSE),0) -> 1 | L121: =IFERROR(VLOOKUP($B121,'[1]Num 1'!$G$3:$O$88,6,FALSE),0) -> 2 | M121: =IFERROR(VLOOKUP($B121,'[1]Num 1'!$G$3:$O$88,7,FALSE),0) -> 1 | N121: =IFERROR(VLOOKUP($B121,'[1]Num 1'!$G$3:$O$88,8,FALSE),0) -> 0 | Q121: 10 | R121: =IFERROR(VLOOKUP($B121,'[1]Den 1 2021'!$G$3:$T$104,11,FALSE),0) -> 1 | S121: =IFERROR(VLOOKUP($B121,'[1]Den 1 2021'!$G$3:$T$104,12,FALSE),0) -> 0 | T121: =IFERROR(VLOOKUP($B121,'[1]Den 1 2021'!$G$3:$T$104,13,FALSE),0) -> 1 | U121: =IFERROR(VLOOKUP($B121,'[1]Den 1'!$G$3:$O$93,2,FALSE),0) -> 4 | V121: =IFERROR(VLOOKUP($B121,'[1]Den 1'!$G$3:$O$93,3,FALSE),0) -> 1 | W121: =IFERROR(VLOOKUP($B121,'[1]Den 1'!$G$3:$O$93,4,FALSE),0) -> 3 | X121: =IFERROR(VLOOKUP($B121,'[1]Den 1'!$G$3:$O$93,5,FALSE),0) -> 1 | Y121: =IFERROR(VLOOKUP($B121,'[1]Den 1'!$G$3:$O$93,6,FALSE),0) -> 2 | Z121: =IFERROR(VLOOKUP($B121,'[1]Den 1'!$G$3:$O$93,7,FALSE),0) -> 3 | AA121: =IFERROR(VLOOKUP($B121,'[1]Den 1'!$G$3:$O$93,8,FALSE),0) -> 2 | AD121: 18
A122: TOTAL OVALLE | C122: =D122/Metas!G14 -> 84.96% | D122: =Q122/AD122 -> 73.91% | E122: =SUM(E104:E121) -> 6 | F122: 7 | G122: 9 | H122: 0 | I122: 5 | J122: 10 | K122: 3 | L122: 4 | M122: 5 | N122: 2 | O122: 0 | P122: 0 | Q122: 51 | R122: 4 | S122: 7 | T122: 6 | U122: 11 | V122: 5 | W122: 13 | X122: 5 | Y122: 7 | Z122: 3 | AA122: 8 | AB122: 0 | AC122: 0 | AD122: 69
A123: 04302-COMBARBALÁ | B123: 105433-P.S.R. SAN LORENZO | E123: =IFERROR(VLOOKUP($B123,'[1]Num 1 2021'!$G$3:$T$95,11,FALSE),0) -> 0 | F123: =IFERROR(VLOOKUP($B123,'[1]Num 1 2021'!$G$3:$T$95,12,FALSE),0) -> 0 | G123: =IFERROR(VLOOKUP($B123,'[1]Num 1 2021'!$G$3:$T$95,13,FALSE),0) -> 0 | H123: =IFERROR(VLOOKUP($B123,'[1]Num 1'!$G$3:$O$88,2,FALSE),0) -> 0 | I123: =IFERROR(VLOOKUP($B123,'[1]Num 1'!$G$3:$O$88,3,FALSE),0) -> 0 | J123: =IFERROR(VLOOKUP($B123,'[1]Num 1'!$G$3:$O$88,4,FALSE),0) -> 0 | K123: =IFERROR(VLOOKUP($B123,'[1]Num 1'!$G$3:$O$88,5,FALSE),0) -> 0 | L123: =IFERROR(VLOOKUP($B123,'[1]Num 1'!$G$3:$O$88,6,FALSE),0) -> 0 | M123: =IFERROR(VLOOKUP($B123,'[1]Num 1'!$G$3:$O$88,7,FALSE),0) -> 0 | N123: =IFERROR(VLOOKUP($B123,'[1]Num 1'!$G$3:$O$88,8,FALSE),0) -> 0 | Q123: =SUM(E123:P123) -> 0 | R123: =IFERROR(VLOOKUP($B123,'[1]Den 1 2021'!$G$3:$T$104,11,FALSE),0) -> 0 | S123: =IFERROR(VLOOKUP($B123,'[1]Den 1 2021'!$G$3:$T$104,12,FALSE),0) -> 0 | T123: =IFERROR(VLOOKUP($B123,'[1]Den 1 2021'!$G$3:$T$104,13,FALSE),0) -> 0 | U123: =IFERROR(VLOOKUP($B123,'[1]Den 1'!$G$3:$O$93,2,FALSE),0) -> 0 | V123: =IFERROR(VLOOKUP($B123,'[1]Den 1'!$G$3:$O$93,3,FALSE),0) -> 0 | W123: =IFERROR(VLOOKUP($B123,'[1]Den 1'!$G$3:$O$93,4,FALSE),0) -> 0 | X123: =IFERROR(VLOOKUP($B123,'[1]Den 1'!$G$3:$O$93,5,FALSE),0) -> 0 | Y123: =IFERROR(VLOOKUP($B123,'[1]Den 1'!$G$3:$O$93,6,FALSE),0) -> 0 | Z123: =IFERROR(VLOOKUP($B123,'[1]Den 1'!$G$3:$O$93,7,FALSE),0) -> 0 | AA123: =IFERROR(VLOOKUP($B123,'[1]Den 1'!$G$3:$O$93,8,FALSE),0) -> 0 | AD123: 0
A124: 04302-COMBARBALÁ | B124: 105434-P.S.R. SAN MARCOS | E124: =IFERROR(VLOOKUP($B124,'[1]Num 1 2021'!$G$3:$T$95,11,FALSE),0) -> 1 | F124: =IFERROR(VLOOKUP($B124,'[1]Num 1 2021'!$G$3:$T$95,12,FALSE),0) -> 0 | G124: =IFERROR(VLOOKUP($B124,'[1]Num 1 2021'!$G$3:$T$95,13,FALSE),0) -> 0 | H124: =IFERROR(VLOOKUP($B124,'[1]Num 1'!$G$3:$O$88,2,FALSE),0) -> 0 | I124: =IFERROR(VLOOKUP($B124,'[1]Num 1'!$G$3:$O$88,3,FALSE),0) -> 0 | J124: =IFERROR(VLOOKUP($B124,'[1]Num 1'!$G$3:$O$88,4,FALSE),0) -> 0 | K124: =IFERROR(VLOOKUP($B124,'[1]Num 1'!$G$3:$O$88,5,FALSE),0) -> 0 | L124: =IFERROR(VLOOKUP($B124,'[1]Num 1'!$G$3:$O$88,6,FALSE),0) -> 0 | M124: =IFERROR(VLOOKUP($B124,'[1]Num 1'!$G$3:$O$88,7,FALSE),0) -> 1 | N124: =IFERROR(VLOOKUP($B124,'[1]Num 1'!$G$3:$O$88,8,FALSE),0) -> 0 | Q124: 2 | R124: =IFERROR(VLOOKUP($B124,'[1]Den 1 2021'!$G$3:$T$104,11,FALSE),0) -> 0 | S124: =IFERROR(VLOOKUP($B124,'[1]Den 1 2021'!$G$3:$T$104,12,FALSE),0) -> 0 | T124: =IFERROR(VLOOKUP($B124,'[1]Den 1 2021'!$G$3:$T$104,13,FALSE),0) -> 0 | U124: =IFERROR(VLOOKUP($B124,'[1]Den 1'!$G$3:$O$93,2,FALSE),0) -> 0 | V124: =IFERROR(VLOOKUP($B124,'[1]Den 1'!$G$3:$O$93,3,FALSE),0) -> 1 | W124: =IFERROR(VLOOKUP($B124,'[1]Den 1'!$G$3:$O$93,4,FALSE),0) -> 0 | X124: =IFERROR(VLOOKUP($B124,'[1]Den 1'!$G$3:$O$93,5,FALSE),0) -> 0 | Y124: =IFERROR(VLOOKUP($B124,'[1]Den 1'!$G$3:$O$93,6,FALSE),0) -> 0 | Z124: =IFERROR(VLOOKUP($B124,'[1]Den 1'!$G$3:$O$93,7,FALSE),0) -> 0 | AA124: =IFERROR(VLOOKUP($B124,'[1]Den 1'!$G$3:$O$93,8,FALSE),0) -> 0 | AD124: 1
A125: 04302-COMBARBALÁ | B125: 105441-P.S.R. MANQUEHUA | E125: =IFERROR(VLOOKUP($B125,'[1]Num 1 2021'!$G$3:$T$95,11,FALSE),0) -> 0 | F125: =IFERROR(VLOOKUP($B125,'[1]Num 1 2021'!$G$3:$T$95,12,FALSE),0) -> 0 | G125: =IFERROR(VLOOKUP($B125,'[1]Num 1 2021'!$G$3:$T$95,13,FALSE),0) -> 0 | H125: =IFERROR(VLOOKUP($B125,'[1]Num 1'!$G$3:$O$88,2,FALSE),0) -> 0 | I125: =IFERROR(VLOOKUP($B125,'[1]Num 1'!$G$3:$O$88,3,FALSE),0) -> 0 | J125: =IFERROR(VLOOKUP($B125,'[1]Num 1'!$G$3:$O$88,4,FALSE),0) -> 0 | K125: =IFERROR(VLOOKUP($B125,'[1]Num 1'!$G$3:$O$88,5,FALSE),0) -> 0 | L125: =IFERROR(VLOOKUP($B125,'[1]Num 1'!$G$3:$O$88,6,FALSE),0) -> 0 | M125: =IFERROR(VLOOKUP($B125,'[1]Num 1'!$G$3:$O$88,7,FALSE),0) -> 1 | N125: =IFERROR(VLOOKUP($B125,'[1]Num 1'!$G$3:$O$88,8,FALSE),0) -> 0 | Q125: 1 | R125: =IFERROR(VLOOKUP($B125,'[1]Den 1 2021'!$G$3:$T$104,11,FALSE),0) -> 0 | S125: =IFERROR(VLOOKUP($B125,'[1]Den 1 2021'!$G$3:$T$104,12,FALSE),0) -> 0 | T125: =IFERROR(VLOOKUP($B125,'[1]Den 1 2021'!$G$3:$T$104,13,FALSE),0) -> 0 | U125: =IFERROR(VLOOKUP($B125,'[1]Den 1'!$G$3:$O$93,2,FALSE),0) -> 0 | V125: =IFERROR(VLOOKUP($B125,'[1]Den 1'!$G$3:$O$93,3,FALSE),0) -> 0 | W125: =IFERROR(VLOOKUP($B125,'[1]Den 1'!$G$3:$O$93,4,FALSE),0) -> 1 | X125: =IFERROR(VLOOKUP($B125,'[1]Den 1'!$G$3:$O$93,5,FALSE),0) -> 0 | Y125: =IFERROR(VLOOKUP($B125,'[1]Den 1'!$G$3:$O$93,6,FALSE),0) -> 0 | Z125: =IFERROR(VLOOKUP($B125,'[1]Den 1'!$G$3:$O$93,7,FALSE),0) -> 0 | AA125: =IFERROR(VLOOKUP($B125,'[1]Den 1'!$G$3:$O$93,8,FALSE),0) -> 0 | AD125: 1
A126: 04302-COMBARBALÁ | B126: 105459-P.S.R. BARRANCAS | E126: =IFERROR(VLOOKUP($B126,'[1]Num 1 2021'!$G$3:$T$95,11,FALSE),0) -> 0 | F126: =IFERROR(VLOOKUP($B126,'[1]Num 1 2021'!$G$3:$T$95,12,FALSE),0) -> 0 | G126: =IFERROR(VLOOKUP($B126,'[1]Num 1 2021'!$G$3:$T$95,13,FALSE),0) -> 0 | H126: =IFERROR(VLOOKUP($B126,'[1]Num 1'!$G$3:$O$88,2,FALSE),0) -> 0 | I126: =IFERROR(VLOOKUP($B126,'[1]Num 1'!$G$3:$O$88,3,FALSE),0) -> 0 | J126: =IFERROR(VLOOKUP($B126,'[1]Num 1'!$G$3:$O$88,4,FALSE),0) -> 0 | K126: =IFERROR(VLOOKUP($B126,'[1]Num 1'!$G$3:$O$88,5,FALSE),0) -> 0 | L126: =IFERROR(VLOOKUP($B126,'[1]Num 1'!$G$3:$O$88,6,FALSE),0) -> 0 | M126: =IFERROR(VLOOKUP($B126,'[1]Num 1'!$G$3:$O$88,7,FALSE),0) -> 0 | N126: =IFERROR(VLOOKUP($B126,'[1]Num 1'!$G$3:$O$88,8,FALSE),0) -> 0 | Q126: 0 | R126: =IFERROR(VLOOKUP($B126,'[1]Den 1 2021'!$G$3:$T$104,11,FALSE),0) -> 0 | S126: =IFERROR(VLOOKUP($B126,'[1]Den 1 2021'!$G$3:$T$104,12,FALSE),0) -> 0 | T126: =IFERROR(VLOOKUP($B126,'[1]Den 1 2021'!$G$3:$T$104,13,FALSE),0) -> 0 | U126: =IFERROR(VLOOKUP($B126,'[1]Den 1'!$G$3:$O$93,2,FALSE),0) -> 0 | V126: =IFERROR(VLOOKUP($B126,'[1]Den 1'!$G$3:$O$93,3,FALSE),0) -> 0 | W126: =IFERROR(VLOOKUP($B126,'[1]Den 1'!$G$3:$O$93,4,FALSE),0) -> 0 | X126: =IFERROR(VLOOKUP($B126,'[1]Den 1'!$G$3:$O$93,5,FALSE),0) -> 0 | Y126: =IFERROR(VLOOKUP($B126,'[1]Den 1'!$G$3:$O$93,6,FALSE),0) -> 0 | Z126: =IFERROR(VLOOKUP($B126,'[1]Den 1'!$G$3:$O$93,7,FALSE),0) -> 0 | AA126: =IFERROR(VLOOKUP($B126,'[1]Den 1'!$G$3:$O$93,8,FALSE),0) -> 0 | AD126: 0
A127: 04302-COMBARBALÁ | B127: 105460-P.S.R. COGOTI 18 | E127: =IFERROR(VLOOKUP($B127,'[1]Num 1 2021'!$G$3:$T$95,11,FALSE),0) -> 0 | F127: =IFERROR(VLOOKUP($B127,'[1]Num 1 2021'!$G$3:$T$95,12,FALSE),0) -> 0 | G127: =IFERROR(VLOOKUP($B127,'[1]Num 1 2021'!$G$3:$T$95,13,FALSE),0) -> 0 | H127: =IFERROR(VLOOKUP($B127,'[1]Num 1'!$G$3:$O$88,2,FALSE),0) -> 0 | I127: =IFERROR(VLOOKUP($B127,'[1]Num 1'!$G$3:$O$88,3,FALSE),0) -> 0 | J127: =IFERROR(VLOOKUP($B127,'[1]Num 1'!$G$3:$O$88,4,FALSE),0) -> 0 | K127: =IFERROR(VLOOKUP($B127,'[1]Num 1'!$G$3:$O$88,5,FALSE),0) -> 0 | L127: =IFERROR(VLOOKUP($B127,'[1]Num 1'!$G$3:$O$88,6,FALSE),0) -> 0 | M127: =IFERROR(VLOOKUP($B127,'[1]Num 1'!$G$3:$O$88,7,FALSE),0) -> 0 | N127: =IFERROR(VLOOKUP($B127,'[1]Num 1'!$G$3:$O$88,8,FALSE),0) -> 0 | Q127: 0 | R127: =IFERROR(VLOOKUP($B127,'[1]Den 1 2021'!$G$3:$T$104,11,FALSE),0) -> 0 | S127: =IFERROR(VLOOKUP($B127,'[1]Den 1 2021'!$G$3:$T$104,12,FALSE),0) -> 0 | T127: =IFERROR(VLOOKUP($B127,'[1]Den 1 2021'!$G$3:$T$104,13,FALSE),0) -> 0 | U127: =IFERROR(VLOOKUP($B127,'[1]Den 1'!$G$3:$O$93,2,FALSE),0) -> 0 | V127: =IFERROR(VLOOKUP($B127,'[1]Den 1'!$G$3:$O$93,3,FALSE),0) -> 0 | W127: =IFERROR(VLOOKUP($B127,'[1]Den 1'!$G$3:$O$93,4,FALSE),0) -> 0 | X127: =IFERROR(VLOOKUP($B127,'[1]Den 1'!$G$3:$O$93,5,FALSE),0) -> 0 | Y127: =IFERROR(VLOOKUP($B127,'[1]Den 1'!$G$3:$O$93,6,FALSE),0) -> 0 | Z127: =IFERROR(VLOOKUP($B127,'[1]Den 1'!$G$3:$O$93,7,FALSE),0) -> 0 | AA127: =IFERROR(VLOOKUP($B127,'[1]Den 1'!$G$3:$O$93,8,FALSE),0) -> 0 | AD127: 0
A128: 04302-COMBARBALÁ | B128: 105461-P.S.R. EL HUACHO | E128: =IFERROR(VLOOKUP($B128,'[1]Num 1 2021'!$G$3:$T$95,11,FALSE),0) -> 0 | F128: =IFERROR(VLOOKUP($B128,'[1]Num 1 2021'!$G$3:$T$95,12,FALSE),0) -> 0 | G128: =IFERROR(VLOOKUP($B128,'[1]Num 1 2021'!$G$3:$T$95,13,FALSE),0) -> 0 | H128: =IFERROR(VLOOKUP($B128,'[1]Num 1'!$G$3:$O$88,2,FALSE),0) -> 0 | I128: =IFERROR(VLOOKUP($B128,'[1]Num 1'!$G$3:$O$88,3,FALSE),0) -> 0 | J128: =IFERROR(VLOOKUP($B128,'[1]Num 1'!$G$3:$O$88,4,FALSE),0) -> 0 | K128: =IFERROR(VLOOKUP($B128,'[1]Num 1'!$G$3:$O$88,5,FALSE),0) -> 0 | L128: =IFERROR(VLOOKUP($B128,'[1]Num 1'!$G$3:$O$88,6,FALSE),0) -> 0 | M128: =IFERROR(VLOOKUP($B128,'[1]Num 1'!$G$3:$O$88,7,FALSE),0) -> 0 | N128: =IFERROR(VLOOKUP($B128,'[1]Num 1'!$G$3:$O$88,8,FALSE),0) -> 0 | Q128: 0 | R128: =IFERROR(VLOOKUP($B128,'[1]Den 1 2021'!$G$3:$T$104,11,FALSE),0) -> 0 | S128: =IFERROR(VLOOKUP($B128,'[1]Den 1 2021'!$G$3:$T$104,12,FALSE),0) -> 0 | T128: =IFERROR(VLOOKUP($B128,'[1]Den 1 2021'!$G$3:$T$104,13,FALSE),0) -> 0 | U128: =IFERROR(VLOOKUP($B128,'[1]Den 1'!$G$3:$O$93,2,FALSE),0) -> 0 | V128: =IFERROR(VLOOKUP($B128,'[1]Den 1'!$G$3:$O$93,3,FALSE),0) -> 0 | W128: =IFERROR(VLOOKUP($B128,'[1]Den 1'!$G$3:$O$93,4,FALSE),0) -> 0 | X128: =IFERROR(VLOOKUP($B128,'[1]Den 1'!$G$3:$O$93,5,FALSE),0) -> 0 | Y128: =IFERROR(VLOOKUP($B128,'[1]Den 1'!$G$3:$O$93,6,FALSE),0) -> 0 | Z128: =IFERROR(VLOOKUP($B128,'[1]Den 1'!$G$3:$O$93,7,FALSE),0) -> 0 | AA128: =IFERROR(VLOOKUP($B128,'[1]Den 1'!$G$3:$O$93,8,FALSE),0) -> 0 | AD128: 0
A129: 04302-COMBARBALÁ | B129: 105462-P.S.R. EL SAUCE | E129: =IFERROR(VLOOKUP($B129,'[1]Num 1 2021'!$G$3:$T$95,11,FALSE),0) -> 0 | F129: =IFERROR(VLOOKUP($B129,'[1]Num 1 2021'!$G$3:$T$95,12,FALSE),0) -> 0 | G129: =IFERROR(VLOOKUP($B129,'[1]Num 1 2021'!$G$3:$T$95,13,FALSE),0) -> 0 | H129: =IFERROR(VLOOKUP($B129,'[1]Num 1'!$G$3:$O$88,2,FALSE),0) -> 0 | I129: =IFERROR(VLOOKUP($B129,'[1]Num 1'!$G$3:$O$88,3,FALSE),0) -> 0 | J129: =IFERROR(VLOOKUP($B129,'[1]Num 1'!$G$3:$O$88,4,FALSE),0) -> 0 | K129: =IFERROR(VLOOKUP($B129,'[1]Num 1'!$G$3:$O$88,5,FALSE),0) -> 0 | L129: =IFERROR(VLOOKUP($B129,'[1]Num 1'!$G$3:$O$88,6,FALSE),0) -> 0 | M129: =IFERROR(VLOOKUP($B129,'[1]Num 1'!$G$3:$O$88,7,FALSE),0) -> 1 | N129: =IFERROR(VLOOKUP($B129,'[1]Num 1'!$G$3:$O$88,8,FALSE),0) -> 0 | Q129: 1 | R129: =IFERROR(VLOOKUP($B129,'[1]Den 1 2021'!$G$3:$T$104,11,FALSE),0) -> 0 | S129: =IFERROR(VLOOKUP($B129,'[1]Den 1 2021'!$G$3:$T$104,12,FALSE),0) -> 0 | T129: =IFERROR(VLOOKUP($B129,'[1]Den 1 2021'!$G$3:$T$104,13,FALSE),0) -> 0 | U129: =IFERROR(VLOOKUP($B129,'[1]Den 1'!$G$3:$O$93,2,FALSE),0) -> 0 | V129: =IFERROR(VLOOKUP($B129,'[1]Den 1'!$G$3:$O$93,3,FALSE),0) -> 0 | W129: =IFERROR(VLOOKUP($B129,'[1]Den 1'!$G$3:$O$93,4,FALSE),0) -> 0 | X129: =IFERROR(VLOOKUP($B129,'[1]Den 1'!$G$3:$O$93,5,FALSE),0) -> 1 | Y129: =IFERROR(VLOOKUP($B129,'[1]Den 1'!$G$3:$O$93,6,FALSE),0) -> 0 | Z129: =IFERROR(VLOOKUP($B129,'[1]Den 1'!$G$3:$O$93,7,FALSE),0) -> 0 | AA129: =IFERROR(VLOOKUP($B129,'[1]Den 1'!$G$3:$O$93,8,FALSE),0) -> 0 | AD129: 1
A130: 04302-COMBARBALÁ | B130: 105463-P.S.R. QUILITAPIA | E130: =IFERROR(VLOOKUP($B130,'[1]Num 1 2021'!$G$3:$T$95,11,FALSE),0) -> 0 | F130: =IFERROR(VLOOKUP($B130,'[1]Num 1 2021'!$G$3:$T$95,12,FALSE),0) -> 0 | G130: =IFERROR(VLOOKUP($B130,'[1]Num 1 2021'!$G$3:$T$95,13,FALSE),0) -> 0 | H130: =IFERROR(VLOOKUP($B130,'[1]Num 1'!$G$3:$O$88,2,FALSE),0) -> 0 | I130: =IFERROR(VLOOKUP($B130,'[1]Num 1'!$G$3:$O$88,3,FALSE),0) -> 0 | J130: =IFERROR(VLOOKUP($B130,'[1]Num 1'!$G$3:$O$88,4,FALSE),0) -> 0 | K130: =IFERROR(VLOOKUP($B130,'[1]Num 1'!$G$3:$O$88,5,FALSE),0) -> 0 | L130: =IFERROR(VLOOKUP($B130,'[1]Num 1'!$G$3:$O$88,6,FALSE),0) -> 0 | M130: =IFERROR(VLOOKUP($B130,'[1]Num 1'!$G$3:$O$88,7,FALSE),0) -> 0 | N130: =IFERROR(VLOOKUP($B130,'[1]Num 1'!$G$3:$O$88,8,FALSE),0) -> 0 | Q130: 0 | R130: =IFERROR(VLOOKUP($B130,'[1]Den 1 2021'!$G$3:$T$104,11,FALSE),0) -> 0 | S130: =IFERROR(VLOOKUP($B130,'[1]Den 1 2021'!$G$3:$T$104,12,FALSE),0) -> 0 | T130: =IFERROR(VLOOKUP($B130,'[1]Den 1 2021'!$G$3:$T$104,13,FALSE),0) -> 0 | U130: =IFERROR(VLOOKUP($B130,'[1]Den 1'!$G$3:$O$93,2,FALSE),0) -> 0 | V130: =IFERROR(VLOOKUP($B130,'[1]Den 1'!$G$3:$O$93,3,FALSE),0) -> 0 | W130: =IFERROR(VLOOKUP($B130,'[1]Den 1'!$G$3:$O$93,4,FALSE),0) -> 0 | X130: =IFERROR(VLOOKUP($B130,'[1]Den 1'!$G$3:$O$93,5,FALSE),0) -> 0 | Y130: =IFERROR(VLOOKUP($B130,'[1]Den 1'!$G$3:$O$93,6,FALSE),0) -> 0 | Z130: =IFERROR(VLOOKUP($B130,'[1]Den 1'!$G$3:$O$93,7,FALSE),0) -> 0 | AA130: =IFERROR(VLOOKUP($B130,'[1]Den 1'!$G$3:$O$93,8,FALSE),0) -> 1 | AD130: 1
A131: 04302-COMBARBALÁ | B131: 105464-P.S.R. LA LIGUA | E131: =IFERROR(VLOOKUP($B131,'[1]Num 1 2021'!$G$3:$T$95,11,FALSE),0) -> 0 | F131: =IFERROR(VLOOKUP($B131,'[1]Num 1 2021'!$G$3:$T$95,12,FALSE),0) -> 0 | G131: =IFERROR(VLOOKUP($B131,'[1]Num 1 2021'!$G$3:$T$95,13,FALSE),0) -> 0 | H131: =IFERROR(VLOOKUP($B131,'[1]Num 1'!$G$3:$O$88,2,FALSE),0) -> 0 | I131: =IFERROR(VLOOKUP($B131,'[1]Num 1'!$G$3:$O$88,3,FALSE),0) -> 0 | J131: =IFERROR(VLOOKUP($B131,'[1]Num 1'!$G$3:$O$88,4,FALSE),0) -> 0 | K131: =IFERROR(VLOOKUP($B131,'[1]Num 1'!$G$3:$O$88,5,FALSE),0) -> 0 | L131: =IFERROR(VLOOKUP($B131,'[1]Num 1'!$G$3:$O$88,6,FALSE),0) -> 0 | M131: =IFERROR(VLOOKUP($B131,'[1]Num 1'!$G$3:$O$88,7,FALSE),0) -> 1 | N131: =IFERROR(VLOOKUP($B131,'[1]Num 1'!$G$3:$O$88,8,FALSE),0) -> 0 | Q131: 1 | R131: =IFERROR(VLOOKUP($B131,'[1]Den 1 2021'!$G$3:$T$104,11,FALSE),0) -> 0 | S131: =IFERROR(VLOOKUP($B131,'[1]Den 1 2021'!$G$3:$T$104,12,FALSE),0) -> 0 | T131: =IFERROR(VLOOKUP($B131,'[1]Den 1 2021'!$G$3:$T$104,13,FALSE),0) -> 0 | U131: =IFERROR(VLOOKUP($B131,'[1]Den 1'!$G$3:$O$93,2,FALSE),0) -> 0 | V131: =IFERROR(VLOOKUP($B131,'[1]Den 1'!$G$3:$O$93,3,FALSE),0) -> 0 | W131: =IFERROR(VLOOKUP($B131,'[1]Den 1'!$G$3:$O$93,4,FALSE),0) -> 0 | X131: =IFERROR(VLOOKUP($B131,'[1]Den 1'!$G$3:$O$93,5,FALSE),0) -> 0 | Y131: =IFERROR(VLOOKUP($B131,'[1]Den 1'!$G$3:$O$93,6,FALSE),0) -> 0 | Z131: =IFERROR(VLOOKUP($B131,'[1]Den 1'!$G$3:$O$93,7,FALSE),0) -> 0 | AA131: =IFERROR(VLOOKUP($B131,'[1]Den 1'!$G$3:$O$93,8,FALSE),0) -> 0 | AD131: 0
A132: 04302-COMBARBALÁ | B132: 105465-P.S.R. RAMADILLA | E132: =IFERROR(VLOOKUP($B132,'[1]Num 1 2021'!$G$3:$T$95,11,FALSE),0) -> 0 | F132: =IFERROR(VLOOKUP($B132,'[1]Num 1 2021'!$G$3:$T$95,12,FALSE),0) -> 0 | G132: =IFERROR(VLOOKUP($B132,'[1]Num 1 2021'!$G$3:$T$95,13,FALSE),0) -> 0 | H132: =IFERROR(VLOOKUP($B132,'[1]Num 1'!$G$3:$O$88,2,FALSE),0) -> 0 | I132: =IFERROR(VLOOKUP($B132,'[1]Num 1'!$G$3:$O$88,3,FALSE),0) -> 0 | J132: =IFERROR(VLOOKUP($B132,'[1]Num 1'!$G$3:$O$88,4,FALSE),0) -> 0 | K132: =IFERROR(VLOOKUP($B132,'[1]Num 1'!$G$3:$O$88,5,FALSE),0) -> 0 | L132: =IFERROR(VLOOKUP($B132,'[1]Num 1'!$G$3:$O$88,6,FALSE),0) -> 0 | M132: =IFERROR(VLOOKUP($B132,'[1]Num 1'!$G$3:$O$88,7,FALSE),0) -> 0 | N132: =IFERROR(VLOOKUP($B132,'[1]Num 1'!$G$3:$O$88,8,FALSE),0) -> 0 | Q132: 0 | R132: =IFERROR(VLOOKUP($B132,'[1]Den 1 2021'!$G$3:$T$104,11,FALSE),0) -> 1 | S132: =IFERROR(VLOOKUP($B132,'[1]Den 1 2021'!$G$3:$T$104,12,FALSE),0) -> 0 | T132: =IFERROR(VLOOKUP($B132,'[1]Den 1 2021'!$G$3:$T$104,13,FALSE),0) -> 0 | U132: =IFERROR(VLOOKUP($B132,'[1]Den 1'!$G$3:$O$93,2,FALSE),0) -> 0 | V132: =IFERROR(VLOOKUP($B132,'[1]Den 1'!$G$3:$O$93,3,FALSE),0) -> 0 | W132: =IFERROR(VLOOKUP($B132,'[1]Den 1'!$G$3:$O$93,4,FALSE),0) -> 0 | X132: =IFERROR(VLOOKUP($B132,'[1]Den 1'!$G$3:$O$93,5,FALSE),0) -> 0 | Y132: =IFERROR(VLOOKUP($B132,'[1]Den 1'!$G$3:$O$93,6,FALSE),0) -> 0 | Z132: =IFERROR(VLOOKUP($B132,'[1]Den 1'!$G$3:$O$93,7,FALSE),0) -> 0 | AA132: =IFERROR(VLOOKUP($B132,'[1]Den 1'!$G$3:$O$93,8,FALSE),0) -> 0 | AD132: 1
A133: 04302-COMBARBALÁ | B133: 105466-P.S.R. VALLE HERMOSO | E133: =IFERROR(VLOOKUP($B133,'[1]Num 1 2021'!$G$3:$T$95,11,FALSE),0) -> 0 | F133: =IFERROR(VLOOKUP($B133,'[1]Num 1 2021'!$G$3:$T$95,12,FALSE),0) -> 0 | G133: =IFERROR(VLOOKUP($B133,'[1]Num 1 2021'!$G$3:$T$95,13,FALSE),0) -> 0 | H133: =IFERROR(VLOOKUP($B133,'[1]Num 1'!$G$3:$O$88,2,FALSE),0) -> 0 | I133: =IFERROR(VLOOKUP($B133,'[1]Num 1'!$G$3:$O$88,3,FALSE),0) -> 0 | J133: =IFERROR(VLOOKUP($B133,'[1]Num 1'!$G$3:$O$88,4,FALSE),0) -> 0 | K133: =IFERROR(VLOOKUP($B133,'[1]Num 1'!$G$3:$O$88,5,FALSE),0) -> 0 | L133: =IFERROR(VLOOKUP($B133,'[1]Num 1'!$G$3:$O$88,6,FALSE),0) -> 0 | M133: =IFERROR(VLOOKUP($B133,'[1]Num 1'!$G$3:$O$88,7,FALSE),0) -> 1 | N133: =IFERROR(VLOOKUP($B133,'[1]Num 1'!$G$3:$O$88,8,FALSE),0) -> 0 | Q133: 1 | R133: =IFERROR(VLOOKUP($B133,'[1]Den 1 2021'!$G$3:$T$104,11,FALSE),0) -> 0 | S133: =IFERROR(VLOOKUP($B133,'[1]Den 1 2021'!$G$3:$T$104,12,FALSE),0) -> 0 | T133: =IFERROR(VLOOKUP($B133,'[1]Den 1 2021'!$G$3:$T$104,13,FALSE),0) -> 0 | U133: =IFERROR(VLOOKUP($B133,'[1]Den 1'!$G$3:$O$93,2,FALSE),0) -> 0 | V133: =IFERROR(VLOOKUP($B133,'[1]Den 1'!$G$3:$O$93,3,FALSE),0) -> 0 | W133: =IFERROR(VLOOKUP($B133,'[1]Den 1'!$G$3:$O$93,4,FALSE),0) -> 0 | X133: =IFERROR(VLOOKUP($B133,'[1]Den 1'!$G$3:$O$93,5,FALSE),0) -> 0 | Y133: =IFERROR(VLOOKUP($B133,'[1]Den 1'!$G$3:$O$93,6,FALSE),0) -> 0 | Z133: =IFERROR(VLOOKUP($B133,'[1]Den 1'!$G$3:$O$93,7,FALSE),0) -> 0 | AA133: =IFERROR(VLOOKUP($B133,'[1]Den 1'!$G$3:$O$93,8,FALSE),0) -> 0 | AD133: 0
A134: 04302-COMBARBALÁ | B134: 105490-P.S.R. EL DURAZNO | E134: =IFERROR(VLOOKUP($B134,'[1]Num 1 2021'!$G$3:$T$95,11,FALSE),0) -> 0 | F134: =IFERROR(VLOOKUP($B134,'[1]Num 1 2021'!$G$3:$T$95,12,FALSE),0) -> 0 | G134: =IFERROR(VLOOKUP($B134,'[1]Num 1 2021'!$G$3:$T$95,13,FALSE),0) -> 0 | H134: =IFERROR(VLOOKUP($B134,'[1]Num 1'!$G$3:$O$88,2,FALSE),0) -> 0 | I134: =IFERROR(VLOOKUP($B134,'[1]Num 1'!$G$3:$O$88,3,FALSE),0) -> 0 | J134: =IFERROR(VLOOKUP($B134,'[1]Num 1'!$G$3:$O$88,4,FALSE),0) -> 0 | K134: =IFERROR(VLOOKUP($B134,'[1]Num 1'!$G$3:$O$88,5,FALSE),0) -> 0 | L134: =IFERROR(VLOOKUP($B134,'[1]Num 1'!$G$3:$O$88,6,FALSE),0) -> 0 | M134: =IFERROR(VLOOKUP($B134,'[1]Num 1'!$G$3:$O$88,7,FALSE),0) -> 0 | N134: =IFERROR(VLOOKUP($B134,'[1]Num 1'!$G$3:$O$88,8,FALSE),0) -> 0 | Q134: 0 | R134: =IFERROR(VLOOKUP($B134,'[1]Den 1 2021'!$G$3:$T$104,11,FALSE),0) -> 0 | S134: =IFERROR(VLOOKUP($B134,'[1]Den 1 2021'!$G$3:$T$104,12,FALSE),0) -> 0 | T134: =IFERROR(VLOOKUP($B134,'[1]Den 1 2021'!$G$3:$T$104,13,FALSE),0) -> 0 | U134: =IFERROR(VLOOKUP($B134,'[1]Den 1'!$G$3:$O$93,2,FALSE),0) -> 0 | V134: =IFERROR(VLOOKUP($B134,'[1]Den 1'!$G$3:$O$93,3,FALSE),0) -> 0 | W134: =IFERROR(VLOOKUP($B134,'[1]Den 1'!$G$3:$O$93,4,FALSE),0) -> 0 | X134: =IFERROR(VLOOKUP($B134,'[1]Den 1'!$G$3:$O$93,5,FALSE),0) -> 0 | Y134: =IFERROR(VLOOKUP($B134,'[1]Den 1'!$G$3:$O$93,6,FALSE),0) -> 0 | Z134: =IFERROR(VLOOKUP($B134,'[1]Den 1'!$G$3:$O$93,7,FALSE),0) -> 0 | AA134: =IFERROR(VLOOKUP($B134,'[1]Den 1'!$G$3:$O$93,8,FALSE),0) -> 0 | AD134: 0
A135: TOTAL COMBARBALÁ | C135: =D135/Metas!G15 -> 144.58% | D135: =Q135/AD135 -> 120.00% | E135: =SUM(E123:E134) -> 1 | F135: =SUM(F123:F134) -> 0 | G135: =SUM(G123:G134) -> 0 | H135: =SUM(H123:H134) -> 0 | I135: =SUM(I123:I134) -> 0 | J135: 0 | K135: 0 | L135: 0 | M135: 5 | N135: 0 | O135: 0 | P135: =SUM(P123:P134) -> 0 | Q135: 6 | R135: 1 | S135: 0 | T135: 0 | U135: 0 | V135: 1 | W135: 1 | X135: 1 | Y135: 0 | Z135: 0 | AA135: 1 | AB135: =SUM(AB123:AB134) -> 0 | AC135: =SUM(AC123:AC134) -> 0 | AD135: 5
A136: 04304-MONTE PATRIA | B136: 105307-CES. RURAL MONTE PATRIA | E136: =IFERROR(VLOOKUP($B136,'[1]Num 1 2021'!$G$3:$T$95,11,FALSE),0) -> 0 | F136: =IFERROR(VLOOKUP($B136,'[1]Num 1 2021'!$G$3:$T$95,12,FALSE),0) -> 0 | G136: =IFERROR(VLOOKUP($B136,'[1]Num 1 2021'!$G$3:$T$95,13,FALSE),0) -> 3 | H136: =IFERROR(VLOOKUP($B136,'[1]Num 1'!$G$3:$O$88,2,FALSE),0) -> 0 | I136: =IFERROR(VLOOKUP($B136,'[1]Num 1'!$G$3:$O$88,3,FALSE),0) -> 0 | J136: =IFERROR(VLOOKUP($B136,'[1]Num 1'!$G$3:$O$88,4,FALSE),0) -> 1 | K136: =IFERROR(VLOOKUP($B136,'[1]Num 1'!$G$3:$O$88,5,FALSE),0) -> 1 | L136: =IFERROR(VLOOKUP($B136,'[1]Num 1'!$G$3:$O$88,6,FALSE),0) -> 2 | M136: =IFERROR(VLOOKUP($B136,'[1]Num 1'!$G$3:$O$88,7,FALSE),0) -> 1 | N136: =IFERROR(VLOOKUP($B136,'[1]Num 1'!$G$3:$O$88,8,FALSE),0) -> 0 | Q136: =SUM(E136:P136) -> 8 | R136: =IFERROR(VLOOKUP($B136,'[1]Den 1 2021'!$G$3:$T$104,11,FALSE),0) -> 2 | S136: =IFERROR(VLOOKUP($B136,'[1]Den 1 2021'!$G$3:$T$104,12,FALSE),0) -> 0 | T136: =IFERROR(VLOOKUP($B136,'[1]Den 1 2021'!$G$3:$T$104,13,FALSE),0) -> 0 | U136: =IFERROR(VLOOKUP($B136,'[1]Den 1'!$G$3:$O$93,2,FALSE),0) -> 5 | V136: =IFERROR(VLOOKUP($B136,'[1]Den 1'!$G$3:$O$93,3,FALSE),0) -> 0 | W136: =IFERROR(VLOOKUP($B136,'[1]Den 1'!$G$3:$O$93,4,FALSE),0) -> 0 | X136: =IFERROR(VLOOKUP($B136,'[1]Den 1'!$G$3:$O$93,5,FALSE),0) -> 0 | Y136: =IFERROR(VLOOKUP($B136,'[1]Den 1'!$G$3:$O$93,6,FALSE),0) -> 0 | Z136: =IFERROR(VLOOKUP($B136,'[1]Den 1'!$G$3:$O$93,7,FALSE),0) -> 0 | AA136: =IFERROR(VLOOKUP($B136,'[1]Den 1'!$G$3:$O$93,8,FALSE),0) -> 1 | AD136: 8
A137: 04304-MONTE PATRIA | B137: 105311-CES. RURAL CHAÑARAL ALTO | E137: =IFERROR(VLOOKUP($B137,'[1]Num 1 2021'!$G$3:$T$95,11,FALSE),0) -> 0 | F137: =IFERROR(VLOOKUP($B137,'[1]Num 1 2021'!$G$3:$T$95,12,FALSE),0) -> 0 | G137: =IFERROR(VLOOKUP($B137,'[1]Num 1 2021'!$G$3:$T$95,13,FALSE),0) -> 1 | H137: =IFERROR(VLOOKUP($B137,'[1]Num 1'!$G$3:$O$88,2,FALSE),0) -> 0 | I137: =IFERROR(VLOOKUP($B137,'[1]Num 1'!$G$3:$O$88,3,FALSE),0) -> 0 | J137: =IFERROR(VLOOKUP($B137,'[1]Num 1'!$G$3:$O$88,4,FALSE),0) -> 0 | K137: =IFERROR(VLOOKUP($B137,'[1]Num 1'!$G$3:$O$88,5,FALSE),0) -> 1 | L137: =IFERROR(VLOOKUP($B137,'[1]Num 1'!$G$3:$O$88,6,FALSE),0) -> 0 | M137: =IFERROR(VLOOKUP($B137,'[1]Num 1'!$G$3:$O$88,7,FALSE),0) -> 0 | N137: =IFERROR(VLOOKUP($B137,'[1]Num 1'!$G$3:$O$88,8,FALSE),0) -> 0 | Q137: 2 | R137: =IFERROR(VLOOKUP($B137,'[1]Den 1 2021'!$G$3:$T$104,11,FALSE),0) -> 0 | S137: =IFERROR(VLOOKUP($B137,'[1]Den 1 2021'!$G$3:$T$104,12,FALSE),0) -> 0 | T137: =IFERROR(VLOOKUP($B137,'[1]Den 1 2021'!$G$3:$T$104,13,FALSE),0) -> 0 | U137: =IFERROR(VLOOKUP($B137,'[1]Den 1'!$G$3:$O$93,2,FALSE),0) -> 0 | V137: =IFERROR(VLOOKUP($B137,'[1]Den 1'!$G$3:$O$93,3,FALSE),0) -> 0 | W137: =IFERROR(VLOOKUP($B137,'[1]Den 1'!$G$3:$O$93,4,FALSE),0) -> 0 | X137: =IFERROR(VLOOKUP($B137,'[1]Den 1'!$G$3:$O$93,5,FALSE),0) -> 1 | Y137: =IFERROR(VLOOKUP($B137,'[1]Den 1'!$G$3:$O$93,6,FALSE),0) -> 0 | Z137: =IFERROR(VLOOKUP($B137,'[1]Den 1'!$G$3:$O$93,7,FALSE),0) -> 0 | AA137: =IFERROR(VLOOKUP($B137,'[1]Den 1'!$G$3:$O$93,8,FALSE),0) -> 0 | AD137: 1
A138: 04304-MONTE PATRIA | B138: 105312-CES. RURAL CAREN | E138: =IFERROR(VLOOKUP($B138,'[1]Num 1 2021'!$G$3:$T$95,11,FALSE),0) -> 0 | F138: =IFERROR(VLOOKUP($B138,'[1]Num 1 2021'!$G$3:$T$95,12,FALSE),0) -> 0 | G138: =IFERROR(VLOOKUP($B138,'[1]Num 1 2021'!$G$3:$T$95,13,FALSE),0) -> 0 | H138: =IFERROR(VLOOKUP($B138,'[1]Num 1'!$G$3:$O$88,2,FALSE),0) -> 0 | I138: =IFERROR(VLOOKUP($B138,'[1]Num 1'!$G$3:$O$88,3,FALSE),0) -> 1 | J138: =IFERROR(VLOOKUP($B138,'[1]Num 1'!$G$3:$O$88,4,FALSE),0) -> 0 | K138: =IFERROR(VLOOKUP($B138,'[1]Num 1'!$G$3:$O$88,5,FALSE),0) -> 1 | L138: =IFERROR(VLOOKUP($B138,'[1]Num 1'!$G$3:$O$88,6,FALSE),0) -> 0 | M138: =IFERROR(VLOOKUP($B138,'[1]Num 1'!$G$3:$O$88,7,FALSE),0) -> 0 | N138: =IFERROR(VLOOKUP($B138,'[1]Num 1'!$G$3:$O$88,8,FALSE),0) -> 0 | Q138: 2 | R138: =IFERROR(VLOOKUP($B138,'[1]Den 1 2021'!$G$3:$T$104,11,FALSE),0) -> 0 | S138: =IFERROR(VLOOKUP($B138,'[1]Den 1 2021'!$G$3:$T$104,12,FALSE),0) -> 0 | T138: =IFERROR(VLOOKUP($B138,'[1]Den 1 2021'!$G$3:$T$104,13,FALSE),0) -> 0 | U138: =IFERROR(VLOOKUP($B138,'[1]Den 1'!$G$3:$O$93,2,FALSE),0) -> 1 | V138: =IFERROR(VLOOKUP($B138,'[1]Den 1'!$G$3:$O$93,3,FALSE),0) -> 0 | W138: =IFERROR(VLOOKUP($B138,'[1]Den 1'!$G$3:$O$93,4,FALSE),0) -> 0 | X138: =IFERROR(VLOOKUP($B138,'[1]Den 1'!$G$3:$O$93,5,FALSE),0) -> 0 | Y138: =IFERROR(VLOOKUP($B138,'[1]Den 1'!$G$3:$O$93,6,FALSE),0) -> 0 | Z138: =IFERROR(VLOOKUP($B138,'[1]Den 1'!$G$3:$O$93,7,FALSE),0) -> 0 | AA138: =IFERROR(VLOOKUP($B138,'[1]Den 1'!$G$3:$O$93,8,FALSE),0) -> 0 | AD138: 1
A139: 04304-MONTE PATRIA | B139: 105318-CES. RURAL EL PALQUI | E139: =IFERROR(VLOOKUP($B139,'[1]Num 1 2021'!$G$3:$T$95,11,FALSE),0) -> 1 | F139: =IFERROR(VLOOKUP($B139,'[1]Num 1 2021'!$G$3:$T$95,12,FALSE),0) -> 1 | G139: =IFERROR(VLOOKUP($B139,'[1]Num 1 2021'!$G$3:$T$95,13,FALSE),0) -> 1 | H139: =IFERROR(VLOOKUP($B139,'[1]Num 1'!$G$3:$O$88,2,FALSE),0) -> 0 | I139: =IFERROR(VLOOKUP($B139,'[1]Num 1'!$G$3:$O$88,3,FALSE),0) -> 1 | J139: =IFERROR(VLOOKUP($B139,'[1]Num 1'!$G$3:$O$88,4,FALSE),0) -> 1 | K139: =IFERROR(VLOOKUP($B139,'[1]Num 1'!$G$3:$O$88,5,FALSE),0) -> 1 | L139: =IFERROR(VLOOKUP($B139,'[1]Num 1'!$G$3:$O$88,6,FALSE),0) -> 0 | M139: =IFERROR(VLOOKUP($B139,'[1]Num 1'!$G$3:$O$88,7,FALSE),0) -> 3 | N139: =IFERROR(VLOOKUP($B139,'[1]Num 1'!$G$3:$O$88,8,FALSE),0) -> 0 | Q139: 9 | R139: =IFERROR(VLOOKUP($B139,'[1]Den 1 2021'!$G$3:$T$104,11,FALSE),0) -> 0 | S139: =IFERROR(VLOOKUP($B139,'[1]Den 1 2021'!$G$3:$T$104,12,FALSE),0) -> 0 | T139: =IFERROR(VLOOKUP($B139,'[1]Den 1 2021'!$G$3:$T$104,13,FALSE),0) -> 0 | U139: =IFERROR(VLOOKUP($B139,'[1]Den 1'!$G$3:$O$93,2,FALSE),0) -> 0 | V139: =IFERROR(VLOOKUP($B139,'[1]Den 1'!$G$3:$O$93,3,FALSE),0) -> 1 | W139: =IFERROR(VLOOKUP($B139,'[1]Den 1'!$G$3:$O$93,4,FALSE),0) -> 3 | X139: =IFERROR(VLOOKUP($B139,'[1]Den 1'!$G$3:$O$93,5,FALSE),0) -> 0 | Y139: =IFERROR(VLOOKUP($B139,'[1]Den 1'!$G$3:$O$93,6,FALSE),0) -> 0 | Z139: =IFERROR(VLOOKUP($B139,'[1]Den 1'!$G$3:$O$93,7,FALSE),0) -> 0 | AA139: =IFERROR(VLOOKUP($B139,'[1]Den 1'!$G$3:$O$93,8,FALSE),0) -> 0 | AD139: 4
A140: 04304-MONTE PATRIA | B140: 105425-P.S.R. CHILECITO | E140: =IFERROR(VLOOKUP($B140,'[1]Num 1 2021'!$G$3:$T$95,11,FALSE),0) -> 0 | F140: =IFERROR(VLOOKUP($B140,'[1]Num 1 2021'!$G$3:$T$95,12,FALSE),0) -> 0 | G140: =IFERROR(VLOOKUP($B140,'[1]Num 1 2021'!$G$3:$T$95,13,FALSE),0) -> 0 | H140: =IFERROR(VLOOKUP($B140,'[1]Num 1'!$G$3:$O$88,2,FALSE),0) -> 0 | I140: =IFERROR(VLOOKUP($B140,'[1]Num 1'!$G$3:$O$88,3,FALSE),0) -> 0 | J140: =IFERROR(VLOOKUP($B140,'[1]Num 1'!$G$3:$O$88,4,FALSE),0) -> 0 | K140: =IFERROR(VLOOKUP($B140,'[1]Num 1'!$G$3:$O$88,5,FALSE),0) -> 0 | L140: =IFERROR(VLOOKUP($B140,'[1]Num 1'!$G$3:$O$88,6,FALSE),0) -> 0 | M140: =IFERROR(VLOOKUP($B140,'[1]Num 1'!$G$3:$O$88,7,FALSE),0) -> 0 | N140: =IFERROR(VLOOKUP($B140,'[1]Num 1'!$G$3:$O$88,8,FALSE),0) -> 0 | Q140: 0 | R140: =IFERROR(VLOOKUP($B140,'[1]Den 1 2021'!$G$3:$T$104,11,FALSE),0) -> 0 | S140: =IFERROR(VLOOKUP($B140,'[1]Den 1 2021'!$G$3:$T$104,12,FALSE),0) -> 0 | T140: =IFERROR(VLOOKUP($B140,'[1]Den 1 2021'!$G$3:$T$104,13,FALSE),0) -> 0 | U140: =IFERROR(VLOOKUP($B140,'[1]Den 1'!$G$3:$O$93,2,FALSE),0) -> 0 | V140: =IFERROR(VLOOKUP($B140,'[1]Den 1'!$G$3:$O$93,3,FALSE),0) -> 0 | W140: =IFERROR(VLOOKUP($B140,'[1]Den 1'!$G$3:$O$93,4,FALSE),0) -> 0 | X140: =IFERROR(VLOOKUP($B140,'[1]Den 1'!$G$3:$O$93,5,FALSE),0) -> 0 | Y140: =IFERROR(VLOOKUP($B140,'[1]Den 1'!$G$3:$O$93,6,FALSE),0) -> 0 | Z140: =IFERROR(VLOOKUP($B140,'[1]Den 1'!$G$3:$O$93,7,FALSE),0) -> 0 | AA140: =IFERROR(VLOOKUP($B140,'[1]Den 1'!$G$3:$O$93,8,FALSE),0) -> 0 | AD140: 0
A141: 04304-MONTE PATRIA | B141: 105427-P.S.R. HACIENDA VALDIVIA | E141: =IFERROR(VLOOKUP($B141,'[1]Num 1 2021'!$G$3:$T$95,11,FALSE),0) -> 0 | F141: =IFERROR(VLOOKUP($B141,'[1]Num 1 2021'!$G$3:$T$95,12,FALSE),0) -> 0 | G141: =IFERROR(VLOOKUP($B141,'[1]Num 1 2021'!$G$3:$T$95,13,FALSE),0) -> 0 | H141: =IFERROR(VLOOKUP($B141,'[1]Num 1'!$G$3:$O$88,2,FALSE),0) -> 0 | I141: =IFERROR(VLOOKUP($B141,'[1]Num 1'!$G$3:$O$88,3,FALSE),0) -> 0 | J141: =IFERROR(VLOOKUP($B141,'[1]Num 1'!$G$3:$O$88,4,FALSE),0) -> 0 | K141: =IFERROR(VLOOKUP($B141,'[1]Num 1'!$G$3:$O$88,5,FALSE),0) -> 0 | L141: =IFERROR(VLOOKUP($B141,'[1]Num 1'!$G$3:$O$88,6,FALSE),0) -> 0 | M141: =IFERROR(VLOOKUP($B141,'[1]Num 1'!$G$3:$O$88,7,FALSE),0) -> 0 | N141: =IFERROR(VLOOKUP($B141,'[1]Num 1'!$G$3:$O$88,8,FALSE),0) -> 0 | Q141: 0 | R141: =IFERROR(VLOOKUP($B141,'[1]Den 1 2021'!$G$3:$T$104,11,FALSE),0) -> 0 | S141: =IFERROR(VLOOKUP($B141,'[1]Den 1 2021'!$G$3:$T$104,12,FALSE),0) -> 0 | T141: =IFERROR(VLOOKUP($B141,'[1]Den 1 2021'!$G$3:$T$104,13,FALSE),0) -> 0 | U141: =IFERROR(VLOOKUP($B141,'[1]Den 1'!$G$3:$O$93,2,FALSE),0) -> 0 | V141: =IFERROR(VLOOKUP($B141,'[1]Den 1'!$G$3:$O$93,3,FALSE),0) -> 0 | W141: =IFERROR(VLOOKUP($B141,'[1]Den 1'!$G$3:$O$93,4,FALSE),0) -> 0 | X141: =IFERROR(VLOOKUP($B141,'[1]Den 1'!$G$3:$O$93,5,FALSE),0) -> 0 | Y141: =IFERROR(VLOOKUP($B141,'[1]Den 1'!$G$3:$O$93,6,FALSE),0) -> 0 | Z141: =IFERROR(VLOOKUP($B141,'[1]Den 1'!$G$3:$O$93,7,FALSE),0) -> 0 | AA141: =IFERROR(VLOOKUP($B141,'[1]Den 1'!$G$3:$O$93,8,FALSE),0) -> 1 | AD141: 1
A142: 04304-MONTE PATRIA | B142: 105428-P.S.R. HUATULAME | E142: =IFERROR(VLOOKUP($B142,'[1]Num 1 2021'!$G$3:$T$95,11,FALSE),0) -> 0 | F142: =IFERROR(VLOOKUP($B142,'[1]Num 1 2021'!$G$3:$T$95,12,FALSE),0) -> 0 | G142: =IFERROR(VLOOKUP($B142,'[1]Num 1 2021'!$G$3:$T$95,13,FALSE),0) -> 0 | H142: =IFERROR(VLOOKUP($B142,'[1]Num 1'!$G$3:$O$88,2,FALSE),0) -> 0 | I142: =IFERROR(VLOOKUP($B142,'[1]Num 1'!$G$3:$O$88,3,FALSE),0) -> 0 | J142: =IFERROR(VLOOKUP($B142,'[1]Num 1'!$G$3:$O$88,4,FALSE),0) -> 0 | K142: =IFERROR(VLOOKUP($B142,'[1]Num 1'!$G$3:$O$88,5,FALSE),0) -> 0 | L142: =IFERROR(VLOOKUP($B142,'[1]Num 1'!$G$3:$O$88,6,FALSE),0) -> 0 | M142: =IFERROR(VLOOKUP($B142,'[1]Num 1'!$G$3:$O$88,7,FALSE),0) -> 0 | N142: =IFERROR(VLOOKUP($B142,'[1]Num 1'!$G$3:$O$88,8,FALSE),0) -> 0 | Q142: 0 | R142: =IFERROR(VLOOKUP($B142,'[1]Den 1 2021'!$G$3:$T$104,11,FALSE),0) -> 0 | S142: =IFERROR(VLOOKUP($B142,'[1]Den 1 2021'!$G$3:$T$104,12,FALSE),0) -> 0 | T142: =IFERROR(VLOOKUP($B142,'[1]Den 1 2021'!$G$3:$T$104,13,FALSE),0) -> 0 | U142: =IFERROR(VLOOKUP($B142,'[1]Den 1'!$G$3:$O$93,2,FALSE),0) -> 0 | V142: =IFERROR(VLOOKUP($B142,'[1]Den 1'!$G$3:$O$93,3,FALSE),0) -> 0 | W142: =IFERROR(VLOOKUP($B142,'[1]Den 1'!$G$3:$O$93,4,FALSE),0) -> 0 | X142: =IFERROR(VLOOKUP($B142,'[1]Den 1'!$G$3:$O$93,5,FALSE),0) -> 0 | Y142: =IFERROR(VLOOKUP($B142,'[1]Den 1'!$G$3:$O$93,6,FALSE),0) -> 0 | Z142: =IFERROR(VLOOKUP($B142,'[1]Den 1'!$G$3:$O$93,7,FALSE),0) -> 0 | AA142: =IFERROR(VLOOKUP($B142,'[1]Den 1'!$G$3:$O$93,8,FALSE),0) -> 0 | AD142: 0
A143: 04304-MONTE PATRIA | B143: 105430-P.S.R. MIALQUI | E143: =IFERROR(VLOOKUP($B143,'[1]Num 1 2021'!$G$3:$T$95,11,FALSE),0) -> 0 | F143: =IFERROR(VLOOKUP($B143,'[1]Num 1 2021'!$G$3:$T$95,12,FALSE),0) -> 0 | G143: =IFERROR(VLOOKUP($B143,'[1]Num 1 2021'!$G$3:$T$95,13,FALSE),0) -> 0 | H143: =IFERROR(VLOOKUP($B143,'[1]Num 1'!$G$3:$O$88,2,FALSE),0) -> 0 | I143: =IFERROR(VLOOKUP($B143,'[1]Num 1'!$G$3:$O$88,3,FALSE),0) -> 0 | J143: =IFERROR(VLOOKUP($B143,'[1]Num 1'!$G$3:$O$88,4,FALSE),0) -> 0 | K143: =IFERROR(VLOOKUP($B143,'[1]Num 1'!$G$3:$O$88,5,FALSE),0) -> 0 | L143: =IFERROR(VLOOKUP($B143,'[1]Num 1'!$G$3:$O$88,6,FALSE),0) -> 0 | M143: =IFERROR(VLOOKUP($B143,'[1]Num 1'!$G$3:$O$88,7,FALSE),0) -> 0 | N143: =IFERROR(VLOOKUP($B143,'[1]Num 1'!$G$3:$O$88,8,FALSE),0) -> 0 | Q143: 0 | R143: =IFERROR(VLOOKUP($B143,'[1]Den 1 2021'!$G$3:$T$104,11,FALSE),0) -> 0 | S143: =IFERROR(VLOOKUP($B143,'[1]Den 1 2021'!$G$3:$T$104,12,FALSE),0) -> 0 | T143: =IFERROR(VLOOKUP($B143,'[1]Den 1 2021'!$G$3:$T$104,13,FALSE),0) -> 0 | U143: =IFERROR(VLOOKUP($B143,'[1]Den 1'!$G$3:$O$93,2,FALSE),0) -> 0 | V143: =IFERROR(VLOOKUP($B143,'[1]Den 1'!$G$3:$O$93,3,FALSE),0) -> 0 | W143: =IFERROR(VLOOKUP($B143,'[1]Den 1'!$G$3:$O$93,4,FALSE),0) -> 0 | X143: =IFERROR(VLOOKUP($B143,'[1]Den 1'!$G$3:$O$93,5,FALSE),0) -> 0 | Y143: =IFERROR(VLOOKUP($B143,'[1]Den 1'!$G$3:$O$93,6,FALSE),0) -> 0 | Z143: =IFERROR(VLOOKUP($B143,'[1]Den 1'!$G$3:$O$93,7,FALSE),0) -> 0 | AA143: =IFERROR(VLOOKUP($B143,'[1]Den 1'!$G$3:$O$93,8,FALSE),0) -> 0 | AD143: 0
A144: 04304-MONTE PATRIA | B144: 105431-P.S.R. PEDREGAL | E144: =IFERROR(VLOOKUP($B144,'[1]Num 1 2021'!$G$3:$T$95,11,FALSE),0) -> 0 | F144: =IFERROR(VLOOKUP($B144,'[1]Num 1 2021'!$G$3:$T$95,12,FALSE),0) -> 0 | G144: =IFERROR(VLOOKUP($B144,'[1]Num 1 2021'!$G$3:$T$95,13,FALSE),0) -> 0 | H144: =IFERROR(VLOOKUP($B144,'[1]Num 1'!$G$3:$O$88,2,FALSE),0) -> 0 | I144: =IFERROR(VLOOKUP($B144,'[1]Num 1'!$G$3:$O$88,3,FALSE),0) -> 0 | J144: =IFERROR(VLOOKUP($B144,'[1]Num 1'!$G$3:$O$88,4,FALSE),0) -> 0 | K144: =IFERROR(VLOOKUP($B144,'[1]Num 1'!$G$3:$O$88,5,FALSE),0) -> 0 | L144: =IFERROR(VLOOKUP($B144,'[1]Num 1'!$G$3:$O$88,6,FALSE),0) -> 0 | M144: =IFERROR(VLOOKUP($B144,'[1]Num 1'!$G$3:$O$88,7,FALSE),0) -> 0 | N144: =IFERROR(VLOOKUP($B144,'[1]Num 1'!$G$3:$O$88,8,FALSE),0) -> 0 | Q144: 0 | R144: =IFERROR(VLOOKUP($B144,'[1]Den 1 2021'!$G$3:$T$104,11,FALSE),0) -> 0 | S144: =IFERROR(VLOOKUP($B144,'[1]Den 1 2021'!$G$3:$T$104,12,FALSE),0) -> 0 | T144: =IFERROR(VLOOKUP($B144,'[1]Den 1 2021'!$G$3:$T$104,13,FALSE),0) -> 0 | U144: =IFERROR(VLOOKUP($B144,'[1]Den 1'!$G$3:$O$93,2,FALSE),0) -> 0 | V144: =IFERROR(VLOOKUP($B144,'[1]Den 1'!$G$3:$O$93,3,FALSE),0) -> 0 | W144: =IFERROR(VLOOKUP($B144,'[1]Den 1'!$G$3:$O$93,4,FALSE),0) -> 0 | X144: =IFERROR(VLOOKUP($B144,'[1]Den 1'!$G$3:$O$93,5,FALSE),0) -> 0 | Y144: =IFERROR(VLOOKUP($B144,'[1]Den 1'!$G$3:$O$93,6,FALSE),0) -> 0 | Z144: =IFERROR(VLOOKUP($B144,'[1]Den 1'!$G$3:$O$93,7,FALSE),0) -> 0 | AA144: =IFERROR(VLOOKUP($B144,'[1]Den 1'!$G$3:$O$93,8,FALSE),0) -> 0 | AD144: 0
A145: 04304-MONTE PATRIA | B145: 105432-P.S.R. RAPEL | E145: =IFERROR(VLOOKUP($B145,'[1]Num 1 2021'!$G$3:$T$95,11,FALSE),0) -> 0 | F145: =IFERROR(VLOOKUP($B145,'[1]Num 1 2021'!$G$3:$T$95,12,FALSE),0) -> 0 | G145: =IFERROR(VLOOKUP($B145,'[1]Num 1 2021'!$G$3:$T$95,13,FALSE),0) -> 0 | H145: =IFERROR(VLOOKUP($B145,'[1]Num 1'!$G$3:$O$88,2,FALSE),0) -> 0 | I145: =IFERROR(VLOOKUP($B145,'[1]Num 1'!$G$3:$O$88,3,FALSE),0) -> 0 | J145: =IFERROR(VLOOKUP($B145,'[1]Num 1'!$G$3:$O$88,4,FALSE),0) -> 0 | K145: =IFERROR(VLOOKUP($B145,'[1]Num 1'!$G$3:$O$88,5,FALSE),0) -> 0 | L145: =IFERROR(VLOOKUP($B145,'[1]Num 1'!$G$3:$O$88,6,FALSE),0) -> 0 | M145: =IFERROR(VLOOKUP($B145,'[1]Num 1'!$G$3:$O$88,7,FALSE),0) -> 0 | N145: =IFERROR(VLOOKUP($B145,'[1]Num 1'!$G$3:$O$88,8,FALSE),0) -> 1 | Q145: 1 | R145: =IFERROR(VLOOKUP($B145,'[1]Den 1 2021'!$G$3:$T$104,11,FALSE),0) -> 0 | S145: =IFERROR(VLOOKUP($B145,'[1]Den 1 2021'!$G$3:$T$104,12,FALSE),0) -> 0 | T145: =IFERROR(VLOOKUP($B145,'[1]Den 1 2021'!$G$3:$T$104,13,FALSE),0) -> 0 | U145: =IFERROR(VLOOKUP($B145,'[1]Den 1'!$G$3:$O$93,2,FALSE),0) -> 0 | V145: =IFERROR(VLOOKUP($B145,'[1]Den 1'!$G$3:$O$93,3,FALSE),0) -> 0 | W145: =IFERROR(VLOOKUP($B145,'[1]Den 1'!$G$3:$O$93,4,FALSE),0) -> 0 | X145: =IFERROR(VLOOKUP($B145,'[1]Den 1'!$G$3:$O$93,5,FALSE),0) -> 1 | Y145: =IFERROR(VLOOKUP($B145,'[1]Den 1'!$G$3:$O$93,6,FALSE),0) -> 0 | Z145: =IFERROR(VLOOKUP($B145,'[1]Den 1'!$G$3:$O$93,7,FALSE),0) -> 0 | AA145: =IFERROR(VLOOKUP($B145,'[1]Den 1'!$G$3:$O$93,8,FALSE),0) -> 0 | AD145: 1
A146: 04304-MONTE PATRIA | B146: 105435-P.S.R. TULAHUEN | E146: =IFERROR(VLOOKUP($B146,'[1]Num 1 2021'!$G$3:$T$95,11,FALSE),0) -> 0 | F146: =IFERROR(VLOOKUP($B146,'[1]Num 1 2021'!$G$3:$T$95,12,FALSE),0) -> 0 | G146: =IFERROR(VLOOKUP($B146,'[1]Num 1 2021'!$G$3:$T$95,13,FALSE),0) -> 0 | H146: =IFERROR(VLOOKUP($B146,'[1]Num 1'!$G$3:$O$88,2,FALSE),0) -> 0 | I146: =IFERROR(VLOOKUP($B146,'[1]Num 1'!$G$3:$O$88,3,FALSE),0) -> 0 | J146: =IFERROR(VLOOKUP($B146,'[1]Num 1'!$G$3:$O$88,4,FALSE),0) -> 0 | K146: =IFERROR(VLOOKUP($B146,'[1]Num 1'!$G$3:$O$88,5,FALSE),0) -> 0 | L146: =IFERROR(VLOOKUP($B146,'[1]Num 1'!$G$3:$O$88,6,FALSE),0) -> 0 | M146: =IFERROR(VLOOKUP($B146,'[1]Num 1'!$G$3:$O$88,7,FALSE),0) -> 0 | N146: =IFERROR(VLOOKUP($B146,'[1]Num 1'!$G$3:$O$88,8,FALSE),0) -> 0 | Q146: 0 | R146: =IFERROR(VLOOKUP($B146,'[1]Den 1 2021'!$G$3:$T$104,11,FALSE),0) -> 0 | S146: =IFERROR(VLOOKUP($B146,'[1]Den 1 2021'!$G$3:$T$104,12,FALSE),0) -> 0 | T146: =IFERROR(VLOOKUP($B146,'[1]Den 1 2021'!$G$3:$T$104,13,FALSE),0) -> 0 | U146: =IFERROR(VLOOKUP($B146,'[1]Den 1'!$G$3:$O$93,2,FALSE),0) -> 0 | V146: =IFERROR(VLOOKUP($B146,'[1]Den 1'!$G$3:$O$93,3,FALSE),0) -> 0 | W146: =IFERROR(VLOOKUP($B146,'[1]Den 1'!$G$3:$O$93,4,FALSE),0) -> 0 | X146: =IFERROR(VLOOKUP($B146,'[1]Den 1'!$G$3:$O$93,5,FALSE),0) -> 0 | Y146: =IFERROR(VLOOKUP($B146,'[1]Den 1'!$G$3:$O$93,6,FALSE),0) -> 0 | Z146: =IFERROR(VLOOKUP($B146,'[1]Den 1'!$G$3:$O$93,7,FALSE),0) -> 0 | AA146: =IFERROR(VLOOKUP($B146,'[1]Den 1'!$G$3:$O$93,8,FALSE),0) -> 0 | AD146: 0
A147: 04304-MONTE PATRIA | B147: 105436-P.S.R. EL MAITEN | E147: =IFERROR(VLOOKUP($B147,'[1]Num 1 2021'!$G$3:$T$95,11,FALSE),0) -> 0 | F147: =IFERROR(VLOOKUP($B147,'[1]Num 1 2021'!$G$3:$T$95,12,FALSE),0) -> 0 | G147: =IFERROR(VLOOKUP($B147,'[1]Num 1 2021'!$G$3:$T$95,13,FALSE),0) -> 0 | H147: =IFERROR(VLOOKUP($B147,'[1]Num 1'!$G$3:$O$88,2,FALSE),0) -> 0 | I147: =IFERROR(VLOOKUP($B147,'[1]Num 1'!$G$3:$O$88,3,FALSE),0) -> 0 | J147: =IFERROR(VLOOKUP($B147,'[1]Num 1'!$G$3:$O$88,4,FALSE),0) -> 0 | K147: =IFERROR(VLOOKUP($B147,'[1]Num 1'!$G$3:$O$88,5,FALSE),0) -> 0 | L147: =IFERROR(VLOOKUP($B147,'[1]Num 1'!$G$3:$O$88,6,FALSE),0) -> 0 | M147: =IFERROR(VLOOKUP($B147,'[1]Num 1'!$G$3:$O$88,7,FALSE),0) -> 0 | N147: =IFERROR(VLOOKUP($B147,'[1]Num 1'!$G$3:$O$88,8,FALSE),0) -> 0 | Q147: 0 | R147: =IFERROR(VLOOKUP($B147,'[1]Den 1 2021'!$G$3:$T$104,11,FALSE),0) -> 0 | S147: =IFERROR(VLOOKUP($B147,'[1]Den 1 2021'!$G$3:$T$104,12,FALSE),0) -> 0 | T147: =IFERROR(VLOOKUP($B147,'[1]Den 1 2021'!$G$3:$T$104,13,FALSE),0) -> 0 | U147: =IFERROR(VLOOKUP($B147,'[1]Den 1'!$G$3:$O$93,2,FALSE),0) -> 0 | V147: =IFERROR(VLOOKUP($B147,'[1]Den 1'!$G$3:$O$93,3,FALSE),0) -> 0 | W147: =IFERROR(VLOOKUP($B147,'[1]Den 1'!$G$3:$O$93,4,FALSE),0) -> 0 | X147: =IFERROR(VLOOKUP($B147,'[1]Den 1'!$G$3:$O$93,5,FALSE),0) -> 0 | Y147: =IFERROR(VLOOKUP($B147,'[1]Den 1'!$G$3:$O$93,6,FALSE),0) -> 0 | Z147: =IFERROR(VLOOKUP($B147,'[1]Den 1'!$G$3:$O$93,7,FALSE),0) -> 0 | AA147: =IFERROR(VLOOKUP($B147,'[1]Den 1'!$G$3:$O$93,8,FALSE),0) -> 0 | AD147: 0
A148: 04304-MONTE PATRIA | B148: 105489-P.S.R. RAMADAS DE TULAHUEN | E148: =IFERROR(VLOOKUP($B148,'[1]Num 1 2021'!$G$3:$T$95,11,FALSE),0) -> 0 | F148: =IFERROR(VLOOKUP($B148,'[1]Num 1 2021'!$G$3:$T$95,12,FALSE),0) -> 0 | G148: =IFERROR(VLOOKUP($B148,'[1]Num 1 2021'!$G$3:$T$95,13,FALSE),0) -> 0 | H148: =IFERROR(VLOOKUP($B148,'[1]Num 1'!$G$3:$O$88,2,FALSE),0) -> 0 | I148: =IFERROR(VLOOKUP($B148,'[1]Num 1'!$G$3:$O$88,3,FALSE),0) -> 0 | J148: =IFERROR(VLOOKUP($B148,'[1]Num 1'!$G$3:$O$88,4,FALSE),0) -> 0 | K148: =IFERROR(VLOOKUP($B148,'[1]Num 1'!$G$3:$O$88,5,FALSE),0) -> 0 | L148: =IFERROR(VLOOKUP($B148,'[1]Num 1'!$G$3:$O$88,6,FALSE),0) -> 0 | M148: =IFERROR(VLOOKUP($B148,'[1]Num 1'!$G$3:$O$88,7,FALSE),0) -> 0 | N148: =IFERROR(VLOOKUP($B148,'[1]Num 1'!$G$3:$O$88,8,FALSE),0) -> 0 | Q148: 0 | R148: =IFERROR(VLOOKUP($B148,'[1]Den 1 2021'!$G$3:$T$104,11,FALSE),0) -> 0 | S148: =IFERROR(VLOOKUP($B148,'[1]Den 1 2021'!$G$3:$T$104,12,FALSE),0) -> 0 | T148: =IFERROR(VLOOKUP($B148,'[1]Den 1 2021'!$G$3:$T$104,13,FALSE),0) -> 0 | U148: =IFERROR(VLOOKUP($B148,'[1]Den 1'!$G$3:$O$93,2,FALSE),0) -> 0 | V148: =IFERROR(VLOOKUP($B148,'[1]Den 1'!$G$3:$O$93,3,FALSE),0) -> 0 | W148: =IFERROR(VLOOKUP($B148,'[1]Den 1'!$G$3:$O$93,4,FALSE),0) -> 0 | X148: =IFERROR(VLOOKUP($B148,'[1]Den 1'!$G$3:$O$93,5,FALSE),0) -> 0 | Y148: =IFERROR(VLOOKUP($B148,'[1]Den 1'!$G$3:$O$93,6,FALSE),0) -> 0 | Z148: =IFERROR(VLOOKUP($B148,'[1]Den 1'!$G$3:$O$93,7,FALSE),0) -> 0 | AA148: =IFERROR(VLOOKUP($B148,'[1]Den 1'!$G$3:$O$93,8,FALSE),0) -> 0 | AD148: 0
A149: TOTAL MONTE PATRIA | C149: =D149/Metas!G16 -> 185.81% | D149: =Q149/AD149 -> 137.50% | E149: =SUM(E136:E148) -> 1 | F149: =SUM(F136:F148) -> 1 | G149: =SUM(G136:G148) -> 5 | H149: =SUM(H136:H148) -> 0 | I149: =SUM(I136:I148) -> 2 | J149: 2 | K149: 4 | L149: 2 | M149: 4 | N149: 1 | O149: 0 | P149: =SUM(P136:P148) -> 0 | Q149: 22 | R149: 2 | S149: 0 | T149: 0 | U149: 6 | V149: =SUM(V136:V148) -> 1 | W149: 3 | X149: 2 | Y149: 0 | Z149: 0 | AA149: 2 | AB149: =SUM(AB136:AB148) -> 0 | AC149: =SUM(AC136:AC148) -> 0 | AD149: 16
A150: 04304-PUNITAQUI | B150: 105308-CES. RURAL PUNITAQUI | E150: =IFERROR(VLOOKUP($B150,'[1]Num 1 2021'!$G$3:$T$95,11,FALSE),0) -> 1 | F150: =IFERROR(VLOOKUP($B150,'[1]Num 1 2021'!$G$3:$T$95,12,FALSE),0) -> 0 | G150: =IFERROR(VLOOKUP($B150,'[1]Num 1 2021'!$G$3:$T$95,13,FALSE),0) -> 0 | H150: =IFERROR(VLOOKUP($B150,'[1]Num 1'!$G$3:$O$88,2,FALSE),0) -> 0 | I150: =IFERROR(VLOOKUP($B150,'[1]Num 1'!$G$3:$O$88,3,FALSE),0) -> 0 | J150: =IFERROR(VLOOKUP($B150,'[1]Num 1'!$G$3:$O$88,4,FALSE),0) -> 0 | K150: =IFERROR(VLOOKUP($B150,'[1]Num 1'!$G$3:$O$88,5,FALSE),0) -> 1 | L150: =IFERROR(VLOOKUP($B150,'[1]Num 1'!$G$3:$O$88,6,FALSE),0) -> 0 | M150: =IFERROR(VLOOKUP($B150,'[1]Num 1'!$G$3:$O$88,7,FALSE),0) -> 0 | N150: =IFERROR(VLOOKUP($B150,'[1]Num 1'!$G$3:$O$88,8,FALSE),0) -> 0 | Q150: =SUM(E150:P150) -> 2 | R150: =IFERROR(VLOOKUP($B150,'[1]Den 1 2021'!$G$3:$T$104,11,FALSE),0) -> 0 | S150: =IFERROR(VLOOKUP($B150,'[1]Den 1 2021'!$G$3:$T$104,12,FALSE),0) -> 0 | T150: =IFERROR(VLOOKUP($B150,'[1]Den 1 2021'!$G$3:$T$104,13,FALSE),0) -> 0 | U150: =IFERROR(VLOOKUP($B150,'[1]Den 1'!$G$3:$O$93,2,FALSE),0) -> 0 | V150: =IFERROR(VLOOKUP($B150,'[1]Den 1'!$G$3:$O$93,3,FALSE),0) -> 0 | W150: =IFERROR(VLOOKUP($B150,'[1]Den 1'!$G$3:$O$93,4,FALSE),0) -> 3 | X150: =IFERROR(VLOOKUP($B150,'[1]Den 1'!$G$3:$O$93,5,FALSE),0) -> 1 | Y150: =IFERROR(VLOOKUP($B150,'[1]Den 1'!$G$3:$O$93,6,FALSE),0) -> 0 | Z150: =IFERROR(VLOOKUP($B150,'[1]Den 1'!$G$3:$O$93,7,FALSE),0) -> 1 | AA150: =IFERROR(VLOOKUP($B150,'[1]Den 1'!$G$3:$O$93,8,FALSE),0) -> 1 | AD150: 6
A151: 04304-PUNITAQUI | B151: 105440-P.S.R. DIVISADERO | E151: =IFERROR(VLOOKUP($B151,'[1]Num 1 2021'!$G$3:$T$95,11,FALSE),0) -> 0 | F151: =IFERROR(VLOOKUP($B151,'[1]Num 1 2021'!$G$3:$T$95,12,FALSE),0) -> 0 | G151: =IFERROR(VLOOKUP($B151,'[1]Num 1 2021'!$G$3:$T$95,13,FALSE),0) -> 0 | H151: =IFERROR(VLOOKUP($B151,'[1]Num 1'!$G$3:$O$88,2,FALSE),0) -> 0 | I151: =IFERROR(VLOOKUP($B151,'[1]Num 1'!$G$3:$O$88,3,FALSE),0) -> 0 | J151: =IFERROR(VLOOKUP($B151,'[1]Num 1'!$G$3:$O$88,4,FALSE),0) -> 0 | K151: =IFERROR(VLOOKUP($B151,'[1]Num 1'!$G$3:$O$88,5,FALSE),0) -> 0 | L151: =IFERROR(VLOOKUP($B151,'[1]Num 1'!$G$3:$O$88,6,FALSE),0) -> 0 | M151: =IFERROR(VLOOKUP($B151,'[1]Num 1'!$G$3:$O$88,7,FALSE),0) -> 0 | N151: =IFERROR(VLOOKUP($B151,'[1]Num 1'!$G$3:$O$88,8,FALSE),0) -> 0 | Q151: =SUM(E151:P151) -> 0 | R151: =IFERROR(VLOOKUP($B151,'[1]Den 1 2021'!$G$3:$T$104,11,FALSE),0) -> 0 | S151: =IFERROR(VLOOKUP($B151,'[1]Den 1 2021'!$G$3:$T$104,12,FALSE),0) -> 0 | T151: =IFERROR(VLOOKUP($B151,'[1]Den 1 2021'!$G$3:$T$104,13,FALSE),0) -> 0 | U151: =IFERROR(VLOOKUP($B151,'[1]Den 1'!$G$3:$O$93,2,FALSE),0) -> 0 | V151: =IFERROR(VLOOKUP($B151,'[1]Den 1'!$G$3:$O$93,3,FALSE),0) -> 0 | W151: =IFERROR(VLOOKUP($B151,'[1]Den 1'!$G$3:$O$93,4,FALSE),0) -> 0 | X151: =IFERROR(VLOOKUP($B151,'[1]Den 1'!$G$3:$O$93,5,FALSE),0) -> 0 | Y151: =IFERROR(VLOOKUP($B151,'[1]Den 1'!$G$3:$O$93,6,FALSE),0) -> 0 | Z151: =IFERROR(VLOOKUP($B151,'[1]Den 1'!$G$3:$O$93,7,FALSE),0) -> 0 | AA151: =IFERROR(VLOOKUP($B151,'[1]Den 1'!$G$3:$O$93,8,FALSE),0) -> 0 | AD151: 0
A152: 04304-PUNITAQUI | B152: 105442-P.S.R. SAN PEDRO DE QUILES | E152: =IFERROR(VLOOKUP($B152,'[1]Num 1 2021'!$G$3:$T$95,11,FALSE),0) -> 0 | F152: =IFERROR(VLOOKUP($B152,'[1]Num 1 2021'!$G$3:$T$95,12,FALSE),0) -> 0 | G152: =IFERROR(VLOOKUP($B152,'[1]Num 1 2021'!$G$3:$T$95,13,FALSE),0) -> 0 | H152: =IFERROR(VLOOKUP($B152,'[1]Num 1'!$G$3:$O$88,2,FALSE),0) -> 0 | I152: =IFERROR(VLOOKUP($B152,'[1]Num 1'!$G$3:$O$88,3,FALSE),0) -> 0 | J152: =IFERROR(VLOOKUP($B152,'[1]Num 1'!$G$3:$O$88,4,FALSE),0) -> 0 | K152: =IFERROR(VLOOKUP($B152,'[1]Num 1'!$G$3:$O$88,5,FALSE),0) -> 0 | L152: =IFERROR(VLOOKUP($B152,'[1]Num 1'!$G$3:$O$88,6,FALSE),0) -> 0 | M152: =IFERROR(VLOOKUP($B152,'[1]Num 1'!$G$3:$O$88,7,FALSE),0) -> 0 | N152: =IFERROR(VLOOKUP($B152,'[1]Num 1'!$G$3:$O$88,8,FALSE),0) -> 0 | Q152: =SUM(E152:P152) -> 0 | R152: =IFERROR(VLOOKUP($B152,'[1]Den 1 2021'!$G$3:$T$104,11,FALSE),0) -> 0 | S152: =IFERROR(VLOOKUP($B152,'[1]Den 1 2021'!$G$3:$T$104,12,FALSE),0) -> 0 | T152: =IFERROR(VLOOKUP($B152,'[1]Den 1 2021'!$G$3:$T$104,13,FALSE),0) -> 0 | U152: =IFERROR(VLOOKUP($B152,'[1]Den 1'!$G$3:$O$93,2,FALSE),0) -> 0 | V152: =IFERROR(VLOOKUP($B152,'[1]Den 1'!$G$3:$O$93,3,FALSE),0) -> 0 | W152: =IFERROR(VLOOKUP($B152,'[1]Den 1'!$G$3:$O$93,4,FALSE),0) -> 0 | X152: =IFERROR(VLOOKUP($B152,'[1]Den 1'!$G$3:$O$93,5,FALSE),0) -> 0 | Y152: =IFERROR(VLOOKUP($B152,'[1]Den 1'!$G$3:$O$93,6,FALSE),0) -> 0 | Z152: =IFERROR(VLOOKUP($B152,'[1]Den 1'!$G$3:$O$93,7,FALSE),0) -> 0 | AA152: =IFERROR(VLOOKUP($B152,'[1]Den 1'!$G$3:$O$93,8,FALSE),0) -> 0 | AD152: 0
A153: 04304-PUNITAQUI | B153: 105508-P.S.R. EL PARRAL DE QUILES | E153: =IFERROR(VLOOKUP($B153,'[1]Num 1 2021'!$G$3:$T$95,11,FALSE),0) -> 0 | F153: =IFERROR(VLOOKUP($B153,'[1]Num 1 2021'!$G$3:$T$95,12,FALSE),0) -> 0 | G153: =IFERROR(VLOOKUP($B153,'[1]Num 1 2021'!$G$3:$T$95,13,FALSE),0) -> 0 | H153: =IFERROR(VLOOKUP($B153,'[1]Num 1'!$G$3:$O$88,2,FALSE),0) -> 0 | I153: =IFERROR(VLOOKUP($B153,'[1]Num 1'!$G$3:$O$88,3,FALSE),0) -> 0 | J153: =IFERROR(VLOOKUP($B153,'[1]Num 1'!$G$3:$O$88,4,FALSE),0) -> 0 | K153: =IFERROR(VLOOKUP($B153,'[1]Num 1'!$G$3:$O$88,5,FALSE),0) -> 0 | L153: =IFERROR(VLOOKUP($B153,'[1]Num 1'!$G$3:$O$88,6,FALSE),0) -> 0 | M153: =IFERROR(VLOOKUP($B153,'[1]Num 1'!$G$3:$O$88,7,FALSE),0) -> 0 | N153: =IFERROR(VLOOKUP($B153,'[1]Num 1'!$G$3:$O$88,8,FALSE),0) -> 0 | Q153: =SUM(E153:P153) -> 0 | R153: =IFERROR(VLOOKUP($B153,'[1]Den 1 2021'!$G$3:$T$104,11,FALSE),0) -> 0 | S153: =IFERROR(VLOOKUP($B153,'[1]Den 1 2021'!$G$3:$T$104,12,FALSE),0) -> 0 | T153: =IFERROR(VLOOKUP($B153,'[1]Den 1 2021'!$G$3:$T$104,13,FALSE),0) -> 0 | U153: =IFERROR(VLOOKUP($B153,'[1]Den 1'!$G$3:$O$93,2,FALSE),0) -> 0 | V153: =IFERROR(VLOOKUP($B153,'[1]Den 1'!$G$3:$O$93,3,FALSE),0) -> 0 | W153: =IFERROR(VLOOKUP($B153,'[1]Den 1'!$G$3:$O$93,4,FALSE),0) -> 0 | X153: =IFERROR(VLOOKUP($B153,'[1]Den 1'!$G$3:$O$93,5,FALSE),0) -> 0 | Y153: =IFERROR(VLOOKUP($B153,'[1]Den 1'!$G$3:$O$93,6,FALSE),0) -> 0 | Z153: =IFERROR(VLOOKUP($B153,'[1]Den 1'!$G$3:$O$93,7,FALSE),0) -> 0 | AA153: =IFERROR(VLOOKUP($B153,'[1]Den 1'!$G$3:$O$93,8,FALSE),0) -> 0 | AD153: 0
A154: TOTAL PUNITAQUI | C154: =D154/Metas!G17 -> 37.04% | D154: =Q154/AD154 -> 33.33% | E154: =SUM(E150:E153) -> 1 | F154: =SUM(F150:F153) -> 0 | G154: =SUM(G150:G153) -> 0 | H154: =SUM(H150:H153) -> 0 | I154: =SUM(I150:I153) -> 0 | J154: 0 | K154: 1 | L154: 0 | M154: 0 | N154: 0 | O154: 0 | P154: 0 | Q154: 2 | R154: 0 | S154: 0 | T154: 0 | U154: 0 | V154: =SUM(V150:V153) -> 0 | W154: 3 | X154: 1 | Y154: 0 | Z154: 1 | AA154: 1 | AB154: =SUM(AB150:AB153) -> 0 | AC154: =SUM(AC150:AC153) -> 0 | AD154: =SUM(AD150:AD153) -> 6
A155: 04305-RIO HURTADO | B155: 105310-CES. RURAL PICHASCA | E155: =IFERROR(VLOOKUP($B155,'[1]Num 1 2021'!$G$3:$T$95,11,FALSE),0) -> 0 | F155: =IFERROR(VLOOKUP($B155,'[1]Num 1 2021'!$G$3:$T$95,12,FALSE),0) -> 0 | G155: =IFERROR(VLOOKUP($B155,'[1]Num 1 2021'!$G$3:$T$95,13,FALSE),0) -> 0 | H155: =IFERROR(VLOOKUP($B155,'[1]Num 1'!$G$3:$O$88,2,FALSE),0) -> 0 | I155: =IFERROR(VLOOKUP($B155,'[1]Num 1'!$G$3:$O$88,3,FALSE),0) -> 0 | J155: =IFERROR(VLOOKUP($B155,'[1]Num 1'!$G$3:$O$88,4,FALSE),0) -> 0 | K155: =IFERROR(VLOOKUP($B155,'[1]Num 1'!$G$3:$O$88,5,FALSE),0) -> 0 | L155: =IFERROR(VLOOKUP($B155,'[1]Num 1'!$G$3:$O$88,6,FALSE),0) -> 0 | M155: =IFERROR(VLOOKUP($B155,'[1]Num 1'!$G$3:$O$88,7,FALSE),0) -> 0 | N155: =IFERROR(VLOOKUP($B155,'[1]Num 1'!$G$3:$O$88,8,FALSE),0) -> 0 | Q155: =SUM(E155:P155) -> 0 | R155: =IFERROR(VLOOKUP($B155,'[1]Den 1 2021'!$G$3:$T$104,11,FALSE),0) -> 0 | S155: =IFERROR(VLOOKUP($B155,'[1]Den 1 2021'!$G$3:$T$104,12,FALSE),0) -> 0 | T155: =IFERROR(VLOOKUP($B155,'[1]Den 1 2021'!$G$3:$T$104,13,FALSE),0) -> 0 | U155: =IFERROR(VLOOKUP($B155,'[1]Den 1'!$G$3:$O$93,2,FALSE),0) -> 0 | V155: =IFERROR(VLOOKUP($B155,'[1]Den 1'!$G$3:$O$93,3,FALSE),0) -> 0 | W155: =IFERROR(VLOOKUP($B155,'[1]Den 1'!$G$3:$O$93,4,FALSE),0) -> 0 | X155: =IFERROR(VLOOKUP($B155,'[1]Den 1'!$G$3:$O$93,5,FALSE),0) -> 0 | Y155: =IFERROR(VLOOKUP($B155,'[1]Den 1'!$G$3:$O$93,6,FALSE),0) -> 0 | Z155: =IFERROR(VLOOKUP($B155,'[1]Den 1'!$G$3:$O$93,7,FALSE),0) -> 0 | AA155: =IFERROR(VLOOKUP($B155,'[1]Den 1'!$G$3:$O$93,8,FALSE),0) -> 0 | AD155: 0
A156: 04305-RIO HURTADO | B156: 105409-P.S.R. EL CHAÑAR | E156: =IFERROR(VLOOKUP($B156,'[1]Num 1 2021'!$G$3:$T$95,11,FALSE),0) -> 0 | F156: =IFERROR(VLOOKUP($B156,'[1]Num 1 2021'!$G$3:$T$95,12,FALSE),0) -> 0 | G156: =IFERROR(VLOOKUP($B156,'[1]Num 1 2021'!$G$3:$T$95,13,FALSE),0) -> 0 | H156: =IFERROR(VLOOKUP($B156,'[1]Num 1'!$G$3:$O$88,2,FALSE),0) -> 0 | I156: =IFERROR(VLOOKUP($B156,'[1]Num 1'!$G$3:$O$88,3,FALSE),0) -> 0 | J156: =IFERROR(VLOOKUP($B156,'[1]Num 1'!$G$3:$O$88,4,FALSE),0) -> 0 | K156: =IFERROR(VLOOKUP($B156,'[1]Num 1'!$G$3:$O$88,5,FALSE),0) -> 0 | L156: =IFERROR(VLOOKUP($B156,'[1]Num 1'!$G$3:$O$88,6,FALSE),0) -> 0 | M156: =IFERROR(VLOOKUP($B156,'[1]Num 1'!$G$3:$O$88,7,FALSE),0) -> 0 | N156: =IFERROR(VLOOKUP($B156,'[1]Num 1'!$G$3:$O$88,8,FALSE),0) -> 0 | Q156: 0 | R156: =IFERROR(VLOOKUP($B156,'[1]Den 1 2021'!$G$3:$T$104,11,FALSE),0) -> 0 | S156: =IFERROR(VLOOKUP($B156,'[1]Den 1 2021'!$G$3:$T$104,12,FALSE),0) -> 0 | T156: =IFERROR(VLOOKUP($B156,'[1]Den 1 2021'!$G$3:$T$104,13,FALSE),0) -> 0 | U156: =IFERROR(VLOOKUP($B156,'[1]Den 1'!$G$3:$O$93,2,FALSE),0) -> 0 | V156: =IFERROR(VLOOKUP($B156,'[1]Den 1'!$G$3:$O$93,3,FALSE),0) -> 0 | W156: =IFERROR(VLOOKUP($B156,'[1]Den 1'!$G$3:$O$93,4,FALSE),0) -> 0 | X156: =IFERROR(VLOOKUP($B156,'[1]Den 1'!$G$3:$O$93,5,FALSE),0) -> 0 | Y156: =IFERROR(VLOOKUP($B156,'[1]Den 1'!$G$3:$O$93,6,FALSE),0) -> 0 | Z156: =IFERROR(VLOOKUP($B156,'[1]Den 1'!$G$3:$O$93,7,FALSE),0) -> 0 | AA156: =IFERROR(VLOOKUP($B156,'[1]Den 1'!$G$3:$O$93,8,FALSE),0) -> 0 | AD156: =SUM(R156:AC156) -> 0
A157: 04305-RIO HURTADO | B157: 105410-P.S.R. HURTADO | E157: =IFERROR(VLOOKUP($B157,'[1]Num 1 2021'!$G$3:$T$95,11,FALSE),0) -> 0 | F157: =IFERROR(VLOOKUP($B157,'[1]Num 1 2021'!$G$3:$T$95,12,FALSE),0) -> 0 | G157: =IFERROR(VLOOKUP($B157,'[1]Num 1 2021'!$G$3:$T$95,13,FALSE),0) -> 0 | H157: =IFERROR(VLOOKUP($B157,'[1]Num 1'!$G$3:$O$88,2,FALSE),0) -> 0 | I157: =IFERROR(VLOOKUP($B157,'[1]Num 1'!$G$3:$O$88,3,FALSE),0) -> 0 | J157: =IFERROR(VLOOKUP($B157,'[1]Num 1'!$G$3:$O$88,4,FALSE),0) -> 0 | K157: =IFERROR(VLOOKUP($B157,'[1]Num 1'!$G$3:$O$88,5,FALSE),0) -> 0 | L157: =IFERROR(VLOOKUP($B157,'[1]Num 1'!$G$3:$O$88,6,FALSE),0) -> 0 | M157: =IFERROR(VLOOKUP($B157,'[1]Num 1'!$G$3:$O$88,7,FALSE),0) -> 0 | N157: =IFERROR(VLOOKUP($B157,'[1]Num 1'!$G$3:$O$88,8,FALSE),0) -> 0 | Q157: 0 | R157: =IFERROR(VLOOKUP($B157,'[1]Den 1 2021'!$G$3:$T$104,11,FALSE),0) -> 0 | S157: =IFERROR(VLOOKUP($B157,'[1]Den 1 2021'!$G$3:$T$104,12,FALSE),0) -> 0 | T157: =IFERROR(VLOOKUP($B157,'[1]Den 1 2021'!$G$3:$T$104,13,FALSE),0) -> 0 | U157: =IFERROR(VLOOKUP($B157,'[1]Den 1'!$G$3:$O$93,2,FALSE),0) -> 0 | V157: =IFERROR(VLOOKUP($B157,'[1]Den 1'!$G$3:$O$93,3,FALSE),0) -> 0 | W157: =IFERROR(VLOOKUP($B157,'[1]Den 1'!$G$3:$O$93,4,FALSE),0) -> 0 | X157: =IFERROR(VLOOKUP($B157,'[1]Den 1'!$G$3:$O$93,5,FALSE),0) -> 0 | Y157: =IFERROR(VLOOKUP($B157,'[1]Den 1'!$G$3:$O$93,6,FALSE),0) -> 0 | Z157: =IFERROR(VLOOKUP($B157,'[1]Den 1'!$G$3:$O$93,7,FALSE),0) -> 0 | AA157: =IFERROR(VLOOKUP($B157,'[1]Den 1'!$G$3:$O$93,8,FALSE),0) -> 0 | AD157: 0
A158: 04305-RIO HURTADO | B158: 105411-P.S.R. LAS BREAS | E158: =IFERROR(VLOOKUP($B158,'[1]Num 1 2021'!$G$3:$T$95,11,FALSE),0) -> 0 | F158: =IFERROR(VLOOKUP($B158,'[1]Num 1 2021'!$G$3:$T$95,12,FALSE),0) -> 0 | G158: =IFERROR(VLOOKUP($B158,'[1]Num 1 2021'!$G$3:$T$95,13,FALSE),0) -> 0 | H158: =IFERROR(VLOOKUP($B158,'[1]Num 1'!$G$3:$O$88,2,FALSE),0) -> 0 | I158: =IFERROR(VLOOKUP($B158,'[1]Num 1'!$G$3:$O$88,3,FALSE),0) -> 0 | J158: =IFERROR(VLOOKUP($B158,'[1]Num 1'!$G$3:$O$88,4,FALSE),0) -> 0 | K158: =IFERROR(VLOOKUP($B158,'[1]Num 1'!$G$3:$O$88,5,FALSE),0) -> 0 | L158: =IFERROR(VLOOKUP($B158,'[1]Num 1'!$G$3:$O$88,6,FALSE),0) -> 0 | M158: =IFERROR(VLOOKUP($B158,'[1]Num 1'!$G$3:$O$88,7,FALSE),0) -> 0 | N158: =IFERROR(VLOOKUP($B158,'[1]Num 1'!$G$3:$O$88,8,FALSE),0) -> 0 | Q158: 0 | R158: =IFERROR(VLOOKUP($B158,'[1]Den 1 2021'!$G$3:$T$104,11,FALSE),0) -> 0 | S158: =IFERROR(VLOOKUP($B158,'[1]Den 1 2021'!$G$3:$T$104,12,FALSE),0) -> 0 | T158: =IFERROR(VLOOKUP($B158,'[1]Den 1 2021'!$G$3:$T$104,13,FALSE),0) -> 0 | U158: =IFERROR(VLOOKUP($B158,'[1]Den 1'!$G$3:$O$93,2,FALSE),0) -> 0 | V158: =IFERROR(VLOOKUP($B158,'[1]Den 1'!$G$3:$O$93,3,FALSE),0) -> 0 | W158: =IFERROR(VLOOKUP($B158,'[1]Den 1'!$G$3:$O$93,4,FALSE),0) -> 0 | X158: =IFERROR(VLOOKUP($B158,'[1]Den 1'!$G$3:$O$93,5,FALSE),0) -> 0 | Y158: =IFERROR(VLOOKUP($B158,'[1]Den 1'!$G$3:$O$93,6,FALSE),0) -> 0 | Z158: =IFERROR(VLOOKUP($B158,'[1]Den 1'!$G$3:$O$93,7,FALSE),0) -> 0 | AA158: =IFERROR(VLOOKUP($B158,'[1]Den 1'!$G$3:$O$93,8,FALSE),0) -> 0 | AD158: 0
A159: 04305-RIO HURTADO | B159: 105413-P.S.R. SAMO ALTO | E159: =IFERROR(VLOOKUP($B159,'[1]Num 1 2021'!$G$3:$T$95,11,FALSE),0) -> 0 | F159: =IFERROR(VLOOKUP($B159,'[1]Num 1 2021'!$G$3:$T$95,12,FALSE),0) -> 0 | G159: =IFERROR(VLOOKUP($B159,'[1]Num 1 2021'!$G$3:$T$95,13,FALSE),0) -> 0 | H159: =IFERROR(VLOOKUP($B159,'[1]Num 1'!$G$3:$O$88,2,FALSE),0) -> 0 | I159: =IFERROR(VLOOKUP($B159,'[1]Num 1'!$G$3:$O$88,3,FALSE),0) -> 0 | J159: =IFERROR(VLOOKUP($B159,'[1]Num 1'!$G$3:$O$88,4,FALSE),0) -> 0 | K159: =IFERROR(VLOOKUP($B159,'[1]Num 1'!$G$3:$O$88,5,FALSE),0) -> 0 | L159: =IFERROR(VLOOKUP($B159,'[1]Num 1'!$G$3:$O$88,6,FALSE),0) -> 0 | M159: =IFERROR(VLOOKUP($B159,'[1]Num 1'!$G$3:$O$88,7,FALSE),0) -> 0 | N159: =IFERROR(VLOOKUP($B159,'[1]Num 1'!$G$3:$O$88,8,FALSE),0) -> 0 | Q159: 0 | R159: =IFERROR(VLOOKUP($B159,'[1]Den 1 2021'!$G$3:$T$104,11,FALSE),0) -> 0 | S159: =IFERROR(VLOOKUP($B159,'[1]Den 1 2021'!$G$3:$T$104,12,FALSE),0) -> 1 | T159: =IFERROR(VLOOKUP($B159,'[1]Den 1 2021'!$G$3:$T$104,13,FALSE),0) -> 0 | U159: =IFERROR(VLOOKUP($B159,'[1]Den 1'!$G$3:$O$93,2,FALSE),0) -> 0 | V159: =IFERROR(VLOOKUP($B159,'[1]Den 1'!$G$3:$O$93,3,FALSE),0) -> 0 | W159: =IFERROR(VLOOKUP($B159,'[1]Den 1'!$G$3:$O$93,4,FALSE),0) -> 0 | X159: =IFERROR(VLOOKUP($B159,'[1]Den 1'!$G$3:$O$93,5,FALSE),0) -> 0 | Y159: =IFERROR(VLOOKUP($B159,'[1]Den 1'!$G$3:$O$93,6,FALSE),0) -> 0 | Z159: =IFERROR(VLOOKUP($B159,'[1]Den 1'!$G$3:$O$93,7,FALSE),0) -> 0 | AA159: =IFERROR(VLOOKUP($B159,'[1]Den 1'!$G$3:$O$93,8,FALSE),0) -> 0 | AD159: 1
A160: 04305-RIO HURTADO | B160: 105414-P.S.R. SERON | E160: =IFERROR(VLOOKUP($B160,'[1]Num 1 2021'!$G$3:$T$95,11,FALSE),0) -> 0 | F160: =IFERROR(VLOOKUP($B160,'[1]Num 1 2021'!$G$3:$T$95,12,FALSE),0) -> 0 | G160: =IFERROR(VLOOKUP($B160,'[1]Num 1 2021'!$G$3:$T$95,13,FALSE),0) -> 0 | H160: =IFERROR(VLOOKUP($B160,'[1]Num 1'!$G$3:$O$88,2,FALSE),0) -> 0 | I160: =IFERROR(VLOOKUP($B160,'[1]Num 1'!$G$3:$O$88,3,FALSE),0) -> 0 | J160: =IFERROR(VLOOKUP($B160,'[1]Num 1'!$G$3:$O$88,4,FALSE),0) -> 0 | K160: =IFERROR(VLOOKUP($B160,'[1]Num 1'!$G$3:$O$88,5,FALSE),0) -> 0 | L160: =IFERROR(VLOOKUP($B160,'[1]Num 1'!$G$3:$O$88,6,FALSE),0) -> 0 | M160: =IFERROR(VLOOKUP($B160,'[1]Num 1'!$G$3:$O$88,7,FALSE),0) -> 0 | N160: =IFERROR(VLOOKUP($B160,'[1]Num 1'!$G$3:$O$88,8,FALSE),0) -> 0 | Q160: 0 | R160: =IFERROR(VLOOKUP($B160,'[1]Den 1 2021'!$G$3:$T$104,11,FALSE),0) -> 0 | S160: =IFERROR(VLOOKUP($B160,'[1]Den 1 2021'!$G$3:$T$104,12,FALSE),0) -> 0 | T160: =IFERROR(VLOOKUP($B160,'[1]Den 1 2021'!$G$3:$T$104,13,FALSE),0) -> 0 | U160: =IFERROR(VLOOKUP($B160,'[1]Den 1'!$G$3:$O$93,2,FALSE),0) -> 0 | V160: =IFERROR(VLOOKUP($B160,'[1]Den 1'!$G$3:$O$93,3,FALSE),0) -> 0 | W160: =IFERROR(VLOOKUP($B160,'[1]Den 1'!$G$3:$O$93,4,FALSE),0) -> 0 | X160: =IFERROR(VLOOKUP($B160,'[1]Den 1'!$G$3:$O$93,5,FALSE),0) -> 0 | Y160: =IFERROR(VLOOKUP($B160,'[1]Den 1'!$G$3:$O$93,6,FALSE),0) -> 0 | Z160: =IFERROR(VLOOKUP($B160,'[1]Den 1'!$G$3:$O$93,7,FALSE),0) -> 0 | AA160: =IFERROR(VLOOKUP($B160,'[1]Den 1'!$G$3:$O$93,8,FALSE),0) -> 0 | AD160: 0
A161: 04305-RIO HURTADO | B161: 105503-P.S.R. TABAQUEROS | E161: =IFERROR(VLOOKUP($B161,'[1]Num 1 2021'!$G$3:$T$95,11,FALSE),0) -> 0 | F161: =IFERROR(VLOOKUP($B161,'[1]Num 1 2021'!$G$3:$T$95,12,FALSE),0) -> 0 | G161: =IFERROR(VLOOKUP($B161,'[1]Num 1 2021'!$G$3:$T$95,13,FALSE),0) -> 0 | H161: =IFERROR(VLOOKUP($B161,'[1]Num 1'!$G$3:$O$88,2,FALSE),0) -> 0 | I161: =IFERROR(VLOOKUP($B161,'[1]Num 1'!$G$3:$O$88,3,FALSE),0) -> 0 | J161: =IFERROR(VLOOKUP($B161,'[1]Num 1'!$G$3:$O$88,4,FALSE),0) -> 0 | K161: =IFERROR(VLOOKUP($B161,'[1]Num 1'!$G$3:$O$88,5,FALSE),0) -> 0 | L161: =IFERROR(VLOOKUP($B161,'[1]Num 1'!$G$3:$O$88,6,FALSE),0) -> 0 | M161: =IFERROR(VLOOKUP($B161,'[1]Num 1'!$G$3:$O$88,7,FALSE),0) -> 0 | N161: =IFERROR(VLOOKUP($B161,'[1]Num 1'!$G$3:$O$88,8,FALSE),0) -> 0 | Q161: =SUM(E161:P161) -> 0 | R161: =IFERROR(VLOOKUP($B161,'[1]Den 1 2021'!$G$3:$T$104,11,FALSE),0) -> 0 | S161: =IFERROR(VLOOKUP($B161,'[1]Den 1 2021'!$G$3:$T$104,12,FALSE),0) -> 0 | T161: =IFERROR(VLOOKUP($B161,'[1]Den 1 2021'!$G$3:$T$104,13,FALSE),0) -> 0 | U161: =IFERROR(VLOOKUP($B161,'[1]Den 1'!$G$3:$O$93,2,FALSE),0) -> 0 | V161: =IFERROR(VLOOKUP($B161,'[1]Den 1'!$G$3:$O$93,3,FALSE),0) -> 0 | W161: =IFERROR(VLOOKUP($B161,'[1]Den 1'!$G$3:$O$93,4,FALSE),0) -> 0 | X161: =IFERROR(VLOOKUP($B161,'[1]Den 1'!$G$3:$O$93,5,FALSE),0) -> 0 | Y161: =IFERROR(VLOOKUP($B161,'[1]Den 1'!$G$3:$O$93,6,FALSE),0) -> 0 | Z161: =IFERROR(VLOOKUP($B161,'[1]Den 1'!$G$3:$O$93,7,FALSE),0) -> 0 | AA161: =IFERROR(VLOOKUP($B161,'[1]Den 1'!$G$3:$O$93,8,FALSE),0) -> 0 | AD161: 0
A162: TOTAL RIO HURTADO | C162: =D162/Metas!G18 -> 0.00% | D162: =Q162/AD162 -> 0.00% | E162: =SUM(E155:E161) -> 0 | F162: =SUM(F155:F161) -> 0 | G162: =SUM(G155:G161) -> 0 | H162: =SUM(H155:H161) -> 0 | I162: =SUM(I155:I161) -> 0 | J162: 0 | K162: 0 | L162: 0 | M162: 0 | N162: 0 | O162: =SUM(O155:O161) -> 0 | P162: =SUM(P155:P161) -> 0 | Q162: =SUM(Q155:Q161) -> 0 | R162: 0 | S162: 1 | T162: 0 | U162: 0 | V162: 0 | W162: 0 | X162: 0 | Y162: 0 | Z162: 0 | AA162: 0 | AB162: =SUM(AB155:AB161) -> 0 | AC162: =SUM(AC155:AC161) -> 0 | AD162: 1

Sheet Meta 02
A1: COMUNA | B1: ESTABLECIMIENTO | C1: CUMPLIMIENTO | D1: Indicador | E1: META 2 : DETECCIÓN PRECOZ DEL CÁNCER DE CUELLO UTERINO
E2: NUMERADOR | G2: DENOMINADOR
E10: Nº logrado de mujeres de 25 a 64 años inscritas validadas por FONASA con PAP vigente | G10: Nº de mujeres comprometidas con PAP vigente
D11: Resultado | E11: A JUNIO | F11: A DICBRE
A12: 04101-LA SERENA | B12: 105300-CES. CARDENAL CARO | E12: =IFERROR(VLOOKUP($B12,'[1]Num 2'!$G$3:$I$74,2,FALSE),0) -> 2,982
A13: 04101-LA SERENA | B13: 105301-CES. LAS COMPAÑIAS | E13: =IFERROR(VLOOKUP($B13,'[1]Num 2'!$G$3:$I$74,2,FALSE),0) -> 1,558
A14: 04101-LA SERENA | B14: 105302-CES. PEDRO AGUIRRE C. | E14: =IFERROR(VLOOKUP($B14,'[1]Num 2'!$G$3:$I$74,2,FALSE),0) -> 2,319
A15: 04101-LA SERENA | B15: 105313-CES. SCHAFFHAUSER | E15: =IFERROR(VLOOKUP($B15,'[1]Num 2'!$G$3:$I$74,2,FALSE),0) -> 3,085
A16: 04101-LA SERENA | B16: 105319-CES. CARDENAL R.S.H. | E16: =IFERROR(VLOOKUP($B16,'[1]Num 2'!$G$3:$I$74,2,FALSE),0) -> 1,621
A17: 04101-LA SERENA | B17: 105325-CESFAM JUAN PABLO II | E17: =IFERROR(VLOOKUP($B17,'[1]Num 2'!$G$3:$I$74,2,FALSE),0) -> 1,879
A18: 04101-LA SERENA | B18: 105400-P.S.R. ALGARROBITO | E18: =IFERROR(VLOOKUP($B18,'[1]Num 2'!$G$3:$I$74,2,FALSE),0) -> 730
A19: 04101-LA SERENA | B19: 105401-P.S.R. LAS ROJAS | E19: =IFERROR(VLOOKUP($B19,'[1]Num 2'!$G$3:$I$74,2,FALSE),0) -> 0
A20: 04101-LA SERENA | B20: 105402-P.S.R. EL ROMERO | E20: =IFERROR(VLOOKUP($B20,'[1]Num 2'!$G$3:$I$74,2,FALSE),0) -> 0
A21: 04101-LA SERENA | B21: 105499-P.S.R. LAMBERT | E21: =IFERROR(VLOOKUP($B21,'[1]Num 2'!$G$3:$I$74,2,FALSE),0) -> 0
A22: 04101-LA SERENA | B22: 105700-CECOF VILLA EL INDIO | E22: =IFERROR(VLOOKUP($B22,'[1]Num 2'!$G$3:$I$74,2,FALSE),0) -> 0
A23: 04101-LA SERENA | B23: 105701-CECOF VILLA ALEMANIA | E23: =IFERROR(VLOOKUP($B23,'[1]Num 2'!$G$3:$I$74,2,FALSE),0) -> 293
A24: 04101-LA SERENA | B24: 105702-CECOF VILLA LAMBERT | E24: =IFERROR(VLOOKUP($B24,'[1]Num 2'!$G$3:$I$74,2,FALSE),0) -> 342
A25: 04101-LA SERENA | B25: 200402-CECOF ARCOS DE PINAMAR | E25: =IFERROR(VLOOKUP($B25,'[1]Num 2'!$G$3:$I$74,2,FALSE),0) -> 302
A26: TOTAL LA SERENA | C26: =D26/Metas!H5 -> 171.23% | D26: =E26/H26 -> 66.10% | E26: =SUM(E12:E25) -> 15,111 | F26: =SUM(F12:F25) -> 0 | H26: 22,862
A27: 04102-COQUIMBO | B27: 105303-CES. SAN JUAN | E27: =IFERROR(VLOOKUP($B27,'[1]Num 2'!$G$3:$I$74,2,FALSE),0) -> 2,665
A28: 04102-COQUIMBO | B28: 105304-CES. SANTA CECILIA | E28: =IFERROR(VLOOKUP($B28,'[1]Num 2'!$G$3:$I$74,2,FALSE),0) -> 2,722
A29: 04102-COQUIMBO | B29: 105305-CES. TIERRAS BLANCAS | E29: =IFERROR(VLOOKUP($B29,'[1]Num 2'!$G$3:$I$74,2,FALSE),0) -> 4,240
A30: 04102-COQUIMBO | B30: 105321-CES. RURAL TONGOY | E30: =IFERROR(VLOOKUP($B30,'[1]Num 2'!$G$3:$I$74,2,FALSE),0) -> 901
A31: 04102-COQUIMBO | B31: 105323-CES. DR. SERGIO AGUILAR | E31: =IFERROR(VLOOKUP($B31,'[1]Num 2'!$G$3:$I$74,2,FALSE),0) -> 3,811
A32: 04102-COQUIMBO | B32: 105404-P.S.R. EL TANGUE | E32: =IFERROR(VLOOKUP($B32,'[1]Num 2'!$G$3:$I$74,2,FALSE),0) -> 0
A33: 04102-COQUIMBO | B33: 105405-P.S.R. GUANAQUEROS | E33: =IFERROR(VLOOKUP($B33,'[1]Num 2'!$G$3:$I$74,2,FALSE),0) -> 0
A34: 04102-COQUIMBO | B34: 105407-P.S.R. TAMBILLOS | E34: =IFERROR(VLOOKUP($B34,'[1]Num 2'!$G$3:$I$74,2,FALSE),0) -> 0
A35: 04102-COQUIMBO | B35: 200273-CECOF PUNTA MIRA | E35: =IFERROR(VLOOKUP($B35,'[1]Num 2'!$G$3:$I$74,2,FALSE),0) -> 449
A36: 04102-COQUIMBO | B36: 200494-CESFAM EL SAUCE | E36: =IFERROR(VLOOKUP($B36,'[1]Num 2'!$G$3:$I$74,2,FALSE),0) -> 1,593
A37: 04102-COQUIMBO | B37: 200607-CESFAM LILA CORTES | E37: =IFERROR(VLOOKUP($B37,'[1]Num 2'!$G$3:$I$74,2,FALSE),0) -> 2,366
A38: 04102-COQUIMBO | B38: 200499-CESFAM PAN DE AZÚCAR | E38: =IFERROR(VLOOKUP($B38,'[1]Num 2'!$G$3:$I$74,2,FALSE),0) -> 1,569
A39: TOTAL COQUIMBO | C39: =D39/Metas!H6 -> 182.12% | D39: =E39/H39 -> 82.14% | E39: =SUM(E27:E38) -> 20,316 | F39: =SUM(F27:F38) -> 0 | H39: 24,734
A40: 04104-LA HIGUERA | B40: 105314-CES. LA HIGUERA | E40: =IFERROR(VLOOKUP($B40,'[1]Num 2'!$G$3:$I$74,2,FALSE),0) -> 520
A41: 04104-LA HIGUERA | B41: 105500-P.S.R. CALETA HORNOS | E41: =IFERROR(VLOOKUP($B41,'[1]Num 2'!$G$3:$I$74,2,FALSE),0) -> 0
A42: 04104-LA HIGUERA | B42: 105505-P.S.R. LOS CHOROS | E42: =IFERROR(VLOOKUP($B42,'[1]Num 2'!$G$3:$I$74,2,FALSE),0) -> 0
A43: 04104-LA HIGUERA | B43: 105506-P.S.R. EL TRAPICHE | E43: =IFERROR(VLOOKUP($B43,'[1]Num 2'!$G$3:$I$74,2,FALSE),0) -> 0
A44: TOTAL LA HIGUERA | C44: =D44/Metas!H7 -> 205.13% | D44: =E44/H44 -> 102.56% | E44: =SUM(E40:E43) -> 520 | F44: =SUM(F40:F43) -> 0 | H44: 507
A45: 04105-PAIHUANO | B45: 105306-CES. PAIHUANO | E45: =IFERROR(VLOOKUP($B45,'[1]Num 2'!$G$3:$I$74,2,FALSE),0) -> 779
A46: 04105-PAIHUANO | B46: 105475-P.S.R. HORCON | E46: =IFERROR(VLOOKUP($B46,'[1]Num 2'!$G$3:$I$74,2,FALSE),0) -> 0
A47: 04105-PAIHUANO | B47: 105476-P.S.R. MONTE GRANDE | E47: =IFERROR(VLOOKUP($B47,'[1]Num 2'!$G$3:$I$74,2,FALSE),0) -> 0
A48: 04105-PAIHUANO | B48: 105477-P.S.R. PISCO ELQUI | E48: =IFERROR(VLOOKUP($B48,'[1]Num 2'!$G$3:$I$74,2,FALSE),0) -> 0
A49: TOTAL PAIHUANO | C49: =D49/Metas!H8 -> 155.16% | D49: =E49/H49 -> 102.10% | E49: =SUM(E45:E48) -> 779 | F49: =SUM(F45:F48) -> 0 | H49: 763
A50: 04106-VICUÑA | B50: 105467-P.S.R. DIAGUITAS | E50: =IFERROR(VLOOKUP($B50,'[1]Num 2'!$G$3:$I$74,2,FALSE),0) -> 2,072
A51: 04106-VICUÑA | B51: 105468-P.S.R. EL MOLLE | E51: =IFERROR(VLOOKUP($B51,'[1]Num 2'!$G$3:$I$74,2,FALSE),0) -> 0
A52: 04106-VICUÑA | B52: 105469-P.S.R. EL TAMBO | E52: =IFERROR(VLOOKUP($B52,'[1]Num 2'!$G$3:$I$74,2,FALSE),0) -> 0
A53: 04106-VICUÑA | B53: 105470-P.S.R. HUANTA | E53: =IFERROR(VLOOKUP($B53,'[1]Num 2'!$G$3:$I$74,2,FALSE),0) -> 0
A54: 04106-VICUÑA | B54: 105471-P.S.R. PERALILLO | E54: =IFERROR(VLOOKUP($B54,'[1]Num 2'!$G$3:$I$74,2,FALSE),0) -> 0
A55: 04106-VICUÑA | B55: 105472-P.S.R. RIVADAVIA | E55: =IFERROR(VLOOKUP($B55,'[1]Num 2'!$G$3:$I$74,2,FALSE),0) -> 0
A56: 04106-VICUÑA | B56: 105473-P.S.R. TALCUNA | E56: =IFERROR(VLOOKUP($B56,'[1]Num 2'!$G$3:$I$74,2,FALSE),0) -> 0
A57: 04106-VICUÑA | B57: 105474-P.S.R. CHAPILCA | E57: =IFERROR(VLOOKUP($B57,'[1]Num 2'!$G$3:$I$74,2,FALSE),0) -> 0
A58: 04106-VICUÑA | B58: 105509-P.S.R. GUALLIGUAICA | E58: =IFERROR(VLOOKUP($B58,'[1]Num 2'!$G$3:$I$74,2,FALSE),0) -> 0
A59: 04106-VICUÑA | B59: 200538-CESFAM SAN ISIDRO CALINGASTA | E59: =IFERROR(VLOOKUP($B59,'[1]Num 2'!$G$3:$I$74,2,FALSE),0) -> 0
A60: TOTAL VICUÑA | C60: =D60/Metas!H9 -> 158.28% | D60: =E60/H60 -> 87.69% | E60: =SUM(E50:E59) -> 2,072 | F60: =SUM(F50:F59) -> 0 | H60: 2,363
A61: 04201-ILLAPEL | B61: 105326-CESFAM SAN RAFAEL | E61: =IFERROR(VLOOKUP($B61,'[1]Num 2'!$G$3:$I$74,2,FALSE),0) -> 846
A62: 04201-ILLAPEL | B62: 105443-P.S.R. CARCAMO | E62: =IFERROR(VLOOKUP($B62,'[1]Num 2'!$G$3:$I$74,2,FALSE),0) -> 1,257
A63: 04201-ILLAPEL | B63: 105444-P.S.R. HUINTIL | E63: =IFERROR(VLOOKUP($B63,'[1]Num 2'!$G$3:$I$74,2,FALSE),0) -> 0
A64: 04201-ILLAPEL | B64: 105445-P.S.R. LIMAHUIDA | E64: =IFERROR(VLOOKUP($B64,'[1]Num 2'!$G$3:$I$74,2,FALSE),0) -> 0
A65: 04201-ILLAPEL | B65: 105446-P.S.R. MATANCILLA | E65: =IFERROR(VLOOKUP($B65,'[1]Num 2'!$G$3:$I$74,2,FALSE),0) -> 0
A66: 04201-ILLAPEL | B66: 105447-P.S.R. PERALILLO | E66: =IFERROR(VLOOKUP($B66,'[1]Num 2'!$G$3:$I$74,2,FALSE),0) -> 0
A67: 04201-ILLAPEL | B67: 105448-P.S.R. SANTA VIRGINIA | E67: =IFERROR(VLOOKUP($B67,'[1]Num 2'!$G$3:$I$74,2,FALSE),0) -> 0
A68: 04201-ILLAPEL | B68: 105449-P.S.R. TUNGA NORTE | E68: =IFERROR(VLOOKUP($B68,'[1]Num 2'!$G$3:$I$74,2,FALSE),0) -> 0
A69: 04201-ILLAPEL | B69: 105485-P.S.R. PLAN DE HORNOS | E69: =IFERROR(VLOOKUP($B69,'[1]Num 2'!$G$3:$I$74,2,FALSE),0) -> 0
A70: 04201-ILLAPEL | B70: 105486-P.S.R. TUNGA SUR | E70: =IFERROR(VLOOKUP($B70,'[1]Num 2'!$G$3:$I$74,2,FALSE),0) -> 0
A71: 04201-ILLAPEL | B71: 105487-P.S.R. CAÑAS UNO | E71: =IFERROR(VLOOKUP($B71,'[1]Num 2'!$G$3:$I$74,2,FALSE),0) -> 0
A72: 04201-ILLAPEL | B72: 105496-P.S.R. PINTACURA SUR | E72: =IFERROR(VLOOKUP($B72,'[1]Num 2'!$G$3:$I$74,2,FALSE),0) -> 0
A73: 04201-ILLAPEL | B73: 105504-P.S.R. SOCAVON | E73: =IFERROR(VLOOKUP($B73,'[1]Num 2'!$G$3:$I$74,2,FALSE),0) -> 0
A74: 04201-ILLAPEL | B74: 200366-CESFAM URBANO II | E74: =IFERROR(VLOOKUP($B74,'[1]Num 2'!$G$3:$I$74,2,FALSE),0) -> 1,600
A75: TOTAL ILLAPEL | C75: =D75/Metas!H10 -> 185.29% | D75: =E75/H75 -> 92.64% | E75: =SUM(E61:E74) -> 3,703 | F75: =SUM(F61:F74) -> 0 | H75: 3,997
A76: 04202-CANELA | B76: 105309-CES. RURAL CANELA | E76: =IFERROR(VLOOKUP($B76,'[1]Num 2'!$G$3:$I$74,2,FALSE),0) -> 1,184
A77: 04202-CANELA | B77: 105450-P.S.R. MINCHA NORTE | E77: =IFERROR(VLOOKUP($B77,'[1]Num 2'!$G$3:$I$74,2,FALSE),0) -> 0
A78: 04202-CANELA | B78: 105451-P.S.R. AGUA FRIA | E78: =IFERROR(VLOOKUP($B78,'[1]Num 2'!$G$3:$I$74,2,FALSE),0) -> 0
A79: 04202-CANELA | B79: 105482-P.S.R. CANELA ALTA | E79: =IFERROR(VLOOKUP($B79,'[1]Num 2'!$G$3:$I$74,2,FALSE),0) -> 0
A80: 04202-CANELA | B80: 105483-P.S.R. LOS RULOS | E80: =IFERROR(VLOOKUP($B80,'[1]Num 2'!$G$3:$I$74,2,FALSE),0) -> 0
A81: 04202-CANELA | B81: 105484-P.S.R. HUENTELAUQUEN | E81: =IFERROR(VLOOKUP($B81,'[1]Num 2'!$G$3:$I$74,2,FALSE),0) -> 0
A82: 04202-CANELA | B82: 105488-P.S.R. ESPIRITU SANTO | E82: =IFERROR(VLOOKUP($B82,'[1]Num 2'!$G$3:$I$74,2,FALSE),0) -> 0
A83: 04202-CANELA | B83: 105493-P.S.R. MINCHA SUR | E83: =IFERROR(VLOOKUP($B83,'[1]Num 2'!$G$3:$I$74,2,FALSE),0) -> 0
A84: 04202-CANELA | B84: 105497-P.S.R. JABONERIA | E84: =IFERROR(VLOOKUP($B84,'[1]Num 2'!$G$3:$I$74,2,FALSE),0) -> 0
A85: 04202-CANELA | B85: 105498-P.S.R. QUEBRADA DE LINARES | E85: =IFERROR(VLOOKUP($B85,'[1]Num 2'!$G$3:$I$74,2,FALSE),0) -> 0
A86: TOTAL CANELA | C86: =D86/Metas!H11 -> 196.24% | D86: =E86/H86 -> 95.18% | E86: =SUM(E76:E85) -> 1,184 | F86: =SUM(F76:F85) -> 0 | H86: 1,244
A87: 04203-LOS VILOS | B87: 105478-P.S.R. CAIMANES | E87: =IFERROR(VLOOKUP($B87,'[1]Num 2'!$G$3:$I$74,2,FALSE),0) -> 821
A88: 04203-LOS VILOS | B88: 105479-P.S.R. GUANGUALI | E88: =IFERROR(VLOOKUP($B88,'[1]Num 2'!$G$3:$I$74,2,FALSE),0) -> 0
A89: 04203-LOS VILOS | B89: 105480-P.S.R. QUILIMARI | E89: =IFERROR(VLOOKUP($B89,'[1]Num 2'!$G$3:$I$74,2,FALSE),0) -> 0
A90: 04203-LOS VILOS | B90: 105481-P.S.R. TILAMA | E90: =IFERROR(VLOOKUP($B90,'[1]Num 2'!$G$3:$I$74,2,FALSE),0) -> 0
A91: 04203-LOS VILOS | B91: 105511-P.S.R. LOS CONDORES | E91: =IFERROR(VLOOKUP($B91,'[1]Num 2'!$G$3:$I$74,2,FALSE),0) -> 0
A92: TOTAL LOS VILOS | C92: =D92/Metas!H12 -> 185.66% | D92: =E92/H92 -> 88.37% | E92: =SUM(E87:E91) -> 821 | F92: =SUM(F87:F91) -> 0 | H92: 929
A93: 04204-SALAMANCA | B93: 105452-P.S.R. CUNCUMEN | E93: =IFERROR(VLOOKUP($B93,'[1]Num 2'!$G$3:$I$74,2,FALSE),0) -> 2,343
A94: 04204-SALAMANCA | B94: 105453-P.S.R. TRANQUILLA | E94: =IFERROR(VLOOKUP($B94,'[1]Num 2'!$G$3:$I$74,2,FALSE),0) -> 0
A95: 04204-SALAMANCA | B95: 105454-P.S.R. CUNLAGUA | E95: =IFERROR(VLOOKUP($B95,'[1]Num 2'!$G$3:$I$74,2,FALSE),0) -> 0
A96: 04204-SALAMANCA | B96: 105455-P.S.R. CHILLEPIN | E96: =IFERROR(VLOOKUP($B96,'[1]Num 2'!$G$3:$I$74,2,FALSE),0) -> 0
A97: 04204-SALAMANCA | B97: 105456-P.S.R. LLIMPO | E97: =IFERROR(VLOOKUP($B97,'[1]Num 2'!$G$3:$I$74,2,FALSE),0) -> 0
A98: 04204-SALAMANCA | B98: 105457-P.S.R. SAN AGUSTIN | E98: =IFERROR(VLOOKUP($B98,'[1]Num 2'!$G$3:$I$74,2,FALSE),0) -> 0
A99: 04204-SALAMANCA | B99: 105458-P.S.R. TAHUINCO | E99: =IFERROR(VLOOKUP($B99,'[1]Num 2'!$G$3:$I$74,2,FALSE),0) -> 0
A100: 04204-SALAMANCA | B100: 105491-P.S.R. QUELEN BAJO | E100: =IFERROR(VLOOKUP($B100,'[1]Num 2'!$G$3:$I$74,2,FALSE),0) -> 0
A101: 04204-SALAMANCA | B101: 105492-P.S.R. CAMISA | E101: =IFERROR(VLOOKUP($B101,'[1]Num 2'!$G$3:$I$74,2,FALSE),0) -> 0
A102: 04204-SALAMANCA | B102: 105501-P.S.R. ARBOLEDA GRANDE | E102: =IFERROR(VLOOKUP($B102,'[1]Num 2'!$G$3:$I$74,2,FALSE),0) -> 0
A103: TOTAL SALAMANCA | C103: =D103/Metas!H13 -> 139.30% | D103: =E103/H103 -> 95.28% | E103: =SUM(E93:E102) -> 2,343 | F103: =SUM(F93:F102) -> 0 | H103: 2,459
A104: 04301-OVALLE | B104: 105315-CES. RURAL C. DE TAMAYA | E104: =IFERROR(VLOOKUP($B104,'[1]Num 2'!$G$3:$I$74,2,FALSE),0) -> 955
A105: 04301-OVALLE | B105: 105317-CES. JORGE JORDAN D. | E105: =IFERROR(VLOOKUP($B105,'[1]Num 2'!$G$3:$I$74,2,FALSE),0) -> 2,532
A106: 04301-OVALLE | B106: 105322-CES. MARCOS MACUADA | E106: =IFERROR(VLOOKUP($B106,'[1]Num 2'!$G$3:$I$74,2,FALSE),0) -> 2,318
A107: 04301-OVALLE | B107: 105324-CES. SOTAQUI | E107: =IFERROR(VLOOKUP($B107,'[1]Num 2'!$G$3:$I$74,2,FALSE),0) -> 627
A108: 04301-OVALLE | B108: 105415-P.S.R. BARRAZA | E108: =IFERROR(VLOOKUP($B108,'[1]Num 2'!$G$3:$I$74,2,FALSE),0) -> 734
A109: 04301-OVALLE | B109: 105416-P.S.R. CAMARICO | E109: =IFERROR(VLOOKUP($B109,'[1]Num 2'!$G$3:$I$74,2,FALSE),0) -> 0
A110: 04301-OVALLE | B110: 105417-P.S.R. ALCONES BAJOS | E110: =IFERROR(VLOOKUP($B110,'[1]Num 2'!$G$3:$I$74,2,FALSE),0) -> 0
A111: 04301-OVALLE | B111: 105419-P.S.R. LAS SOSSAS | E111: =IFERROR(VLOOKUP($B111,'[1]Num 2'!$G$3:$I$74,2,FALSE),0) -> 0
A112: 04301-OVALLE | B112: 105422-P.S.R. HORNILLOS | E112: =IFERROR(VLOOKUP($B112,'[1]Num 2'!$G$3:$I$74,2,FALSE),0) -> 0
A113: 04301-OVALLE | B113: 105437-P.S.R. CHALINGA | E113: =IFERROR(VLOOKUP($B113,'[1]Num 2'!$G$3:$I$74,2,FALSE),0) -> 0
A114: 04301-OVALLE | B114: 105439-P.S.R. CERRO BLANCO | E114: =IFERROR(VLOOKUP($B114,'[1]Num 2'!$G$3:$I$74,2,FALSE),0) -> 0
A115: 04301-OVALLE | B115: 105507-P.S.R. HUAMALATA | E115: =IFERROR(VLOOKUP($B115,'[1]Num 2'!$G$3:$I$74,2,FALSE),0) -> 0
A116: 04301-OVALLE | B116: 105510-P.S.R. RECOLETA | E116: =IFERROR(VLOOKUP($B116,'[1]Num 2'!$G$3:$I$74,2,FALSE),0) -> 0
A117: 04301-OVALLE | B117: 105722-CECOF SAN JOSE DE LA DEHESA | E117: =IFERROR(VLOOKUP($B117,'[1]Num 2'!$G$3:$I$74,2,FALSE),0) -> 501
A118: 04301-OVALLE | B118: 105723-CECOF LIMARI | E118: =IFERROR(VLOOKUP($B118,'[1]Num 2'!$G$3:$I$74,2,FALSE),0) -> 134
A119: 04301-OVALLE | B119: 200258-CECOF LOS COPIHUES | E119: =IFERROR(VLOOKUP($B119,'[1]Num 2'!$G$3:$I$74,2,FALSE),0) -> 331
A120: 04301-OVALLE | B120: 200367-CECOF COLONIA LIMARÍ | E120: =IFERROR(VLOOKUP($B120,'[1]Num 2'!$G$3:$I$74,2,FALSE),0) -> 209
A121: 04301-OVALLE | B121: 200569-CESFAM FRAY JORGE | E121: =IFERROR(VLOOKUP($B121,'[1]Num 2'!$G$3:$I$74,2,FALSE),0) -> 1,469
A122: TOTAL OVALLE | C122: =D122/Metas!H14 -> 166.83% | D122: =E122/H122 -> 73.57% | E122: =SUM(E104:E121) -> 9,810 | F122: =SUM(F104:F121) -> 0 | H122: 13,334
A123: 04302-COMBARBALÁ | B123: 105433-P.S.R. SAN LORENZO | E123: =IFERROR(VLOOKUP($B123,'[1]Num 2'!$G$3:$I$74,2,FALSE),0) -> 945
A124: 04302-COMBARBALÁ | B124: 105434-P.S.R. SAN MARCOS | E124: =IFERROR(VLOOKUP($B124,'[1]Num 2'!$G$3:$I$74,2,FALSE),0) -> 0
A125: 04302-COMBARBALÁ | B125: 105441-P.S.R. MANQUEHUA | E125: =IFERROR(VLOOKUP($B125,'[1]Num 2'!$G$3:$I$74,2,FALSE),0) -> 0
A126: 04302-COMBARBALÁ | B126: 105459-P.S.R. BARRANCAS | E126: =IFERROR(VLOOKUP($B126,'[1]Num 2'!$G$3:$I$74,2,FALSE),0) -> 0
A127: 04302-COMBARBALÁ | B127: 105460-P.S.R. COGOTI 18 | E127: =IFERROR(VLOOKUP($B127,'[1]Num 2'!$G$3:$I$74,2,FALSE),0) -> 0
A128: 04302-COMBARBALÁ | B128: 105461-P.S.R. EL HUACHO | E128: =IFERROR(VLOOKUP($B128,'[1]Num 2'!$G$3:$I$74,2,FALSE),0) -> 0
A129: 04302-COMBARBALÁ | B129: 105462-P.S.R. EL SAUCE | E129: =IFERROR(VLOOKUP($B129,'[1]Num 2'!$G$3:$I$74,2,FALSE),0) -> 0
A130: 04302-COMBARBALÁ | B130: 105463-P.S.R. QUILITAPIA | E130: =IFERROR(VLOOKUP($B130,'[1]Num 2'!$G$3:$I$74,2,FALSE),0) -> 0
A131: 04302-COMBARBALÁ | B131: 105464-P.S.R. LA LIGUA | E131: =IFERROR(VLOOKUP($B131,'[1]Num 2'!$G$3:$I$74,2,FALSE),0) -> 0
A132: 04302-COMBARBALÁ | B132: 105465-P.S.R. RAMADILLA | E132: =IFERROR(VLOOKUP($B132,'[1]Num 2'!$G$3:$I$74,2,FALSE),0) -> 0
A133: 04302-COMBARBALÁ | B133: 105466-P.S.R. VALLE HERMOSO | E133: =IFERROR(VLOOKUP($B133,'[1]Num 2'!$G$3:$I$74,2,FALSE),0) -> 0
A134: 04302-COMBARBALÁ | B134: 105490-P.S.R. EL DURAZNO | E134: =IFERROR(VLOOKUP($B134,'[1]Num 2'!$G$3:$I$74,2,FALSE),0) -> 0
A135: TOTAL COMBARBALÁ | C135: =D135/Metas!H15 -> 154.40% | D135: =E135/H135 -> 90.17% | E135: =SUM(E123:E134) -> 945 | F135: =SUM(F123:F134) -> 0 | H135: 1,048
A136: 04304-MONTE PATRIA | B136: 105307-CES. RURAL MONTE PATRIA | E136: =IFERROR(VLOOKUP($B136,'[1]Num 2'!$G$3:$I$74,2,FALSE),0) -> 1,313
A137: 04304-MONTE PATRIA | B137: 105311-CES. RURAL CHAÑARAL ALTO | E137: =IFERROR(VLOOKUP($B137,'[1]Num 2'!$G$3:$I$74,2,FALSE),0) -> 752
A138: 04304-MONTE PATRIA | B138: 105312-CES. RURAL CAREN | E138: =IFERROR(VLOOKUP($B138,'[1]Num 2'!$G$3:$I$74,2,FALSE),0) -> 785
A139: 04304-MONTE PATRIA | B139: 105318-CES. RURAL EL PALQUI | E139: =IFERROR(VLOOKUP($B139,'[1]Num 2'!$G$3:$I$74,2,FALSE),0) -> 1,162
A140: 04304-MONTE PATRIA | B140: 105425-P.S.R. CHILECITO | E140: =IFERROR(VLOOKUP($B140,'[1]Num 2'!$G$3:$I$74,2,FALSE),0) -> 0
A141: 04304-MONTE PATRIA | B141: 105427-P.S.R. HACIENDA VALDIVIA | E141: =IFERROR(VLOOKUP($B141,'[1]Num 2'!$G$3:$I$74,2,FALSE),0) -> 0
A142: 04304-MONTE PATRIA | B142: 105428-P.S.R. HUATULAME | E142: =IFERROR(VLOOKUP($B142,'[1]Num 2'!$G$3:$I$74,2,FALSE),0) -> 0
A143: 04304-MONTE PATRIA | B143: 105430-P.S.R. MIALQUI | E143: =IFERROR(VLOOKUP($B143,'[1]Num 2'!$G$3:$I$74,2,FALSE),0) -> 0
A144: 04304-MONTE PATRIA | B144: 105431-P.S.R. PEDREGAL | E144: =IFERROR(VLOOKUP($B144,'[1]Num 2'!$G$3:$I$74,2,FALSE),0) -> 0
A145: 04304-MONTE PATRIA | B145: 105432-P.S.R. RAPEL | E145: =IFERROR(VLOOKUP($B145,'[1]Num 2'!$G$3:$I$74,2,FALSE),0) -> 0
A146: 04304-MONTE PATRIA | B146: 105435-P.S.R. TULAHUEN | E146: =IFERROR(VLOOKUP($B146,'[1]Num 2'!$G$3:$I$74,2,FALSE),0) -> 0
A147: 04304-MONTE PATRIA | B147: 105436-P.S.R. EL MAITEN | E147: =IFERROR(VLOOKUP($B147,'[1]Num 2'!$G$3:$I$74,2,FALSE),0) -> 0
A148: 04304-MONTE PATRIA | B148: 105489-P.S.R. RAMADAS DE TULAHUEN | E148: =IFERROR(VLOOKUP($B148,'[1]Num 2'!$G$3:$I$74,2,FALSE),0) -> 0
A149: TOTAL MONTE PATRIA | C149: =D149/Metas!H16 -> 167.32% | D149: =E149/H149 -> 86.00% | E149: =SUM(E136:E148) -> 4,012 | F149: =SUM(F136:F148) -> 0 | H149: 4,665
A150: 04304-PUNITAQUI | B150: 105308-CES. RURAL PUNITAQUI | E150: =IFERROR(VLOOKUP($B150,'[1]Num 2'!$G$3:$I$74,2,FALSE),0) -> 1,746
A151: 04304-PUNITAQUI | B151: 105440-P.S.R. DIVISADERO | E151: =IFERROR(VLOOKUP($B151,'[1]Num 2'!$G$3:$I$74,2,FALSE),0) -> 0
A152: 04304-PUNITAQUI | B152: 105442-P.S.R. SAN PEDRO DE QUILES | E152: =IFERROR(VLOOKUP($B152,'[1]Num 2'!$G$3:$I$74,2,FALSE),0) -> 0
A153: 04304-PUNITAQUI | B153: 105508-P.S.R. EL PARRAL DE QUILES | E153: =IFERROR(VLOOKUP($B153,'[1]Num 2'!$G$3:$I$74,2,FALSE),0) -> 0
A154: TOTAL PUNITAQUI | C154: =D154/Metas!H17 -> 135.39% | D154: =E154/H154 -> 83.94% | E154: =SUM(E150:E153) -> 1,746 | F154: =SUM(F150:F153) -> 0 | H154: 2,080
A155: 04305-RIO HURTADO | B155: 105310-CES. RURAL PICHASCA | E155: =IFERROR(VLOOKUP($B155,'[1]Num 2'!$G$3:$I$74,2,FALSE),0) -> 614
A156: 04305-RIO HURTADO | B156: 105409-P.S.R. EL CHAÑAR | E156: =IFERROR(VLOOKUP($B156,'[1]Num 2'!$G$3:$I$74,2,FALSE),0) -> 0
A157: 04305-RIO HURTADO | B157: 105410-P.S.R. HURTADO | E157: =IFERROR(VLOOKUP($B157,'[1]Num 2'!$G$3:$I$74,2,FALSE),0) -> 0
A158: 04305-RIO HURTADO | B158: 105411-P.S.R. LAS BREAS | E158: =IFERROR(VLOOKUP($B158,'[1]Num 2'!$G$3:$I$74,2,FALSE),0) -> 0
A159: 04305-RIO HURTADO | B159: 105413-P.S.R. SAMO ALTO | E159: =IFERROR(VLOOKUP($B159,'[1]Num 2'!$G$3:$I$74,2,FALSE),0) -> 0
A160: 04305-RIO HURTADO | B160: 105414-P.S.R. SERON | E160: =IFERROR(VLOOKUP($B160,'[1]Num 2'!$G$3:$I$74,2,FALSE),0) -> 0
A161: 04305-RIO HURTADO | B161: 105503-P.S.R. TABAQUEROS | E161: =IFERROR(VLOOKUP($B161,'[1]Num 2'!$G$3:$I$74,2,FALSE),0) -> 0
A162: TOTAL RIO HURTADO | C162: =D162/Metas!H18 -> 142.53% | D162: =E162/H162 -> 84.81% | E162: =SUM(E155:E161) -> 614 | F162: =SUM(F155:F161) -> 0 | H162: 724

Sheet Meta 3A
A1: COMUNA | B1: ESTABLECIMIENTO | C1: CUMPLIMIENTO | D1: Indicador | E1: META 3a: CONTROL ODONTOLOGICO EN POBLACION INFANTIL
E2: NUMERADOR | R2: DENOMINADOR
E10: N° de niños(as) de 0 a 9 años con control odontológico | R10: Total de niños(as) de 0 a 9 años inscritos validados
D11: Resultado | E11: ENERO | F11: FEBRERO | G11: MARZO | H11: ABRIL | I11: MAYO | J11: JUNIO | K11: JULIO | L11: AGOSTO | M11: SEPBRE | N11: OCTUBRE | O11: NOVBRE | P11: DICBRE | Q11: TOTAL
A12: 04101-LA SERENA | B12: 105300-CES. CARDENAL CARO | E12: =IFERROR(VLOOKUP($B12,'[1]Num 3A'!$G$3:$O$138,2,FALSE),0) -> 40 | F12: =IFERROR(VLOOKUP($B12,'[1]Num 3A'!$G$3:$O$138,3,FALSE),0) -> 23 | G12: =IFERROR(VLOOKUP($B12,'[1]Num 3A'!$G$3:$O$138,4,FALSE),0) -> 55 | H12: =IFERROR(VLOOKUP($B12,'[1]Num 3A'!$G$3:$O$138,5,FALSE),0) -> 67 | I12: =IFERROR(VLOOKUP($B12,'[1]Num 3A'!$G$3:$O$138,6,FALSE),0) -> 89 | J12: =IFERROR(VLOOKUP($B12,'[1]Num 3A'!$G$3:$O$138,7,FALSE),0) -> 51 | K12: =IFERROR(VLOOKUP($B12,'[1]Num 3A'!$G$3:$O$138,8,FALSE),0) -> 87 | Q12: =SUM(E12:P12) -> 412
A13: 04101-LA SERENA | B13: 105301-CES. LAS COMPAÑIAS | E13: =IFERROR(VLOOKUP($B13,'[1]Num 3A'!$G$3:$O$138,2,FALSE),0) -> 27 | F13: =IFERROR(VLOOKUP($B13,'[1]Num 3A'!$G$3:$O$138,3,FALSE),0) -> 69 | G13: =IFERROR(VLOOKUP($B13,'[1]Num 3A'!$G$3:$O$138,4,FALSE),0) -> 122 | H13: =IFERROR(VLOOKUP($B13,'[1]Num 3A'!$G$3:$O$138,5,FALSE),0) -> 118 | I13: =IFERROR(VLOOKUP($B13,'[1]Num 3A'!$G$3:$O$138,6,FALSE),0) -> 118 | J13: =IFERROR(VLOOKUP($B13,'[1]Num 3A'!$G$3:$O$138,7,FALSE),0) -> 95 | K13: =IFERROR(VLOOKUP($B13,'[1]Num 3A'!$G$3:$O$138,8,FALSE),0) -> 46 | Q13: =SUM(E13:P13) -> 595
A14: 04101-LA SERENA | B14: 105302-CES. PEDRO AGUIRRE C. | E14: =IFERROR(VLOOKUP($B14,'[1]Num 3A'!$G$3:$O$138,2,FALSE),0) -> 61 | F14: =IFERROR(VLOOKUP($B14,'[1]Num 3A'!$G$3:$O$138,3,FALSE),0) -> 38 | G14: =IFERROR(VLOOKUP($B14,'[1]Num 3A'!$G$3:$O$138,4,FALSE),0) -> 36 | H14: =IFERROR(VLOOKUP($B14,'[1]Num 3A'!$G$3:$O$138,5,FALSE),0) -> 54 | I14: =IFERROR(VLOOKUP($B14,'[1]Num 3A'!$G$3:$O$138,6,FALSE),0) -> 105 | J14: =IFERROR(VLOOKUP($B14,'[1]Num 3A'!$G$3:$O$138,7,FALSE),0) -> 72 | K14: =IFERROR(VLOOKUP($B14,'[1]Num 3A'!$G$3:$O$138,8,FALSE),0) -> 88 | Q14: 454
A15: 04101-LA SERENA | B15: 105313-CES. SCHAFFHAUSER | E15: =IFERROR(VLOOKUP($B15,'[1]Num 3A'!$G$3:$O$138,2,FALSE),0) -> 173 | F15: =IFERROR(VLOOKUP($B15,'[1]Num 3A'!$G$3:$O$138,3,FALSE),0) -> 65 | G15: =IFERROR(VLOOKUP($B15,'[1]Num 3A'!$G$3:$O$138,4,FALSE),0) -> 222 | H15: =IFERROR(VLOOKUP($B15,'[1]Num 3A'!$G$3:$O$138,5,FALSE),0) -> 216 | I15: =IFERROR(VLOOKUP($B15,'[1]Num 3A'!$G$3:$O$138,6,FALSE),0) -> 214 | J15: =IFERROR(VLOOKUP($B15,'[1]Num 3A'!$G$3:$O$138,7,FALSE),0) -> 200 | K15: =IFERROR(VLOOKUP($B15,'[1]Num 3A'!$G$3:$O$138,8,FALSE),0) -> 176 | Q15: 1,266
A16: 04101-LA SERENA | B16: 105319-CES. CARDENAL R.S.H. | E16: =IFERROR(VLOOKUP($B16,'[1]Num 3A'!$G$3:$O$138,2,FALSE),0) -> 89 | F16: =IFERROR(VLOOKUP($B16,'[1]Num 3A'!$G$3:$O$138,3,FALSE),0) -> 97 | G16: =IFERROR(VLOOKUP($B16,'[1]Num 3A'!$G$3:$O$138,4,FALSE),0) -> 84 | H16: =IFERROR(VLOOKUP($B16,'[1]Num 3A'!$G$3:$O$138,5,FALSE),0) -> 197 | I16: =IFERROR(VLOOKUP($B16,'[1]Num 3A'!$G$3:$O$138,6,FALSE),0) -> 199 | J16: =IFERROR(VLOOKUP($B16,'[1]Num 3A'!$G$3:$O$138,7,FALSE),0) -> 97 | K16: =IFERROR(VLOOKUP($B16,'[1]Num 3A'!$G$3:$O$138,8,FALSE),0) -> 84 | Q16: 847
A17: 04101-LA SERENA | B17: 105325-CESFAM JUAN PABLO II | E17: =IFERROR(VLOOKUP($B17,'[1]Num 3A'!$G$3:$O$138,2,FALSE),0) -> 98 | F17: =IFERROR(VLOOKUP($B17,'[1]Num 3A'!$G$3:$O$138,3,FALSE),0) -> 53 | G17: =IFERROR(VLOOKUP($B17,'[1]Num 3A'!$G$3:$O$138,4,FALSE),0) -> 102 | H17: =IFERROR(VLOOKUP($B17,'[1]Num 3A'!$G$3:$O$138,5,FALSE),0) -> 0 | I17: =IFERROR(VLOOKUP($B17,'[1]Num 3A'!$G$3:$O$138,6,FALSE),0) -> 64 | J17: =IFERROR(VLOOKUP($B17,'[1]Num 3A'!$G$3:$O$138,7,FALSE),0) -> 160 | K17: =IFERROR(VLOOKUP($B17,'[1]Num 3A'!$G$3:$O$138,8,FALSE),0) -> 59 | Q17: 536
A18: 04101-LA SERENA | B18: 105400-P.S.R. ALGARROBITO | E18: =IFERROR(VLOOKUP($B18,'[1]Num 3A'!$G$3:$O$138,2,FALSE),0) -> 0 | F18: =IFERROR(VLOOKUP($B18,'[1]Num 3A'!$G$3:$O$138,3,FALSE),0) -> 1 | G18: =IFERROR(VLOOKUP($B18,'[1]Num 3A'!$G$3:$O$138,4,FALSE),0) -> 0 | H18: =IFERROR(VLOOKUP($B18,'[1]Num 3A'!$G$3:$O$138,5,FALSE),0) -> 0 | I18: =IFERROR(VLOOKUP($B18,'[1]Num 3A'!$G$3:$O$138,6,FALSE),0) -> 0 | J18: =IFERROR(VLOOKUP($B18,'[1]Num 3A'!$G$3:$O$138,7,FALSE),0) -> 0 | K18: =IFERROR(VLOOKUP($B18,'[1]Num 3A'!$G$3:$O$138,8,FALSE),0) -> 0 | Q18: 1
A19: 04101-LA SERENA | B19: 105401-P.S.R. LAS ROJAS | E19: =IFERROR(VLOOKUP($B19,'[1]Num 3A'!$G$3:$O$138,2,FALSE),0) -> 0 | F19: =IFERROR(VLOOKUP($B19,'[1]Num 3A'!$G$3:$O$138,3,FALSE),0) -> 0 | G19: =IFERROR(VLOOKUP($B19,'[1]Num 3A'!$G$3:$O$138,4,FALSE),0) -> 0 | H19: =IFERROR(VLOOKUP($B19,'[1]Num 3A'!$G$3:$O$138,5,FALSE),0) -> 0 | I19: =IFERROR(VLOOKUP($B19,'[1]Num 3A'!$G$3:$O$138,6,FALSE),0) -> 0 | J19: =IFERROR(VLOOKUP($B19,'[1]Num 3A'!$G$3:$O$138,7,FALSE),0) -> 0 | K19: =IFERROR(VLOOKUP($B19,'[1]Num 3A'!$G$3:$O$138,8,FALSE),0) -> 0 | Q19: 0
A20: 04101-LA SERENA | B20: 105402-P.S.R. EL ROMERO | E20: =IFERROR(VLOOKUP($B20,'[1]Num 3A'!$G$3:$O$138,2,FALSE),0) -> 0 | F20: =IFERROR(VLOOKUP($B20,'[1]Num 3A'!$G$3:$O$138,3,FALSE),0) -> 0 | G20: =IFERROR(VLOOKUP($B20,'[1]Num 3A'!$G$3:$O$138,4,FALSE),0) -> 0 | H20: =IFERROR(VLOOKUP($B20,'[1]Num 3A'!$G$3:$O$138,5,FALSE),0) -> 1 | I20: =IFERROR(VLOOKUP($B20,'[1]Num 3A'!$G$3:$O$138,6,FALSE),0) -> 0 | J20: =IFERROR(VLOOKUP($B20,'[1]Num 3A'!$G$3:$O$138,7,FALSE),0) -> 0 | K20: =IFERROR(VLOOKUP($B20,'[1]Num 3A'!$G$3:$O$138,8,FALSE),0) -> 0 | Q20: 1
A21: 04101-LA SERENA | B21: 105499-P.S.R. LAMBERT | E21: =IFERROR(VLOOKUP($B21,'[1]Num 3A'!$G$3:$O$138,2,FALSE),0) -> 0 | F21: =IFERROR(VLOOKUP($B21,'[1]Num 3A'!$G$3:$O$138,3,FALSE),0) -> 0 | G21: =IFERROR(VLOOKUP($B21,'[1]Num 3A'!$G$3:$O$138,4,FALSE),0) -> 0 | H21: =IFERROR(VLOOKUP($B21,'[1]Num 3A'!$G$3:$O$138,5,FALSE),0) -> 0 | I21: =IFERROR(VLOOKUP($B21,'[1]Num 3A'!$G$3:$O$138,6,FALSE),0) -> 0 | J21: =IFERROR(VLOOKUP($B21,'[1]Num 3A'!$G$3:$O$138,7,FALSE),0) -> 0 | K21: =IFERROR(VLOOKUP($B21,'[1]Num 3A'!$G$3:$O$138,8,FALSE),0) -> 0 | Q21: 0
A22: 04101-LA SERENA | B22: 105700-CECOF VILLA EL INDIO | E22: =IFERROR(VLOOKUP($B22,'[1]Num 3A'!$G$3:$O$138,2,FALSE),0) -> 11 | F22: =IFERROR(VLOOKUP($B22,'[1]Num 3A'!$G$3:$O$138,3,FALSE),0) -> 11 | G22: =IFERROR(VLOOKUP($B22,'[1]Num 3A'!$G$3:$O$138,4,FALSE),0) -> 11 | H22: =IFERROR(VLOOKUP($B22,'[1]Num 3A'!$G$3:$O$138,5,FALSE),0) -> 11 | I22: =IFERROR(VLOOKUP($B22,'[1]Num 3A'!$G$3:$O$138,6,FALSE),0) -> 18 | J22: =IFERROR(VLOOKUP($B22,'[1]Num 3A'!$G$3:$O$138,7,FALSE),0) -> 11 | K22: =IFERROR(VLOOKUP($B22,'[1]Num 3A'!$G$3:$O$138,8,FALSE),0) -> 9 | Q22: =SUM(E22:P22) -> 82
A23: 04101-LA SERENA | B23: 105701-CECOF VILLA ALEMANIA | E23: =IFERROR(VLOOKUP($B23,'[1]Num 3A'!$G$3:$O$138,2,FALSE),0) -> 13 | F23: =IFERROR(VLOOKUP($B23,'[1]Num 3A'!$G$3:$O$138,3,FALSE),0) -> 0 | G23: =IFERROR(VLOOKUP($B23,'[1]Num 3A'!$G$3:$O$138,4,FALSE),0) -> 26 | H23: =IFERROR(VLOOKUP($B23,'[1]Num 3A'!$G$3:$O$138,5,FALSE),0) -> 9 | I23: =IFERROR(VLOOKUP($B23,'[1]Num 3A'!$G$3:$O$138,6,FALSE),0) -> 12 | J23: =IFERROR(VLOOKUP($B23,'[1]Num 3A'!$G$3:$O$138,7,FALSE),0) -> 4 | K23: =IFERROR(VLOOKUP($B23,'[1]Num 3A'!$G$3:$O$138,8,FALSE),0) -> 0 | Q23: 64
A24: 04101-LA SERENA | B24: 105702-CECOF VILLA LAMBERT | E24: =IFERROR(VLOOKUP($B24,'[1]Num 3A'!$G$3:$O$138,2,FALSE),0) -> 20 | F24: =IFERROR(VLOOKUP($B24,'[1]Num 3A'!$G$3:$O$138,3,FALSE),0) -> 19 | G24: =IFERROR(VLOOKUP($B24,'[1]Num 3A'!$G$3:$O$138,4,FALSE),0) -> 23 | H24: =IFERROR(VLOOKUP($B24,'[1]Num 3A'!$G$3:$O$138,5,FALSE),0) -> 22 | I24: =IFERROR(VLOOKUP($B24,'[1]Num 3A'!$G$3:$O$138,6,FALSE),0) -> 7 | J24: =IFERROR(VLOOKUP($B24,'[1]Num 3A'!$G$3:$O$138,7,FALSE),0) -> 12 | K24: =IFERROR(VLOOKUP($B24,'[1]Num 3A'!$G$3:$O$138,8,FALSE),0) -> 14 | Q24: 117
A25: 04101-LA SERENA | B25: 200402-CECOF ARCOS DE PINAMAR | E25: =IFERROR(VLOOKUP($B25,'[1]Num 3A'!$G$3:$O$138,2,FALSE),0) -> 17 | F25: =IFERROR(VLOOKUP($B25,'[1]Num 3A'!$G$3:$O$138,3,FALSE),0) -> 21 | G25: =IFERROR(VLOOKUP($B25,'[1]Num 3A'!$G$3:$O$138,4,FALSE),0) -> 21 | H25: =IFERROR(VLOOKUP($B25,'[1]Num 3A'!$G$3:$O$138,5,FALSE),0) -> 15 | I25: =IFERROR(VLOOKUP($B25,'[1]Num 3A'!$G$3:$O$138,6,FALSE),0) -> 75 | J25: =IFERROR(VLOOKUP($B25,'[1]Num 3A'!$G$3:$O$138,7,FALSE),0) -> 23 | K25: =IFERROR(VLOOKUP($B25,'[1]Num 3A'!$G$3:$O$138,8,FALSE),0) -> 21 | Q25: 193
A26: TOTAL LA SERENA | C26: =D26/Metas!I5 -> 65.52% | D26: =Q26/R26 -> 19.65% | E26: =SUM(E12:E25) -> 549 | F26: =SUM(F12:F25) -> 397 | G26: 702 | H26: 710 | I26: 901 | J26: 725 | K26: 584 | L26: 0 | M26: 0 | N26: 0 | O26: 0 | P26: =SUM(P12:P25) -> 0 | Q26: =SUM(Q12:Q25) -> 4,568 | R26: 23,241
A27: 04102-COQUIMBO | B27: 105303-CES. SAN JUAN | E27: =IFERROR(VLOOKUP($B27,'[1]Num 3A'!$G$3:$O$138,2,FALSE),0) -> 117 | F27: =IFERROR(VLOOKUP($B27,'[1]Num 3A'!$G$3:$O$138,3,FALSE),0) -> 107 | G27: =IFERROR(VLOOKUP($B27,'[1]Num 3A'!$G$3:$O$138,4,FALSE),0) -> 166 | H27: =IFERROR(VLOOKUP($B27,'[1]Num 3A'!$G$3:$O$138,5,FALSE),0) -> 103 | I27: =IFERROR(VLOOKUP($B27,'[1]Num 3A'!$G$3:$O$138,6,FALSE),0) -> 90 | J27: =IFERROR(VLOOKUP($B27,'[1]Num 3A'!$G$3:$O$138,7,FALSE),0) -> 117 | K27: =IFERROR(VLOOKUP($B27,'[1]Num 3A'!$G$3:$O$138,8,FALSE),0) -> 158 | Q27: =SUM(E27:P27) -> 858
A28: 04102-COQUIMBO | B28: 105304-CES. SANTA CECILIA | E28: =IFERROR(VLOOKUP($B28,'[1]Num 3A'!$G$3:$O$138,2,FALSE),0) -> 59 | F28: =IFERROR(VLOOKUP($B28,'[1]Num 3A'!$G$3:$O$138,3,FALSE),0) -> 138 | G28: =IFERROR(VLOOKUP($B28,'[1]Num 3A'!$G$3:$O$138,4,FALSE),0) -> 129 | H28: =IFERROR(VLOOKUP($B28,'[1]Num 3A'!$G$3:$O$138,5,FALSE),0) -> 73 | I28: =IFERROR(VLOOKUP($B28,'[1]Num 3A'!$G$3:$O$138,6,FALSE),0) -> 96 | J28: =IFERROR(VLOOKUP($B28,'[1]Num 3A'!$G$3:$O$138,7,FALSE),0) -> 48 | K28: =IFERROR(VLOOKUP($B28,'[1]Num 3A'!$G$3:$O$138,8,FALSE),0) -> 72 | Q28: 615
A29: 04102-COQUIMBO | B29: 105305-CES. TIERRAS BLANCAS | E29: =IFERROR(VLOOKUP($B29,'[1]Num 3A'!$G$3:$O$138,2,FALSE),0) -> 75 | F29: =IFERROR(VLOOKUP($B29,'[1]Num 3A'!$G$3:$O$138,3,FALSE),0) -> 141 | G29: =IFERROR(VLOOKUP($B29,'[1]Num 3A'!$G$3:$O$138,4,FALSE),0) -> 134 | H29: =IFERROR(VLOOKUP($B29,'[1]Num 3A'!$G$3:$O$138,5,FALSE),0) -> 136 | I29: =IFERROR(VLOOKUP($B29,'[1]Num 3A'!$G$3:$O$138,6,FALSE),0) -> 124 | J29: =IFERROR(VLOOKUP($B29,'[1]Num 3A'!$G$3:$O$138,7,FALSE),0) -> 108 | K29: =IFERROR(VLOOKUP($B29,'[1]Num 3A'!$G$3:$O$138,8,FALSE),0) -> 74 | Q29: 792
A30: 04102-COQUIMBO | B30: 105321-CES. RURAL TONGOY | E30: =IFERROR(VLOOKUP($B30,'[1]Num 3A'!$G$3:$O$138,2,FALSE),0) -> 11 | F30: =IFERROR(VLOOKUP($B30,'[1]Num 3A'!$G$3:$O$138,3,FALSE),0) -> 7 | G30: =IFERROR(VLOOKUP($B30,'[1]Num 3A'!$G$3:$O$138,4,FALSE),0) -> 38 | H30: =IFERROR(VLOOKUP($B30,'[1]Num 3A'!$G$3:$O$138,5,FALSE),0) -> 58 | I30: =IFERROR(VLOOKUP($B30,'[1]Num 3A'!$G$3:$O$138,6,FALSE),0) -> 107 | J30: =IFERROR(VLOOKUP($B30,'[1]Num 3A'!$G$3:$O$138,7,FALSE),0) -> 46 | K30: =IFERROR(VLOOKUP($B30,'[1]Num 3A'!$G$3:$O$138,8,FALSE),0) -> 39 | Q30: 306
A31: 04102-COQUIMBO | B31: 105323-CES. DR. SERGIO AGUILAR | E31: =IFERROR(VLOOKUP($B31,'[1]Num 3A'!$G$3:$O$138,2,FALSE),0) -> 118 | F31: =IFERROR(VLOOKUP($B31,'[1]Num 3A'!$G$3:$O$138,3,FALSE),0) -> 91 | G31: =IFERROR(VLOOKUP($B31,'[1]Num 3A'!$G$3:$O$138,4,FALSE),0) -> 129 | H31: =IFERROR(VLOOKUP($B31,'[1]Num 3A'!$G$3:$O$138,5,FALSE),0) -> 138 | I31: =IFERROR(VLOOKUP($B31,'[1]Num 3A'!$G$3:$O$138,6,FALSE),0) -> 0 | J31: =IFERROR(VLOOKUP($B31,'[1]Num 3A'!$G$3:$O$138,7,FALSE),0) -> 118 | K31: =IFERROR(VLOOKUP($B31,'[1]Num 3A'!$G$3:$O$138,8,FALSE),0) -> 100 | Q31: 694
A32: 04102-COQUIMBO | B32: 105404-P.S.R. EL TANGUE | E32: =IFERROR(VLOOKUP($B32,'[1]Num 3A'!$G$3:$O$138,2,FALSE),0) -> 0 | F32: =IFERROR(VLOOKUP($B32,'[1]Num 3A'!$G$3:$O$138,3,FALSE),0) -> 0 | G32: =IFERROR(VLOOKUP($B32,'[1]Num 3A'!$G$3:$O$138,4,FALSE),0) -> 0 | H32: =IFERROR(VLOOKUP($B32,'[1]Num 3A'!$G$3:$O$138,5,FALSE),0) -> 0 | I32: =IFERROR(VLOOKUP($B32,'[1]Num 3A'!$G$3:$O$138,6,FALSE),0) -> 0 | J32: =IFERROR(VLOOKUP($B32,'[1]Num 3A'!$G$3:$O$138,7,FALSE),0) -> 0 | K32: =IFERROR(VLOOKUP($B32,'[1]Num 3A'!$G$3:$O$138,8,FALSE),0) -> 0 | Q32: 0
A33: 04102-COQUIMBO | B33: 105405-P.S.R. GUANAQUEROS | E33: =IFERROR(VLOOKUP($B33,'[1]Num 3A'!$G$3:$O$138,2,FALSE),0) -> 0 | F33: =IFERROR(VLOOKUP($B33,'[1]Num 3A'!$G$3:$O$138,3,FALSE),0) -> 2 | G33: =IFERROR(VLOOKUP($B33,'[1]Num 3A'!$G$3:$O$138,4,FALSE),0) -> 0 | H33: =IFERROR(VLOOKUP($B33,'[1]Num 3A'!$G$3:$O$138,5,FALSE),0) -> 19 | I33: =IFERROR(VLOOKUP($B33,'[1]Num 3A'!$G$3:$O$138,6,FALSE),0) -> 10 | J33: =IFERROR(VLOOKUP($B33,'[1]Num 3A'!$G$3:$O$138,7,FALSE),0) -> 46 | K33: =IFERROR(VLOOKUP($B33,'[1]Num 3A'!$G$3:$O$138,8,FALSE),0) -> 0 | Q33: 77
A34: 04102-COQUIMBO | B34: 105407-P.S.R. TAMBILLOS | E34: =IFERROR(VLOOKUP($B34,'[1]Num 3A'!$G$3:$O$138,2,FALSE),0) -> 0 | F34: =IFERROR(VLOOKUP($B34,'[1]Num 3A'!$G$3:$O$138,3,FALSE),0) -> 0 | G34: =IFERROR(VLOOKUP($B34,'[1]Num 3A'!$G$3:$O$138,4,FALSE),0) -> 0 | H34: =IFERROR(VLOOKUP($B34,'[1]Num 3A'!$G$3:$O$138,5,FALSE),0) -> 0 | I34: =IFERROR(VLOOKUP($B34,'[1]Num 3A'!$G$3:$O$138,6,FALSE),0) -> 0 | J34: =IFERROR(VLOOKUP($B34,'[1]Num 3A'!$G$3:$O$138,7,FALSE),0) -> 0 | K34: =IFERROR(VLOOKUP($B34,'[1]Num 3A'!$G$3:$O$138,8,FALSE),0) -> 0 | Q34: 0
A35: 04102-COQUIMBO | B35: 200273-CECOF PUNTA MIRA | E35: =IFERROR(VLOOKUP($B35,'[1]Num 3A'!$G$3:$O$138,2,FALSE),0) -> 10 | F35: =IFERROR(VLOOKUP($B35,'[1]Num 3A'!$G$3:$O$138,3,FALSE),0) -> 0 | G35: =IFERROR(VLOOKUP($B35,'[1]Num 3A'!$G$3:$O$138,4,FALSE),0) -> 12 | H35: =IFERROR(VLOOKUP($B35,'[1]Num 3A'!$G$3:$O$138,5,FALSE),0) -> 14 | I35: =IFERROR(VLOOKUP($B35,'[1]Num 3A'!$G$3:$O$138,6,FALSE),0) -> 8 | J35: =IFERROR(VLOOKUP($B35,'[1]Num 3A'!$G$3:$O$138,7,FALSE),0) -> 5 | K35: =IFERROR(VLOOKUP($B35,'[1]Num 3A'!$G$3:$O$138,8,FALSE),0) -> 7 | Q35: 56
A36: 04102-COQUIMBO | B36: 200494-CESFAM EL SAUCE | E36: =IFERROR(VLOOKUP($B36,'[1]Num 3A'!$G$3:$O$138,2,FALSE),0) -> 44 | F36: =IFERROR(VLOOKUP($B36,'[1]Num 3A'!$G$3:$O$138,3,FALSE),0) -> 22 | G36: =IFERROR(VLOOKUP($B36,'[1]Num 3A'!$G$3:$O$138,4,FALSE),0) -> 62 | H36: =IFERROR(VLOOKUP($B36,'[1]Num 3A'!$G$3:$O$138,5,FALSE),0) -> 60 | I36: =IFERROR(VLOOKUP($B36,'[1]Num 3A'!$G$3:$O$138,6,FALSE),0) -> 80 | J36: =IFERROR(VLOOKUP($B36,'[1]Num 3A'!$G$3:$O$138,7,FALSE),0) -> 52 | K36: =IFERROR(VLOOKUP($B36,'[1]Num 3A'!$G$3:$O$138,8,FALSE),0) -> 57 | Q36: =SUM(E36:P36) -> 377
A37: 04102-COQUIMBO | B37: 200499-CESFAM PAN DE AZÚCAR | E37: =IFERROR(VLOOKUP($B37,'[1]Num 3A'!$G$3:$O$138,2,FALSE),0) -> 91 | F37: =IFERROR(VLOOKUP($B37,'[1]Num 3A'!$G$3:$O$138,3,FALSE),0) -> 67 | G37: =IFERROR(VLOOKUP($B37,'[1]Num 3A'!$G$3:$O$138,4,FALSE),0) -> 52 | H37: =IFERROR(VLOOKUP($B37,'[1]Num 3A'!$G$3:$O$138,5,FALSE),0) -> 133 | I37: =IFERROR(VLOOKUP($B37,'[1]Num 3A'!$G$3:$O$138,6,FALSE),0) -> 104 | J37: =IFERROR(VLOOKUP($B37,'[1]Num 3A'!$G$3:$O$138,7,FALSE),0) -> 29 | K37: =IFERROR(VLOOKUP($B37,'[1]Num 3A'!$G$3:$O$138,8,FALSE),0) -> 34 | Q37: =SUM(E37:P37) -> 510
A38: 04102-COQUIMBO | B38: 200607-CESFAM LILA CORTES | E38: =IFERROR(VLOOKUP($B38,'[1]Num 3A'!$G$3:$O$138,2,FALSE),0) -> 59 | F38: =IFERROR(VLOOKUP($B38,'[1]Num 3A'!$G$3:$O$138,3,FALSE),0) -> 32 | G38: =IFERROR(VLOOKUP($B38,'[1]Num 3A'!$G$3:$O$138,4,FALSE),0) -> 50 | H38: =IFERROR(VLOOKUP($B38,'[1]Num 3A'!$G$3:$O$138,5,FALSE),0) -> 53 | I38: =IFERROR(VLOOKUP($B38,'[1]Num 3A'!$G$3:$O$138,6,FALSE),0) -> 83 | J38: =IFERROR(VLOOKUP($B38,'[1]Num 3A'!$G$3:$O$138,7,FALSE),0) -> 100 | K38: =IFERROR(VLOOKUP($B38,'[1]Num 3A'!$G$3:$O$138,8,FALSE),0) -> 59 | Q38: =SUM(E38:P38) -> 436
A39: TOTAL COQUIMBO | C39: =D39/Metas!I6 -> 74.61% | D39: =Q39/R39 -> 20.89% | E39: =SUM(E27:E38) -> 584 | F39: 607 | G39: 772 | H39: 787 | I39: 702 | J39: 669 | K39: 600 | L39: 0 | M39: 0 | N39: 0 | O39: 0 | P39: 0 | Q39: 4721 | R39: 22,597
A40: 04104-LA HIGUERA | B40: 105314-CES. LA HIGUERA | E40: =IFERROR(VLOOKUP($B40,'[1]Num 3A'!$G$3:$O$138,2,FALSE),0) -> 10 | F40: =IFERROR(VLOOKUP($B40,'[1]Num 3A'!$G$3:$O$138,3,FALSE),0) -> 8 | G40: =IFERROR(VLOOKUP($B40,'[1]Num 3A'!$G$3:$O$138,4,FALSE),0) -> 7 | H40: =IFERROR(VLOOKUP($B40,'[1]Num 3A'!$G$3:$O$138,5,FALSE),0) -> 24 | I40: =IFERROR(VLOOKUP($B40,'[1]Num 3A'!$G$3:$O$138,6,FALSE),0) -> 6 | J40: =IFERROR(VLOOKUP($B40,'[1]Num 3A'!$G$3:$O$138,7,FALSE),0) -> 4 | K40: =IFERROR(VLOOKUP($B40,'[1]Num 3A'!$G$3:$O$138,8,FALSE),0) -> 5 | Q40: 64
A41: 04104-LA HIGUERA | B41: 105500-P.S.R. CALETA HORNOS | E41: =IFERROR(VLOOKUP($B41,'[1]Num 3A'!$G$3:$O$138,2,FALSE),0) -> 7 | F41: =IFERROR(VLOOKUP($B41,'[1]Num 3A'!$G$3:$O$138,3,FALSE),0) -> 8 | G41: =IFERROR(VLOOKUP($B41,'[1]Num 3A'!$G$3:$O$138,4,FALSE),0) -> 10 | H41: =IFERROR(VLOOKUP($B41,'[1]Num 3A'!$G$3:$O$138,5,FALSE),0) -> 8 | I41: =IFERROR(VLOOKUP($B41,'[1]Num 3A'!$G$3:$O$138,6,FALSE),0) -> 4 | J41: =IFERROR(VLOOKUP($B41,'[1]Num 3A'!$G$3:$O$138,7,FALSE),0) -> 7 | K41: =IFERROR(VLOOKUP($B41,'[1]Num 3A'!$G$3:$O$138,8,FALSE),0) -> 2 | Q41: 46
A42: 04104-LA HIGUERA | B42: 105505-P.S.R. LOS CHOROS | E42: =IFERROR(VLOOKUP($B42,'[1]Num 3A'!$G$3:$O$138,2,FALSE),0) -> 1 | F42: =IFERROR(VLOOKUP($B42,'[1]Num 3A'!$G$3:$O$138,3,FALSE),0) -> 4 | G42: =IFERROR(VLOOKUP($B42,'[1]Num 3A'!$G$3:$O$138,4,FALSE),0) -> 0 | H42: =IFERROR(VLOOKUP($B42,'[1]Num 3A'!$G$3:$O$138,5,FALSE),0) -> 14 | I42: =IFERROR(VLOOKUP($B42,'[1]Num 3A'!$G$3:$O$138,6,FALSE),0) -> 7 | J42: =IFERROR(VLOOKUP($B42,'[1]Num 3A'!$G$3:$O$138,7,FALSE),0) -> 2 | K42: =IFERROR(VLOOKUP($B42,'[1]Num 3A'!$G$3:$O$138,8,FALSE),0) -> 5 | Q42: 33
A43: 04104-LA HIGUERA | B43: 105506-P.S.R. EL TRAPICHE | E43: =IFERROR(VLOOKUP($B43,'[1]Num 3A'!$G$3:$O$138,2,FALSE),0) -> 0 | F43: =IFERROR(VLOOKUP($B43,'[1]Num 3A'!$G$3:$O$138,3,FALSE),0) -> 1 | G43: =IFERROR(VLOOKUP($B43,'[1]Num 3A'!$G$3:$O$138,4,FALSE),0) -> 10 | H43: =IFERROR(VLOOKUP($B43,'[1]Num 3A'!$G$3:$O$138,5,FALSE),0) -> 2 | I43: =IFERROR(VLOOKUP($B43,'[1]Num 3A'!$G$3:$O$138,6,FALSE),0) -> 3 | J43: =IFERROR(VLOOKUP($B43,'[1]Num 3A'!$G$3:$O$138,7,FALSE),0) -> 0 | K43: =IFERROR(VLOOKUP($B43,'[1]Num 3A'!$G$3:$O$138,8,FALSE),0) -> 2 | Q43: 18
A44: TOTAL LA HIGUERA | C44: =D44/Metas!I7 -> 47.77% | D44: =Q44/R44 -> 27.43% | E44: =SUM(E40:E43) -> 18 | F44: 21 | G44: 27 | H44: 48 | I44: 20 | J44: 13 | K44: 14 | L44: 0 | M44: 0 | N44: 0 | O44: =SUM(O40:O43) -> 0 | P44: =SUM(P40:P43) -> 0 | Q44: 161 | R44: 587
A45: 04105-PAIHUANO | B45: 105306-CES. PAIHUANO | E45: =IFERROR(VLOOKUP($B45,'[1]Num 3A'!$G$3:$O$138,2,FALSE),0) -> 15 | F45: =IFERROR(VLOOKUP($B45,'[1]Num 3A'!$G$3:$O$138,3,FALSE),0) -> 18 | G45: =IFERROR(VLOOKUP($B45,'[1]Num 3A'!$G$3:$O$138,4,FALSE),0) -> 22 | H45: =IFERROR(VLOOKUP($B45,'[1]Num 3A'!$G$3:$O$138,5,FALSE),0) -> 21 | I45: =IFERROR(VLOOKUP($B45,'[1]Num 3A'!$G$3:$O$138,6,FALSE),0) -> 73 | J45: =IFERROR(VLOOKUP($B45,'[1]Num 3A'!$G$3:$O$138,7,FALSE),0) -> 13 | K45: =IFERROR(VLOOKUP($B45,'[1]Num 3A'!$G$3:$O$138,8,FALSE),0) -> 11 | Q45: 173
A46: 04105-PAIHUANO | B46: 105475-P.S.R. HORCON | E46: =IFERROR(VLOOKUP($B46,'[1]Num 3A'!$G$3:$O$138,2,FALSE),0) -> 4 | F46: =IFERROR(VLOOKUP($B46,'[1]Num 3A'!$G$3:$O$138,3,FALSE),0) -> 5 | G46: =IFERROR(VLOOKUP($B46,'[1]Num 3A'!$G$3:$O$138,4,FALSE),0) -> 9 | H46: =IFERROR(VLOOKUP($B46,'[1]Num 3A'!$G$3:$O$138,5,FALSE),0) -> 14 | I46: =IFERROR(VLOOKUP($B46,'[1]Num 3A'!$G$3:$O$138,6,FALSE),0) -> 21 | J46: =IFERROR(VLOOKUP($B46,'[1]Num 3A'!$G$3:$O$138,7,FALSE),0) -> 5 | K46: =IFERROR(VLOOKUP($B46,'[1]Num 3A'!$G$3:$O$138,8,FALSE),0) -> 0 | Q46: 58
A47: 04105-PAIHUANO | B47: 105476-P.S.R. MONTE GRANDE | E47: =IFERROR(VLOOKUP($B47,'[1]Num 3A'!$G$3:$O$138,2,FALSE),0) -> 2 | F47: =IFERROR(VLOOKUP($B47,'[1]Num 3A'!$G$3:$O$138,3,FALSE),0) -> 0 | G47: =IFERROR(VLOOKUP($B47,'[1]Num 3A'!$G$3:$O$138,4,FALSE),0) -> 7 | H47: =IFERROR(VLOOKUP($B47,'[1]Num 3A'!$G$3:$O$138,5,FALSE),0) -> 6 | I47: =IFERROR(VLOOKUP($B47,'[1]Num 3A'!$G$3:$O$138,6,FALSE),0) -> 1 | J47: =IFERROR(VLOOKUP($B47,'[1]Num 3A'!$G$3:$O$138,7,FALSE),0) -> 6 | K47: =IFERROR(VLOOKUP($B47,'[1]Num 3A'!$G$3:$O$138,8,FALSE),0) -> 0 | Q47: 22
A48: 04105-PAIHUANO | B48: 105477-P.S.R. PISCO ELQUI | E48: =IFERROR(VLOOKUP($B48,'[1]Num 3A'!$G$3:$O$138,2,FALSE),0) -> 2 | F48: =IFERROR(VLOOKUP($B48,'[1]Num 3A'!$G$3:$O$138,3,FALSE),0) -> 1 | G48: =IFERROR(VLOOKUP($B48,'[1]Num 3A'!$G$3:$O$138,4,FALSE),0) -> 13 | H48: =IFERROR(VLOOKUP($B48,'[1]Num 3A'!$G$3:$O$138,5,FALSE),0) -> 1 | I48: =IFERROR(VLOOKUP($B48,'[1]Num 3A'!$G$3:$O$138,6,FALSE),0) -> 3 | J48: =IFERROR(VLOOKUP($B48,'[1]Num 3A'!$G$3:$O$138,7,FALSE),0) -> 2 | K48: =IFERROR(VLOOKUP($B48,'[1]Num 3A'!$G$3:$O$138,8,FALSE),0) -> 1 | Q48: 23
A49: TOTAL PAIHUANO | C49: =D49/Metas!I8 -> 146.81% | D49: =Q49/R49 -> 128.97% | E49: =SUM(E45:E48) -> 23 | F49: =SUM(F45:F48) -> 24 | G49: =SUM(G45:G48) -> 51 | H49: =SUM(H45:H48) -> 42 | I49: =SUM(I45:I48) -> 98 | J49: 26 | K49: 12 | L49: 0 | M49: 0 | N49: 0 | O49: =SUM(O45:O48) -> 0 | P49: =SUM(P45:P48) -> 0 | Q49: =SUM(Q45:Q48) -> 276 | R49: 214
A50: 04106-VICUÑA | B50: 105467-P.S.R. DIAGUITAS | E50: =IFERROR(VLOOKUP($B50,'[1]Num 3A'!$G$3:$O$138,2,FALSE),0) -> 0 | F50: =IFERROR(VLOOKUP($B50,'[1]Num 3A'!$G$3:$O$138,3,FALSE),0) -> 0 | G50: =IFERROR(VLOOKUP($B50,'[1]Num 3A'!$G$3:$O$138,4,FALSE),0) -> 0 | H50: =IFERROR(VLOOKUP($B50,'[1]Num 3A'!$G$3:$O$138,5,FALSE),0) -> 7 | I50: =IFERROR(VLOOKUP($B50,'[1]Num 3A'!$G$3:$O$138,6,FALSE),0) -> 2 | J50: =IFERROR(VLOOKUP($B50,'[1]Num 3A'!$G$3:$O$138,7,FALSE),0) -> 2 | K50: =IFERROR(VLOOKUP($B50,'[1]Num 3A'!$G$3:$O$138,8,FALSE),0) -> 6 | Q50: 17
A51: 04106-VICUÑA | B51: 105468-P.S.R. EL MOLLE | E51: =IFERROR(VLOOKUP($B51,'[1]Num 3A'!$G$3:$O$138,2,FALSE),0) -> 0 | F51: =IFERROR(VLOOKUP($B51,'[1]Num 3A'!$G$3:$O$138,3,FALSE),0) -> 0 | G51: =IFERROR(VLOOKUP($B51,'[1]Num 3A'!$G$3:$O$138,4,FALSE),0) -> 0 | H51: =IFERROR(VLOOKUP($B51,'[1]Num 3A'!$G$3:$O$138,5,FALSE),0) -> 4 | I51: =IFERROR(VLOOKUP($B51,'[1]Num 3A'!$G$3:$O$138,6,FALSE),0) -> 6 | J51: =IFERROR(VLOOKUP($B51,'[1]Num 3A'!$G$3:$O$138,7,FALSE),0) -> 5 | K51: =IFERROR(VLOOKUP($B51,'[1]Num 3A'!$G$3:$O$138,8,FALSE),0) -> 7 | Q51: 22
A52: 04106-VICUÑA | B52: 105469-P.S.R. EL TAMBO | E52: =IFERROR(VLOOKUP($B52,'[1]Num 3A'!$G$3:$O$138,2,FALSE),0) -> 21 | F52: =IFERROR(VLOOKUP($B52,'[1]Num 3A'!$G$3:$O$138,3,FALSE),0) -> 31 | G52: =IFERROR(VLOOKUP($B52,'[1]Num 3A'!$G$3:$O$138,4,FALSE),0) -> 30 | H52: =IFERROR(VLOOKUP($B52,'[1]Num 3A'!$G$3:$O$138,5,FALSE),0) -> 10 | I52: =IFERROR(VLOOKUP($B52,'[1]Num 3A'!$G$3:$O$138,6,FALSE),0) -> 10 | J52: =IFERROR(VLOOKUP($B52,'[1]Num 3A'!$G$3:$O$138,7,FALSE),0) -> 11 | K52: =IFERROR(VLOOKUP($B52,'[1]Num 3A'!$G$3:$O$138,8,FALSE),0) -> 9 | Q52: 122
A53: 04106-VICUÑA | B53: 105470-P.S.R. HUANTA | E53: =IFERROR(VLOOKUP($B53,'[1]Num 3A'!$G$3:$O$138,2,FALSE),0) -> 0 | F53: =IFERROR(VLOOKUP($B53,'[1]Num 3A'!$G$3:$O$138,3,FALSE),0) -> 0 | G53: =IFERROR(VLOOKUP($B53,'[1]Num 3A'!$G$3:$O$138,4,FALSE),0) -> 0 | H53: =IFERROR(VLOOKUP($B53,'[1]Num 3A'!$G$3:$O$138,5,FALSE),0) -> 0 | I53: =IFERROR(VLOOKUP($B53,'[1]Num 3A'!$G$3:$O$138,6,FALSE),0) -> 1 | J53: =IFERROR(VLOOKUP($B53,'[1]Num 3A'!$G$3:$O$138,7,FALSE),0) -> 0 | K53: =IFERROR(VLOOKUP($B53,'[1]Num 3A'!$G$3:$O$138,8,FALSE),0) -> 1 | Q53: 2
A54: 04106-VICUÑA | B54: 105471-P.S.R. PERALILLO | E54: =IFERROR(VLOOKUP($B54,'[1]Num 3A'!$G$3:$O$138,2,FALSE),0) -> 0 | F54: =IFERROR(VLOOKUP($B54,'[1]Num 3A'!$G$3:$O$138,3,FALSE),0) -> 0 | G54: =IFERROR(VLOOKUP($B54,'[1]Num 3A'!$G$3:$O$138,4,FALSE),0) -> 0 | H54: =IFERROR(VLOOKUP($B54,'[1]Num 3A'!$G$3:$O$138,5,FALSE),0) -> 8 | I54: =IFERROR(VLOOKUP($B54,'[1]Num 3A'!$G$3:$O$138,6,FALSE),0) -> 4 | J54: =IFERROR(VLOOKUP($B54,'[1]Num 3A'!$G$3:$O$138,7,FALSE),0) -> 0 | K54: =IFERROR(VLOOKUP($B54,'[1]Num 3A'!$G$3:$O$138,8,FALSE),0) -> 4 | Q54: 16
A55: 04106-VICUÑA | B55: 105472-P.S.R. RIVADAVIA | E55: =IFERROR(VLOOKUP($B55,'[1]Num 3A'!$G$3:$O$138,2,FALSE),0) -> 0 | F55: =IFERROR(VLOOKUP($B55,'[1]Num 3A'!$G$3:$O$138,3,FALSE),0) -> 2 | G55: =IFERROR(VLOOKUP($B55,'[1]Num 3A'!$G$3:$O$138,4,FALSE),0) -> 7 | H55: =IFERROR(VLOOKUP($B55,'[1]Num 3A'!$G$3:$O$138,5,FALSE),0) -> 8 | I55: =IFERROR(VLOOKUP($B55,'[1]Num 3A'!$G$3:$O$138,6,FALSE),0) -> 1 | J55: =IFERROR(VLOOKUP($B55,'[1]Num 3A'!$G$3:$O$138,7,FALSE),0) -> 4 | K55: =IFERROR(VLOOKUP($B55,'[1]Num 3A'!$G$3:$O$138,8,FALSE),0) -> 3 | Q55: 25
A56: 04106-VICUÑA | B56: 105473-P.S.R. TALCUNA | E56: =IFERROR(VLOOKUP($B56,'[1]Num 3A'!$G$3:$O$138,2,FALSE),0) -> 0 | F56: =IFERROR(VLOOKUP($B56,'[1]Num 3A'!$G$3:$O$138,3,FALSE),0) -> 0 | G56: =IFERROR(VLOOKUP($B56,'[1]Num 3A'!$G$3:$O$138,4,FALSE),0) -> 0 | H56: =IFERROR(VLOOKUP($B56,'[1]Num 3A'!$G$3:$O$138,5,FALSE),0) -> 7 | I56: =IFERROR(VLOOKUP($B56,'[1]Num 3A'!$G$3:$O$138,6,FALSE),0) -> 1 | J56: =IFERROR(VLOOKUP($B56,'[1]Num 3A'!$G$3:$O$138,7,FALSE),0) -> 5 | K56: =IFERROR(VLOOKUP($B56,'[1]Num 3A'!$G$3:$O$138,8,FALSE),0) -> 9 | Q56: 22
A57: 04106-VICUÑA | B57: 105474-P.S.R. CHAPILCA | E57: =IFERROR(VLOOKUP($B57,'[1]Num 3A'!$G$3:$O$138,2,FALSE),0) -> 0 | F57: =IFERROR(VLOOKUP($B57,'[1]Num 3A'!$G$3:$O$138,3,FALSE),0) -> 0 | G57: =IFERROR(VLOOKUP($B57,'[1]Num 3A'!$G$3:$O$138,4,FALSE),0) -> 0 | H57: =IFERROR(VLOOKUP($B57,'[1]Num 3A'!$G$3:$O$138,5,FALSE),0) -> 0 | I57: =IFERROR(VLOOKUP($B57,'[1]Num 3A'!$G$3:$O$138,6,FALSE),0) -> 3 | J57: =IFERROR(VLOOKUP($B57,'[1]Num 3A'!$G$3:$O$138,7,FALSE),0) -> 4 | K57: =IFERROR(VLOOKUP($B57,'[1]Num 3A'!$G$3:$O$138,8,FALSE),0) -> 0 | Q57: 7
A58: 04106-VICUÑA | B58: 105509-P.S.R. GUALLIGUAICA | E58: =IFERROR(VLOOKUP($B58,'[1]Num 3A'!$G$3:$O$138,2,FALSE),0) -> 0 | F58: =IFERROR(VLOOKUP($B58,'[1]Num 3A'!$G$3:$O$138,3,FALSE),0) -> 0 | G58: =IFERROR(VLOOKUP($B58,'[1]Num 3A'!$G$3:$O$138,4,FALSE),0) -> 0 | H58: =IFERROR(VLOOKUP($B58,'[1]Num 3A'!$G$3:$O$138,5,FALSE),0) -> 0 | I58: =IFERROR(VLOOKUP($B58,'[1]Num 3A'!$G$3:$O$138,6,FALSE),0) -> 0 | J58: =IFERROR(VLOOKUP($B58,'[1]Num 3A'!$G$3:$O$138,7,FALSE),0) -> 0 | K58: =IFERROR(VLOOKUP($B58,'[1]Num 3A'!$G$3:$O$138,8,FALSE),0) -> 3 | Q58: 3
A59: 04106-VICUÑA | B59: 200538-CESFAM SAN ISIDRO CALINGASTA | E59: =IFERROR(VLOOKUP($B59,'[1]Num 3A'!$G$3:$O$138,2,FALSE),0) -> 22 | F59: =IFERROR(VLOOKUP($B59,'[1]Num 3A'!$G$3:$O$138,3,FALSE),0) -> 25 | G59: =IFERROR(VLOOKUP($B59,'[1]Num 3A'!$G$3:$O$138,4,FALSE),0) -> 46 | H59: =IFERROR(VLOOKUP($B59,'[1]Num 3A'!$G$3:$O$138,5,FALSE),0) -> 12 | I59: =IFERROR(VLOOKUP($B59,'[1]Num 3A'!$G$3:$O$138,6,FALSE),0) -> 15 | J59: =IFERROR(VLOOKUP($B59,'[1]Num 3A'!$G$3:$O$138,7,FALSE),0) -> 131 | K59: =IFERROR(VLOOKUP($B59,'[1]Num 3A'!$G$3:$O$138,8,FALSE),0) -> 31 | Q59: =SUM(E59:P59) -> 282
A60: TOTAL VICUÑA | C60: =D60/Metas!I9 -> 62.49% | D60: =Q60/R60 -> 40.19% | E60: =SUM(E50:E59) -> 43 | F60: 58 | G60: 83 | H60: 56 | I60: 43 | J60: 162 | K60: 73 | L60: 0 | M60: 0 | N60: 0 | O60: 0 | P60: 0 | Q60: 518 | R60: 1,289
A61: 04201-ILLAPEL | B61: 105326-CESFAM SAN RAFAEL | E61: =IFERROR(VLOOKUP($B61,'[1]Num 3A'!$G$3:$O$138,2,FALSE),0) -> 16 | F61: =IFERROR(VLOOKUP($B61,'[1]Num 3A'!$G$3:$O$138,3,FALSE),0) -> 0 | G61: =IFERROR(VLOOKUP($B61,'[1]Num 3A'!$G$3:$O$138,4,FALSE),0) -> 17 | H61: =IFERROR(VLOOKUP($B61,'[1]Num 3A'!$G$3:$O$138,5,FALSE),0) -> 29 | I61: =IFERROR(VLOOKUP($B61,'[1]Num 3A'!$G$3:$O$138,6,FALSE),0) -> 33 | J61: =IFERROR(VLOOKUP($B61,'[1]Num 3A'!$G$3:$O$138,7,FALSE),0) -> 18 | K61: =IFERROR(VLOOKUP($B61,'[1]Num 3A'!$G$3:$O$138,8,FALSE),0) -> 24 | Q61: 137
A62: 04201-ILLAPEL | B62: 105443-P.S.R. CARCAMO | E62: =IFERROR(VLOOKUP($B62,'[1]Num 3A'!$G$3:$O$138,2,FALSE),0) -> 0 | F62: =IFERROR(VLOOKUP($B62,'[1]Num 3A'!$G$3:$O$138,3,FALSE),0) -> 3 | G62: =IFERROR(VLOOKUP($B62,'[1]Num 3A'!$G$3:$O$138,4,FALSE),0) -> 5 | H62: =IFERROR(VLOOKUP($B62,'[1]Num 3A'!$G$3:$O$138,5,FALSE),0) -> 1 | I62: =IFERROR(VLOOKUP($B62,'[1]Num 3A'!$G$3:$O$138,6,FALSE),0) -> 2 | J62: =IFERROR(VLOOKUP($B62,'[1]Num 3A'!$G$3:$O$138,7,FALSE),0) -> 0 | K62: =IFERROR(VLOOKUP($B62,'[1]Num 3A'!$G$3:$O$138,8,FALSE),0) -> 0 | Q62: 11
A63: 04201-ILLAPEL | B63: 105444-P.S.R. HUINTIL | E63: =IFERROR(VLOOKUP($B63,'[1]Num 3A'!$G$3:$O$138,2,FALSE),0) -> 0 | F63: =IFERROR(VLOOKUP($B63,'[1]Num 3A'!$G$3:$O$138,3,FALSE),0) -> 1 | G63: =IFERROR(VLOOKUP($B63,'[1]Num 3A'!$G$3:$O$138,4,FALSE),0) -> 1 | H63: =IFERROR(VLOOKUP($B63,'[1]Num 3A'!$G$3:$O$138,5,FALSE),0) -> 3 | I63: =IFERROR(VLOOKUP($B63,'[1]Num 3A'!$G$3:$O$138,6,FALSE),0) -> 2 | J63: =IFERROR(VLOOKUP($B63,'[1]Num 3A'!$G$3:$O$138,7,FALSE),0) -> 0 | K63: =IFERROR(VLOOKUP($B63,'[1]Num 3A'!$G$3:$O$138,8,FALSE),0) -> 2 | Q63: 9
A64: 04201-ILLAPEL | B64: 105445-P.S.R. LIMAHUIDA | E64: =IFERROR(VLOOKUP($B64,'[1]Num 3A'!$G$3:$O$138,2,FALSE),0) -> 6 | F64: =IFERROR(VLOOKUP($B64,'[1]Num 3A'!$G$3:$O$138,3,FALSE),0) -> 2 | G64: =IFERROR(VLOOKUP($B64,'[1]Num 3A'!$G$3:$O$138,4,FALSE),0) -> 3 | H64: =IFERROR(VLOOKUP($B64,'[1]Num 3A'!$G$3:$O$138,5,FALSE),0) -> 11 | I64: =IFERROR(VLOOKUP($B64,'[1]Num 3A'!$G$3:$O$138,6,FALSE),0) -> 8 | J64: =IFERROR(VLOOKUP($B64,'[1]Num 3A'!$G$3:$O$138,7,FALSE),0) -> 1 | K64: =IFERROR(VLOOKUP($B64,'[1]Num 3A'!$G$3:$O$138,8,FALSE),0) -> 4 | Q64: 35
A65: 04201-ILLAPEL | B65: 105446-P.S.R. MATANCILLA | E65: =IFERROR(VLOOKUP($B65,'[1]Num 3A'!$G$3:$O$138,2,FALSE),0) -> 0 | F65: =IFERROR(VLOOKUP($B65,'[1]Num 3A'!$G$3:$O$138,3,FALSE),0) -> 0 | G65: =IFERROR(VLOOKUP($B65,'[1]Num 3A'!$G$3:$O$138,4,FALSE),0) -> 0 | H65: =IFERROR(VLOOKUP($B65,'[1]Num 3A'!$G$3:$O$138,5,FALSE),0) -> 0 | I65: =IFERROR(VLOOKUP($B65,'[1]Num 3A'!$G$3:$O$138,6,FALSE),0) -> 0 | J65: =IFERROR(VLOOKUP($B65,'[1]Num 3A'!$G$3:$O$138,7,FALSE),0) -> 0 | K65: =IFERROR(VLOOKUP($B65,'[1]Num 3A'!$G$3:$O$138,8,FALSE),0) -> 0 | Q65: 0
A66: 04201-ILLAPEL | B66: 105447-P.S.R. PERALILLO | E66: =IFERROR(VLOOKUP($B66,'[1]Num 3A'!$G$3:$O$138,2,FALSE),0) -> 5 | F66: =IFERROR(VLOOKUP($B66,'[1]Num 3A'!$G$3:$O$138,3,FALSE),0) -> 3 | G66: =IFERROR(VLOOKUP($B66,'[1]Num 3A'!$G$3:$O$138,4,FALSE),0) -> 0 | H66: =IFERROR(VLOOKUP($B66,'[1]Num 3A'!$G$3:$O$138,5,FALSE),0) -> 3 | I66: =IFERROR(VLOOKUP($B66,'[1]Num 3A'!$G$3:$O$138,6,FALSE),0) -> 3 | J66: =IFERROR(VLOOKUP($B66,'[1]Num 3A'!$G$3:$O$138,7,FALSE),0) -> 2 | K66: =IFERROR(VLOOKUP($B66,'[1]Num 3A'!$G$3:$O$138,8,FALSE),0) -> 4 | Q66: 20
A67: 04201-ILLAPEL | B67: 105448-P.S.R. SANTA VIRGINIA | E67: =IFERROR(VLOOKUP($B67,'[1]Num 3A'!$G$3:$O$138,2,FALSE),0) -> 2 | F67: =IFERROR(VLOOKUP($B67,'[1]Num 3A'!$G$3:$O$138,3,FALSE),0) -> 0 | G67: =IFERROR(VLOOKUP($B67,'[1]Num 3A'!$G$3:$O$138,4,FALSE),0) -> 1 | H67: =IFERROR(VLOOKUP($B67,'[1]Num 3A'!$G$3:$O$138,5,FALSE),0) -> 4 | I67: =IFERROR(VLOOKUP($B67,'[1]Num 3A'!$G$3:$O$138,6,FALSE),0) -> 1 | J67: =IFERROR(VLOOKUP($B67,'[1]Num 3A'!$G$3:$O$138,7,FALSE),0) -> 2 | K67: =IFERROR(VLOOKUP($B67,'[1]Num 3A'!$G$3:$O$138,8,FALSE),0) -> 2 | Q67: 12
A68: 04201-ILLAPEL | B68: 105449-P.S.R. TUNGA NORTE | E68: =IFERROR(VLOOKUP($B68,'[1]Num 3A'!$G$3:$O$138,2,FALSE),0) -> 4 | F68: =IFERROR(VLOOKUP($B68,'[1]Num 3A'!$G$3:$O$138,3,FALSE),0) -> 2 | G68: =IFERROR(VLOOKUP($B68,'[1]Num 3A'!$G$3:$O$138,4,FALSE),0) -> 0 | H68: =IFERROR(VLOOKUP($B68,'[1]Num 3A'!$G$3:$O$138,5,FALSE),0) -> 1 | I68: =IFERROR(VLOOKUP($B68,'[1]Num 3A'!$G$3:$O$138,6,FALSE),0) -> 1 | J68: =IFERROR(VLOOKUP($B68,'[1]Num 3A'!$G$3:$O$138,7,FALSE),0) -> 0 | K68: =IFERROR(VLOOKUP($B68,'[1]Num 3A'!$G$3:$O$138,8,FALSE),0) -> 0
A69: 04201-ILLAPEL | B69: 105485-P.S.R. PLAN DE HORNOS | E69: =IFERROR(VLOOKUP($B69,'[1]Num 3A'!$G$3:$O$138,2,FALSE),0) -> 1 | F69: =IFERROR(VLOOKUP($B69,'[1]Num 3A'!$G$3:$O$138,3,FALSE),0) -> 1 | G69: =IFERROR(VLOOKUP($B69,'[1]Num 3A'!$G$3:$O$138,4,FALSE),0) -> 3 | H69: =IFERROR(VLOOKUP($B69,'[1]Num 3A'!$G$3:$O$138,5,FALSE),0) -> 1 | I69: =IFERROR(VLOOKUP($B69,'[1]Num 3A'!$G$3:$O$138,6,FALSE),0) -> 4 | J69: =IFERROR(VLOOKUP($B69,'[1]Num 3A'!$G$3:$O$138,7,FALSE),0) -> 0 | K69: =IFERROR(VLOOKUP($B69,'[1]Num 3A'!$G$3:$O$138,8,FALSE),0) -> 1 | Q69: 11
A70: 04201-ILLAPEL | B70: 105486-P.S.R. TUNGA SUR | E70: =IFERROR(VLOOKUP($B70,'[1]Num 3A'!$G$3:$O$138,2,FALSE),0) -> 0 | F70: =IFERROR(VLOOKUP($B70,'[1]Num 3A'!$G$3:$O$138,3,FALSE),0) -> 1 | G70: =IFERROR(VLOOKUP($B70,'[1]Num 3A'!$G$3:$O$138,4,FALSE),0) -> 1 | H70: =IFERROR(VLOOKUP($B70,'[1]Num 3A'!$G$3:$O$138,5,FALSE),0) -> 0 | I70: =IFERROR(VLOOKUP($B70,'[1]Num 3A'!$G$3:$O$138,6,FALSE),0) -> 0 | J70: =IFERROR(VLOOKUP($B70,'[1]Num 3A'!$G$3:$O$138,7,FALSE),0) -> 0 | K70: =IFERROR(VLOOKUP($B70,'[1]Num 3A'!$G$3:$O$138,8,FALSE),0) -> 3 | Q70: 5
A71: 04201-ILLAPEL | B71: 105487-P.S.R. CAÑAS UNO | E71: =IFERROR(VLOOKUP($B71,'[1]Num 3A'!$G$3:$O$138,2,FALSE),0) -> 10 | F71: =IFERROR(VLOOKUP($B71,'[1]Num 3A'!$G$3:$O$138,3,FALSE),0) -> 1 | G71: =IFERROR(VLOOKUP($B71,'[1]Num 3A'!$G$3:$O$138,4,FALSE),0) -> 3 | H71: =IFERROR(VLOOKUP($B71,'[1]Num 3A'!$G$3:$O$138,5,FALSE),0) -> 13 | I71: =IFERROR(VLOOKUP($B71,'[1]Num 3A'!$G$3:$O$138,6,FALSE),0) -> 11 | J71: =IFERROR(VLOOKUP($B71,'[1]Num 3A'!$G$3:$O$138,7,FALSE),0) -> 10 | K71: =IFERROR(VLOOKUP($B71,'[1]Num 3A'!$G$3:$O$138,8,FALSE),0) -> 7 | Q71: 55
A72: 04201-ILLAPEL | B72: 105496-P.S.R. PINTACURA SUR | E72: =IFERROR(VLOOKUP($B72,'[1]Num 3A'!$G$3:$O$138,2,FALSE),0) -> 0 | F72: =IFERROR(VLOOKUP($B72,'[1]Num 3A'!$G$3:$O$138,3,FALSE),0) -> 0 | G72: =IFERROR(VLOOKUP($B72,'[1]Num 3A'!$G$3:$O$138,4,FALSE),0) -> 5 | H72: =IFERROR(VLOOKUP($B72,'[1]Num 3A'!$G$3:$O$138,5,FALSE),0) -> 2 | I72: =IFERROR(VLOOKUP($B72,'[1]Num 3A'!$G$3:$O$138,6,FALSE),0) -> 2 | J72: =IFERROR(VLOOKUP($B72,'[1]Num 3A'!$G$3:$O$138,7,FALSE),0) -> 1 | K72: =IFERROR(VLOOKUP($B72,'[1]Num 3A'!$G$3:$O$138,8,FALSE),0) -> 0 | Q72: 10
A73: 04201-ILLAPEL | B73: 105504-P.S.R. SOCAVON | E73: =IFERROR(VLOOKUP($B73,'[1]Num 3A'!$G$3:$O$138,2,FALSE),0) -> 0 | F73: =IFERROR(VLOOKUP($B73,'[1]Num 3A'!$G$3:$O$138,3,FALSE),0) -> 0 | G73: =IFERROR(VLOOKUP($B73,'[1]Num 3A'!$G$3:$O$138,4,FALSE),0) -> 4 | H73: =IFERROR(VLOOKUP($B73,'[1]Num 3A'!$G$3:$O$138,5,FALSE),0) -> 4 | I73: =IFERROR(VLOOKUP($B73,'[1]Num 3A'!$G$3:$O$138,6,FALSE),0) -> 5 | J73: =IFERROR(VLOOKUP($B73,'[1]Num 3A'!$G$3:$O$138,7,FALSE),0) -> 4 | K73: =IFERROR(VLOOKUP($B73,'[1]Num 3A'!$G$3:$O$138,8,FALSE),0) -> 1 | Q73: =SUM(E73:P73) -> 18
A74: 04201-ILLAPEL | B74: 200366-CESFAM URBANO II | E74: =IFERROR(VLOOKUP($B74,'[1]Num 3A'!$G$3:$O$138,2,FALSE),0) -> 102 | F74: =IFERROR(VLOOKUP($B74,'[1]Num 3A'!$G$3:$O$138,3,FALSE),0) -> 103 | G74: =IFERROR(VLOOKUP($B74,'[1]Num 3A'!$G$3:$O$138,4,FALSE),0) -> 141 | H74: =IFERROR(VLOOKUP($B74,'[1]Num 3A'!$G$3:$O$138,5,FALSE),0) -> 112 | I74: =IFERROR(VLOOKUP($B74,'[1]Num 3A'!$G$3:$O$138,6,FALSE),0) -> 86 | J74: =IFERROR(VLOOKUP($B74,'[1]Num 3A'!$G$3:$O$138,7,FALSE),0) -> 93 | K74: =IFERROR(VLOOKUP($B74,'[1]Num 3A'!$G$3:$O$138,8,FALSE),0) -> 100 | Q74: =SUM(E74:P74) -> 737
A75: TOTAL ILLAPEL | C75: =D75/Metas!I10 -> 60.82% | D75: =Q75/R75 -> 32.58% | E75: =SUM(E61:E74) -> 146 | F75: =SUM(F61:F74) -> 117 | G75: 184 | H75: 184 | I75: 158 | J75: 131 | K75: 148 | L75: 0 | M75: 0 | N75: 0 | O75: 0 | P75: 0 | Q75: =SUM(Q61:Q74) -> 1060 | R75: 3,254
A76: 04202-CANELA | B76: 105309-CES. RURAL CANELA | E76: =IFERROR(VLOOKUP($B76,'[1]Num 3A'!$G$3:$O$138,2,FALSE),0) -> 13 | F76: =IFERROR(VLOOKUP($B76,'[1]Num 3A'!$G$3:$O$138,3,FALSE),0) -> 6 | G76: =IFERROR(VLOOKUP($B76,'[1]Num 3A'!$G$3:$O$138,4,FALSE),0) -> 29 | H76: =IFERROR(VLOOKUP($B76,'[1]Num 3A'!$G$3:$O$138,5,FALSE),0) -> 38 | I76: =IFERROR(VLOOKUP($B76,'[1]Num 3A'!$G$3:$O$138,6,FALSE),0) -> 60 | J76: =IFERROR(VLOOKUP($B76,'[1]Num 3A'!$G$3:$O$138,7,FALSE),0) -> 44 | K76: =IFERROR(VLOOKUP($B76,'[1]Num 3A'!$G$3:$O$138,8,FALSE),0) -> 35 | Q76: =SUM(E76:P76) -> 225
A77: 04202-CANELA | B77: 105450-P.S.R. MINCHA NORTE | E77: =IFERROR(VLOOKUP($B77,'[1]Num 3A'!$G$3:$O$138,2,FALSE),0) -> 0 | F77: =IFERROR(VLOOKUP($B77,'[1]Num 3A'!$G$3:$O$138,3,FALSE),0) -> 0 | G77: =IFERROR(VLOOKUP($B77,'[1]Num 3A'!$G$3:$O$138,4,FALSE),0) -> 0 | H77: =IFERROR(VLOOKUP($B77,'[1]Num 3A'!$G$3:$O$138,5,FALSE),0) -> 0 | I77: =IFERROR(VLOOKUP($B77,'[1]Num 3A'!$G$3:$O$138,6,FALSE),0) -> 0 | J77: =IFERROR(VLOOKUP($B77,'[1]Num 3A'!$G$3:$O$138,7,FALSE),0) -> 0 | K77: =IFERROR(VLOOKUP($B77,'[1]Num 3A'!$G$3:$O$138,8,FALSE),0) -> 0 | Q77: 0
A78: 04202-CANELA | B78: 105451-P.S.R. AGUA FRIA | E78: =IFERROR(VLOOKUP($B78,'[1]Num 3A'!$G$3:$O$138,2,FALSE),0) -> 0 | F78: =IFERROR(VLOOKUP($B78,'[1]Num 3A'!$G$3:$O$138,3,FALSE),0) -> 0 | G78: =IFERROR(VLOOKUP($B78,'[1]Num 3A'!$G$3:$O$138,4,FALSE),0) -> 0 | H78: =IFERROR(VLOOKUP($B78,'[1]Num 3A'!$G$3:$O$138,5,FALSE),0) -> 0 | I78: =IFERROR(VLOOKUP($B78,'[1]Num 3A'!$G$3:$O$138,6,FALSE),0) -> 0 | J78: =IFERROR(VLOOKUP($B78,'[1]Num 3A'!$G$3:$O$138,7,FALSE),0) -> 0 | K78: =IFERROR(VLOOKUP($B78,'[1]Num 3A'!$G$3:$O$138,8,FALSE),0) -> 0 | Q78: 0
A79: 04202-CANELA | B79: 105482-P.S.R. CANELA ALTA | E79: =IFERROR(VLOOKUP($B79,'[1]Num 3A'!$G$3:$O$138,2,FALSE),0) -> 0 | F79: =IFERROR(VLOOKUP($B79,'[1]Num 3A'!$G$3:$O$138,3,FALSE),0) -> 0 | G79: =IFERROR(VLOOKUP($B79,'[1]Num 3A'!$G$3:$O$138,4,FALSE),0) -> 0 | H79: =IFERROR(VLOOKUP($B79,'[1]Num 3A'!$G$3:$O$138,5,FALSE),0) -> 0 | I79: =IFERROR(VLOOKUP($B79,'[1]Num 3A'!$G$3:$O$138,6,FALSE),0) -> 0 | J79: =IFERROR(VLOOKUP($B79,'[1]Num 3A'!$G$3:$O$138,7,FALSE),0) -> 0 | K79: =IFERROR(VLOOKUP($B79,'[1]Num 3A'!$G$3:$O$138,8,FALSE),0) -> 0 | Q79: 0
A80: 04202-CANELA | B80: 105483-P.S.R. LOS RULOS | E80: =IFERROR(VLOOKUP($B80,'[1]Num 3A'!$G$3:$O$138,2,FALSE),0) -> 0 | F80: =IFERROR(VLOOKUP($B80,'[1]Num 3A'!$G$3:$O$138,3,FALSE),0) -> 0 | G80: =IFERROR(VLOOKUP($B80,'[1]Num 3A'!$G$3:$O$138,4,FALSE),0) -> 0 | H80: =IFERROR(VLOOKUP($B80,'[1]Num 3A'!$G$3:$O$138,5,FALSE),0) -> 0 | I80: =IFERROR(VLOOKUP($B80,'[1]Num 3A'!$G$3:$O$138,6,FALSE),0) -> 0 | J80: =IFERROR(VLOOKUP($B80,'[1]Num 3A'!$G$3:$O$138,7,FALSE),0) -> 0 | K80: =IFERROR(VLOOKUP($B80,'[1]Num 3A'!$G$3:$O$138,8,FALSE),0) -> 0 | Q80: 0
A81: 04202-CANELA | B81: 105484-P.S.R. HUENTELAUQUEN | E81: =IFERROR(VLOOKUP($B81,'[1]Num 3A'!$G$3:$O$138,2,FALSE),0) -> 0 | F81: =IFERROR(VLOOKUP($B81,'[1]Num 3A'!$G$3:$O$138,3,FALSE),0) -> 0 | G81: =IFERROR(VLOOKUP($B81,'[1]Num 3A'!$G$3:$O$138,4,FALSE),0) -> 0 | H81: =IFERROR(VLOOKUP($B81,'[1]Num 3A'!$G$3:$O$138,5,FALSE),0) -> 0 | I81: =IFERROR(VLOOKUP($B81,'[1]Num 3A'!$G$3:$O$138,6,FALSE),0) -> 0 | J81: =IFERROR(VLOOKUP($B81,'[1]Num 3A'!$G$3:$O$138,7,FALSE),0) -> 0 | K81: =IFERROR(VLOOKUP($B81,'[1]Num 3A'!$G$3:$O$138,8,FALSE),0) -> 0 | Q81: 0
A82: 04202-CANELA | B82: 105488-P.S.R. ESPIRITU SANTO | E82: =IFERROR(VLOOKUP($B82,'[1]Num 3A'!$G$3:$O$138,2,FALSE),0) -> 0 | F82: =IFERROR(VLOOKUP($B82,'[1]Num 3A'!$G$3:$O$138,3,FALSE),0) -> 0 | G82: =IFERROR(VLOOKUP($B82,'[1]Num 3A'!$G$3:$O$138,4,FALSE),0) -> 0 | H82: =IFERROR(VLOOKUP($B82,'[1]Num 3A'!$G$3:$O$138,5,FALSE),0) -> 0 | I82: =IFERROR(VLOOKUP($B82,'[1]Num 3A'!$G$3:$O$138,6,FALSE),0) -> 0 | J82: =IFERROR(VLOOKUP($B82,'[1]Num 3A'!$G$3:$O$138,7,FALSE),0) -> 0 | K82: =IFERROR(VLOOKUP($B82,'[1]Num 3A'!$G$3:$O$138,8,FALSE),0) -> 0 | Q82: 0
A83: 04202-CANELA | B83: 105493-P.S.R. MINCHA SUR | E83: =IFERROR(VLOOKUP($B83,'[1]Num 3A'!$G$3:$O$138,2,FALSE),0) -> 0 | F83: =IFERROR(VLOOKUP($B83,'[1]Num 3A'!$G$3:$O$138,3,FALSE),0) -> 0 | G83: =IFERROR(VLOOKUP($B83,'[1]Num 3A'!$G$3:$O$138,4,FALSE),0) -> 0 | H83: =IFERROR(VLOOKUP($B83,'[1]Num 3A'!$G$3:$O$138,5,FALSE),0) -> 0 | I83: =IFERROR(VLOOKUP($B83,'[1]Num 3A'!$G$3:$O$138,6,FALSE),0) -> 0 | J83: =IFERROR(VLOOKUP($B83,'[1]Num 3A'!$G$3:$O$138,7,FALSE),0) -> 0 | K83: =IFERROR(VLOOKUP($B83,'[1]Num 3A'!$G$3:$O$138,8,FALSE),0) -> 0 | Q83: 0
A84: 04202-CANELA | B84: 105497-P.S.R. JABONERIA | E84: =IFERROR(VLOOKUP($B84,'[1]Num 3A'!$G$3:$O$138,2,FALSE),0) -> 0 | F84: =IFERROR(VLOOKUP($B84,'[1]Num 3A'!$G$3:$O$138,3,FALSE),0) -> 0 | G84: =IFERROR(VLOOKUP($B84,'[1]Num 3A'!$G$3:$O$138,4,FALSE),0) -> 0 | H84: =IFERROR(VLOOKUP($B84,'[1]Num 3A'!$G$3:$O$138,5,FALSE),0) -> 0 | I84: =IFERROR(VLOOKUP($B84,'[1]Num 3A'!$G$3:$O$138,6,FALSE),0) -> 0 | J84: =IFERROR(VLOOKUP($B84,'[1]Num 3A'!$G$3:$O$138,7,FALSE),0) -> 0 | K84: =IFERROR(VLOOKUP($B84,'[1]Num 3A'!$G$3:$O$138,8,FALSE),0) -> 0 | Q84: 0
A85: 04202-CANELA | B85: 105498-P.S.R. QUEBRADA DE LINARES | E85: =IFERROR(VLOOKUP($B85,'[1]Num 3A'!$G$3:$O$138,2,FALSE),0) -> 0 | F85: =IFERROR(VLOOKUP($B85,'[1]Num 3A'!$G$3:$O$138,3,FALSE),0) -> 0 | G85: =IFERROR(VLOOKUP($B85,'[1]Num 3A'!$G$3:$O$138,4,FALSE),0) -> 0 | H85: =IFERROR(VLOOKUP($B85,'[1]Num 3A'!$G$3:$O$138,5,FALSE),0) -> 0 | I85: =IFERROR(VLOOKUP($B85,'[1]Num 3A'!$G$3:$O$138,6,FALSE),0) -> 0 | J85: =IFERROR(VLOOKUP($B85,'[1]Num 3A'!$G$3:$O$138,7,FALSE),0) -> 0 | K85: =IFERROR(VLOOKUP($B85,'[1]Num 3A'!$G$3:$O$138,8,FALSE),0) -> 0 | Q85: 0
A86: TOTAL CANELA | C86: =D86/Metas!I11 -> 80.35% | D86: =Q86/R86 -> 30.65% | E86: =SUM(E76:E85) -> 13 | F86: =SUM(F76:F85) -> 6 | G86: =SUM(G76:G85) -> 29 | H86: =SUM(H76:H85) -> 38 | I86: =SUM(I76:I85) -> 60 | J86: 44 | K86: 35 | L86: 0 | M86: 0 | N86: 0 | O86: =SUM(O76:O85) -> 0 | P86: =SUM(P76:P85) -> 0 | Q86: =SUM(Q76:Q85) -> 225 | R86: 734
A87: 04203-LOS VILOS | B87: 105478-P.S.R. CAIMANES | E87: =IFERROR(VLOOKUP($B87,'[1]Num 3A'!$G$3:$O$138,2,FALSE),0) -> 11 | F87: =IFERROR(VLOOKUP($B87,'[1]Num 3A'!$G$3:$O$138,3,FALSE),0) -> 12 | G87: =IFERROR(VLOOKUP($B87,'[1]Num 3A'!$G$3:$O$138,4,FALSE),0) -> 6 | H87: =IFERROR(VLOOKUP($B87,'[1]Num 3A'!$G$3:$O$138,5,FALSE),0) -> 7 | I87: =IFERROR(VLOOKUP($B87,'[1]Num 3A'!$G$3:$O$138,6,FALSE),0) -> 11 | J87: =IFERROR(VLOOKUP($B87,'[1]Num 3A'!$G$3:$O$138,7,FALSE),0) -> 3 | K87: =IFERROR(VLOOKUP($B87,'[1]Num 3A'!$G$3:$O$138,8,FALSE),0) -> 6 | Q87: =SUM(E87:P87) -> 56
A88: 04203-LOS VILOS | B88: 105479-P.S.R. GUANGUALI | E88: =IFERROR(VLOOKUP($B88,'[1]Num 3A'!$G$3:$O$138,2,FALSE),0) -> 6 | F88: =IFERROR(VLOOKUP($B88,'[1]Num 3A'!$G$3:$O$138,3,FALSE),0) -> 0 | G88: =IFERROR(VLOOKUP($B88,'[1]Num 3A'!$G$3:$O$138,4,FALSE),0) -> 3 | H88: =IFERROR(VLOOKUP($B88,'[1]Num 3A'!$G$3:$O$138,5,FALSE),0) -> 2 | I88: =IFERROR(VLOOKUP($B88,'[1]Num 3A'!$G$3:$O$138,6,FALSE),0) -> 0 | J88: =IFERROR(VLOOKUP($B88,'[1]Num 3A'!$G$3:$O$138,7,FALSE),0) -> 0 | K88: =IFERROR(VLOOKUP($B88,'[1]Num 3A'!$G$3:$O$138,8,FALSE),0) -> 6 | Q88: =SUM(E88:P88) -> 17
A89: 04203-LOS VILOS | B89: 105480-P.S.R. QUILIMARI | E89: =IFERROR(VLOOKUP($B89,'[1]Num 3A'!$G$3:$O$138,2,FALSE),0) -> 13 | F89: =IFERROR(VLOOKUP($B89,'[1]Num 3A'!$G$3:$O$138,3,FALSE),0) -> 0 | G89: =IFERROR(VLOOKUP($B89,'[1]Num 3A'!$G$3:$O$138,4,FALSE),0) -> 16 | H89: =IFERROR(VLOOKUP($B89,'[1]Num 3A'!$G$3:$O$138,5,FALSE),0) -> 17 | I89: =IFERROR(VLOOKUP($B89,'[1]Num 3A'!$G$3:$O$138,6,FALSE),0) -> 14 | J89: =IFERROR(VLOOKUP($B89,'[1]Num 3A'!$G$3:$O$138,7,FALSE),0) -> 8 | K89: =IFERROR(VLOOKUP($B89,'[1]Num 3A'!$G$3:$O$138,8,FALSE),0) -> 27 | Q89: =SUM(E89:P89) -> 95
A90: 04203-LOS VILOS | B90: 105481-P.S.R. TILAMA | E90: =IFERROR(VLOOKUP($B90,'[1]Num 3A'!$G$3:$O$138,2,FALSE),0) -> 0 | F90: =IFERROR(VLOOKUP($B90,'[1]Num 3A'!$G$3:$O$138,3,FALSE),0) -> 0 | G90: =IFERROR(VLOOKUP($B90,'[1]Num 3A'!$G$3:$O$138,4,FALSE),0) -> 2 | H90: =IFERROR(VLOOKUP($B90,'[1]Num 3A'!$G$3:$O$138,5,FALSE),0) -> 2 | I90: =IFERROR(VLOOKUP($B90,'[1]Num 3A'!$G$3:$O$138,6,FALSE),0) -> 2 | J90: =IFERROR(VLOOKUP($B90,'[1]Num 3A'!$G$3:$O$138,7,FALSE),0) -> 0 | K90: =IFERROR(VLOOKUP($B90,'[1]Num 3A'!$G$3:$O$138,8,FALSE),0) -> 0 | Q90: =SUM(E90:P90) -> 6
A91: 04203-LOS VILOS | B91: 105511-P.S.R. LOS CONDORES | E91: =IFERROR(VLOOKUP($B91,'[1]Num 3A'!$G$3:$O$138,2,FALSE),0) -> 1 | F91: =IFERROR(VLOOKUP($B91,'[1]Num 3A'!$G$3:$O$138,3,FALSE),0) -> 0 | G91: =IFERROR(VLOOKUP($B91,'[1]Num 3A'!$G$3:$O$138,4,FALSE),0) -> 7 | H91: =IFERROR(VLOOKUP($B91,'[1]Num 3A'!$G$3:$O$138,5,FALSE),0) -> 3 | I91: =IFERROR(VLOOKUP($B91,'[1]Num 3A'!$G$3:$O$138,6,FALSE),0) -> 7 | J91: =IFERROR(VLOOKUP($B91,'[1]Num 3A'!$G$3:$O$138,7,FALSE),0) -> 1 | K91: =IFERROR(VLOOKUP($B91,'[1]Num 3A'!$G$3:$O$138,8,FALSE),0) -> 1 | Q91: =SUM(E91:P91) -> 20
A92: TOTAL LOS VILOS | C92: =D92/Metas!I12 -> 99.36% | D92: =Q92/R92 -> 24.84% | E92: =SUM(E87:E91) -> 31 | F92: =SUM(F87:F91) -> 12 | G92: =SUM(G87:G91) -> 34 | H92: =SUM(H87:H91) -> 31 | I92: =SUM(I87:I91) -> 34 | J92: 12 | K92: 40 | L92: 0 | M92: 0 | N92: 0 | O92: =SUM(O87:O91) -> 0 | P92: =SUM(P87:P91) -> 0 | Q92: =SUM(Q87:Q91) -> 194 | R92: 781
A93: 04204-SALAMANCA | B93: 105452-P.S.R. CUNCUMEN | E93: =IFERROR(VLOOKUP($B93,'[1]Num 3A'!$G$3:$O$138,2,FALSE),0) -> 0 | F93: =IFERROR(VLOOKUP($B93,'[1]Num 3A'!$G$3:$O$138,3,FALSE),0) -> 0 | G93: =IFERROR(VLOOKUP($B93,'[1]Num 3A'!$G$3:$O$138,4,FALSE),0) -> 12 | H93: =IFERROR(VLOOKUP($B93,'[1]Num 3A'!$G$3:$O$138,5,FALSE),0) -> 0 | I93: =IFERROR(VLOOKUP($B93,'[1]Num 3A'!$G$3:$O$138,6,FALSE),0) -> 0 | J93: =IFERROR(VLOOKUP($B93,'[1]Num 3A'!$G$3:$O$138,7,FALSE),0) -> 0 | K93: =IFERROR(VLOOKUP($B93,'[1]Num 3A'!$G$3:$O$138,8,FALSE),0) -> 8 | Q93: =SUM(E93:P93) -> 20
A94: 04204-SALAMANCA | B94: 105453-P.S.R. TRANQUILLA | E94: =IFERROR(VLOOKUP($B94,'[1]Num 3A'!$G$3:$O$138,2,FALSE),0) -> 0 | F94: =IFERROR(VLOOKUP($B94,'[1]Num 3A'!$G$3:$O$138,3,FALSE),0) -> 0 | G94: =IFERROR(VLOOKUP($B94,'[1]Num 3A'!$G$3:$O$138,4,FALSE),0) -> 14 | H94: =IFERROR(VLOOKUP($B94,'[1]Num 3A'!$G$3:$O$138,5,FALSE),0) -> 0 | I94: =IFERROR(VLOOKUP($B94,'[1]Num 3A'!$G$3:$O$138,6,FALSE),0) -> 14 | J94: =IFERROR(VLOOKUP($B94,'[1]Num 3A'!$G$3:$O$138,7,FALSE),0) -> 8 | K94: =IFERROR(VLOOKUP($B94,'[1]Num 3A'!$G$3:$O$138,8,FALSE),0) -> 0 | Q94: 36
A95: 04204-SALAMANCA | B95: 105454-P.S.R. CUNLAGUA | E95: =IFERROR(VLOOKUP($B95,'[1]Num 3A'!$G$3:$O$138,2,FALSE),0) -> 0 | F95: =IFERROR(VLOOKUP($B95,'[1]Num 3A'!$G$3:$O$138,3,FALSE),0) -> 0 | G95: =IFERROR(VLOOKUP($B95,'[1]Num 3A'!$G$3:$O$138,4,FALSE),0) -> 0 | H95: =IFERROR(VLOOKUP($B95,'[1]Num 3A'!$G$3:$O$138,5,FALSE),0) -> 0 | I95: =IFERROR(VLOOKUP($B95,'[1]Num 3A'!$G$3:$O$138,6,FALSE),0) -> 0 | J95: =IFERROR(VLOOKUP($B95,'[1]Num 3A'!$G$3:$O$138,7,FALSE),0) -> 0 | K95: =IFERROR(VLOOKUP($B95,'[1]Num 3A'!$G$3:$O$138,8,FALSE),0) -> 0 | Q95: 0
A96: 04204-SALAMANCA | B96: 105455-P.S.R. CHILLEPIN | E96: =IFERROR(VLOOKUP($B96,'[1]Num 3A'!$G$3:$O$138,2,FALSE),0) -> 0 | F96: =IFERROR(VLOOKUP($B96,'[1]Num 3A'!$G$3:$O$138,3,FALSE),0) -> 0 | G96: =IFERROR(VLOOKUP($B96,'[1]Num 3A'!$G$3:$O$138,4,FALSE),0) -> 16 | H96: =IFERROR(VLOOKUP($B96,'[1]Num 3A'!$G$3:$O$138,5,FALSE),0) -> 0 | I96: =IFERROR(VLOOKUP($B96,'[1]Num 3A'!$G$3:$O$138,6,FALSE),0) -> 0 | J96: =IFERROR(VLOOKUP($B96,'[1]Num 3A'!$G$3:$O$138,7,FALSE),0) -> 0 | K96: =IFERROR(VLOOKUP($B96,'[1]Num 3A'!$G$3:$O$138,8,FALSE),0) -> 10 | Q96: 26
A97: 04204-SALAMANCA | B97: 105456-P.S.R. LLIMPO | E97: =IFERROR(VLOOKUP($B97,'[1]Num 3A'!$G$3:$O$138,2,FALSE),0) -> 0 | F97: =IFERROR(VLOOKUP($B97,'[1]Num 3A'!$G$3:$O$138,3,FALSE),0) -> 0 | G97: =IFERROR(VLOOKUP($B97,'[1]Num 3A'!$G$3:$O$138,4,FALSE),0) -> 0 | H97: =IFERROR(VLOOKUP($B97,'[1]Num 3A'!$G$3:$O$138,5,FALSE),0) -> 15 | I97: =IFERROR(VLOOKUP($B97,'[1]Num 3A'!$G$3:$O$138,6,FALSE),0) -> 16 | J97: =IFERROR(VLOOKUP($B97,'[1]Num 3A'!$G$3:$O$138,7,FALSE),0) -> 0 | K97: =IFERROR(VLOOKUP($B97,'[1]Num 3A'!$G$3:$O$138,8,FALSE),0) -> 0 | Q97: 31
A98: 04204-SALAMANCA | B98: 105457-P.S.R. SAN AGUSTIN | E98: =IFERROR(VLOOKUP($B98,'[1]Num 3A'!$G$3:$O$138,2,FALSE),0) -> 0 | F98: =IFERROR(VLOOKUP($B98,'[1]Num 3A'!$G$3:$O$138,3,FALSE),0) -> 0 | G98: =IFERROR(VLOOKUP($B98,'[1]Num 3A'!$G$3:$O$138,4,FALSE),0) -> 0 | H98: =IFERROR(VLOOKUP($B98,'[1]Num 3A'!$G$3:$O$138,5,FALSE),0) -> 10 | I98: =IFERROR(VLOOKUP($B98,'[1]Num 3A'!$G$3:$O$138,6,FALSE),0) -> 0 | J98: =IFERROR(VLOOKUP($B98,'[1]Num 3A'!$G$3:$O$138,7,FALSE),0) -> 0 | K98: =IFERROR(VLOOKUP($B98,'[1]Num 3A'!$G$3:$O$138,8,FALSE),0) -> 0 | Q98: 10
A99: 04204-SALAMANCA | B99: 105458-P.S.R. TAHUINCO | E99: =IFERROR(VLOOKUP($B99,'[1]Num 3A'!$G$3:$O$138,2,FALSE),0) -> 0 | F99: =IFERROR(VLOOKUP($B99,'[1]Num 3A'!$G$3:$O$138,3,FALSE),0) -> 0 | G99: =IFERROR(VLOOKUP($B99,'[1]Num 3A'!$G$3:$O$138,4,FALSE),0) -> 14 | H99: =IFERROR(VLOOKUP($B99,'[1]Num 3A'!$G$3:$O$138,5,FALSE),0) -> 0 | I99: =IFERROR(VLOOKUP($B99,'[1]Num 3A'!$G$3:$O$138,6,FALSE),0) -> 17 | J99: =IFERROR(VLOOKUP($B99,'[1]Num 3A'!$G$3:$O$138,7,FALSE),0) -> 17 | K99: =IFERROR(VLOOKUP($B99,'[1]Num 3A'!$G$3:$O$138,8,FALSE),0) -> 12 | Q99: 60
A100: 04204-SALAMANCA | B100: 105491-P.S.R. QUELEN BAJO | E100: =IFERROR(VLOOKUP($B100,'[1]Num 3A'!$G$3:$O$138,2,FALSE),0) -> 0 | F100: =IFERROR(VLOOKUP($B100,'[1]Num 3A'!$G$3:$O$138,3,FALSE),0) -> 0 | G100: =IFERROR(VLOOKUP($B100,'[1]Num 3A'!$G$3:$O$138,4,FALSE),0) -> 13 | H100: =IFERROR(VLOOKUP($B100,'[1]Num 3A'!$G$3:$O$138,5,FALSE),0) -> 18 | I100: =IFERROR(VLOOKUP($B100,'[1]Num 3A'!$G$3:$O$138,6,FALSE),0) -> 30 | J100: =IFERROR(VLOOKUP($B100,'[1]Num 3A'!$G$3:$O$138,7,FALSE),0) -> 0 | K100: =IFERROR(VLOOKUP($B100,'[1]Num 3A'!$G$3:$O$138,8,FALSE),0) -> 0 | Q100: 61
A101: 04204-SALAMANCA | B101: 105492-P.S.R. CAMISA | E101: =IFERROR(VLOOKUP($B101,'[1]Num 3A'!$G$3:$O$138,2,FALSE),0) -> 0 | F101: =IFERROR(VLOOKUP($B101,'[1]Num 3A'!$G$3:$O$138,3,FALSE),0) -> 0 | G101: =IFERROR(VLOOKUP($B101,'[1]Num 3A'!$G$3:$O$138,4,FALSE),0) -> 0 | H101: =IFERROR(VLOOKUP($B101,'[1]Num 3A'!$G$3:$O$138,5,FALSE),0) -> 0 | I101: =IFERROR(VLOOKUP($B101,'[1]Num 3A'!$G$3:$O$138,6,FALSE),0) -> 9 | J101: =IFERROR(VLOOKUP($B101,'[1]Num 3A'!$G$3:$O$138,7,FALSE),0) -> 0 | K101: =IFERROR(VLOOKUP($B101,'[1]Num 3A'!$G$3:$O$138,8,FALSE),0) -> 0 | Q101: 9
A102: 04204-SALAMANCA | B102: 105501-P.S.R. ARBOLEDA GRANDE | E102: =IFERROR(VLOOKUP($B102,'[1]Num 3A'!$G$3:$O$138,2,FALSE),0) -> 0 | F102: =IFERROR(VLOOKUP($B102,'[1]Num 3A'!$G$3:$O$138,3,FALSE),0) -> 0 | G102: =IFERROR(VLOOKUP($B102,'[1]Num 3A'!$G$3:$O$138,4,FALSE),0) -> 0 | H102: =IFERROR(VLOOKUP($B102,'[1]Num 3A'!$G$3:$O$138,5,FALSE),0) -> 14 | I102: =IFERROR(VLOOKUP($B102,'[1]Num 3A'!$G$3:$O$138,6,FALSE),0) -> 0 | J102: =IFERROR(VLOOKUP($B102,'[1]Num 3A'!$G$3:$O$138,7,FALSE),0) -> 13 | K102: =IFERROR(VLOOKUP($B102,'[1]Num 3A'!$G$3:$O$138,8,FALSE),0) -> 0 | Q102: 27
A103: TOTAL SALAMANCA | C103: =D103/Metas!I13 -> 79.77% | D103: =Q103/R103 -> 34.06% | E103: =SUM(E93:E102) -> 0 | F103: =SUM(F93:F102) -> 0 | G103: =SUM(G93:G102) -> 69 | H103: =SUM(H93:H102) -> 57 | I103: =SUM(I93:I102) -> 86 | J103: 38 | K103: 30 | L103: 0 | M103: 0 | N103: 0 | O103: =SUM(O93:O102) -> 0 | P103: =SUM(P93:P102) -> 0 | Q103: =SUM(Q93:Q102) -> 280 | R103: 822
A104: 04301-OVALLE | B104: 105315-CES. RURAL C. DE TAMAYA | E104: =IFERROR(VLOOKUP($B104,'[1]Num 3A'!$G$3:$O$138,2,FALSE),0) -> 50 | F104: =IFERROR(VLOOKUP($B104,'[1]Num 3A'!$G$3:$O$138,3,FALSE),0) -> 24 | G104: =IFERROR(VLOOKUP($B104,'[1]Num 3A'!$G$3:$O$138,4,FALSE),0) -> 23 | H104: =IFERROR(VLOOKUP($B104,'[1]Num 3A'!$G$3:$O$138,5,FALSE),0) -> 47 | I104: =IFERROR(VLOOKUP($B104,'[1]Num 3A'!$G$3:$O$138,6,FALSE),0) -> 20 | J104: =IFERROR(VLOOKUP($B104,'[1]Num 3A'!$G$3:$O$138,7,FALSE),0) -> 18 | K104: =IFERROR(VLOOKUP($B104,'[1]Num 3A'!$G$3:$O$138,8,FALSE),0) -> 30 | Q104: =SUM(E104:P104) -> 212
A105: 04301-OVALLE | B105: 105317-CES. JORGE JORDAN D. | E105: =IFERROR(VLOOKUP($B105,'[1]Num 3A'!$G$3:$O$138,2,FALSE),0) -> 33 | F105: =IFERROR(VLOOKUP($B105,'[1]Num 3A'!$G$3:$O$138,3,FALSE),0) -> 22 | G105: =IFERROR(VLOOKUP($B105,'[1]Num 3A'!$G$3:$O$138,4,FALSE),0) -> 47 | H105: =IFERROR(VLOOKUP($B105,'[1]Num 3A'!$G$3:$O$138,5,FALSE),0) -> 37 | I105: =IFERROR(VLOOKUP($B105,'[1]Num 3A'!$G$3:$O$138,6,FALSE),0) -> 54 | J105: =IFERROR(VLOOKUP($B105,'[1]Num 3A'!$G$3:$O$138,7,FALSE),0) -> 54 | K105: =IFERROR(VLOOKUP($B105,'[1]Num 3A'!$G$3:$O$138,8,FALSE),0) -> 40 | Q105: 287
A106: 04301-OVALLE | B106: 105322-CES. MARCOS MACUADA | E106: =IFERROR(VLOOKUP($B106,'[1]Num 3A'!$G$3:$O$138,2,FALSE),0) -> 62 | F106: =IFERROR(VLOOKUP($B106,'[1]Num 3A'!$G$3:$O$138,3,FALSE),0) -> 62 | G106: =IFERROR(VLOOKUP($B106,'[1]Num 3A'!$G$3:$O$138,4,FALSE),0) -> 46 | H106: =IFERROR(VLOOKUP($B106,'[1]Num 3A'!$G$3:$O$138,5,FALSE),0) -> 91 | I106: =IFERROR(VLOOKUP($B106,'[1]Num 3A'!$G$3:$O$138,6,FALSE),0) -> 14 | J106: =IFERROR(VLOOKUP($B106,'[1]Num 3A'!$G$3:$O$138,7,FALSE),0) -> 71 | K106: =IFERROR(VLOOKUP($B106,'[1]Num 3A'!$G$3:$O$138,8,FALSE),0) -> 125 | Q106: 471
A107: 04301-OVALLE | B107: 105324-CES. SOTAQUI | E107: =IFERROR(VLOOKUP($B107,'[1]Num 3A'!$G$3:$O$138,2,FALSE),0) -> 40 | F107: =IFERROR(VLOOKUP($B107,'[1]Num 3A'!$G$3:$O$138,3,FALSE),0) -> 37 | G107: =IFERROR(VLOOKUP($B107,'[1]Num 3A'!$G$3:$O$138,4,FALSE),0) -> 44 | H107: =IFERROR(VLOOKUP($B107,'[1]Num 3A'!$G$3:$O$138,5,FALSE),0) -> 32 | I107: =IFERROR(VLOOKUP($B107,'[1]Num 3A'!$G$3:$O$138,6,FALSE),0) -> 27 | J107: =IFERROR(VLOOKUP($B107,'[1]Num 3A'!$G$3:$O$138,7,FALSE),0) -> 16 | K107: =IFERROR(VLOOKUP($B107,'[1]Num 3A'!$G$3:$O$138,8,FALSE),0) -> 14 | Q107: 210
A108: 04301-OVALLE | B108: 105415-P.S.R. BARRAZA | E108: =IFERROR(VLOOKUP($B108,'[1]Num 3A'!$G$3:$O$138,2,FALSE),0) -> 3 | F108: =IFERROR(VLOOKUP($B108,'[1]Num 3A'!$G$3:$O$138,3,FALSE),0) -> 0 | G108: =IFERROR(VLOOKUP($B108,'[1]Num 3A'!$G$3:$O$138,4,FALSE),0) -> 1 | H108: =IFERROR(VLOOKUP($B108,'[1]Num 3A'!$G$3:$O$138,5,FALSE),0) -> 3 | I108: =IFERROR(VLOOKUP($B108,'[1]Num 3A'!$G$3:$O$138,6,FALSE),0) -> 4 | J108: =IFERROR(VLOOKUP($B108,'[1]Num 3A'!$G$3:$O$138,7,FALSE),0) -> 6 | K108: =IFERROR(VLOOKUP($B108,'[1]Num 3A'!$G$3:$O$138,8,FALSE),0) -> 0 | Q108: 17
A109: 04301-OVALLE | B109: 105416-P.S.R. CAMARICO | E109: =IFERROR(VLOOKUP($B109,'[1]Num 3A'!$G$3:$O$138,2,FALSE),0) -> 10 | F109: =IFERROR(VLOOKUP($B109,'[1]Num 3A'!$G$3:$O$138,3,FALSE),0) -> 4 | G109: =IFERROR(VLOOKUP($B109,'[1]Num 3A'!$G$3:$O$138,4,FALSE),0) -> 7 | H109: =IFERROR(VLOOKUP($B109,'[1]Num 3A'!$G$3:$O$138,5,FALSE),0) -> 3 | I109: =IFERROR(VLOOKUP($B109,'[1]Num 3A'!$G$3:$O$138,6,FALSE),0) -> 9 | J109: =IFERROR(VLOOKUP($B109,'[1]Num 3A'!$G$3:$O$138,7,FALSE),0) -> 0 | K109: =IFERROR(VLOOKUP($B109,'[1]Num 3A'!$G$3:$O$138,8,FALSE),0) -> 3 | Q109: 36
A110: 04301-OVALLE | B110: 105417-P.S.R. ALCONES BAJOS | E110: =IFERROR(VLOOKUP($B110,'[1]Num 3A'!$G$3:$O$138,2,FALSE),0) -> 0 | F110: =IFERROR(VLOOKUP($B110,'[1]Num 3A'!$G$3:$O$138,3,FALSE),0) -> 2 | G110: =IFERROR(VLOOKUP($B110,'[1]Num 3A'!$G$3:$O$138,4,FALSE),0) -> 35 | H110: =IFERROR(VLOOKUP($B110,'[1]Num 3A'!$G$3:$O$138,5,FALSE),0) -> 9 | I110: =IFERROR(VLOOKUP($B110,'[1]Num 3A'!$G$3:$O$138,6,FALSE),0) -> 1 | J110: =IFERROR(VLOOKUP($B110,'[1]Num 3A'!$G$3:$O$138,7,FALSE),0) -> 6 | K110: =IFERROR(VLOOKUP($B110,'[1]Num 3A'!$G$3:$O$138,8,FALSE),0) -> 1 | Q110: 54
A111: 04301-OVALLE | B111: 105419-P.S.R. LAS SOSSAS | E111: =IFERROR(VLOOKUP($B111,'[1]Num 3A'!$G$3:$O$138,2,FALSE),0) -> 0 | F111: =IFERROR(VLOOKUP($B111,'[1]Num 3A'!$G$3:$O$138,3,FALSE),0) -> 0 | G111: =IFERROR(VLOOKUP($B111,'[1]Num 3A'!$G$3:$O$138,4,FALSE),0) -> 2 | H111: =IFERROR(VLOOKUP($B111,'[1]Num 3A'!$G$3:$O$138,5,FALSE),0) -> 3 | I111: =IFERROR(VLOOKUP($B111,'[1]Num 3A'!$G$3:$O$138,6,FALSE),0) -> 0 | J111: =IFERROR(VLOOKUP($B111,'[1]Num 3A'!$G$3:$O$138,7,FALSE),0) -> 7 | K111: =IFERROR(VLOOKUP($B111,'[1]Num 3A'!$G$3:$O$138,8,FALSE),0) -> 0 | Q111: 12
A112: 04301-OVALLE | B112: 105422-P.S.R. HORNILLOS | E112: =IFERROR(VLOOKUP($B112,'[1]Num 3A'!$G$3:$O$138,2,FALSE),0) -> 0 | F112: =IFERROR(VLOOKUP($B112,'[1]Num 3A'!$G$3:$O$138,3,FALSE),0) -> 3 | G112: =IFERROR(VLOOKUP($B112,'[1]Num 3A'!$G$3:$O$138,4,FALSE),0) -> 0 | H112: =IFERROR(VLOOKUP($B112,'[1]Num 3A'!$G$3:$O$138,5,FALSE),0) -> 0 | I112: =IFERROR(VLOOKUP($B112,'[1]Num 3A'!$G$3:$O$138,6,FALSE),0) -> 0 | J112: =IFERROR(VLOOKUP($B112,'[1]Num 3A'!$G$3:$O$138,7,FALSE),0) -> 0 | K112: =IFERROR(VLOOKUP($B112,'[1]Num 3A'!$G$3:$O$138,8,FALSE),0) -> 0 | Q112: 3
A113: 04301-OVALLE | B113: 105437-P.S.R. CHALINGA | E113: =IFERROR(VLOOKUP($B113,'[1]Num 3A'!$G$3:$O$138,2,FALSE),0) -> 3 | F113: =IFERROR(VLOOKUP($B113,'[1]Num 3A'!$G$3:$O$138,3,FALSE),0) -> 2 | G113: =IFERROR(VLOOKUP($B113,'[1]Num 3A'!$G$3:$O$138,4,FALSE),0) -> 10 | H113: =IFERROR(VLOOKUP($B113,'[1]Num 3A'!$G$3:$O$138,5,FALSE),0) -> 0 | I113: =IFERROR(VLOOKUP($B113,'[1]Num 3A'!$G$3:$O$138,6,FALSE),0) -> 2 | J113: =IFERROR(VLOOKUP($B113,'[1]Num 3A'!$G$3:$O$138,7,FALSE),0) -> 0 | K113: =IFERROR(VLOOKUP($B113,'[1]Num 3A'!$G$3:$O$138,8,FALSE),0) -> 0 | Q113: 17
A114: 04301-OVALLE | B114: 105439-P.S.R. CERRO BLANCO | E114: =IFERROR(VLOOKUP($B114,'[1]Num 3A'!$G$3:$O$138,2,FALSE),0) -> 0 | F114: =IFERROR(VLOOKUP($B114,'[1]Num 3A'!$G$3:$O$138,3,FALSE),0) -> 0 | G114: =IFERROR(VLOOKUP($B114,'[1]Num 3A'!$G$3:$O$138,4,FALSE),0) -> 6 | H114: =IFERROR(VLOOKUP($B114,'[1]Num 3A'!$G$3:$O$138,5,FALSE),0) -> 1 | I114: =IFERROR(VLOOKUP($B114,'[1]Num 3A'!$G$3:$O$138,6,FALSE),0) -> 0 | J114: =IFERROR(VLOOKUP($B114,'[1]Num 3A'!$G$3:$O$138,7,FALSE),0) -> 0 | K114: =IFERROR(VLOOKUP($B114,'[1]Num 3A'!$G$3:$O$138,8,FALSE),0) -> 0 | Q114: 7
A115: 04301-OVALLE | B115: 105507-P.S.R. HUAMALATA | E115: =IFERROR(VLOOKUP($B115,'[1]Num 3A'!$G$3:$O$138,2,FALSE),0) -> 8 | F115: =IFERROR(VLOOKUP($B115,'[1]Num 3A'!$G$3:$O$138,3,FALSE),0) -> 6 | G115: =IFERROR(VLOOKUP($B115,'[1]Num 3A'!$G$3:$O$138,4,FALSE),0) -> 44 | H115: =IFERROR(VLOOKUP($B115,'[1]Num 3A'!$G$3:$O$138,5,FALSE),0) -> 0 | I115: =IFERROR(VLOOKUP($B115,'[1]Num 3A'!$G$3:$O$138,6,FALSE),0) -> 8 | J115: =IFERROR(VLOOKUP($B115,'[1]Num 3A'!$G$3:$O$138,7,FALSE),0) -> 0 | K115: =IFERROR(VLOOKUP($B115,'[1]Num 3A'!$G$3:$O$138,8,FALSE),0) -> 7 | Q115: 73
A116: 04301-OVALLE | B116: 105510-P.S.R. RECOLETA | E116: =IFERROR(VLOOKUP($B116,'[1]Num 3A'!$G$3:$O$138,2,FALSE),0) -> 4 | F116: =IFERROR(VLOOKUP($B116,'[1]Num 3A'!$G$3:$O$138,3,FALSE),0) -> 10 | G116: =IFERROR(VLOOKUP($B116,'[1]Num 3A'!$G$3:$O$138,4,FALSE),0) -> 4 | H116: =IFERROR(VLOOKUP($B116,'[1]Num 3A'!$G$3:$O$138,5,FALSE),0) -> 0 | I116: =IFERROR(VLOOKUP($B116,'[1]Num 3A'!$G$3:$O$138,6,FALSE),0) -> 13 | J116: =IFERROR(VLOOKUP($B116,'[1]Num 3A'!$G$3:$O$138,7,FALSE),0) -> 0 | K116: =IFERROR(VLOOKUP($B116,'[1]Num 3A'!$G$3:$O$138,8,FALSE),0) -> 0 | Q116: 31
A117: 04301-OVALLE | B117: 105722-CECOF SAN JOSE DE LA DEHESA | E117: =IFERROR(VLOOKUP($B117,'[1]Num 3A'!$G$3:$O$138,2,FALSE),0) -> 24 | F117: =IFERROR(VLOOKUP($B117,'[1]Num 3A'!$G$3:$O$138,3,FALSE),0) -> 17 | G117: =IFERROR(VLOOKUP($B117,'[1]Num 3A'!$G$3:$O$138,4,FALSE),0) -> 42 | H117: =IFERROR(VLOOKUP($B117,'[1]Num 3A'!$G$3:$O$138,5,FALSE),0) -> 39 | I117: =IFERROR(VLOOKUP($B117,'[1]Num 3A'!$G$3:$O$138,6,FALSE),0) -> 24 | J117: =IFERROR(VLOOKUP($B117,'[1]Num 3A'!$G$3:$O$138,7,FALSE),0) -> 14 | K117: =IFERROR(VLOOKUP($B117,'[1]Num 3A'!$G$3:$O$138,8,FALSE),0) -> 18 | Q117: 178
A118: 04301-OVALLE | B118: 105723-CECOF LIMARI | E118: =IFERROR(VLOOKUP($B118,'[1]Num 3A'!$G$3:$O$138,2,FALSE),0) -> 16 | F118: =IFERROR(VLOOKUP($B118,'[1]Num 3A'!$G$3:$O$138,3,FALSE),0) -> 0 | G118: =IFERROR(VLOOKUP($B118,'[1]Num 3A'!$G$3:$O$138,4,FALSE),0) -> 27 | H118: =IFERROR(VLOOKUP($B118,'[1]Num 3A'!$G$3:$O$138,5,FALSE),0) -> 27 | I118: =IFERROR(VLOOKUP($B118,'[1]Num 3A'!$G$3:$O$138,6,FALSE),0) -> 3 | J118: =IFERROR(VLOOKUP($B118,'[1]Num 3A'!$G$3:$O$138,7,FALSE),0) -> 0 | K118: =IFERROR(VLOOKUP($B118,'[1]Num 3A'!$G$3:$O$138,8,FALSE),0) -> 12 | Q118: 85
A119: 04301-OVALLE | B119: 200258-CECOF LOS COPIHUES | E119: =IFERROR(VLOOKUP($B119,'[1]Num 3A'!$G$3:$O$138,2,FALSE),0) -> 18 | F119: =IFERROR(VLOOKUP($B119,'[1]Num 3A'!$G$3:$O$138,3,FALSE),0) -> 14 | G119: =IFERROR(VLOOKUP($B119,'[1]Num 3A'!$G$3:$O$138,4,FALSE),0) -> 20 | H119: =IFERROR(VLOOKUP($B119,'[1]Num 3A'!$G$3:$O$138,5,FALSE),0) -> 13 | I119: =IFERROR(VLOOKUP($B119,'[1]Num 3A'!$G$3:$O$138,6,FALSE),0) -> 0 | J119: =IFERROR(VLOOKUP($B119,'[1]Num 3A'!$G$3:$O$138,7,FALSE),0) -> 13 | K119: =IFERROR(VLOOKUP($B119,'[1]Num 3A'!$G$3:$O$138,8,FALSE),0) -> 0 | Q119: 78
A120: 04301-OVALLE | B120: 200367-CECOF COLONIA LIMARÍ | E120: =IFERROR(VLOOKUP($B120,'[1]Num 3A'!$G$3:$O$138,2,FALSE),0) -> 10 | F120: =IFERROR(VLOOKUP($B120,'[1]Num 3A'!$G$3:$O$138,3,FALSE),0) -> 15 | G120: =IFERROR(VLOOKUP($B120,'[1]Num 3A'!$G$3:$O$138,4,FALSE),0) -> 18 | H120: =IFERROR(VLOOKUP($B120,'[1]Num 3A'!$G$3:$O$138,5,FALSE),0) -> 21 | I120: =IFERROR(VLOOKUP($B120,'[1]Num 3A'!$G$3:$O$138,6,FALSE),0) -> 33 | J120: =IFERROR(VLOOKUP($B120,'[1]Num 3A'!$G$3:$O$138,7,FALSE),0) -> 18 | K120: =IFERROR(VLOOKUP($B120,'[1]Num 3A'!$G$3:$O$138,8,FALSE),0) -> 16 | Q120: 131
A121: 04301-OVALLE | B121: 200569-CESFAM FRAY JORGE | E121: =IFERROR(VLOOKUP($B121,'[1]Num 3A'!$G$3:$O$138,2,FALSE),0) -> 75 | F121: =IFERROR(VLOOKUP($B121,'[1]Num 3A'!$G$3:$O$138,3,FALSE),0) -> 83 | G121: =IFERROR(VLOOKUP($B121,'[1]Num 3A'!$G$3:$O$138,4,FALSE),0) -> 135 | H121: =IFERROR(VLOOKUP($B121,'[1]Num 3A'!$G$3:$O$138,5,FALSE),0) -> 146 | I121: =IFERROR(VLOOKUP($B121,'[1]Num 3A'!$G$3:$O$138,6,FALSE),0) -> 132 | J121: =IFERROR(VLOOKUP($B121,'[1]Num 3A'!$G$3:$O$138,7,FALSE),0) -> 84 | K121: =IFERROR(VLOOKUP($B121,'[1]Num 3A'!$G$3:$O$138,8,FALSE),0) -> 104 | Q121: 759
A122: TOTAL OVALLE | C122: =D122/Metas!I14 -> 72.34% | D122: =Q122/R122 -> 20.25% | E122: =SUM(E104:E121) -> 356 | F122: 301 | G122: 511 | H122: 472 | I122: 344 | J122: 307 | K122: 370 | L122: 0 | M122: 0 | N122: 0 | O122: 0 | P122: 0 | Q122: 2661 | R122: 13,138
A123: 04302-COMBARBALÁ | B123: 105433-P.S.R. SAN LORENZO | E123: =IFERROR(VLOOKUP($B123,'[1]Num 3A'!$G$3:$O$138,2,FALSE),0) -> 0 | F123: =IFERROR(VLOOKUP($B123,'[1]Num 3A'!$G$3:$O$138,3,FALSE),0) -> 0 | G123: =IFERROR(VLOOKUP($B123,'[1]Num 3A'!$G$3:$O$138,4,FALSE),0) -> 0 | H123: =IFERROR(VLOOKUP($B123,'[1]Num 3A'!$G$3:$O$138,5,FALSE),0) -> 0 | I123: =IFERROR(VLOOKUP($B123,'[1]Num 3A'!$G$3:$O$138,6,FALSE),0) -> 0 | J123: =IFERROR(VLOOKUP($B123,'[1]Num 3A'!$G$3:$O$138,7,FALSE),0) -> 0 | K123: =IFERROR(VLOOKUP($B123,'[1]Num 3A'!$G$3:$O$138,8,FALSE),0) -> 0 | Q123: =SUM(E123:P123) -> 0
A124: 04302-COMBARBALÁ | B124: 105434-P.S.R. SAN MARCOS | E124: =IFERROR(VLOOKUP($B124,'[1]Num 3A'!$G$3:$O$138,2,FALSE),0) -> 0 | F124: =IFERROR(VLOOKUP($B124,'[1]Num 3A'!$G$3:$O$138,3,FALSE),0) -> 0 | G124: =IFERROR(VLOOKUP($B124,'[1]Num 3A'!$G$3:$O$138,4,FALSE),0) -> 0 | H124: =IFERROR(VLOOKUP($B124,'[1]Num 3A'!$G$3:$O$138,5,FALSE),0) -> 0 | I124: =IFERROR(VLOOKUP($B124,'[1]Num 3A'!$G$3:$O$138,6,FALSE),0) -> 0 | J124: =IFERROR(VLOOKUP($B124,'[1]Num 3A'!$G$3:$O$138,7,FALSE),0) -> 0 | K124: =IFERROR(VLOOKUP($B124,'[1]Num 3A'!$G$3:$O$138,8,FALSE),0) -> 0 | Q124: 0
A125: 04302-COMBARBALÁ | B125: 105441-P.S.R. MANQUEHUA | E125: =IFERROR(VLOOKUP($B125,'[1]Num 3A'!$G$3:$O$138,2,FALSE),0) -> 0 | F125: =IFERROR(VLOOKUP($B125,'[1]Num 3A'!$G$3:$O$138,3,FALSE),0) -> 0 | G125: =IFERROR(VLOOKUP($B125,'[1]Num 3A'!$G$3:$O$138,4,FALSE),0) -> 0 | H125: =IFERROR(VLOOKUP($B125,'[1]Num 3A'!$G$3:$O$138,5,FALSE),0) -> 0 | I125: =IFERROR(VLOOKUP($B125,'[1]Num 3A'!$G$3:$O$138,6,FALSE),0) -> 0 | J125: =IFERROR(VLOOKUP($B125,'[1]Num 3A'!$G$3:$O$138,7,FALSE),0) -> 0 | K125: =IFERROR(VLOOKUP($B125,'[1]Num 3A'!$G$3:$O$138,8,FALSE),0) -> 0 | Q125: 0
A126: 04302-COMBARBALÁ | B126: 105459-P.S.R. BARRANCAS | E126: =IFERROR(VLOOKUP($B126,'[1]Num 3A'!$G$3:$O$138,2,FALSE),0) -> 10 | F126: =IFERROR(VLOOKUP($B126,'[1]Num 3A'!$G$3:$O$138,3,FALSE),0) -> 0 | G126: =IFERROR(VLOOKUP($B126,'[1]Num 3A'!$G$3:$O$138,4,FALSE),0) -> 0 | H126: =IFERROR(VLOOKUP($B126,'[1]Num 3A'!$G$3:$O$138,5,FALSE),0) -> 0 | I126: =IFERROR(VLOOKUP($B126,'[1]Num 3A'!$G$3:$O$138,6,FALSE),0) -> 0 | J126: =IFERROR(VLOOKUP($B126,'[1]Num 3A'!$G$3:$O$138,7,FALSE),0) -> 0 | K126: =IFERROR(VLOOKUP($B126,'[1]Num 3A'!$G$3:$O$138,8,FALSE),0) -> 0 | Q126: 10
A127: 04302-COMBARBALÁ | B127: 105460-P.S.R. COGOTI 18 | E127: =IFERROR(VLOOKUP($B127,'[1]Num 3A'!$G$3:$O$138,2,FALSE),0) -> 0 | F127: =IFERROR(VLOOKUP($B127,'[1]Num 3A'!$G$3:$O$138,3,FALSE),0) -> 0 | G127: =IFERROR(VLOOKUP($B127,'[1]Num 3A'!$G$3:$O$138,4,FALSE),0) -> 0 | H127: =IFERROR(VLOOKUP($B127,'[1]Num 3A'!$G$3:$O$138,5,FALSE),0) -> 0 | I127: =IFERROR(VLOOKUP($B127,'[1]Num 3A'!$G$3:$O$138,6,FALSE),0) -> 0 | J127: =IFERROR(VLOOKUP($B127,'[1]Num 3A'!$G$3:$O$138,7,FALSE),0) -> 0 | K127: =IFERROR(VLOOKUP($B127,'[1]Num 3A'!$G$3:$O$138,8,FALSE),0) -> 3 | Q127: 3
